Workbook

Sheet Resumen
P1: 11 | Q1: 6
U2: www.ree.es
B3: Balance mensual de energía eléctrica CCAA (MWh) | U3: Fecha de actualización: 21/01/2019
A4: Noviembre 2018 | N4: GENERACIÓN NETA (MWh)
B5: Andalucía | C5: Aragón | D5: Asturias | E5: Baleares | F5: C. Valen. | G5: Canarias | H5: Cantabria | I5: Castilla La Mancha | J5: Castilla León | K5: Cataluña
A6: Hidraulica | B6: =OFFSET(Andalucía_datos!N30,0,($P$1-1)+(($Q$1-1)*12)) -> 26799.41892 | C6: =OFFSET(Aragón_datos!N30,0,($P$1-1)+(($Q$1-1)*12)) -> 197589.617 | D6: =OFFSET(Asturias_datos!N30,0,($P$1-1)+(($Q$1-1)*12)) -> 156657.7876 | E6: =OFFSET(Baleares_datos!N30,0,($P$1-1)+(($Q$1-1)*12)) ->  | F6: =OFFSET(C_Valenciana_datos!N30,0,($P$1-1)+(($Q$1-1)*12)) -> 20336.746 | G6: =OFFSET(Canarias_datos!N30,0,($P$1-1)+(($Q$1-1)*12)) -> 288.507 | H6: =OFFSET(Cantabria_datos!N30,0,($P$1-1)+(($Q$1-1)*12)) -> 20926.008 | I6: =OFFSET('Castilla la Mancha_datos'!N30,0,($P$1-1)+(($Q$1-1)*12)) -> 51764.615 | J6: =OFFSET('Castilla León_datos'!N30,0,($P$1-1)+(($Q$1-1)*12)) -> 453944.7494 | K6: =OFFSET(Cataluña_datos!N30,0,($P$1-1)+(($Q$1-1)*12)) -> 445418.8284
A7: Turbinación bombeo | B7: =OFFSET(Andalucía_datos!N31,0,($P$1-1)+(($Q$1-1)*12)) -> 4348.31508 | C7: =OFFSET(Aragón_datos!N31,0,($P$1-1)+(($Q$1-1)*12)) -> 3627.699 | D7: =OFFSET(Asturias_datos!N31,0,($P$1-1)+(($Q$1-1)*12)) -> 291.7684 | E7: =OFFSET(Baleares_datos!N31,0,($P$1-1)+(($Q$1-1)*12)) ->  | F7: =OFFSET(C_Valenciana_datos!N31,0,($P$1-1)+(($Q$1-1)*12)) -> 78265.044 | G7: =OFFSET(Canarias_datos!N31,0,($P$1-1)+(($Q$1-1)*12)) ->  | H7: =OFFSET(Cantabria_datos!N31,0,($P$1-1)+(($Q$1-1)*12)) -> 23063.62 | I7: =OFFSET('Castilla la Mancha_datos'!N31,0,($P$1-1)+(($Q$1-1)*12)) -> 1786.952 | J7: =OFFSET('Castilla León_datos'!N31,0,($P$1-1)+(($Q$1-1)*12)) -> 22661.06857 | K7: =OFFSET(Cataluña_datos!N31,0,($P$1-1)+(($Q$1-1)*12)) -> 2746.018608
A8: Nuclear | B8: =OFFSET(Andalucía_datos!N32,0,($P$1-1)+(($Q$1-1)*12)) ->  | C8: =OFFSET(Aragón_datos!N32,0,($P$1-1)+(($Q$1-1)*12)) ->  | D8: =OFFSET(Asturias_datos!N32,0,($P$1-1)+(($Q$1-1)*12)) ->  | E8: =OFFSET(Baleares_datos!N32,0,($P$1-1)+(($Q$1-1)*12)) ->  | F8: =OFFSET(C_Valenciana_datos!N32,0,($P$1-1)+(($Q$1-1)*12)) -> 755964.471 | G8: =OFFSET(Canarias_datos!N32,0,($P$1-1)+(($Q$1-1)*12)) ->  | H8: =OFFSET(Cantabria_datos!N32,0,($P$1-1)+(($Q$1-1)*12)) ->  | I8: =OFFSET('Castilla la Mancha_datos'!N32,0,($P$1-1)+(($Q$1-1)*12)) -> 715185.263 | J8: =OFFSET('Castilla León_datos'!N32,0,($P$1-1)+(($Q$1-1)*12)) ->  | K8: =OFFSET(Cataluña_datos!N32,0,($P$1-1)+(($Q$1-1)*12)) -> 1641929.026
A9: Carbón | B9: =OFFSET(Andalucía_datos!N33,0,($P$1-1)+(($Q$1-1)*12)) -> 1038129.279 | C9: =OFFSET(Aragón_datos!N33,0,($P$1-1)+(($Q$1-1)*12)) -> 273140.045 | D9: =OFFSET(Asturias_datos!N33,0,($P$1-1)+(($Q$1-1)*12)) -> 890561.911 | E9: =OFFSET(Baleares_datos!N33,0,($P$1-1)+(($Q$1-1)*12)) -> 108147.407 | F9: =OFFSET(C_Valenciana_datos!N33,0,($P$1-1)+(($Q$1-1)*12)) ->  | G9: =OFFSET(Canarias_datos!N33,0,($P$1-1)+(($Q$1-1)*12)) ->  | H9: =OFFSET(Cantabria_datos!N33,0,($P$1-1)+(($Q$1-1)*12)) ->  | I9: =OFFSET('Castilla la Mancha_datos'!N33,0,($P$1-1)+(($Q$1-1)*12)) ->  | J9: =OFFSET('Castilla León_datos'!N33,0,($P$1-1)+(($Q$1-1)*12)) -> 622041.206 | K9: =OFFSET(Cataluña_datos!N33,0,($P$1-1)+(($Q$1-1)*12)) -> 
A10: Fuel-Gas | B10: =OFFSET(Andalucía_datos!N34,0,($P$1-1)+(($Q$1-1)*12)) ->  | C10: =OFFSET(Aragón_datos!N34,0,($P$1-1)+(($Q$1-1)*12)) ->  | D10: =OFFSET(Asturias_datos!N34,0,($P$1-1)+(($Q$1-1)*12)) ->  | E10: =OFFSET(Baleares_datos!N34,0,($P$1-1)+(($Q$1-1)*12)) -> 89969.028 | F10: =OFFSET(C_Valenciana_datos!N34,0,($P$1-1)+(($Q$1-1)*12)) -> 0 | G10: =OFFSET(Canarias_datos!N34,0,($P$1-1)+(($Q$1-1)*12)) -> 413521.377 | H10: =OFFSET(Cantabria_datos!N34,0,($P$1-1)+(($Q$1-1)*12)) ->  | I10: =OFFSET('Castilla la Mancha_datos'!N34,0,($P$1-1)+(($Q$1-1)*12)) ->  | J10: =OFFSET('Castilla León_datos'!N34,0,($P$1-1)+(($Q$1-1)*12)) ->  | K10: =OFFSET(Cataluña_datos!N34,0,($P$1-1)+(($Q$1-1)*12)) -> 
A11: Ciclo combinado | B11: =OFFSET(Andalucía_datos!N35,0,($P$1-1)+(($Q$1-1)*12)) -> 758951.112 | C11: =OFFSET(Aragón_datos!N35,0,($P$1-1)+(($Q$1-1)*12)) -> 5531.69 | D11: =OFFSET(Asturias_datos!N35,0,($P$1-1)+(($Q$1-1)*12)) -> 9223.503 | E11: =OFFSET(Baleares_datos!N35,0,($P$1-1)+(($Q$1-1)*12)) -> 109560.933 | F11: =OFFSET(C_Valenciana_datos!N35,0,($P$1-1)+(($Q$1-1)*12)) -> 472706.48 | G11: =OFFSET(Canarias_datos!N35,0,($P$1-1)+(($Q$1-1)*12)) -> 256696.966 | H11: =OFFSET(Cantabria_datos!N35,0,($P$1-1)+(($Q$1-1)*12)) ->  | I11: =OFFSET('Castilla la Mancha_datos'!N35,0,($P$1-1)+(($Q$1-1)*12)) -> 140132.227 | J11: =OFFSET('Castilla León_datos'!N35,0,($P$1-1)+(($Q$1-1)*12)) ->  | K11: =OFFSET(Cataluña_datos!N35,0,($P$1-1)+(($Q$1-1)*12)) -> 807140.813
A12: Hidroeólica | B12: =OFFSET(Andalucía_datos!N36,0,($P$1-1)+(($Q$1-1)*12)) ->  | C12: =OFFSET(Aragón_datos!N36,0,($P$1-1)+(($Q$1-1)*12)) ->  | D12: =OFFSET(Asturias_datos!N36,0,($P$1-1)+(($Q$1-1)*12)) ->  | E12: =OFFSET(Baleares_datos!N36,0,($P$1-1)+(($Q$1-1)*12)) ->  | F12: =OFFSET(C_Valenciana_datos!N36,0,($P$1-1)+(($Q$1-1)*12)) ->  | G12: =OFFSET(Canarias_datos!N36,0,($P$1-1)+(($Q$1-1)*12)) -> 900.788 | H12: =OFFSET(Cantabria_datos!N36,0,($P$1-1)+(($Q$1-1)*12)) ->  | I12: =OFFSET('Castilla la Mancha_datos'!N36,0,($P$1-1)+(($Q$1-1)*12)) ->  | J12: =OFFSET('Castilla León_datos'!N36,0,($P$1-1)+(($Q$1-1)*12)) ->  | K12: =OFFSET(Cataluña_datos!N36,0,($P$1-1)+(($Q$1-1)*12)) -> 
A13: Eólica | B13: =OFFSET(Andalucía_datos!N37,0,($P$1-1)+(($Q$1-1)*12)) -> 487579.688 | C13: =OFFSET(Aragón_datos!N37,0,($P$1-1)+(($Q$1-1)*12)) -> 270708.714 | D13: =OFFSET(Asturias_datos!N37,0,($P$1-1)+(($Q$1-1)*12)) -> 128662.039 | E13: =OFFSET(Baleares_datos!N37,0,($P$1-1)+(($Q$1-1)*12)) -> 555.396 | F13: =OFFSET(C_Valenciana_datos!N37,0,($P$1-1)+(($Q$1-1)*12)) -> 239409.536 | G13: =OFFSET(Canarias_datos!N37,0,($P$1-1)+(($Q$1-1)*12)) -> 32426.612 | H13: =OFFSET(Cantabria_datos!N37,0,($P$1-1)+(($Q$1-1)*12)) -> 11044.519 | I13: =OFFSET('Castilla la Mancha_datos'!N37,0,($P$1-1)+(($Q$1-1)*12)) -> 858156.972 | J13: =OFFSET('Castilla León_datos'!N37,0,($P$1-1)+(($Q$1-1)*12)) -> 1156855.971 | K13: =OFFSET(Cataluña_datos!N37,0,($P$1-1)+(($Q$1-1)*12)) -> 181991.77
A14: Solar fotovoltaico | B14: =OFFSET(Andalucía_datos!N38,0,($P$1-1)+(($Q$1-1)*12)) -> 76545.327 | C14: =OFFSET(Aragón_datos!N38,0,($P$1-1)+(($Q$1-1)*12)) -> 12814.211 | D14: =OFFSET(Asturias_datos!N38,0,($P$1-1)+(($Q$1-1)*12)) -> 26.762 | E14: =OFFSET(Baleares_datos!N38,0,($P$1-1)+(($Q$1-1)*12)) -> 5979.458 | F14: =OFFSET(C_Valenciana_datos!N38,0,($P$1-1)+(($Q$1-1)*12)) -> 25398.582 | G14: =OFFSET(Canarias_datos!N38,0,($P$1-1)+(($Q$1-1)*12)) -> 16088.982 | H14: =OFFSET(Cantabria_datos!N38,0,($P$1-1)+(($Q$1-1)*12)) -> 116.616 | I14: =OFFSET('Castilla la Mancha_datos'!N38,0,($P$1-1)+(($Q$1-1)*12)) -> 73879.999 | J14: =OFFSET('Castilla León_datos'!N38,0,($P$1-1)+(($Q$1-1)*12)) -> 34771.911 | K14: =OFFSET(Cataluña_datos!N38,0,($P$1-1)+(($Q$1-1)*12)) -> 17720.403
A15: Solar térmica | B15: =OFFSET(Andalucía_datos!N39,0,($P$1-1)+(($Q$1-1)*12)) -> 39587.658 | C15: =OFFSET(Aragón_datos!N39,0,($P$1-1)+(($Q$1-1)*12)) ->  | D15: =OFFSET(Asturias_datos!N39,0,($P$1-1)+(($Q$1-1)*12)) ->  | E15: =OFFSET(Baleares_datos!N39,0,($P$1-1)+(($Q$1-1)*12)) ->  | F15: =OFFSET(C_Valenciana_datos!N39,0,($P$1-1)+(($Q$1-1)*12)) -> 2100.946 | G15: =OFFSET(Canarias_datos!N39,0,($P$1-1)+(($Q$1-1)*12)) ->  | H15: =OFFSET(Cantabria_datos!N39,0,($P$1-1)+(($Q$1-1)*12)) ->  | I15: =OFFSET('Castilla la Mancha_datos'!N39,0,($P$1-1)+(($Q$1-1)*12)) -> 10446.156 | J15: =OFFSET('Castilla León_datos'!N39,0,($P$1-1)+(($Q$1-1)*12)) ->  | K15: =OFFSET(Cataluña_datos!N39,0,($P$1-1)+(($Q$1-1)*12)) -> 3387.805
A16: Otras renovables | B16: =OFFSET(Andalucía_datos!N40,0,($P$1-1)+(($Q$1-1)*12)) -> 108196.704 | C16: =OFFSET(Aragón_datos!N40,0,($P$1-1)+(($Q$1-1)*12)) -> 3675.32 | D16: =OFFSET(Asturias_datos!N40,0,($P$1-1)+(($Q$1-1)*12)) -> 22626.563 | E16: =OFFSET(Baleares_datos!N40,0,($P$1-1)+(($Q$1-1)*12)) -> 68.766 | F16: =OFFSET(C_Valenciana_datos!N40,0,($P$1-1)+(($Q$1-1)*12)) -> 3223.342 | G16: =OFFSET(Canarias_datos!N40,0,($P$1-1)+(($Q$1-1)*12)) -> 850.253 | H16: =OFFSET(Cantabria_datos!N40,0,($P$1-1)+(($Q$1-1)*12)) -> 6642.381 | I16: =OFFSET('Castilla la Mancha_datos'!N40,0,($P$1-1)+(($Q$1-1)*12)) -> 22221.088 | J16: =OFFSET('Castilla León_datos'!N40,0,($P$1-1)+(($Q$1-1)*12)) -> 26666.383 | K16: =OFFSET(Cataluña_datos!N40,0,($P$1-1)+(($Q$1-1)*12)) -> 13074.031
A17: Cogeneración | B17: =OFFSET(Andalucía_datos!N41,0,($P$1-1)+(($Q$1-1)*12)) -> 418418.335 | C17: =OFFSET(Aragón_datos!N41,0,($P$1-1)+(($Q$1-1)*12)) -> 271168.793 | D17: =OFFSET(Asturias_datos!N41,0,($P$1-1)+(($Q$1-1)*12)) -> 34149.364 | E17: =OFFSET(Baleares_datos!N41,0,($P$1-1)+(($Q$1-1)*12)) -> 3145.667 | F17: =OFFSET(C_Valenciana_datos!N41,0,($P$1-1)+(($Q$1-1)*12)) -> 150888.516 | G17: =OFFSET(Canarias_datos!N41,0,($P$1-1)+(($Q$1-1)*12)) ->  | H17: =OFFSET(Cantabria_datos!N41,0,($P$1-1)+(($Q$1-1)*12)) -> 82016.055 | I17: =OFFSET('Castilla la Mancha_datos'!N41,0,($P$1-1)+(($Q$1-1)*12)) -> 113083.627 | J17: =OFFSET('Castilla León_datos'!N41,0,($P$1-1)+(($Q$1-1)*12)) -> 233773.929 | K17: =OFFSET(Cataluña_datos!N41,0,($P$1-1)+(($Q$1-1)*12)) -> 465074.055 | U17: =datos_mapa!G23 -> < 250.600
A18: Residuos no renovables | B18: =OFFSET(Andalucía_datos!N42,0,($P$1-1)+(($Q$1-1)*12)) ->  | C18: =OFFSET(Aragón_datos!N42,0,($P$1-1)+(($Q$1-1)*12)) -> 35052.258 | D18: =OFFSET(Asturias_datos!N42,0,($P$1-1)+(($Q$1-1)*12)) -> 67684.582 | E18: =OFFSET(Baleares_datos!N42,0,($P$1-1)+(($Q$1-1)*12)) -> 7033.376 | F18: =OFFSET(C_Valenciana_datos!N42,0,($P$1-1)+(($Q$1-1)*12)) -> 6215.585 | G18: =OFFSET(Canarias_datos!N42,0,($P$1-1)+(($Q$1-1)*12)) ->  | H18: =OFFSET(Cantabria_datos!N42,0,($P$1-1)+(($Q$1-1)*12)) -> 2812.205 | I18: =OFFSET('Castilla la Mancha_datos'!N42,0,($P$1-1)+(($Q$1-1)*12)) ->  | J18: =OFFSET('Castilla León_datos'!N42,0,($P$1-1)+(($Q$1-1)*12)) ->  | K18: =OFFSET(Cataluña_datos!N42,0,($P$1-1)+(($Q$1-1)*12)) -> 9659.4905 | U18: =datos_mapa!G24 -> (250.600 - 763.000)
A19: Residuos renovables | B19: =OFFSET(Andalucía_datos!N43,0,($P$1-1)+(($Q$1-1)*12)) ->  | C19: =OFFSET(Aragón_datos!N43,0,($P$1-1)+(($Q$1-1)*12)) ->  | D19: =OFFSET(Asturias_datos!N43,0,($P$1-1)+(($Q$1-1)*12)) ->  | E19: =OFFSET(Baleares_datos!N43,0,($P$1-1)+(($Q$1-1)*12)) -> 7033.376 | F19: =OFFSET(C_Valenciana_datos!N43,0,($P$1-1)+(($Q$1-1)*12)) ->  | G19: =OFFSET(Canarias_datos!N43,0,($P$1-1)+(($Q$1-1)*12)) ->  | H19: =OFFSET(Cantabria_datos!N43,0,($P$1-1)+(($Q$1-1)*12)) -> 2812.205 | I19: =OFFSET('Castilla la Mancha_datos'!N43,0,($P$1-1)+(($Q$1-1)*12)) ->  | J19: =OFFSET('Castilla León_datos'!N43,0,($P$1-1)+(($Q$1-1)*12)) ->  | K19: =OFFSET(Cataluña_datos!N43,0,($P$1-1)+(($Q$1-1)*12)) -> 8774.2485 | U19: =datos_mapa!G25 -> (763.000 - 1.960.000)
A20: Generación neta | B20: =SUM(B6:B19) -> 2958555.837 | C20: =SUM(C6:C19) -> 1073308.347 | D20: 1309884.28 | E20: 331493.407 | F20: 1754509.248 | G20: 720773.485 | H20: 149433.609 | I20: 1986656.899 | J20: 2550715.218 | K20: 3596916.489 | U20: =datos_mapa!G26 -> > 1.960.000
A21: Consumos en bombeo | B21: =OFFSET(Andalucía_datos!N45,0,($P$1-1)+(($Q$1-1)*12)) -> -4796.542 | C21: =OFFSET(Aragón_datos!N45,0,($P$1-1)+(($Q$1-1)*12)) -> -11323.369 | D21: =OFFSET(Asturias_datos!N45,0,($P$1-1)+(($Q$1-1)*12)) -> -729.897 | E21: =OFFSET(Baleares_datos!N45,0,($P$1-1)+(($Q$1-1)*12)) ->  | F21: =OFFSET(C_Valenciana_datos!N45,0,($P$1-1)+(($Q$1-1)*12)) -> -112190.226 | G21: =OFFSET(Canarias_datos!N45,0,($P$1-1)+(($Q$1-1)*12)) ->  | H21: =OFFSET(Cantabria_datos!N45,0,($P$1-1)+(($Q$1-1)*12)) -> -30491.85 | I21: =OFFSET('Castilla la Mancha_datos'!N45,0,($P$1-1)+(($Q$1-1)*12)) -> -3715.486048 | J21: =OFFSET('Castilla León_datos'!N45,0,($P$1-1)+(($Q$1-1)*12)) -> -37442.915 | K21: =OFFSET(Cataluña_datos!N45,0,($P$1-1)+(($Q$1-1)*12)) -> -4123.679
A22: Saldo Intercambios | B22: =OFFSET(Andalucía_datos!N46,0,($P$1-1)+(($Q$1-1)*12)) -> 272096.801 | C22: =OFFSET(Aragón_datos!N46,0,($P$1-1)+(($Q$1-1)*12)) -> -130439.66 | D22: =OFFSET(Asturias_datos!N46,0,($P$1-1)+(($Q$1-1)*12)) -> -422329.427 | E22: =OFFSET(Baleares_datos!N46,0,($P$1-1)+(($Q$1-1)*12)) -> 65068.315 | F22: =OFFSET(C_Valenciana_datos!N46,0,($P$1-1)+(($Q$1-1)*12)) -> 577207.422 | G22: =OFFSET(Canarias_datos!N46,0,($P$1-1)+(($Q$1-1)*12)) ->  | H22: =OFFSET(Cantabria_datos!N46,0,($P$1-1)+(($Q$1-1)*12)) -> 229605.47 | I22: =OFFSET('Castilla la Mancha_datos'!N46,0,($P$1-1)+(($Q$1-1)*12)) -> -1044742.999 | J22: =OFFSET('Castilla León_datos'!N46,0,($P$1-1)+(($Q$1-1)*12)) -> -1304221.526 | K22: =OFFSET(Cataluña_datos!N46,0,($P$1-1)+(($Q$1-1)*12)) -> 274965.505
A23: Demanda B.C | B23: =SUM(B20:B22) -> 3225856.096 | C23: =SUM(C20:C22) -> 931545.318 | D23: 886824.956 | E23: =SUM(E20:E22) -> 396561.722 | F23: 2219526.444 | G23: 720773.485 | H23: 348547.229 | I23: 938198.414 | J23: 1209050.777 | K23: 3867758.315
A24: %Δ 18/17 | B24: =OFFSET(Andalucía_datos!N48,0,($P$1-1)+(($Q$1-1)*12)) -> 2.811063889 | C24: =OFFSET(Aragón_datos!N48,0,($P$1-1)+(($Q$1-1)*12)) -> 2.883759633 | D24: =OFFSET(Asturias_datos!N48,0,($P$1-1)+(($Q$1-1)*12)) -> -1.761012248 | E24: =OFFSET(Baleares_datos!N48,0,($P$1-1)+(($Q$1-1)*12)) -> -1.765582341 | F24: =OFFSET(C_Valenciana_datos!N48,0,($P$1-1)+(($Q$1-1)*12)) -> 2.031910418 | G24: =OFFSET(Canarias_datos!N48,0,($P$1-1)+(($Q$1-1)*12)) -> -3.090754694 | H24: =OFFSET(Cantabria_datos!N48,0,($P$1-1)+(($Q$1-1)*12)) -> -8.929460921 | I24: =OFFSET('Castilla la Mancha_datos'!N48,0,($P$1-1)+(($Q$1-1)*12)) -> 1.984020285 | J24: =OFFSET('Castilla León_datos'!N48,0,($P$1-1)+(($Q$1-1)*12)) -> 1.20913934 | K24: =OFFSET(Cataluña_datos!N48,0,($P$1-1)+(($Q$1-1)*12)) -> -3.194791498
N25: DEMANDA B.C. (MWh)
B28: Ceuta | C28: Extrem. | D28: Galicia | E28: La Rioja | F28: Madrid | G28: Melilla | H28: Murcia | I28: Navarra | J28: País Vasco | K28: Total
A29: Hidraulica | B29: =OFFSET(Ceuta_datos!N30,0,($P$1-1)+(($Q$1-1)*12)) ->  | C29: =OFFSET(Extremadura_datos!N30,0,($P$1-1)+(($Q$1-1)*12)) -> 70204.27247 | D29: =OFFSET(Galicia_datos!N30,0,($P$1-1)+(($Q$1-1)*12)) -> 642591.472 | E29: =OFFSET('La Rioja_datos'!N30,0,($P$1-1)+(($Q$1-1)*12)) -> 9768.1 | F29: =OFFSET(Madrid_datos!N30,0,($P$1-1)+(($Q$1-1)*12)) -> 4443.849 | G29: =OFFSET(Melilla_datos!N30,0,($P$1-1)+(($Q$1-1)*12)) ->  | H29: =OFFSET(Murcia_datos!N30,0,($P$1-1)+(($Q$1-1)*12)) -> 4556.233 | I29: =OFFSET(Navarra_datos!N30,0,($P$1-1)+(($Q$1-1)*12)) -> 31822.013 | J29: =OFFSET('País Vasco_datos'!N30,0,($P$1-1)+(($Q$1-1)*12)) -> 23819.077 | K29: =SUM(B6:K6,B29:J29) -> 2160931.294
A30: Turbinación bombeo | B30: =OFFSET(Ceuta_datos!N31,0,($P$1-1)+(($Q$1-1)*12)) ->  | C30: =OFFSET(Extremadura_datos!N31,0,($P$1-1)+(($Q$1-1)*12)) -> 8.604528 | D30: =OFFSET(Galicia_datos!N31,0,($P$1-1)+(($Q$1-1)*12)) -> 6104.406 | E30: =OFFSET('La Rioja_datos'!N31,0,($P$1-1)+(($Q$1-1)*12)) ->  | F30: =OFFSET(Madrid_datos!N31,0,($P$1-1)+(($Q$1-1)*12)) ->  | G30: =OFFSET(Melilla_datos!N31,0,($P$1-1)+(($Q$1-1)*12)) ->  | H30: =OFFSET(Murcia_datos!N31,0,($P$1-1)+(($Q$1-1)*12)) ->  | I30: =OFFSET(Navarra_datos!N31,0,($P$1-1)+(($Q$1-1)*12)) ->  | J30: =OFFSET('País Vasco_datos'!N31,0,($P$1-1)+(($Q$1-1)*12)) ->  | K30: 142903.4962
A31: Nuclear | B31: =OFFSET(Ceuta_datos!N32,0,($P$1-1)+(($Q$1-1)*12)) ->  | C31: =OFFSET(Extremadura_datos!N32,0,($P$1-1)+(($Q$1-1)*12)) -> 716904.688 | D31: =OFFSET(Galicia_datos!N32,0,($P$1-1)+(($Q$1-1)*12)) ->  | E31: =OFFSET('La Rioja_datos'!N32,0,($P$1-1)+(($Q$1-1)*12)) ->  | F31: =OFFSET(Madrid_datos!N32,0,($P$1-1)+(($Q$1-1)*12)) ->  | G31: =OFFSET(Melilla_datos!N32,0,($P$1-1)+(($Q$1-1)*12)) ->  | H31: =OFFSET(Murcia_datos!N32,0,($P$1-1)+(($Q$1-1)*12)) ->  | I31: =OFFSET(Navarra_datos!N32,0,($P$1-1)+(($Q$1-1)*12)) ->  | J31: =OFFSET('País Vasco_datos'!N32,0,($P$1-1)+(($Q$1-1)*12)) ->  | K31: 3829983.448
A32: Carbón | B32: =OFFSET(Ceuta_datos!N33,0,($P$1-1)+(($Q$1-1)*12)) ->  | C32: =OFFSET(Extremadura_datos!N33,0,($P$1-1)+(($Q$1-1)*12)) ->  | D32: =OFFSET(Galicia_datos!N33,0,($P$1-1)+(($Q$1-1)*12)) -> 1051457.99 | E32: =OFFSET('La Rioja_datos'!N33,0,($P$1-1)+(($Q$1-1)*12)) ->  | F32: =OFFSET(Madrid_datos!N33,0,($P$1-1)+(($Q$1-1)*12)) ->  | G32: =OFFSET(Melilla_datos!N33,0,($P$1-1)+(($Q$1-1)*12)) ->  | H32: =OFFSET(Murcia_datos!N33,0,($P$1-1)+(($Q$1-1)*12)) ->  | I32: =OFFSET(Navarra_datos!N33,0,($P$1-1)+(($Q$1-1)*12)) ->  | J32: =OFFSET('País Vasco_datos'!N33,0,($P$1-1)+(($Q$1-1)*12)) ->  | K32: 3983477.838
A33: Fuel-Gas | B33: =OFFSET(Ceuta_datos!N34,0,($P$1-1)+(($Q$1-1)*12)) -> 17385.028 | C33: =OFFSET(Extremadura_datos!N34,0,($P$1-1)+(($Q$1-1)*12)) ->  | D33: =OFFSET(Galicia_datos!N34,0,($P$1-1)+(($Q$1-1)*12)) ->  | E33: =OFFSET('La Rioja_datos'!N34,0,($P$1-1)+(($Q$1-1)*12)) ->  | F33: =OFFSET(Madrid_datos!N34,0,($P$1-1)+(($Q$1-1)*12)) ->  | G33: =OFFSET(Melilla_datos!N34,0,($P$1-1)+(($Q$1-1)*12)) -> 16391.207 | H33: =OFFSET(Murcia_datos!N34,0,($P$1-1)+(($Q$1-1)*12)) ->  | I33: =OFFSET(Navarra_datos!N34,0,($P$1-1)+(($Q$1-1)*12)) ->  | J33: =OFFSET('País Vasco_datos'!N34,0,($P$1-1)+(($Q$1-1)*12)) ->  | K33: 537266.64
A34: Ciclo combinado | B34: =OFFSET(Ceuta_datos!N35,0,($P$1-1)+(($Q$1-1)*12)) ->  | C34: =OFFSET(Extremadura_datos!N35,0,($P$1-1)+(($Q$1-1)*12)) ->  | D34: =OFFSET(Galicia_datos!N35,0,($P$1-1)+(($Q$1-1)*12)) -> 162776.994 | E34: =OFFSET('La Rioja_datos'!N35,0,($P$1-1)+(($Q$1-1)*12)) -> 85629.195 | F34: =OFFSET(Madrid_datos!N35,0,($P$1-1)+(($Q$1-1)*12)) ->  | G34: =OFFSET(Melilla_datos!N35,0,($P$1-1)+(($Q$1-1)*12)) ->  | H34: =OFFSET(Murcia_datos!N35,0,($P$1-1)+(($Q$1-1)*12)) -> 388340.388 | I34: =OFFSET(Navarra_datos!N35,0,($P$1-1)+(($Q$1-1)*12)) -> 98122.912 | J34: =OFFSET('País Vasco_datos'!N35,0,($P$1-1)+(($Q$1-1)*12)) -> 232302.606 | K34: 3527115.819
A35: Hidroeólica | B35: =OFFSET(Ceuta_datos!N36,0,($P$1-1)+(($Q$1-1)*12)) ->  | C35: =OFFSET(Extremadura_datos!N36,0,($P$1-1)+(($Q$1-1)*12)) ->  | D35: =OFFSET(Galicia_datos!N36,0,($P$1-1)+(($Q$1-1)*12)) ->  | E35: =OFFSET('La Rioja_datos'!N36,0,($P$1-1)+(($Q$1-1)*12)) ->  | F35: =OFFSET(Madrid_datos!N36,0,($P$1-1)+(($Q$1-1)*12)) ->  | G35: =OFFSET(Melilla_datos!N36,0,($P$1-1)+(($Q$1-1)*12)) ->  | H35: =OFFSET(Murcia_datos!N36,0,($P$1-1)+(($Q$1-1)*12)) ->  | I35: =OFFSET(Navarra_datos!N36,0,($P$1-1)+(($Q$1-1)*12)) ->  | J35: =OFFSET('País Vasco_datos'!N36,0,($P$1-1)+(($Q$1-1)*12)) ->  | K35: 900.788
A36: Eólica | B36: =OFFSET(Ceuta_datos!N37,0,($P$1-1)+(($Q$1-1)*12)) ->  | C36: =OFFSET(Extremadura_datos!N37,0,($P$1-1)+(($Q$1-1)*12)) ->  | D36: =OFFSET(Galicia_datos!N37,0,($P$1-1)+(($Q$1-1)*12)) -> 874688.124 | E36: =OFFSET('La Rioja_datos'!N37,0,($P$1-1)+(($Q$1-1)*12)) -> 68318.741 | F36: =OFFSET(Madrid_datos!N37,0,($P$1-1)+(($Q$1-1)*12)) ->  | G36: =OFFSET(Melilla_datos!N37,0,($P$1-1)+(($Q$1-1)*12)) ->  | H36: =OFFSET(Murcia_datos!N37,0,($P$1-1)+(($Q$1-1)*12)) -> 50319.174 | I36: =OFFSET(Navarra_datos!N37,0,($P$1-1)+(($Q$1-1)*12)) -> 156317.792 | J36: =OFFSET('País Vasco_datos'!N37,0,($P$1-1)+(($Q$1-1)*12)) -> 41897.147 | K36: 4558932.195
A37: Solar fotovoltaico | B37: =OFFSET(Ceuta_datos!N38,0,($P$1-1)+(($Q$1-1)*12)) ->  | C37: =OFFSET(Extremadura_datos!N38,0,($P$1-1)+(($Q$1-1)*12)) -> 47512.347 | D37: =OFFSET(Galicia_datos!N38,0,($P$1-1)+(($Q$1-1)*12)) -> 748.427 | E37: =OFFSET('La Rioja_datos'!N38,0,($P$1-1)+(($Q$1-1)*12)) -> 5637.063 | F37: =OFFSET(Madrid_datos!N38,0,($P$1-1)+(($Q$1-1)*12)) -> 3769.128 | G37: =OFFSET(Melilla_datos!N38,0,($P$1-1)+(($Q$1-1)*12)) -> 4.839 | H37: =OFFSET(Murcia_datos!N38,0,($P$1-1)+(($Q$1-1)*12)) -> 39112.098 | I37: =OFFSET(Navarra_datos!N38,0,($P$1-1)+(($Q$1-1)*12)) -> 13250.522 | J37: =OFFSET('País Vasco_datos'!N38,0,($P$1-1)+(($Q$1-1)*12)) -> 1316.26 | K37: 374692.935
A38: Solar térmica | B38: =OFFSET(Ceuta_datos!N39,0,($P$1-1)+(($Q$1-1)*12)) ->  | C38: =OFFSET(Extremadura_datos!N39,0,($P$1-1)+(($Q$1-1)*12)) -> 21956.776 | D38: =OFFSET(Galicia_datos!N39,0,($P$1-1)+(($Q$1-1)*12)) ->  | E38: =OFFSET('La Rioja_datos'!N39,0,($P$1-1)+(($Q$1-1)*12)) ->  | F38: =OFFSET(Madrid_datos!N39,0,($P$1-1)+(($Q$1-1)*12)) ->  | G38: =OFFSET(Melilla_datos!N39,0,($P$1-1)+(($Q$1-1)*12)) ->  | H38: =OFFSET(Murcia_datos!N39,0,($P$1-1)+(($Q$1-1)*12)) -> 1096.776 | I38: =OFFSET(Navarra_datos!N39,0,($P$1-1)+(($Q$1-1)*12)) ->  | J38: =OFFSET('País Vasco_datos'!N39,0,($P$1-1)+(($Q$1-1)*12)) ->  | K38: 78576.117 | U38: =datos_mapa!G52 -> < 387.000
A39: Otras renovables | B39: =OFFSET(Ceuta_datos!N40,0,($P$1-1)+(($Q$1-1)*12)) ->  | C39: =OFFSET(Extremadura_datos!N40,0,($P$1-1)+(($Q$1-1)*12)) -> 20633.647 | D39: =OFFSET(Galicia_datos!N40,0,($P$1-1)+(($Q$1-1)*12)) -> 23863.064 | E39: =OFFSET('La Rioja_datos'!N40,0,($P$1-1)+(($Q$1-1)*12)) -> 651.644 | F39: =OFFSET(Madrid_datos!N40,0,($P$1-1)+(($Q$1-1)*12)) -> 12461.339 | G39: =OFFSET(Melilla_datos!N40,0,($P$1-1)+(($Q$1-1)*12)) ->  | H39: =OFFSET(Murcia_datos!N40,0,($P$1-1)+(($Q$1-1)*12)) -> 3909.787 | I39: =OFFSET(Navarra_datos!N40,0,($P$1-1)+(($Q$1-1)*12)) -> 20729.187 | J39: =OFFSET('País Vasco_datos'!N40,0,($P$1-1)+(($Q$1-1)*12)) -> 3993.571 | K39: 293487.07 | U39: =datos_mapa!G53 -> (387.000 - 826.000)
A40: Cogeneración | B40: =OFFSET(Ceuta_datos!N41,0,($P$1-1)+(($Q$1-1)*12)) ->  | C40: =OFFSET(Extremadura_datos!N41,0,($P$1-1)+(($Q$1-1)*12)) -> 6038.998 | D40: =OFFSET(Galicia_datos!N41,0,($P$1-1)+(($Q$1-1)*12)) -> 218041.228 | E40: =OFFSET('La Rioja_datos'!N41,0,($P$1-1)+(($Q$1-1)*12)) -> 7098.212 | F40: =OFFSET(Madrid_datos!N41,0,($P$1-1)+(($Q$1-1)*12)) -> 73859.928 | G40: =OFFSET(Melilla_datos!N41,0,($P$1-1)+(($Q$1-1)*12)) ->  | H40: =OFFSET(Murcia_datos!N41,0,($P$1-1)+(($Q$1-1)*12)) -> 141940.037 | I40: =OFFSET(Navarra_datos!N41,0,($P$1-1)+(($Q$1-1)*12)) -> 77037.143 | J40: =OFFSET('País Vasco_datos'!N41,0,($P$1-1)+(($Q$1-1)*12)) -> 179515.243 | K40: 2475249.13 | U40: =datos_mapa!G54 -> (826.000 - 1.585.400)
A41: Residuos no renovables | B41: =OFFSET(Ceuta_datos!N42,0,($P$1-1)+(($Q$1-1)*12)) ->  | C41: =OFFSET(Extremadura_datos!N42,0,($P$1-1)+(($Q$1-1)*12)) ->  | D41: =OFFSET(Galicia_datos!N42,0,($P$1-1)+(($Q$1-1)*12)) -> 15666.7455 | E41: =OFFSET('La Rioja_datos'!N42,0,($P$1-1)+(($Q$1-1)*12)) ->  | F41: =OFFSET(Madrid_datos!N42,0,($P$1-1)+(($Q$1-1)*12)) -> 7950.0215 | G41: =OFFSET(Melilla_datos!N42,0,($P$1-1)+(($Q$1-1)*12)) -> 109.871 | H41: =OFFSET(Murcia_datos!N42,0,($P$1-1)+(($Q$1-1)*12)) ->  | I41: =OFFSET(Navarra_datos!N42,0,($P$1-1)+(($Q$1-1)*12)) ->  | J41: =OFFSET('País Vasco_datos'!N42,0,($P$1-1)+(($Q$1-1)*12)) -> 46908.1625 | K41: 199092.297 | U41: =datos_mapa!G55 -> > 1.585.400
A42: Residuos renovables | B42: =OFFSET(Ceuta_datos!N43,0,($P$1-1)+(($Q$1-1)*12)) ->  | C42: =OFFSET(Extremadura_datos!N43,0,($P$1-1)+(($Q$1-1)*12)) ->  | D42: =OFFSET(Galicia_datos!N43,0,($P$1-1)+(($Q$1-1)*12)) -> 15666.7455 | E42: =OFFSET('La Rioja_datos'!N43,0,($P$1-1)+(($Q$1-1)*12)) ->  | F42: =OFFSET(Madrid_datos!N43,0,($P$1-1)+(($Q$1-1)*12)) -> 7950.0215 | G42: =OFFSET(Melilla_datos!N43,0,($P$1-1)+(($Q$1-1)*12)) -> 109.871 | H42: =OFFSET(Murcia_datos!N43,0,($P$1-1)+(($Q$1-1)*12)) ->  | I42: =OFFSET(Navarra_datos!N43,0,($P$1-1)+(($Q$1-1)*12)) ->  | J42: =OFFSET('País Vasco_datos'!N43,0,($P$1-1)+(($Q$1-1)*12)) -> 26390.6485 | K42: 68737.116
A43: Geneneración neta | B43: =SUM(B29:B42) -> 17385.028 | C43: =SUM(C29:C42) -> 883259.333 | D43: 3011605.196 | E43: 177102.955 | F43: 110434.287 | G43: 16615.788 | H43: 629274.493 | I43: 397279.569 | J43: 556142.715 | K43: 22231346.18
A44: Consumos en bombeo | B44: =OFFSET(Ceuta_datos!N45,0,($P$1-1)+(($Q$1-1)*12)) ->  | C44: =OFFSET(Extremadura_datos!N45,0,($P$1-1)+(($Q$1-1)*12)) -> -196.36 | D44: =OFFSET(Galicia_datos!N45,0,($P$1-1)+(($Q$1-1)*12)) -> -15536.712 | E44: =OFFSET('La Rioja_datos'!N45,0,($P$1-1)+(($Q$1-1)*12)) ->  | F44: =OFFSET(Madrid_datos!N45,0,($P$1-1)+(($Q$1-1)*12)) ->  | G44: =OFFSET(Melilla_datos!N45,0,($P$1-1)+(($Q$1-1)*12)) ->  | H44: =OFFSET(Murcia_datos!N45,0,($P$1-1)+(($Q$1-1)*12)) ->  | I44: =OFFSET(Navarra_datos!N45,0,($P$1-1)+(($Q$1-1)*12)) ->  | J44: =OFFSET('País Vasco_datos'!N45,0,($P$1-1)+(($Q$1-1)*12)) ->  | K44: =SUM(B21:K21,B44:J44) -> -220547.036
A45: Saldo Intercambios | B45: =OFFSET(Ceuta_datos!N46,0,($P$1-1)+(($Q$1-1)*12)) ->  | C45: =OFFSET(Extremadura_datos!N46,0,($P$1-1)+(($Q$1-1)*12)) -> -476520.98 | D45: =OFFSET(Galicia_datos!N46,0,($P$1-1)+(($Q$1-1)*12)) -> -1346281.569 | E45: =OFFSET('La Rioja_datos'!N46,0,($P$1-1)+(($Q$1-1)*12)) -> -30759.338 | F45: =OFFSET(Madrid_datos!N46,0,($P$1-1)+(($Q$1-1)*12)) -> 2294530.239 | G45: =OFFSET(Melilla_datos!N46,0,($P$1-1)+(($Q$1-1)*12)) ->  | H45: =OFFSET(Murcia_datos!N46,0,($P$1-1)+(($Q$1-1)*12)) -> 140528.234 | I45: =OFFSET(Navarra_datos!N46,0,($P$1-1)+(($Q$1-1)*12)) -> 43321.614 | J45: =OFFSET('País Vasco_datos'!N46,0,($P$1-1)+(($Q$1-1)*12)) -> 902651.305 | K45: =SUM(B22:K22,B45:J45) -> 44679.406
A46: Demanda B.C | B46: =SUM(B43:B45) -> 17385.028 | C46: =SUM(C43:C45) -> 406541.993 | D46: 1649786.915 | E46: 146343.617 | F46: 2404964.526 | G46: 16615.788 | H46: 769802.727 | I46: 440601.183 | J46: 1458794.02 | K46: 22055478.55
A47: %Δ 18/17 | B47: =OFFSET(Ceuta_datos!N48,0,($P$1-1)+(($Q$1-1)*12)) -> 6.18076732 | C47: =OFFSET(Extremadura_datos!N48,0,($P$1-1)+(($Q$1-1)*12)) -> 3.546420255 | D47: =OFFSET(Galicia_datos!N48,0,($P$1-1)+(($Q$1-1)*12)) -> -3.550660355 | E47: =OFFSET('La Rioja_datos'!N48,0,($P$1-1)+(($Q$1-1)*12)) -> 0.1639536759 | F47: =OFFSET(Madrid_datos!N48,0,($P$1-1)+(($Q$1-1)*12)) -> 1.39580048 | G47: =OFFSET(Melilla_datos!N48,0,($P$1-1)+(($Q$1-1)*12)) -> 1.262204137 | H47: =OFFSET(Murcia_datos!N48,0,($P$1-1)+(($Q$1-1)*12)) -> 1.931340476 | I47: =OFFSET(Navarra_datos!N48,0,($P$1-1)+(($Q$1-1)*12)) -> 0.8708397055 | J47: =OFFSET('País Vasco_datos'!N48,0,($P$1-1)+(($Q$1-1)*12)) -> -0.530054113 | K47: =OFFSET(Nacional_datos!N48,0,($P$1-1)+(($Q$1-1)*12)) -> -0.08269090358

Sheet Andalucía
A1: Andalucía | B1: 1 | C1: 2 | D1: 3 | E1: 4 | F1: 5 | G1: 6 | H1: 7 | I1: 8 | J1: 9 | K1: 10 | L1: 11 | M1: 12
A2: Balance mensual de energía electrica. MWh
B3: 2018
B4: Ene | C4: Feb | D4: Mar | E4: Abr | F4: May | G4: Jun | H4: Jul | I4: Ago | J4: Sep | K4: Oct | L4: Nov | M4: Dic | N4: TOTAL
A5: Hidraulica | B5: =IF(B$1<=Resumen!$P$1,IF(OFFSET(Andalucía_datos!N30,0,((Resumen!$Q$1-1)*12))=0," ",OFFSET(Andalucía_datos!N30,0,((Resumen!$Q$1-1)*12)))," ") -> 23913.41047 | C5: =IF(C$1<=Resumen!$P$1,IF(OFFSET(Andalucía_datos!O30,0,((Resumen!$Q$1-1)*12))=0," ",OFFSET(Andalucía_datos!O30,0,((Resumen!$Q$1-1)*12)))," ") -> 15087.16918 | D5: =IF(D$1<=Resumen!$P$1,IF(OFFSET(Andalucía_datos!P30,0,((Resumen!$Q$1-1)*12))=0," ",OFFSET(Andalucía_datos!P30,0,((Resumen!$Q$1-1)*12)))," ") -> 88804.46476 | E5: =IF(E$1<=Resumen!$P$1,IF(OFFSET(Andalucía_datos!Q30,0,((Resumen!$Q$1-1)*12))=0," ",OFFSET(Andalucía_datos!Q30,0,((Resumen!$Q$1-1)*12)))," ") -> 86374.93502 | F5: =IF(F$1<=Resumen!$P$1,IF(OFFSET(Andalucía_datos!R30,0,((Resumen!$Q$1-1)*12))=0," ",OFFSET(Andalucía_datos!R30,0,((Resumen!$Q$1-1)*12)))," ") -> 82140.391 | G5: =IF(G$1<=Resumen!$P$1,IF(OFFSET(Andalucía_datos!S30,0,((Resumen!$Q$1-1)*12))=0," ",OFFSET(Andalucía_datos!S30,0,((Resumen!$Q$1-1)*12)))," ") -> 103495.5093 | H5: =IF(H$1<=Resumen!$P$1,IF(OFFSET(Andalucía_datos!T30,0,((Resumen!$Q$1-1)*12))=0," ",OFFSET(Andalucía_datos!T30,0,((Resumen!$Q$1-1)*12)))," ") -> 106209.8812 | I5: =IF(I$1<=Resumen!$P$1,IF(OFFSET(Andalucía_datos!U30,0,((Resumen!$Q$1-1)*12))=0," ",OFFSET(Andalucía_datos!U30,0,((Resumen!$Q$1-1)*12)))," ") -> 92531.96304 | J5: =IF(J$1<=Resumen!$P$1,IF(OFFSET(Andalucía_datos!V30,0,((Resumen!$Q$1-1)*12))=0," ",OFFSET(Andalucía_datos!V30,0,((Resumen!$Q$1-1)*12)))," ") -> 64869.89283 | K5: =IF(K$1<=Resumen!$P$1,IF(OFFSET(Andalucía_datos!W30,0,((Resumen!$Q$1-1)*12))=0," ",OFFSET(Andalucía_datos!W30,0,((Resumen!$Q$1-1)*12)))," ") -> 38434.65754 | L5: =IF(L$1<=Resumen!$P$1,IF(OFFSET(Andalucía_datos!X30,0,((Resumen!$Q$1-1)*12))=0," ",OFFSET(Andalucía_datos!X30,0,((Resumen!$Q$1-1)*12)))," ") -> 26799.41892 | M5: =IF(M$1<=Resumen!$P$1,IF(OFFSET(Andalucía_datos!Y30,0,((Resumen!$Q$1-1)*12))=0," ",OFFSET(Andalucía_datos!Y30,0,((Resumen!$Q$1-1)*12)))," ") ->  | N5: =IF(SUM(B5:M5)=0," ",SUM(B5:M5)) -> 728661.6932
A6: Turbinación bombeo | B6: =IF(B$1<=Resumen!$P$1,IF(OFFSET(Andalucía_datos!N31,0,((Resumen!$Q$1-1)*12))=0," ",OFFSET(Andalucía_datos!N31,0,((Resumen!$Q$1-1)*12)))," ") -> 23466.55853 | C6: =IF(C$1<=Resumen!$P$1,IF(OFFSET(Andalucía_datos!O31,0,((Resumen!$Q$1-1)*12))=0," ",OFFSET(Andalucía_datos!O31,0,((Resumen!$Q$1-1)*12)))," ") -> 10529.71382 | D6: =IF(D$1<=Resumen!$P$1,IF(OFFSET(Andalucía_datos!P31,0,((Resumen!$Q$1-1)*12))=0," ",OFFSET(Andalucía_datos!P31,0,((Resumen!$Q$1-1)*12)))," ") -> 28001.58124 | E6: =IF(E$1<=Resumen!$P$1,IF(OFFSET(Andalucía_datos!Q31,0,((Resumen!$Q$1-1)*12))=0," ",OFFSET(Andalucía_datos!Q31,0,((Resumen!$Q$1-1)*12)))," ") -> 19982.53998 | F6: =IF(F$1<=Resumen!$P$1,IF(OFFSET(Andalucía_datos!R31,0,((Resumen!$Q$1-1)*12))=0," ",OFFSET(Andalucía_datos!R31,0,((Resumen!$Q$1-1)*12)))," ") -> 8090.942 | G6: =IF(G$1<=Resumen!$P$1,IF(OFFSET(Andalucía_datos!S31,0,((Resumen!$Q$1-1)*12))=0," ",OFFSET(Andalucía_datos!S31,0,((Resumen!$Q$1-1)*12)))," ") -> 2844.02572 | H6: =IF(H$1<=Resumen!$P$1,IF(OFFSET(Andalucía_datos!T31,0,((Resumen!$Q$1-1)*12))=0," ",OFFSET(Andalucía_datos!T31,0,((Resumen!$Q$1-1)*12)))," ") -> 518.791808 | I6: =IF(I$1<=Resumen!$P$1,IF(OFFSET(Andalucía_datos!U31,0,((Resumen!$Q$1-1)*12))=0," ",OFFSET(Andalucía_datos!U31,0,((Resumen!$Q$1-1)*12)))," ") -> 781.45696 | J6: =IF(J$1<=Resumen!$P$1,IF(OFFSET(Andalucía_datos!V31,0,((Resumen!$Q$1-1)*12))=0," ",OFFSET(Andalucía_datos!V31,0,((Resumen!$Q$1-1)*12)))," ") -> 1062.077168 | K6: =IF(K$1<=Resumen!$P$1,IF(OFFSET(Andalucía_datos!W31,0,((Resumen!$Q$1-1)*12))=0," ",OFFSET(Andalucía_datos!W31,0,((Resumen!$Q$1-1)*12)))," ") -> 6564.066464 | L6: =IF(L$1<=Resumen!$P$1,IF(OFFSET(Andalucía_datos!X31,0,((Resumen!$Q$1-1)*12))=0," ",OFFSET(Andalucía_datos!X31,0,((Resumen!$Q$1-1)*12)))," ") -> 4348.31508 | M6: =IF(M$1<=Resumen!$P$1,IF(OFFSET(Andalucía_datos!Y31,0,((Resumen!$Q$1-1)*12))=0," ",OFFSET(Andalucía_datos!Y31,0,((Resumen!$Q$1-1)*12)))," ") ->  | N6: =IF(SUM(B6:M6)=0," ",SUM(B6:M6)) -> 106190.0688
A7: Nuclear | B7: =IF(B$1<=Resumen!$P$1,IF(OFFSET(Andalucía_datos!N32,0,((Resumen!$Q$1-1)*12))=0," ",OFFSET(Andalucía_datos!N32,0,((Resumen!$Q$1-1)*12)))," ") ->  | C7: =IF(C$1<=Resumen!$P$1,IF(OFFSET(Andalucía_datos!O32,0,((Resumen!$Q$1-1)*12))=0," ",OFFSET(Andalucía_datos!O32,0,((Resumen!$Q$1-1)*12)))," ") ->  | D7: =IF(D$1<=Resumen!$P$1,IF(OFFSET(Andalucía_datos!P32,0,((Resumen!$Q$1-1)*12))=0," ",OFFSET(Andalucía_datos!P32,0,((Resumen!$Q$1-1)*12)))," ") ->  | E7: =IF(E$1<=Resumen!$P$1,IF(OFFSET(Andalucía_datos!Q32,0,((Resumen!$Q$1-1)*12))=0," ",OFFSET(Andalucía_datos!Q32,0,((Resumen!$Q$1-1)*12)))," ") ->  | F7: =IF(F$1<=Resumen!$P$1,IF(OFFSET(Andalucía_datos!R32,0,((Resumen!$Q$1-1)*12))=0," ",OFFSET(Andalucía_datos!R32,0,((Resumen!$Q$1-1)*12)))," ") ->  | G7: =IF(G$1<=Resumen!$P$1,IF(OFFSET(Andalucía_datos!S32,0,((Resumen!$Q$1-1)*12))=0," ",OFFSET(Andalucía_datos!S32,0,((Resumen!$Q$1-1)*12)))," ") ->  | H7: =IF(H$1<=Resumen!$P$1,IF(OFFSET(Andalucía_datos!T32,0,((Resumen!$Q$1-1)*12))=0," ",OFFSET(Andalucía_datos!T32,0,((Resumen!$Q$1-1)*12)))," ") ->  | I7: =IF(I$1<=Resumen!$P$1,IF(OFFSET(Andalucía_datos!U32,0,((Resumen!$Q$1-1)*12))=0," ",OFFSET(Andalucía_datos!U32,0,((Resumen!$Q$1-1)*12)))," ") ->  | J7: =IF(J$1<=Resumen!$P$1,IF(OFFSET(Andalucía_datos!V32,0,((Resumen!$Q$1-1)*12))=0," ",OFFSET(Andalucía_datos!V32,0,((Resumen!$Q$1-1)*12)))," ") ->  | K7: =IF(K$1<=Resumen!$P$1,IF(OFFSET(Andalucía_datos!W32,0,((Resumen!$Q$1-1)*12))=0," ",OFFSET(Andalucía_datos!W32,0,((Resumen!$Q$1-1)*12)))," ") ->  | L7: =IF(L$1<=Resumen!$P$1,IF(OFFSET(Andalucía_datos!X32,0,((Resumen!$Q$1-1)*12))=0," ",OFFSET(Andalucía_datos!X32,0,((Resumen!$Q$1-1)*12)))," ") ->  | M7: =IF(M$1<=Resumen!$P$1,IF(OFFSET(Andalucía_datos!Y32,0,((Resumen!$Q$1-1)*12))=0," ",OFFSET(Andalucía_datos!Y32,0,((Resumen!$Q$1-1)*12)))," ") ->  | N7: =IF(SUM(B7:M7)=0," ",SUM(B7:M7)) -> 
A8: Carbón | B8: =IF(B$1<=Resumen!$P$1,IF(OFFSET(Andalucía_datos!N33,0,((Resumen!$Q$1-1)*12))=0," ",OFFSET(Andalucía_datos!N33,0,((Resumen!$Q$1-1)*12)))," ") -> 920178.541 | C8: =IF(C$1<=Resumen!$P$1,IF(OFFSET(Andalucía_datos!O33,0,((Resumen!$Q$1-1)*12))=0," ",OFFSET(Andalucía_datos!O33,0,((Resumen!$Q$1-1)*12)))," ") -> 962097.186 | D8: =IF(D$1<=Resumen!$P$1,IF(OFFSET(Andalucía_datos!P33,0,((Resumen!$Q$1-1)*12))=0," ",OFFSET(Andalucía_datos!P33,0,((Resumen!$Q$1-1)*12)))," ") -> 574317.331 | E8: =IF(E$1<=Resumen!$P$1,IF(OFFSET(Andalucía_datos!Q33,0,((Resumen!$Q$1-1)*12))=0," ",OFFSET(Andalucía_datos!Q33,0,((Resumen!$Q$1-1)*12)))," ") -> 607384.589 | F8: =IF(F$1<=Resumen!$P$1,IF(OFFSET(Andalucía_datos!R33,0,((Resumen!$Q$1-1)*12))=0," ",OFFSET(Andalucía_datos!R33,0,((Resumen!$Q$1-1)*12)))," ") -> 884494.367 | G8: =IF(G$1<=Resumen!$P$1,IF(OFFSET(Andalucía_datos!S33,0,((Resumen!$Q$1-1)*12))=0," ",OFFSET(Andalucía_datos!S33,0,((Resumen!$Q$1-1)*12)))," ") -> 847367.973 | H8: =IF(H$1<=Resumen!$P$1,IF(OFFSET(Andalucía_datos!T33,0,((Resumen!$Q$1-1)*12))=0," ",OFFSET(Andalucía_datos!T33,0,((Resumen!$Q$1-1)*12)))," ") -> 1083066.767 | I8: =IF(I$1<=Resumen!$P$1,IF(OFFSET(Andalucía_datos!U33,0,((Resumen!$Q$1-1)*12))=0," ",OFFSET(Andalucía_datos!U33,0,((Resumen!$Q$1-1)*12)))," ") -> 1037322.568 | J8: =IF(J$1<=Resumen!$P$1,IF(OFFSET(Andalucía_datos!V33,0,((Resumen!$Q$1-1)*12))=0," ",OFFSET(Andalucía_datos!V33,0,((Resumen!$Q$1-1)*12)))," ") -> 1067542.957 | K8: =IF(K$1<=Resumen!$P$1,IF(OFFSET(Andalucía_datos!W33,0,((Resumen!$Q$1-1)*12))=0," ",OFFSET(Andalucía_datos!W33,0,((Resumen!$Q$1-1)*12)))," ") -> 972807.978 | L8: =IF(L$1<=Resumen!$P$1,IF(OFFSET(Andalucía_datos!X33,0,((Resumen!$Q$1-1)*12))=0," ",OFFSET(Andalucía_datos!X33,0,((Resumen!$Q$1-1)*12)))," ") -> 1038129.279 | M8: =IF(M$1<=Resumen!$P$1,IF(OFFSET(Andalucía_datos!Y33,0,((Resumen!$Q$1-1)*12))=0," ",OFFSET(Andalucía_datos!Y33,0,((Resumen!$Q$1-1)*12)))," ") ->  | N8: 9994709.536
A9: Fuel-Gas | B9: =IF(B$1<=Resumen!$P$1,IF(OFFSET(Andalucía_datos!N34,0,((Resumen!$Q$1-1)*12))=0," ",OFFSET(Andalucía_datos!N34,0,((Resumen!$Q$1-1)*12)))," ") ->  | C9: =IF(C$1<=Resumen!$P$1,IF(OFFSET(Andalucía_datos!O34,0,((Resumen!$Q$1-1)*12))=0," ",OFFSET(Andalucía_datos!O34,0,((Resumen!$Q$1-1)*12)))," ") ->  | D9: =IF(D$1<=Resumen!$P$1,IF(OFFSET(Andalucía_datos!P34,0,((Resumen!$Q$1-1)*12))=0," ",OFFSET(Andalucía_datos!P34,0,((Resumen!$Q$1-1)*12)))," ") ->  | E9: =IF(E$1<=Resumen!$P$1,IF(OFFSET(Andalucía_datos!Q34,0,((Resumen!$Q$1-1)*12))=0," ",OFFSET(Andalucía_datos!Q34,0,((Resumen!$Q$1-1)*12)))," ") ->  | F9: =IF(F$1<=Resumen!$P$1,IF(OFFSET(Andalucía_datos!R34,0,((Resumen!$Q$1-1)*12))=0," ",OFFSET(Andalucía_datos!R34,0,((Resumen!$Q$1-1)*12)))," ") ->  | G9: =IF(G$1<=Resumen!$P$1,IF(OFFSET(Andalucía_datos!S34,0,((Resumen!$Q$1-1)*12))=0," ",OFFSET(Andalucía_datos!S34,0,((Resumen!$Q$1-1)*12)))," ") ->  | H9: =IF(H$1<=Resumen!$P$1,IF(OFFSET(Andalucía_datos!T34,0,((Resumen!$Q$1-1)*12))=0," ",OFFSET(Andalucía_datos!T34,0,((Resumen!$Q$1-1)*12)))," ") ->  | I9: =IF(I$1<=Resumen!$P$1,IF(OFFSET(Andalucía_datos!U34,0,((Resumen!$Q$1-1)*12))=0," ",OFFSET(Andalucía_datos!U34,0,((Resumen!$Q$1-1)*12)))," ") ->  | J9: =IF(J$1<=Resumen!$P$1,IF(OFFSET(Andalucía_datos!V34,0,((Resumen!$Q$1-1)*12))=0," ",OFFSET(Andalucía_datos!V34,0,((Resumen!$Q$1-1)*12)))," ") ->  | K9: =IF(K$1<=Resumen!$P$1,IF(OFFSET(Andalucía_datos!W34,0,((Resumen!$Q$1-1)*12))=0," ",OFFSET(Andalucía_datos!W34,0,((Resumen!$Q$1-1)*12)))," ") ->  | L9: =IF(L$1<=Resumen!$P$1,IF(OFFSET(Andalucía_datos!X34,0,((Resumen!$Q$1-1)*12))=0," ",OFFSET(Andalucía_datos!X34,0,((Resumen!$Q$1-1)*12)))," ") ->  | M9: =IF(M$1<=Resumen!$P$1,IF(OFFSET(Andalucía_datos!Y34,0,((Resumen!$Q$1-1)*12))=0," ",OFFSET(Andalucía_datos!Y34,0,((Resumen!$Q$1-1)*12)))," ") -> 
A10: Ciclo combinado | B10: =IF(B$1<=Resumen!$P$1,IF(OFFSET(Andalucía_datos!N35,0,((Resumen!$Q$1-1)*12))=0," ",OFFSET(Andalucía_datos!N35,0,((Resumen!$Q$1-1)*12)))," ") -> 552724.932 | C10: =IF(C$1<=Resumen!$P$1,IF(OFFSET(Andalucía_datos!O35,0,((Resumen!$Q$1-1)*12))=0," ",OFFSET(Andalucía_datos!O35,0,((Resumen!$Q$1-1)*12)))," ") -> 459356.84 | D10: =IF(D$1<=Resumen!$P$1,IF(OFFSET(Andalucía_datos!P35,0,((Resumen!$Q$1-1)*12))=0," ",OFFSET(Andalucía_datos!P35,0,((Resumen!$Q$1-1)*12)))," ") -> 301250.42 | E10: =IF(E$1<=Resumen!$P$1,IF(OFFSET(Andalucía_datos!Q35,0,((Resumen!$Q$1-1)*12))=0," ",OFFSET(Andalucía_datos!Q35,0,((Resumen!$Q$1-1)*12)))," ") -> 271278.067 | F10: =IF(F$1<=Resumen!$P$1,IF(OFFSET(Andalucía_datos!R35,0,((Resumen!$Q$1-1)*12))=0," ",OFFSET(Andalucía_datos!R35,0,((Resumen!$Q$1-1)*12)))," ") -> 322130.71 | G10: =IF(G$1<=Resumen!$P$1,IF(OFFSET(Andalucía_datos!S35,0,((Resumen!$Q$1-1)*12))=0," ",OFFSET(Andalucía_datos!S35,0,((Resumen!$Q$1-1)*12)))," ") -> 471997.585 | H10: =IF(H$1<=Resumen!$P$1,IF(OFFSET(Andalucía_datos!T35,0,((Resumen!$Q$1-1)*12))=0," ",OFFSET(Andalucía_datos!T35,0,((Resumen!$Q$1-1)*12)))," ") -> 666491.99 | I10: =IF(I$1<=Resumen!$P$1,IF(OFFSET(Andalucía_datos!U35,0,((Resumen!$Q$1-1)*12))=0," ",OFFSET(Andalucía_datos!U35,0,((Resumen!$Q$1-1)*12)))," ") -> 728241.695 | J10: =IF(J$1<=Resumen!$P$1,IF(OFFSET(Andalucía_datos!V35,0,((Resumen!$Q$1-1)*12))=0," ",OFFSET(Andalucía_datos!V35,0,((Resumen!$Q$1-1)*12)))," ") -> 409164.82 | K10: =IF(K$1<=Resumen!$P$1,IF(OFFSET(Andalucía_datos!W35,0,((Resumen!$Q$1-1)*12))=0," ",OFFSET(Andalucía_datos!W35,0,((Resumen!$Q$1-1)*12)))," ") -> 634902.362 | L10: =IF(L$1<=Resumen!$P$1,IF(OFFSET(Andalucía_datos!X35,0,((Resumen!$Q$1-1)*12))=0," ",OFFSET(Andalucía_datos!X35,0,((Resumen!$Q$1-1)*12)))," ") -> 758951.112 | M10: =IF(M$1<=Resumen!$P$1,IF(OFFSET(Andalucía_datos!Y35,0,((Resumen!$Q$1-1)*12))=0," ",OFFSET(Andalucía_datos!Y35,0,((Resumen!$Q$1-1)*12)))," ") ->  | N10: 5576490.533
A11: Hidroeólica | B11: =IF(B$1<=Resumen!$P$1,IF(OFFSET(Andalucía_datos!N36,0,((Resumen!$Q$1-1)*12))=0," ",OFFSET(Andalucía_datos!N36,0,((Resumen!$Q$1-1)*12)))," ") ->  | C11: =IF(C$1<=Resumen!$P$1,IF(OFFSET(Andalucía_datos!O36,0,((Resumen!$Q$1-1)*12))=0," ",OFFSET(Andalucía_datos!O36,0,((Resumen!$Q$1-1)*12)))," ") ->  | D11: =IF(D$1<=Resumen!$P$1,IF(OFFSET(Andalucía_datos!P36,0,((Resumen!$Q$1-1)*12))=0," ",OFFSET(Andalucía_datos!P36,0,((Resumen!$Q$1-1)*12)))," ") ->  | E11: =IF(E$1<=Resumen!$P$1,IF(OFFSET(Andalucía_datos!Q36,0,((Resumen!$Q$1-1)*12))=0," ",OFFSET(Andalucía_datos!Q36,0,((Resumen!$Q$1-1)*12)))," ") ->  | F11: =IF(F$1<=Resumen!$P$1,IF(OFFSET(Andalucía_datos!R36,0,((Resumen!$Q$1-1)*12))=0," ",OFFSET(Andalucía_datos!R36,0,((Resumen!$Q$1-1)*12)))," ") ->  | G11: =IF(G$1<=Resumen!$P$1,IF(OFFSET(Andalucía_datos!S36,0,((Resumen!$Q$1-1)*12))=0," ",OFFSET(Andalucía_datos!S36,0,((Resumen!$Q$1-1)*12)))," ") ->  | H11: =IF(H$1<=Resumen!$P$1,IF(OFFSET(Andalucía_datos!T36,0,((Resumen!$Q$1-1)*12))=0," ",OFFSET(Andalucía_datos!T36,0,((Resumen!$Q$1-1)*12)))," ") ->  | I11: =IF(I$1<=Resumen!$P$1,IF(OFFSET(Andalucía_datos!U36,0,((Resumen!$Q$1-1)*12))=0," ",OFFSET(Andalucía_datos!U36,0,((Resumen!$Q$1-1)*12)))," ") ->  | J11: =IF(J$1<=Resumen!$P$1,IF(OFFSET(Andalucía_datos!V36,0,((Resumen!$Q$1-1)*12))=0," ",OFFSET(Andalucía_datos!V36,0,((Resumen!$Q$1-1)*12)))," ") ->  | K11: =IF(K$1<=Resumen!$P$1,IF(OFFSET(Andalucía_datos!W36,0,((Resumen!$Q$1-1)*12))=0," ",OFFSET(Andalucía_datos!W36,0,((Resumen!$Q$1-1)*12)))," ") ->  | L11: =IF(L$1<=Resumen!$P$1,IF(OFFSET(Andalucía_datos!X36,0,((Resumen!$Q$1-1)*12))=0," ",OFFSET(Andalucía_datos!X36,0,((Resumen!$Q$1-1)*12)))," ") ->  | M11: =IF(M$1<=Resumen!$P$1,IF(OFFSET(Andalucía_datos!Y36,0,((Resumen!$Q$1-1)*12))=0," ",OFFSET(Andalucía_datos!Y36,0,((Resumen!$Q$1-1)*12)))," ") -> 
A12: Eólica | B12: =IF(B$1<=Resumen!$P$1,IF(OFFSET(Andalucía_datos!N37,0,((Resumen!$Q$1-1)*12))=0," ",OFFSET(Andalucía_datos!N37,0,((Resumen!$Q$1-1)*12)))," ") -> 581431.899 | C12: =IF(C$1<=Resumen!$P$1,IF(OFFSET(Andalucía_datos!O37,0,((Resumen!$Q$1-1)*12))=0," ",OFFSET(Andalucía_datos!O37,0,((Resumen!$Q$1-1)*12)))," ") -> 399764.813 | D12: =IF(D$1<=Resumen!$P$1,IF(OFFSET(Andalucía_datos!P37,0,((Resumen!$Q$1-1)*12))=0," ",OFFSET(Andalucía_datos!P37,0,((Resumen!$Q$1-1)*12)))," ") -> 984113.492 | E12: =IF(E$1<=Resumen!$P$1,IF(OFFSET(Andalucía_datos!Q37,0,((Resumen!$Q$1-1)*12))=0," ",OFFSET(Andalucía_datos!Q37,0,((Resumen!$Q$1-1)*12)))," ") -> 717607.324 | F12: =IF(F$1<=Resumen!$P$1,IF(OFFSET(Andalucía_datos!R37,0,((Resumen!$Q$1-1)*12))=0," ",OFFSET(Andalucía_datos!R37,0,((Resumen!$Q$1-1)*12)))," ") -> 391002.751 | G12: =IF(G$1<=Resumen!$P$1,IF(OFFSET(Andalucía_datos!S37,0,((Resumen!$Q$1-1)*12))=0," ",OFFSET(Andalucía_datos!S37,0,((Resumen!$Q$1-1)*12)))," ") -> 424162.732 | H12: =IF(H$1<=Resumen!$P$1,IF(OFFSET(Andalucía_datos!T37,0,((Resumen!$Q$1-1)*12))=0," ",OFFSET(Andalucía_datos!T37,0,((Resumen!$Q$1-1)*12)))," ") -> 301379.311 | I12: =IF(I$1<=Resumen!$P$1,IF(OFFSET(Andalucía_datos!U37,0,((Resumen!$Q$1-1)*12))=0," ",OFFSET(Andalucía_datos!U37,0,((Resumen!$Q$1-1)*12)))," ") -> 569068.931 | J12: =IF(J$1<=Resumen!$P$1,IF(OFFSET(Andalucía_datos!V37,0,((Resumen!$Q$1-1)*12))=0," ",OFFSET(Andalucía_datos!V37,0,((Resumen!$Q$1-1)*12)))," ") -> 483094.222 | K12: =IF(K$1<=Resumen!$P$1,IF(OFFSET(Andalucía_datos!W37,0,((Resumen!$Q$1-1)*12))=0," ",OFFSET(Andalucía_datos!W37,0,((Resumen!$Q$1-1)*12)))," ") -> 496399.539 | L12: =IF(L$1<=Resumen!$P$1,IF(OFFSET(Andalucía_datos!X37,0,((Resumen!$Q$1-1)*12))=0," ",OFFSET(Andalucía_datos!X37,0,((Resumen!$Q$1-1)*12)))," ") -> 487579.688 | M12: =IF(M$1<=Resumen!$P$1,IF(OFFSET(Andalucía_datos!Y37,0,((Resumen!$Q$1-1)*12))=0," ",OFFSET(Andalucía_datos!Y37,0,((Resumen!$Q$1-1)*12)))," ") ->  | N12: 5835604.702
A13: Solar fotovoltaico | B13: =IF(B$1<=Resumen!$P$1,IF(OFFSET(Andalucía_datos!N38,0,((Resumen!$Q$1-1)*12))=0," ",OFFSET(Andalucía_datos!N38,0,((Resumen!$Q$1-1)*12)))," ") -> 87182.186 | C13: =IF(C$1<=Resumen!$P$1,IF(OFFSET(Andalucía_datos!O38,0,((Resumen!$Q$1-1)*12))=0," ",OFFSET(Andalucía_datos!O38,0,((Resumen!$Q$1-1)*12)))," ") -> 106586.788 | D13: =IF(D$1<=Resumen!$P$1,IF(OFFSET(Andalucía_datos!P38,0,((Resumen!$Q$1-1)*12))=0," ",OFFSET(Andalucía_datos!P38,0,((Resumen!$Q$1-1)*12)))," ") -> 103256.252 | E13: =IF(E$1<=Resumen!$P$1,IF(OFFSET(Andalucía_datos!Q38,0,((Resumen!$Q$1-1)*12))=0," ",OFFSET(Andalucía_datos!Q38,0,((Resumen!$Q$1-1)*12)))," ") -> 130288.945 | F13: =IF(F$1<=Resumen!$P$1,IF(OFFSET(Andalucía_datos!R38,0,((Resumen!$Q$1-1)*12))=0," ",OFFSET(Andalucía_datos!R38,0,((Resumen!$Q$1-1)*12)))," ") -> 149415.851 | G13: =IF(G$1<=Resumen!$P$1,IF(OFFSET(Andalucía_datos!S38,0,((Resumen!$Q$1-1)*12))=0," ",OFFSET(Andalucía_datos!S38,0,((Resumen!$Q$1-1)*12)))," ") -> 152935.69 | H13: =IF(H$1<=Resumen!$P$1,IF(OFFSET(Andalucía_datos!T38,0,((Resumen!$Q$1-1)*12))=0," ",OFFSET(Andalucía_datos!T38,0,((Resumen!$Q$1-1)*12)))," ") -> 172810.743 | I13: =IF(I$1<=Resumen!$P$1,IF(OFFSET(Andalucía_datos!U38,0,((Resumen!$Q$1-1)*12))=0," ",OFFSET(Andalucía_datos!U38,0,((Resumen!$Q$1-1)*12)))," ") -> 155967.333 | J13: =IF(J$1<=Resumen!$P$1,IF(OFFSET(Andalucía_datos!V38,0,((Resumen!$Q$1-1)*12))=0," ",OFFSET(Andalucía_datos!V38,0,((Resumen!$Q$1-1)*12)))," ") -> 131291.244 | K13: =IF(K$1<=Resumen!$P$1,IF(OFFSET(Andalucía_datos!W38,0,((Resumen!$Q$1-1)*12))=0," ",OFFSET(Andalucía_datos!W38,0,((Resumen!$Q$1-1)*12)))," ") -> 107643.289 | L13: =IF(L$1<=Resumen!$P$1,IF(OFFSET(Andalucía_datos!X38,0,((Resumen!$Q$1-1)*12))=0," ",OFFSET(Andalucía_datos!X38,0,((Resumen!$Q$1-1)*12)))," ") -> 76545.327 | M13: =IF(M$1<=Resumen!$P$1,IF(OFFSET(Andalucía_datos!Y38,0,((Resumen!$Q$1-1)*12))=0," ",OFFSET(Andalucía_datos!Y38,0,((Resumen!$Q$1-1)*12)))," ") ->  | N13: 1373923.648
A14: Solar térmica | B14: =IF(B$1<=Resumen!$P$1,IF(OFFSET(Andalucía_datos!N39,0,((Resumen!$Q$1-1)*12))=0," ",OFFSET(Andalucía_datos!N39,0,((Resumen!$Q$1-1)*12)))," ") -> 55405.267 | C14: =IF(C$1<=Resumen!$P$1,IF(OFFSET(Andalucía_datos!O39,0,((Resumen!$Q$1-1)*12))=0," ",OFFSET(Andalucía_datos!O39,0,((Resumen!$Q$1-1)*12)))," ") -> 95106.513 | D14: =IF(D$1<=Resumen!$P$1,IF(OFFSET(Andalucía_datos!P39,0,((Resumen!$Q$1-1)*12))=0," ",OFFSET(Andalucía_datos!P39,0,((Resumen!$Q$1-1)*12)))," ") -> 100297.12 | E14: =IF(E$1<=Resumen!$P$1,IF(OFFSET(Andalucía_datos!Q39,0,((Resumen!$Q$1-1)*12))=0," ",OFFSET(Andalucía_datos!Q39,0,((Resumen!$Q$1-1)*12)))," ") -> 156952.675 | F14: =IF(F$1<=Resumen!$P$1,IF(OFFSET(Andalucía_datos!R39,0,((Resumen!$Q$1-1)*12))=0," ",OFFSET(Andalucía_datos!R39,0,((Resumen!$Q$1-1)*12)))," ") -> 199819.682 | G14: =IF(G$1<=Resumen!$P$1,IF(OFFSET(Andalucía_datos!S39,0,((Resumen!$Q$1-1)*12))=0," ",OFFSET(Andalucía_datos!S39,0,((Resumen!$Q$1-1)*12)))," ") -> 249623.213 | H14: =IF(H$1<=Resumen!$P$1,IF(OFFSET(Andalucía_datos!T39,0,((Resumen!$Q$1-1)*12))=0," ",OFFSET(Andalucía_datos!T39,0,((Resumen!$Q$1-1)*12)))," ") -> 371980.688 | I14: =IF(I$1<=Resumen!$P$1,IF(OFFSET(Andalucía_datos!U39,0,((Resumen!$Q$1-1)*12))=0," ",OFFSET(Andalucía_datos!U39,0,((Resumen!$Q$1-1)*12)))," ") -> 289364.192 | J14: =IF(J$1<=Resumen!$P$1,IF(OFFSET(Andalucía_datos!V39,0,((Resumen!$Q$1-1)*12))=0," ",OFFSET(Andalucía_datos!V39,0,((Resumen!$Q$1-1)*12)))," ") -> 188296.443 | K14: =IF(K$1<=Resumen!$P$1,IF(OFFSET(Andalucía_datos!W39,0,((Resumen!$Q$1-1)*12))=0," ",OFFSET(Andalucía_datos!W39,0,((Resumen!$Q$1-1)*12)))," ") -> 125619.901 | L14: =IF(L$1<=Resumen!$P$1,IF(OFFSET(Andalucía_datos!X39,0,((Resumen!$Q$1-1)*12))=0," ",OFFSET(Andalucía_datos!X39,0,((Resumen!$Q$1-1)*12)))," ") -> 39587.658 | M14: =IF(M$1<=Resumen!$P$1,IF(OFFSET(Andalucía_datos!Y39,0,((Resumen!$Q$1-1)*12))=0," ",OFFSET(Andalucía_datos!Y39,0,((Resumen!$Q$1-1)*12)))," ") ->  | N14: 1872053.352
A15: Otras renovables | B15: =IF(B$1<=Resumen!$P$1,IF(OFFSET(Andalucía_datos!N40,0,((Resumen!$Q$1-1)*12))=0," ",OFFSET(Andalucía_datos!N40,0,((Resumen!$Q$1-1)*12)))," ") -> 105111.404 | C15: =IF(C$1<=Resumen!$P$1,IF(OFFSET(Andalucía_datos!O40,0,((Resumen!$Q$1-1)*12))=0," ",OFFSET(Andalucía_datos!O40,0,((Resumen!$Q$1-1)*12)))," ") -> 119296.807 | D15: =IF(D$1<=Resumen!$P$1,IF(OFFSET(Andalucía_datos!P40,0,((Resumen!$Q$1-1)*12))=0," ",OFFSET(Andalucía_datos!P40,0,((Resumen!$Q$1-1)*12)))," ") -> 104569.144 | E15: =IF(E$1<=Resumen!$P$1,IF(OFFSET(Andalucía_datos!Q40,0,((Resumen!$Q$1-1)*12))=0," ",OFFSET(Andalucía_datos!Q40,0,((Resumen!$Q$1-1)*12)))," ") -> 81028.424 | F15: =IF(F$1<=Resumen!$P$1,IF(OFFSET(Andalucía_datos!R40,0,((Resumen!$Q$1-1)*12))=0," ",OFFSET(Andalucía_datos!R40,0,((Resumen!$Q$1-1)*12)))," ") -> 122077.971 | G15: =IF(G$1<=Resumen!$P$1,IF(OFFSET(Andalucía_datos!S40,0,((Resumen!$Q$1-1)*12))=0," ",OFFSET(Andalucía_datos!S40,0,((Resumen!$Q$1-1)*12)))," ") -> 111075.986 | H15: =IF(H$1<=Resumen!$P$1,IF(OFFSET(Andalucía_datos!T40,0,((Resumen!$Q$1-1)*12))=0," ",OFFSET(Andalucía_datos!T40,0,((Resumen!$Q$1-1)*12)))," ") -> 131439.296 | I15: =IF(I$1<=Resumen!$P$1,IF(OFFSET(Andalucía_datos!U40,0,((Resumen!$Q$1-1)*12))=0," ",OFFSET(Andalucía_datos!U40,0,((Resumen!$Q$1-1)*12)))," ") -> 120156.928 | J15: =IF(J$1<=Resumen!$P$1,IF(OFFSET(Andalucía_datos!V40,0,((Resumen!$Q$1-1)*12))=0," ",OFFSET(Andalucía_datos!V40,0,((Resumen!$Q$1-1)*12)))," ") -> 120090.695 | K15: =IF(K$1<=Resumen!$P$1,IF(OFFSET(Andalucía_datos!W40,0,((Resumen!$Q$1-1)*12))=0," ",OFFSET(Andalucía_datos!W40,0,((Resumen!$Q$1-1)*12)))," ") -> 99225.988 | L15: =IF(L$1<=Resumen!$P$1,IF(OFFSET(Andalucía_datos!X40,0,((Resumen!$Q$1-1)*12))=0," ",OFFSET(Andalucía_datos!X40,0,((Resumen!$Q$1-1)*12)))," ") -> 108196.704 | M15: =IF(M$1<=Resumen!$P$1,IF(OFFSET(Andalucía_datos!Y40,0,((Resumen!$Q$1-1)*12))=0," ",OFFSET(Andalucía_datos!Y40,0,((Resumen!$Q$1-1)*12)))," ") ->  | N15: 1222269.347
A16: Cogeneración | B16: =IF(B$1<=Resumen!$P$1,IF(OFFSET(Andalucía_datos!N41,0,((Resumen!$Q$1-1)*12))=0," ",OFFSET(Andalucía_datos!N41,0,((Resumen!$Q$1-1)*12)))," ") -> 439407.975 | C16: =IF(C$1<=Resumen!$P$1,IF(OFFSET(Andalucía_datos!O41,0,((Resumen!$Q$1-1)*12))=0," ",OFFSET(Andalucía_datos!O41,0,((Resumen!$Q$1-1)*12)))," ") -> 412815.488 | D16: =IF(D$1<=Resumen!$P$1,IF(OFFSET(Andalucía_datos!P41,0,((Resumen!$Q$1-1)*12))=0," ",OFFSET(Andalucía_datos!P41,0,((Resumen!$Q$1-1)*12)))," ") -> 428586.756 | E16: =IF(E$1<=Resumen!$P$1,IF(OFFSET(Andalucía_datos!Q41,0,((Resumen!$Q$1-1)*12))=0," ",OFFSET(Andalucía_datos!Q41,0,((Resumen!$Q$1-1)*12)))," ") -> 416893.797 | F16: =IF(F$1<=Resumen!$P$1,IF(OFFSET(Andalucía_datos!R41,0,((Resumen!$Q$1-1)*12))=0," ",OFFSET(Andalucía_datos!R41,0,((Resumen!$Q$1-1)*12)))," ") -> 439896.696 | G16: =IF(G$1<=Resumen!$P$1,IF(OFFSET(Andalucía_datos!S41,0,((Resumen!$Q$1-1)*12))=0," ",OFFSET(Andalucía_datos!S41,0,((Resumen!$Q$1-1)*12)))," ") -> 443873.903 | H16: =IF(H$1<=Resumen!$P$1,IF(OFFSET(Andalucía_datos!T41,0,((Resumen!$Q$1-1)*12))=0," ",OFFSET(Andalucía_datos!T41,0,((Resumen!$Q$1-1)*12)))," ") -> 455866.164 | I16: =IF(I$1<=Resumen!$P$1,IF(OFFSET(Andalucía_datos!U41,0,((Resumen!$Q$1-1)*12))=0," ",OFFSET(Andalucía_datos!U41,0,((Resumen!$Q$1-1)*12)))," ") -> 447453.739 | J16: =IF(J$1<=Resumen!$P$1,IF(OFFSET(Andalucía_datos!V41,0,((Resumen!$Q$1-1)*12))=0," ",OFFSET(Andalucía_datos!V41,0,((Resumen!$Q$1-1)*12)))," ") -> 419947.202 | K16: =IF(K$1<=Resumen!$P$1,IF(OFFSET(Andalucía_datos!W41,0,((Resumen!$Q$1-1)*12))=0," ",OFFSET(Andalucía_datos!W41,0,((Resumen!$Q$1-1)*12)))," ") -> 419382.078 | L16: =IF(L$1<=Resumen!$P$1,IF(OFFSET(Andalucía_datos!X41,0,((Resumen!$Q$1-1)*12))=0," ",OFFSET(Andalucía_datos!X41,0,((Resumen!$Q$1-1)*12)))," ") -> 418418.335 | M16: =IF(M$1<=Resumen!$P$1,IF(OFFSET(Andalucía_datos!Y41,0,((Resumen!$Q$1-1)*12))=0," ",OFFSET(Andalucía_datos!Y41,0,((Resumen!$Q$1-1)*12)))," ") ->  | N16: 4742542.133
A17: Residuos no renovables | B17: =IF(B$1<=Resumen!$P$1,IF(OFFSET(Andalucía_datos!N42,0,((Resumen!$Q$1-1)*12))=0," ",OFFSET(Andalucía_datos!N42,0,((Resumen!$Q$1-1)*12)))," ") -> 26917.856 | C17: =IF(C$1<=Resumen!$P$1,IF(OFFSET(Andalucía_datos!O42,0,((Resumen!$Q$1-1)*12))=0," ",OFFSET(Andalucía_datos!O42,0,((Resumen!$Q$1-1)*12)))," ") -> 22764.937 | D17: =IF(D$1<=Resumen!$P$1,IF(OFFSET(Andalucía_datos!P42,0,((Resumen!$Q$1-1)*12))=0," ",OFFSET(Andalucía_datos!P42,0,((Resumen!$Q$1-1)*12)))," ") -> 23892.562 | E17: =IF(E$1<=Resumen!$P$1,IF(OFFSET(Andalucía_datos!Q42,0,((Resumen!$Q$1-1)*12))=0," ",OFFSET(Andalucía_datos!Q42,0,((Resumen!$Q$1-1)*12)))," ") -> 1833.319 | F17: =IF(F$1<=Resumen!$P$1,IF(OFFSET(Andalucía_datos!R42,0,((Resumen!$Q$1-1)*12))=0," ",OFFSET(Andalucía_datos!R42,0,((Resumen!$Q$1-1)*12)))," ") ->  | G17: =IF(G$1<=Resumen!$P$1,IF(OFFSET(Andalucía_datos!S42,0,((Resumen!$Q$1-1)*12))=0," ",OFFSET(Andalucía_datos!S42,0,((Resumen!$Q$1-1)*12)))," ") -> 2.896 | H17: =IF(H$1<=Resumen!$P$1,IF(OFFSET(Andalucía_datos!T42,0,((Resumen!$Q$1-1)*12))=0," ",OFFSET(Andalucía_datos!T42,0,((Resumen!$Q$1-1)*12)))," ") ->  | I17: =IF(I$1<=Resumen!$P$1,IF(OFFSET(Andalucía_datos!U42,0,((Resumen!$Q$1-1)*12))=0," ",OFFSET(Andalucía_datos!U42,0,((Resumen!$Q$1-1)*12)))," ") ->  | J17: =IF(J$1<=Resumen!$P$1,IF(OFFSET(Andalucía_datos!V42,0,((Resumen!$Q$1-1)*12))=0," ",OFFSET(Andalucía_datos!V42,0,((Resumen!$Q$1-1)*12)))," ") ->  | K17: =IF(K$1<=Resumen!$P$1,IF(OFFSET(Andalucía_datos!W42,0,((Resumen!$Q$1-1)*12))=0," ",OFFSET(Andalucía_datos!W42,0,((Resumen!$Q$1-1)*12)))," ") ->  | L17: =IF(L$1<=Resumen!$P$1,IF(OFFSET(Andalucía_datos!X42,0,((Resumen!$Q$1-1)*12))=0," ",OFFSET(Andalucía_datos!X42,0,((Resumen!$Q$1-1)*12)))," ") ->  | M17: =IF(M$1<=Resumen!$P$1,IF(OFFSET(Andalucía_datos!Y42,0,((Resumen!$Q$1-1)*12))=0," ",OFFSET(Andalucía_datos!Y42,0,((Resumen!$Q$1-1)*12)))," ") ->  | N17: 75411.57
A18: Residuos renovables | B18: =IF(B$1<=Resumen!$P$1,IF(OFFSET(Andalucía_datos!N43,0,((Resumen!$Q$1-1)*12))=0," ",OFFSET(Andalucía_datos!N43,0,((Resumen!$Q$1-1)*12)))," ") ->  | C18: =IF(C$1<=Resumen!$P$1,IF(OFFSET(Andalucía_datos!O43,0,((Resumen!$Q$1-1)*12))=0," ",OFFSET(Andalucía_datos!O43,0,((Resumen!$Q$1-1)*12)))," ") ->  | D18: =IF(D$1<=Resumen!$P$1,IF(OFFSET(Andalucía_datos!P43,0,((Resumen!$Q$1-1)*12))=0," ",OFFSET(Andalucía_datos!P43,0,((Resumen!$Q$1-1)*12)))," ") ->  | E18: =IF(E$1<=Resumen!$P$1,IF(OFFSET(Andalucía_datos!Q43,0,((Resumen!$Q$1-1)*12))=0," ",OFFSET(Andalucía_datos!Q43,0,((Resumen!$Q$1-1)*12)))," ") ->  | F18: =IF(F$1<=Resumen!$P$1,IF(OFFSET(Andalucía_datos!R43,0,((Resumen!$Q$1-1)*12))=0," ",OFFSET(Andalucía_datos!R43,0,((Resumen!$Q$1-1)*12)))," ") ->  | G18: =IF(G$1<=Resumen!$P$1,IF(OFFSET(Andalucía_datos!S43,0,((Resumen!$Q$1-1)*12))=0," ",OFFSET(Andalucía_datos!S43,0,((Resumen!$Q$1-1)*12)))," ") ->  | H18: =IF(H$1<=Resumen!$P$1,IF(OFFSET(Andalucía_datos!T43,0,((Resumen!$Q$1-1)*12))=0," ",OFFSET(Andalucía_datos!T43,0,((Resumen!$Q$1-1)*12)))," ") ->  | I18: =IF(I$1<=Resumen!$P$1,IF(OFFSET(Andalucía_datos!U43,0,((Resumen!$Q$1-1)*12))=0," ",OFFSET(Andalucía_datos!U43,0,((Resumen!$Q$1-1)*12)))," ") ->  | J18: =IF(J$1<=Resumen!$P$1,IF(OFFSET(Andalucía_datos!V43,0,((Resumen!$Q$1-1)*12))=0," ",OFFSET(Andalucía_datos!V43,0,((Resumen!$Q$1-1)*12)))," ") ->  | K18: =IF(K$1<=Resumen!$P$1,IF(OFFSET(Andalucía_datos!W43,0,((Resumen!$Q$1-1)*12))=0," ",OFFSET(Andalucía_datos!W43,0,((Resumen!$Q$1-1)*12)))," ") ->  | L18: =IF(L$1<=Resumen!$P$1,IF(OFFSET(Andalucía_datos!X43,0,((Resumen!$Q$1-1)*12))=0," ",OFFSET(Andalucía_datos!X43,0,((Resumen!$Q$1-1)*12)))," ") ->  | M18: =IF(M$1<=Resumen!$P$1,IF(OFFSET(Andalucía_datos!Y43,0,((Resumen!$Q$1-1)*12))=0," ",OFFSET(Andalucía_datos!Y43,0,((Resumen!$Q$1-1)*12)))," ") ->  | N18: =IF(SUM(B18:M18)=0," ",SUM(B18:M18)) -> 
A19: Generación neta | B19: =IF(B$1<=Resumen!$P$1,IF(OFFSET(Andalucía_datos!N44,0,((Resumen!$Q$1-1)*12))=0," ",OFFSET(Andalucía_datos!N44,0,((Resumen!$Q$1-1)*12)))," ") -> 2815740.029 | C19: =IF(C$1<=Resumen!$P$1,IF(OFFSET(Andalucía_datos!O44,0,((Resumen!$Q$1-1)*12))=0," ",OFFSET(Andalucía_datos!O44,0,((Resumen!$Q$1-1)*12)))," ") -> 2603406.255 | D19: =IF(D$1<=Resumen!$P$1,IF(OFFSET(Andalucía_datos!P44,0,((Resumen!$Q$1-1)*12))=0," ",OFFSET(Andalucía_datos!P44,0,((Resumen!$Q$1-1)*12)))," ") -> 2737089.123 | E19: =IF(E$1<=Resumen!$P$1,IF(OFFSET(Andalucía_datos!Q44,0,((Resumen!$Q$1-1)*12))=0," ",OFFSET(Andalucía_datos!Q44,0,((Resumen!$Q$1-1)*12)))," ") -> 2489624.615 | F19: =IF(F$1<=Resumen!$P$1,IF(OFFSET(Andalucía_datos!R44,0,((Resumen!$Q$1-1)*12))=0," ",OFFSET(Andalucía_datos!R44,0,((Resumen!$Q$1-1)*12)))," ") -> 2599069.361 | G19: =IF(G$1<=Resumen!$P$1,IF(OFFSET(Andalucía_datos!S44,0,((Resumen!$Q$1-1)*12))=0," ",OFFSET(Andalucía_datos!S44,0,((Resumen!$Q$1-1)*12)))," ") -> 2807379.513 | H19: =IF(H$1<=Resumen!$P$1,IF(OFFSET(Andalucía_datos!T44,0,((Resumen!$Q$1-1)*12))=0," ",OFFSET(Andalucía_datos!T44,0,((Resumen!$Q$1-1)*12)))," ") -> 3289763.632 | I19: =IF(I$1<=Resumen!$P$1,IF(OFFSET(Andalucía_datos!U44,0,((Resumen!$Q$1-1)*12))=0," ",OFFSET(Andalucía_datos!U44,0,((Resumen!$Q$1-1)*12)))," ") -> 3440888.806 | J19: =IF(J$1<=Resumen!$P$1,IF(OFFSET(Andalucía_datos!V44,0,((Resumen!$Q$1-1)*12))=0," ",OFFSET(Andalucía_datos!V44,0,((Resumen!$Q$1-1)*12)))," ") -> 2885359.553 | K19: =IF(K$1<=Resumen!$P$1,IF(OFFSET(Andalucía_datos!W44,0,((Resumen!$Q$1-1)*12))=0," ",OFFSET(Andalucía_datos!W44,0,((Resumen!$Q$1-1)*12)))," ") -> 2900979.859 | L19: =IF(L$1<=Resumen!$P$1,IF(OFFSET(Andalucía_datos!X44,0,((Resumen!$Q$1-1)*12))=0," ",OFFSET(Andalucía_datos!X44,0,((Resumen!$Q$1-1)*12)))," ") -> 2958555.837 | M19: =IF(M$1<=Resumen!$P$1,IF(OFFSET(Andalucía_datos!Y44,0,((Resumen!$Q$1-1)*12))=0," ",OFFSET(Andalucía_datos!Y44,0,((Resumen!$Q$1-1)*12)))," ") ->  | N19: 31527856.58
A20: Consumos en bombeo | B20: =IF(B$1<=Resumen!$P$1,IF(OFFSET(Andalucía_datos!N45,0,((Resumen!$Q$1-1)*12))=0," ",OFFSET(Andalucía_datos!N45,0,((Resumen!$Q$1-1)*12)))," ") -> -31493.426 | C20: =IF(C$1<=Resumen!$P$1,IF(OFFSET(Andalucía_datos!O45,0,((Resumen!$Q$1-1)*12))=0," ",OFFSET(Andalucía_datos!O45,0,((Resumen!$Q$1-1)*12)))," ") -> -13558.061 | D20: =IF(D$1<=Resumen!$P$1,IF(OFFSET(Andalucía_datos!P45,0,((Resumen!$Q$1-1)*12))=0," ",OFFSET(Andalucía_datos!P45,0,((Resumen!$Q$1-1)*12)))," ") -> -44106.575 | E20: =IF(E$1<=Resumen!$P$1,IF(OFFSET(Andalucía_datos!Q45,0,((Resumen!$Q$1-1)*12))=0," ",OFFSET(Andalucía_datos!Q45,0,((Resumen!$Q$1-1)*12)))," ") -> -29829.515 | F20: =IF(F$1<=Resumen!$P$1,IF(OFFSET(Andalucía_datos!R45,0,((Resumen!$Q$1-1)*12))=0," ",OFFSET(Andalucía_datos!R45,0,((Resumen!$Q$1-1)*12)))," ") -> -7874.456 | G20: =IF(G$1<=Resumen!$P$1,IF(OFFSET(Andalucía_datos!S45,0,((Resumen!$Q$1-1)*12))=0," ",OFFSET(Andalucía_datos!S45,0,((Resumen!$Q$1-1)*12)))," ") -> -5035.758 | H20: =IF(H$1<=Resumen!$P$1,IF(OFFSET(Andalucía_datos!T45,0,((Resumen!$Q$1-1)*12))=0," ",OFFSET(Andalucía_datos!T45,0,((Resumen!$Q$1-1)*12)))," ") -> -1181.528 | I20: =IF(I$1<=Resumen!$P$1,IF(OFFSET(Andalucía_datos!U45,0,((Resumen!$Q$1-1)*12))=0," ",OFFSET(Andalucía_datos!U45,0,((Resumen!$Q$1-1)*12)))," ") -> -1573.447 | J20: =IF(J$1<=Resumen!$P$1,IF(OFFSET(Andalucía_datos!V45,0,((Resumen!$Q$1-1)*12))=0," ",OFFSET(Andalucía_datos!V45,0,((Resumen!$Q$1-1)*12)))," ") -> -2134.872 | K20: =IF(K$1<=Resumen!$P$1,IF(OFFSET(Andalucía_datos!W45,0,((Resumen!$Q$1-1)*12))=0," ",OFFSET(Andalucía_datos!W45,0,((Resumen!$Q$1-1)*12)))," ") -> -12991.104 | L20: =IF(L$1<=Resumen!$P$1,IF(OFFSET(Andalucía_datos!X45,0,((Resumen!$Q$1-1)*12))=0," ",OFFSET(Andalucía_datos!X45,0,((Resumen!$Q$1-1)*12)))," ") -> -4796.542 | M20: =IF(M$1<=Resumen!$P$1,IF(OFFSET(Andalucía_datos!Y45,0,((Resumen!$Q$1-1)*12))=0," ",OFFSET(Andalucía_datos!Y45,0,((Resumen!$Q$1-1)*12)))," ") ->  | N20: -154575.284
A21: Saldo Intercambios | B21: =IF(B$1<=Resumen!$P$1,IF(OFFSET(Andalucía_datos!N46,0,((Resumen!$Q$1-1)*12))=0," ",OFFSET(Andalucía_datos!N46,0,((Resumen!$Q$1-1)*12)))," ") -> 863385.005 | C21: =IF(C$1<=Resumen!$P$1,IF(OFFSET(Andalucía_datos!O46,0,((Resumen!$Q$1-1)*12))=0," ",OFFSET(Andalucía_datos!O46,0,((Resumen!$Q$1-1)*12)))," ") -> 724720.349 | D21: =IF(D$1<=Resumen!$P$1,IF(OFFSET(Andalucía_datos!P46,0,((Resumen!$Q$1-1)*12))=0," ",OFFSET(Andalucía_datos!P46,0,((Resumen!$Q$1-1)*12)))," ") -> 726202.399 | E21: =IF(E$1<=Resumen!$P$1,IF(OFFSET(Andalucía_datos!Q46,0,((Resumen!$Q$1-1)*12))=0," ",OFFSET(Andalucía_datos!Q46,0,((Resumen!$Q$1-1)*12)))," ") -> 580897.772 | F21: =IF(F$1<=Resumen!$P$1,IF(OFFSET(Andalucía_datos!R46,0,((Resumen!$Q$1-1)*12))=0," ",OFFSET(Andalucía_datos!R46,0,((Resumen!$Q$1-1)*12)))," ") -> 437893.54 | G21: =IF(G$1<=Resumen!$P$1,IF(OFFSET(Andalucía_datos!S46,0,((Resumen!$Q$1-1)*12))=0," ",OFFSET(Andalucía_datos!S46,0,((Resumen!$Q$1-1)*12)))," ") -> 371157.159 | H21: =IF(H$1<=Resumen!$P$1,IF(OFFSET(Andalucía_datos!T46,0,((Resumen!$Q$1-1)*12))=0," ",OFFSET(Andalucía_datos!T46,0,((Resumen!$Q$1-1)*12)))," ") -> 213224.387 | I21: =IF(I$1<=Resumen!$P$1,IF(OFFSET(Andalucía_datos!U46,0,((Resumen!$Q$1-1)*12))=0," ",OFFSET(Andalucía_datos!U46,0,((Resumen!$Q$1-1)*12)))," ") -> 478696.729 | J21: =IF(J$1<=Resumen!$P$1,IF(OFFSET(Andalucía_datos!V46,0,((Resumen!$Q$1-1)*12))=0," ",OFFSET(Andalucía_datos!V46,0,((Resumen!$Q$1-1)*12)))," ") -> 529315.285 | K21: =IF(K$1<=Resumen!$P$1,IF(OFFSET(Andalucía_datos!W46,0,((Resumen!$Q$1-1)*12))=0," ",OFFSET(Andalucía_datos!W46,0,((Resumen!$Q$1-1)*12)))," ") -> 228176.433 | L21: =IF(L$1<=Resumen!$P$1,IF(OFFSET(Andalucía_datos!X46,0,((Resumen!$Q$1-1)*12))=0," ",OFFSET(Andalucía_datos!X46,0,((Resumen!$Q$1-1)*12)))," ") -> 272096.801 | M21: =IF(M$1<=Resumen!$P$1,IF(OFFSET(Andalucía_datos!Y46,0,((Resumen!$Q$1-1)*12))=0," ",OFFSET(Andalucía_datos!Y46,0,((Resumen!$Q$1-1)*12)))," ") ->  | N21: 5425765.859
A22: Demanda B.C | B22: =IF(B$1<=Resumen!$P$1,IF(OFFSET(Andalucía_datos!N47,0,((Resumen!$Q$1-1)*12))=0," ",OFFSET(Andalucía_datos!N47,0,((Resumen!$Q$1-1)*12)))," ") -> 3647631.608 | C22: =IF(C$1<=Resumen!$P$1,IF(OFFSET(Andalucía_datos!O47,0,((Resumen!$Q$1-1)*12))=0," ",OFFSET(Andalucía_datos!O47,0,((Resumen!$Q$1-1)*12)))," ") -> 3314568.543 | D22: =IF(D$1<=Resumen!$P$1,IF(OFFSET(Andalucía_datos!P47,0,((Resumen!$Q$1-1)*12))=0," ",OFFSET(Andalucía_datos!P47,0,((Resumen!$Q$1-1)*12)))," ") -> 3419184.947 | E22: =IF(E$1<=Resumen!$P$1,IF(OFFSET(Andalucía_datos!Q47,0,((Resumen!$Q$1-1)*12))=0," ",OFFSET(Andalucía_datos!Q47,0,((Resumen!$Q$1-1)*12)))," ") -> 3040692.872 | F22: =IF(F$1<=Resumen!$P$1,IF(OFFSET(Andalucía_datos!R47,0,((Resumen!$Q$1-1)*12))=0," ",OFFSET(Andalucía_datos!R47,0,((Resumen!$Q$1-1)*12)))," ") -> 3029088.445 | G22: =IF(G$1<=Resumen!$P$1,IF(OFFSET(Andalucía_datos!S47,0,((Resumen!$Q$1-1)*12))=0," ",OFFSET(Andalucía_datos!S47,0,((Resumen!$Q$1-1)*12)))," ") -> 3173500.914 | H22: =IF(H$1<=Resumen!$P$1,IF(OFFSET(Andalucía_datos!T47,0,((Resumen!$Q$1-1)*12))=0," ",OFFSET(Andalucía_datos!T47,0,((Resumen!$Q$1-1)*12)))," ") -> 3501806.491 | I22: =IF(I$1<=Resumen!$P$1,IF(OFFSET(Andalucía_datos!U47,0,((Resumen!$Q$1-1)*12))=0," ",OFFSET(Andalucía_datos!U47,0,((Resumen!$Q$1-1)*12)))," ") -> 3918012.088 | J22: =IF(J$1<=Resumen!$P$1,IF(OFFSET(Andalucía_datos!V47,0,((Resumen!$Q$1-1)*12))=0," ",OFFSET(Andalucía_datos!V47,0,((Resumen!$Q$1-1)*12)))," ") -> 3412539.966 | K22: =IF(K$1<=Resumen!$P$1,IF(OFFSET(Andalucía_datos!W47,0,((Resumen!$Q$1-1)*12))=0," ",OFFSET(Andalucía_datos!W47,0,((Resumen!$Q$1-1)*12)))," ") -> 3116165.188 | L22: =IF(L$1<=Resumen!$P$1,IF(OFFSET(Andalucía_datos!X47,0,((Resumen!$Q$1-1)*12))=0," ",OFFSET(Andalucía_datos!X47,0,((Resumen!$Q$1-1)*12)))," ") -> 3225856.096 | M22: =IF(M$1<=Resumen!$P$1,IF(OFFSET(Andalucía_datos!Y47,0,((Resumen!$Q$1-1)*12))=0," ",OFFSET(Andalucía_datos!Y47,0,((Resumen!$Q$1-1)*12)))," ") ->  | N22: 36799047.16
A23: =Resumen!A24 -> %Δ 18/17 | B23: =IF(B$1<=Resumen!$P$1,IF(OFFSET(Andalucía_datos!N48,0,((Resumen!$Q$1-1)*12))=0," ",OFFSET(Andalucía_datos!N48,0,((Resumen!$Q$1-1)*12)))," ") -> 0.4769467608 | C23: =IF(C$1<=Resumen!$P$1,IF(OFFSET(Andalucía_datos!O48,0,((Resumen!$Q$1-1)*12))=0," ",OFFSET(Andalucía_datos!O48,0,((Resumen!$Q$1-1)*12)))," ") -> 8.491042221 | D23: =IF(D$1<=Resumen!$P$1,IF(OFFSET(Andalucía_datos!P48,0,((Resumen!$Q$1-1)*12))=0," ",OFFSET(Andalucía_datos!P48,0,((Resumen!$Q$1-1)*12)))," ") -> 6.837124234 | E23: =IF(E$1<=Resumen!$P$1,IF(OFFSET(Andalucía_datos!Q48,0,((Resumen!$Q$1-1)*12))=0," ",OFFSET(Andalucía_datos!Q48,0,((Resumen!$Q$1-1)*12)))," ") -> 3.895570738 | F23: =IF(F$1<=Resumen!$P$1,IF(OFFSET(Andalucía_datos!R48,0,((Resumen!$Q$1-1)*12))=0," ",OFFSET(Andalucía_datos!R48,0,((Resumen!$Q$1-1)*12)))," ") -> -1.155327379 | G23: =IF(G$1<=Resumen!$P$1,IF(OFFSET(Andalucía_datos!S48,0,((Resumen!$Q$1-1)*12))=0," ",OFFSET(Andalucía_datos!S48,0,((Resumen!$Q$1-1)*12)))," ") -> -9.673597642 | H23: =IF(H$1<=Resumen!$P$1,IF(OFFSET(Andalucía_datos!T48,0,((Resumen!$Q$1-1)*12))=0," ",OFFSET(Andalucía_datos!T48,0,((Resumen!$Q$1-1)*12)))," ") -> -6.920254534 | I23: =IF(I$1<=Resumen!$P$1,IF(OFFSET(Andalucía_datos!U48,0,((Resumen!$Q$1-1)*12))=0," ",OFFSET(Andalucía_datos!U48,0,((Resumen!$Q$1-1)*12)))," ") -> 0.5149604122 | J23: =IF(J$1<=Resumen!$P$1,IF(OFFSET(Andalucía_datos!V48,0,((Resumen!$Q$1-1)*12))=0," ",OFFSET(Andalucía_datos!V48,0,((Resumen!$Q$1-1)*12)))," ") -> 4.368812779 | K23: =IF(K$1<=Resumen!$P$1,IF(OFFSET(Andalucía_datos!W48,0,((Resumen!$Q$1-1)*12))=0," ",OFFSET(Andalucía_datos!W48,0,((Resumen!$Q$1-1)*12)))," ") -> -0.7446503821 | L23: =IF(L$1<=Resumen!$P$1,IF(OFFSET(Andalucía_datos!X48,0,((Resumen!$Q$1-1)*12))=0," ",OFFSET(Andalucía_datos!X48,0,((Resumen!$Q$1-1)*12)))," ") -> 2.811063889 | M23: =IF(M$1<=Resumen!$P$1,IF(OFFSET(Andalucía_datos!Y48,0,((Resumen!$Q$1-1)*12))=0," ",OFFSET(Andalucía_datos!Y48,0,((Resumen!$Q$1-1)*12)))," ") ->  | N23: =((N22/SUM(OFFSET(Andalucía_datos!N47,0,(Resumen!$Q$1-2)*12):OFFSET(Andalucía_datos!N47,0,((Resumen!$Q$1-2)*12)+Resumen!$P$1-1))-1)*100) -> 0.5510526825
A69: =A1 -> Andalucía | B69: =L22 -> 3225856.096
A70: Resto nacional | B70: =Nacional_datos!CF47-B69 -> 18829622.46

Sheet Aragón
A1: Aragón | B1: 1 | C1: 2 | D1: 3 | E1: 4 | F1: 5 | G1: 6 | H1: 7 | I1: 8 | J1: 9 | K1: 10 | L1: 11 | M1: 12
A2: Balance mensual de energía electrica. MWh
B3: 2018
B4: Ene | C4: Feb | D4: Mar | E4: Abr | F4: May | G4: Jun | H4: Jul | I4: Ago | J4: Sep | K4: Oct | L4: Nov | M4: Dic | N4: TOTAL
A5: Hidraulica | B5: =IF(B$1<=Resumen!$P$1,IF(OFFSET(Aragón_datos!N30,0,((Resumen!$Q$1-1)*12))=0," ",OFFSET(Aragón_datos!N30,0,((Resumen!$Q$1-1)*12)))," ") -> 215744.702 | C5: =IF(C$1<=Resumen!$P$1,IF(OFFSET(Aragón_datos!O30,0,((Resumen!$Q$1-1)*12))=0," ",OFFSET(Aragón_datos!O30,0,((Resumen!$Q$1-1)*12)))," ") -> 240443.561 | D5: =IF(D$1<=Resumen!$P$1,IF(OFFSET(Aragón_datos!P30,0,((Resumen!$Q$1-1)*12))=0," ",OFFSET(Aragón_datos!P30,0,((Resumen!$Q$1-1)*12)))," ") -> 392250.272 | E5: =IF(E$1<=Resumen!$P$1,IF(OFFSET(Aragón_datos!Q30,0,((Resumen!$Q$1-1)*12))=0," ",OFFSET(Aragón_datos!Q30,0,((Resumen!$Q$1-1)*12)))," ") -> 524689.775 | F5: =IF(F$1<=Resumen!$P$1,IF(OFFSET(Aragón_datos!R30,0,((Resumen!$Q$1-1)*12))=0," ",OFFSET(Aragón_datos!R30,0,((Resumen!$Q$1-1)*12)))," ") -> 552697.674 | G5: =IF(G$1<=Resumen!$P$1,IF(OFFSET(Aragón_datos!S30,0,((Resumen!$Q$1-1)*12))=0," ",OFFSET(Aragón_datos!S30,0,((Resumen!$Q$1-1)*12)))," ") -> 605295.472 | H5: =IF(H$1<=Resumen!$P$1,IF(OFFSET(Aragón_datos!T30,0,((Resumen!$Q$1-1)*12))=0," ",OFFSET(Aragón_datos!T30,0,((Resumen!$Q$1-1)*12)))," ") -> 361317.771 | I5: =IF(I$1<=Resumen!$P$1,IF(OFFSET(Aragón_datos!U30,0,((Resumen!$Q$1-1)*12))=0," ",OFFSET(Aragón_datos!U30,0,((Resumen!$Q$1-1)*12)))," ") -> 244871.842 | J5: =IF(J$1<=Resumen!$P$1,IF(OFFSET(Aragón_datos!V30,0,((Resumen!$Q$1-1)*12))=0," ",OFFSET(Aragón_datos!V30,0,((Resumen!$Q$1-1)*12)))," ") -> 174672.523 | K5: =IF(K$1<=Resumen!$P$1,IF(OFFSET(Aragón_datos!W30,0,((Resumen!$Q$1-1)*12))=0," ",OFFSET(Aragón_datos!W30,0,((Resumen!$Q$1-1)*12)))," ") -> 163019.904 | L5: =IF(L$1<=Resumen!$P$1,IF(OFFSET(Aragón_datos!X30,0,((Resumen!$Q$1-1)*12))=0," ",OFFSET(Aragón_datos!X30,0,((Resumen!$Q$1-1)*12)))," ") -> 197589.617 | M5: =IF(M$1<=Resumen!$P$1,IF(OFFSET(Aragón_datos!Y30,0,((Resumen!$Q$1-1)*12))=0," ",OFFSET(Aragón_datos!Y30,0,((Resumen!$Q$1-1)*12)))," ") ->  | N5: =IF(SUM(B5:M5)=0," ",SUM(B5:M5)) -> 3672593.113
A6: Turbinación bombeo | B6: =IF(B$1<=Resumen!$P$1,IF(OFFSET(Aragón_datos!N31,0,((Resumen!$Q$1-1)*12))=0," ",OFFSET(Aragón_datos!N31,0,((Resumen!$Q$1-1)*12)))," ") -> 18684.217 | C6: =IF(C$1<=Resumen!$P$1,IF(OFFSET(Aragón_datos!O31,0,((Resumen!$Q$1-1)*12))=0," ",OFFSET(Aragón_datos!O31,0,((Resumen!$Q$1-1)*12)))," ") -> 14107.826 | D6: =IF(D$1<=Resumen!$P$1,IF(OFFSET(Aragón_datos!P31,0,((Resumen!$Q$1-1)*12))=0," ",OFFSET(Aragón_datos!P31,0,((Resumen!$Q$1-1)*12)))," ") -> 22265.234 | E6: =IF(E$1<=Resumen!$P$1,IF(OFFSET(Aragón_datos!Q31,0,((Resumen!$Q$1-1)*12))=0," ",OFFSET(Aragón_datos!Q31,0,((Resumen!$Q$1-1)*12)))," ") -> 23926.518 | F6: =IF(F$1<=Resumen!$P$1,IF(OFFSET(Aragón_datos!R31,0,((Resumen!$Q$1-1)*12))=0," ",OFFSET(Aragón_datos!R31,0,((Resumen!$Q$1-1)*12)))," ") -> 12695.932 | G6: =IF(G$1<=Resumen!$P$1,IF(OFFSET(Aragón_datos!S31,0,((Resumen!$Q$1-1)*12))=0," ",OFFSET(Aragón_datos!S31,0,((Resumen!$Q$1-1)*12)))," ") -> 6749.624 | H6: =IF(H$1<=Resumen!$P$1,IF(OFFSET(Aragón_datos!T31,0,((Resumen!$Q$1-1)*12))=0," ",OFFSET(Aragón_datos!T31,0,((Resumen!$Q$1-1)*12)))," ") -> 6793.401 | I6: =IF(I$1<=Resumen!$P$1,IF(OFFSET(Aragón_datos!U31,0,((Resumen!$Q$1-1)*12))=0," ",OFFSET(Aragón_datos!U31,0,((Resumen!$Q$1-1)*12)))," ") -> 6421.275 | J6: =IF(J$1<=Resumen!$P$1,IF(OFFSET(Aragón_datos!V31,0,((Resumen!$Q$1-1)*12))=0," ",OFFSET(Aragón_datos!V31,0,((Resumen!$Q$1-1)*12)))," ") -> 10885.699 | K6: =IF(K$1<=Resumen!$P$1,IF(OFFSET(Aragón_datos!W31,0,((Resumen!$Q$1-1)*12))=0," ",OFFSET(Aragón_datos!W31,0,((Resumen!$Q$1-1)*12)))," ") -> 5287.813 | L6: =IF(L$1<=Resumen!$P$1,IF(OFFSET(Aragón_datos!X31,0,((Resumen!$Q$1-1)*12))=0," ",OFFSET(Aragón_datos!X31,0,((Resumen!$Q$1-1)*12)))," ") -> 3627.699 | M6: =IF(M$1<=Resumen!$P$1,IF(OFFSET(Aragón_datos!Y31,0,((Resumen!$Q$1-1)*12))=0," ",OFFSET(Aragón_datos!Y31,0,((Resumen!$Q$1-1)*12)))," ") ->  | N6: =IF(SUM(B6:M6)=0," ",SUM(B6:M6)) -> 131445.238
A7: Nuclear | B7: =IF(B$1<=Resumen!$P$1,IF(OFFSET(Aragón_datos!N32,0,((Resumen!$Q$1-1)*12))=0," ",OFFSET(Aragón_datos!N32,0,((Resumen!$Q$1-1)*12)))," ") ->  | C7: =IF(C$1<=Resumen!$P$1,IF(OFFSET(Aragón_datos!O32,0,((Resumen!$Q$1-1)*12))=0," ",OFFSET(Aragón_datos!O32,0,((Resumen!$Q$1-1)*12)))," ") ->  | D7: =IF(D$1<=Resumen!$P$1,IF(OFFSET(Aragón_datos!P32,0,((Resumen!$Q$1-1)*12))=0," ",OFFSET(Aragón_datos!P32,0,((Resumen!$Q$1-1)*12)))," ") ->  | E7: =IF(E$1<=Resumen!$P$1,IF(OFFSET(Aragón_datos!Q32,0,((Resumen!$Q$1-1)*12))=0," ",OFFSET(Aragón_datos!Q32,0,((Resumen!$Q$1-1)*12)))," ") ->  | F7: =IF(F$1<=Resumen!$P$1,IF(OFFSET(Aragón_datos!R32,0,((Resumen!$Q$1-1)*12))=0," ",OFFSET(Aragón_datos!R32,0,((Resumen!$Q$1-1)*12)))," ") ->  | G7: =IF(G$1<=Resumen!$P$1,IF(OFFSET(Aragón_datos!S32,0,((Resumen!$Q$1-1)*12))=0," ",OFFSET(Aragón_datos!S32,0,((Resumen!$Q$1-1)*12)))," ") ->  | H7: =IF(H$1<=Resumen!$P$1,IF(OFFSET(Aragón_datos!T32,0,((Resumen!$Q$1-1)*12))=0," ",OFFSET(Aragón_datos!T32,0,((Resumen!$Q$1-1)*12)))," ") ->  | I7: =IF(I$1<=Resumen!$P$1,IF(OFFSET(Aragón_datos!U32,0,((Resumen!$Q$1-1)*12))=0," ",OFFSET(Aragón_datos!U32,0,((Resumen!$Q$1-1)*12)))," ") ->  | J7: =IF(J$1<=Resumen!$P$1,IF(OFFSET(Aragón_datos!V32,0,((Resumen!$Q$1-1)*12))=0," ",OFFSET(Aragón_datos!V32,0,((Resumen!$Q$1-1)*12)))," ") ->  | K7: =IF(K$1<=Resumen!$P$1,IF(OFFSET(Aragón_datos!W32,0,((Resumen!$Q$1-1)*12))=0," ",OFFSET(Aragón_datos!W32,0,((Resumen!$Q$1-1)*12)))," ") ->  | L7: =IF(L$1<=Resumen!$P$1,IF(OFFSET(Aragón_datos!X32,0,((Resumen!$Q$1-1)*12))=0," ",OFFSET(Aragón_datos!X32,0,((Resumen!$Q$1-1)*12)))," ") ->  | M7: =IF(M$1<=Resumen!$P$1,IF(OFFSET(Aragón_datos!Y32,0,((Resumen!$Q$1-1)*12))=0," ",OFFSET(Aragón_datos!Y32,0,((Resumen!$Q$1-1)*12)))," ") ->  | N7: =IF(SUM(B7:M7)=0," ",SUM(B7:M7)) -> 
A8: Carbón | B8: =IF(B$1<=Resumen!$P$1,IF(OFFSET(Aragón_datos!N33,0,((Resumen!$Q$1-1)*12))=0," ",OFFSET(Aragón_datos!N33,0,((Resumen!$Q$1-1)*12)))," ") -> 260963.329 | C8: =IF(C$1<=Resumen!$P$1,IF(OFFSET(Aragón_datos!O33,0,((Resumen!$Q$1-1)*12))=0," ",OFFSET(Aragón_datos!O33,0,((Resumen!$Q$1-1)*12)))," ") -> 342071.995 | D8: =IF(D$1<=Resumen!$P$1,IF(OFFSET(Aragón_datos!P33,0,((Resumen!$Q$1-1)*12))=0," ",OFFSET(Aragón_datos!P33,0,((Resumen!$Q$1-1)*12)))," ") -> 22505.419 | E8: =IF(E$1<=Resumen!$P$1,IF(OFFSET(Aragón_datos!Q33,0,((Resumen!$Q$1-1)*12))=0," ",OFFSET(Aragón_datos!Q33,0,((Resumen!$Q$1-1)*12)))," ") -> -9500.937 | F8: =IF(F$1<=Resumen!$P$1,IF(OFFSET(Aragón_datos!R33,0,((Resumen!$Q$1-1)*12))=0," ",OFFSET(Aragón_datos!R33,0,((Resumen!$Q$1-1)*12)))," ") -> 106859.972 | G8: =IF(G$1<=Resumen!$P$1,IF(OFFSET(Aragón_datos!S33,0,((Resumen!$Q$1-1)*12))=0," ",OFFSET(Aragón_datos!S33,0,((Resumen!$Q$1-1)*12)))," ") -> 229134.992 | H8: =IF(H$1<=Resumen!$P$1,IF(OFFSET(Aragón_datos!T33,0,((Resumen!$Q$1-1)*12))=0," ",OFFSET(Aragón_datos!T33,0,((Resumen!$Q$1-1)*12)))," ") -> 426979.336 | I8: =IF(I$1<=Resumen!$P$1,IF(OFFSET(Aragón_datos!U33,0,((Resumen!$Q$1-1)*12))=0," ",OFFSET(Aragón_datos!U33,0,((Resumen!$Q$1-1)*12)))," ") -> 267861.205 | J8: =IF(J$1<=Resumen!$P$1,IF(OFFSET(Aragón_datos!V33,0,((Resumen!$Q$1-1)*12))=0," ",OFFSET(Aragón_datos!V33,0,((Resumen!$Q$1-1)*12)))," ") -> 483492.924 | K8: =IF(K$1<=Resumen!$P$1,IF(OFFSET(Aragón_datos!W33,0,((Resumen!$Q$1-1)*12))=0," ",OFFSET(Aragón_datos!W33,0,((Resumen!$Q$1-1)*12)))," ") -> 334049.981 | L8: =IF(L$1<=Resumen!$P$1,IF(OFFSET(Aragón_datos!X33,0,((Resumen!$Q$1-1)*12))=0," ",OFFSET(Aragón_datos!X33,0,((Resumen!$Q$1-1)*12)))," ") -> 273140.045 | M8: =IF(M$1<=Resumen!$P$1,IF(OFFSET(Aragón_datos!Y33,0,((Resumen!$Q$1-1)*12))=0," ",OFFSET(Aragón_datos!Y33,0,((Resumen!$Q$1-1)*12)))," ") ->  | N8: 2737558.261
A9: Fuel-Gas | B9: =IF(B$1<=Resumen!$P$1,IF(OFFSET(Aragón_datos!N34,0,((Resumen!$Q$1-1)*12))=0," ",OFFSET(Aragón_datos!N34,0,((Resumen!$Q$1-1)*12)))," ") ->  | C9: =IF(C$1<=Resumen!$P$1,IF(OFFSET(Aragón_datos!O34,0,((Resumen!$Q$1-1)*12))=0," ",OFFSET(Aragón_datos!O34,0,((Resumen!$Q$1-1)*12)))," ") ->  | D9: =IF(D$1<=Resumen!$P$1,IF(OFFSET(Aragón_datos!P34,0,((Resumen!$Q$1-1)*12))=0," ",OFFSET(Aragón_datos!P34,0,((Resumen!$Q$1-1)*12)))," ") ->  | E9: =IF(E$1<=Resumen!$P$1,IF(OFFSET(Aragón_datos!Q34,0,((Resumen!$Q$1-1)*12))=0," ",OFFSET(Aragón_datos!Q34,0,((Resumen!$Q$1-1)*12)))," ") ->  | F9: =IF(F$1<=Resumen!$P$1,IF(OFFSET(Aragón_datos!R34,0,((Resumen!$Q$1-1)*12))=0," ",OFFSET(Aragón_datos!R34,0,((Resumen!$Q$1-1)*12)))," ") ->  | G9: =IF(G$1<=Resumen!$P$1,IF(OFFSET(Aragón_datos!S34,0,((Resumen!$Q$1-1)*12))=0," ",OFFSET(Aragón_datos!S34,0,((Resumen!$Q$1-1)*12)))," ") ->  | H9: =IF(H$1<=Resumen!$P$1,IF(OFFSET(Aragón_datos!T34,0,((Resumen!$Q$1-1)*12))=0," ",OFFSET(Aragón_datos!T34,0,((Resumen!$Q$1-1)*12)))," ") ->  | I9: =IF(I$1<=Resumen!$P$1,IF(OFFSET(Aragón_datos!U34,0,((Resumen!$Q$1-1)*12))=0," ",OFFSET(Aragón_datos!U34,0,((Resumen!$Q$1-1)*12)))," ") ->  | J9: =IF(J$1<=Resumen!$P$1,IF(OFFSET(Aragón_datos!V34,0,((Resumen!$Q$1-1)*12))=0," ",OFFSET(Aragón_datos!V34,0,((Resumen!$Q$1-1)*12)))," ") ->  | K9: =IF(K$1<=Resumen!$P$1,IF(OFFSET(Aragón_datos!W34,0,((Resumen!$Q$1-1)*12))=0," ",OFFSET(Aragón_datos!W34,0,((Resumen!$Q$1-1)*12)))," ") ->  | L9: =IF(L$1<=Resumen!$P$1,IF(OFFSET(Aragón_datos!X34,0,((Resumen!$Q$1-1)*12))=0," ",OFFSET(Aragón_datos!X34,0,((Resumen!$Q$1-1)*12)))," ") ->  | M9: =IF(M$1<=Resumen!$P$1,IF(OFFSET(Aragón_datos!Y34,0,((Resumen!$Q$1-1)*12))=0," ",OFFSET(Aragón_datos!Y34,0,((Resumen!$Q$1-1)*12)))," ") -> 
A10: Ciclo combinado | B10: =IF(B$1<=Resumen!$P$1,IF(OFFSET(Aragón_datos!N35,0,((Resumen!$Q$1-1)*12))=0," ",OFFSET(Aragón_datos!N35,0,((Resumen!$Q$1-1)*12)))," ") -> 9219.952 | C10: =IF(C$1<=Resumen!$P$1,IF(OFFSET(Aragón_datos!O35,0,((Resumen!$Q$1-1)*12))=0," ",OFFSET(Aragón_datos!O35,0,((Resumen!$Q$1-1)*12)))," ") -> -1050.554 | D10: =IF(D$1<=Resumen!$P$1,IF(OFFSET(Aragón_datos!P35,0,((Resumen!$Q$1-1)*12))=0," ",OFFSET(Aragón_datos!P35,0,((Resumen!$Q$1-1)*12)))," ") -> 4778.72 | E10: =IF(E$1<=Resumen!$P$1,IF(OFFSET(Aragón_datos!Q35,0,((Resumen!$Q$1-1)*12))=0," ",OFFSET(Aragón_datos!Q35,0,((Resumen!$Q$1-1)*12)))," ") -> 18864.135 | F10: =IF(F$1<=Resumen!$P$1,IF(OFFSET(Aragón_datos!R35,0,((Resumen!$Q$1-1)*12))=0," ",OFFSET(Aragón_datos!R35,0,((Resumen!$Q$1-1)*12)))," ") -> 1553.913 | G10: =IF(G$1<=Resumen!$P$1,IF(OFFSET(Aragón_datos!S35,0,((Resumen!$Q$1-1)*12))=0," ",OFFSET(Aragón_datos!S35,0,((Resumen!$Q$1-1)*12)))," ") -> -1057.865 | H10: =IF(H$1<=Resumen!$P$1,IF(OFFSET(Aragón_datos!T35,0,((Resumen!$Q$1-1)*12))=0," ",OFFSET(Aragón_datos!T35,0,((Resumen!$Q$1-1)*12)))," ") -> -1112.294 | I10: =IF(I$1<=Resumen!$P$1,IF(OFFSET(Aragón_datos!U35,0,((Resumen!$Q$1-1)*12))=0," ",OFFSET(Aragón_datos!U35,0,((Resumen!$Q$1-1)*12)))," ") -> 6755.555 | J10: =IF(J$1<=Resumen!$P$1,IF(OFFSET(Aragón_datos!V35,0,((Resumen!$Q$1-1)*12))=0," ",OFFSET(Aragón_datos!V35,0,((Resumen!$Q$1-1)*12)))," ") -> 10963.834 | K10: =IF(K$1<=Resumen!$P$1,IF(OFFSET(Aragón_datos!W35,0,((Resumen!$Q$1-1)*12))=0," ",OFFSET(Aragón_datos!W35,0,((Resumen!$Q$1-1)*12)))," ") -> 1565.067 | L10: =IF(L$1<=Resumen!$P$1,IF(OFFSET(Aragón_datos!X35,0,((Resumen!$Q$1-1)*12))=0," ",OFFSET(Aragón_datos!X35,0,((Resumen!$Q$1-1)*12)))," ") -> 5531.69 | M10: =IF(M$1<=Resumen!$P$1,IF(OFFSET(Aragón_datos!Y35,0,((Resumen!$Q$1-1)*12))=0," ",OFFSET(Aragón_datos!Y35,0,((Resumen!$Q$1-1)*12)))," ") ->  | N10: 56012.153
A11: Hidroeólica | B11: =IF(B$1<=Resumen!$P$1,IF(OFFSET(Aragón_datos!N36,0,((Resumen!$Q$1-1)*12))=0," ",OFFSET(Aragón_datos!N36,0,((Resumen!$Q$1-1)*12)))," ") ->  | C11: =IF(C$1<=Resumen!$P$1,IF(OFFSET(Aragón_datos!O36,0,((Resumen!$Q$1-1)*12))=0," ",OFFSET(Aragón_datos!O36,0,((Resumen!$Q$1-1)*12)))," ") ->  | D11: =IF(D$1<=Resumen!$P$1,IF(OFFSET(Aragón_datos!P36,0,((Resumen!$Q$1-1)*12))=0," ",OFFSET(Aragón_datos!P36,0,((Resumen!$Q$1-1)*12)))," ") ->  | E11: =IF(E$1<=Resumen!$P$1,IF(OFFSET(Aragón_datos!Q36,0,((Resumen!$Q$1-1)*12))=0," ",OFFSET(Aragón_datos!Q36,0,((Resumen!$Q$1-1)*12)))," ") ->  | F11: =IF(F$1<=Resumen!$P$1,IF(OFFSET(Aragón_datos!R36,0,((Resumen!$Q$1-1)*12))=0," ",OFFSET(Aragón_datos!R36,0,((Resumen!$Q$1-1)*12)))," ") ->  | G11: =IF(G$1<=Resumen!$P$1,IF(OFFSET(Aragón_datos!S36,0,((Resumen!$Q$1-1)*12))=0," ",OFFSET(Aragón_datos!S36,0,((Resumen!$Q$1-1)*12)))," ") ->  | H11: =IF(H$1<=Resumen!$P$1,IF(OFFSET(Aragón_datos!T36,0,((Resumen!$Q$1-1)*12))=0," ",OFFSET(Aragón_datos!T36,0,((Resumen!$Q$1-1)*12)))," ") ->  | I11: =IF(I$1<=Resumen!$P$1,IF(OFFSET(Aragón_datos!U36,0,((Resumen!$Q$1-1)*12))=0," ",OFFSET(Aragón_datos!U36,0,((Resumen!$Q$1-1)*12)))," ") ->  | J11: =IF(J$1<=Resumen!$P$1,IF(OFFSET(Aragón_datos!V36,0,((Resumen!$Q$1-1)*12))=0," ",OFFSET(Aragón_datos!V36,0,((Resumen!$Q$1-1)*12)))," ") ->  | K11: =IF(K$1<=Resumen!$P$1,IF(OFFSET(Aragón_datos!W36,0,((Resumen!$Q$1-1)*12))=0," ",OFFSET(Aragón_datos!W36,0,((Resumen!$Q$1-1)*12)))," ") ->  | L11: =IF(L$1<=Resumen!$P$1,IF(OFFSET(Aragón_datos!X36,0,((Resumen!$Q$1-1)*12))=0," ",OFFSET(Aragón_datos!X36,0,((Resumen!$Q$1-1)*12)))," ") ->  | M11: =IF(M$1<=Resumen!$P$1,IF(OFFSET(Aragón_datos!Y36,0,((Resumen!$Q$1-1)*12))=0," ",OFFSET(Aragón_datos!Y36,0,((Resumen!$Q$1-1)*12)))," ") -> 
A12: Eólica | B12: =IF(B$1<=Resumen!$P$1,IF(OFFSET(Aragón_datos!N37,0,((Resumen!$Q$1-1)*12))=0," ",OFFSET(Aragón_datos!N37,0,((Resumen!$Q$1-1)*12)))," ") -> 458149.578 | C12: =IF(C$1<=Resumen!$P$1,IF(OFFSET(Aragón_datos!O37,0,((Resumen!$Q$1-1)*12))=0," ",OFFSET(Aragón_datos!O37,0,((Resumen!$Q$1-1)*12)))," ") -> 593374.923 | D12: =IF(D$1<=Resumen!$P$1,IF(OFFSET(Aragón_datos!P37,0,((Resumen!$Q$1-1)*12))=0," ",OFFSET(Aragón_datos!P37,0,((Resumen!$Q$1-1)*12)))," ") -> 534147.414 | E12: =IF(E$1<=Resumen!$P$1,IF(OFFSET(Aragón_datos!Q37,0,((Resumen!$Q$1-1)*12))=0," ",OFFSET(Aragón_datos!Q37,0,((Resumen!$Q$1-1)*12)))," ") -> 291007.624 | F12: =IF(F$1<=Resumen!$P$1,IF(OFFSET(Aragón_datos!R37,0,((Resumen!$Q$1-1)*12))=0," ",OFFSET(Aragón_datos!R37,0,((Resumen!$Q$1-1)*12)))," ") -> 371214.144 | G12: =IF(G$1<=Resumen!$P$1,IF(OFFSET(Aragón_datos!S37,0,((Resumen!$Q$1-1)*12))=0," ",OFFSET(Aragón_datos!S37,0,((Resumen!$Q$1-1)*12)))," ") -> 300178.945 | H12: =IF(H$1<=Resumen!$P$1,IF(OFFSET(Aragón_datos!T37,0,((Resumen!$Q$1-1)*12))=0," ",OFFSET(Aragón_datos!T37,0,((Resumen!$Q$1-1)*12)))," ") -> 262379.791 | I12: =IF(I$1<=Resumen!$P$1,IF(OFFSET(Aragón_datos!U37,0,((Resumen!$Q$1-1)*12))=0," ",OFFSET(Aragón_datos!U37,0,((Resumen!$Q$1-1)*12)))," ") -> 340596.481 | J12: =IF(J$1<=Resumen!$P$1,IF(OFFSET(Aragón_datos!V37,0,((Resumen!$Q$1-1)*12))=0," ",OFFSET(Aragón_datos!V37,0,((Resumen!$Q$1-1)*12)))," ") -> 208897.495 | K12: =IF(K$1<=Resumen!$P$1,IF(OFFSET(Aragón_datos!W37,0,((Resumen!$Q$1-1)*12))=0," ",OFFSET(Aragón_datos!W37,0,((Resumen!$Q$1-1)*12)))," ") -> 380735.676 | L12: =IF(L$1<=Resumen!$P$1,IF(OFFSET(Aragón_datos!X37,0,((Resumen!$Q$1-1)*12))=0," ",OFFSET(Aragón_datos!X37,0,((Resumen!$Q$1-1)*12)))," ") -> 270708.714 | M12: =IF(M$1<=Resumen!$P$1,IF(OFFSET(Aragón_datos!Y37,0,((Resumen!$Q$1-1)*12))=0," ",OFFSET(Aragón_datos!Y37,0,((Resumen!$Q$1-1)*12)))," ") ->  | N12: 4011390.785
A13: Solar fotovoltaico | B13: =IF(B$1<=Resumen!$P$1,IF(OFFSET(Aragón_datos!N38,0,((Resumen!$Q$1-1)*12))=0," ",OFFSET(Aragón_datos!N38,0,((Resumen!$Q$1-1)*12)))," ") -> 15275.588 | C13: =IF(C$1<=Resumen!$P$1,IF(OFFSET(Aragón_datos!O38,0,((Resumen!$Q$1-1)*12))=0," ",OFFSET(Aragón_datos!O38,0,((Resumen!$Q$1-1)*12)))," ") -> 16066.674 | D13: =IF(D$1<=Resumen!$P$1,IF(OFFSET(Aragón_datos!P38,0,((Resumen!$Q$1-1)*12))=0," ",OFFSET(Aragón_datos!P38,0,((Resumen!$Q$1-1)*12)))," ") -> 22233.951 | E13: =IF(E$1<=Resumen!$P$1,IF(OFFSET(Aragón_datos!Q38,0,((Resumen!$Q$1-1)*12))=0," ",OFFSET(Aragón_datos!Q38,0,((Resumen!$Q$1-1)*12)))," ") -> 25200.323 | F13: =IF(F$1<=Resumen!$P$1,IF(OFFSET(Aragón_datos!R38,0,((Resumen!$Q$1-1)*12))=0," ",OFFSET(Aragón_datos!R38,0,((Resumen!$Q$1-1)*12)))," ") -> 32032.825 | G13: =IF(G$1<=Resumen!$P$1,IF(OFFSET(Aragón_datos!S38,0,((Resumen!$Q$1-1)*12))=0," ",OFFSET(Aragón_datos!S38,0,((Resumen!$Q$1-1)*12)))," ") -> 32399.22 | H13: =IF(H$1<=Resumen!$P$1,IF(OFFSET(Aragón_datos!T38,0,((Resumen!$Q$1-1)*12))=0," ",OFFSET(Aragón_datos!T38,0,((Resumen!$Q$1-1)*12)))," ") -> 36585.132 | I13: =IF(I$1<=Resumen!$P$1,IF(OFFSET(Aragón_datos!U38,0,((Resumen!$Q$1-1)*12))=0," ",OFFSET(Aragón_datos!U38,0,((Resumen!$Q$1-1)*12)))," ") -> 33814.37 | J13: =IF(J$1<=Resumen!$P$1,IF(OFFSET(Aragón_datos!V38,0,((Resumen!$Q$1-1)*12))=0," ",OFFSET(Aragón_datos!V38,0,((Resumen!$Q$1-1)*12)))," ") -> 28599.601 | K13: =IF(K$1<=Resumen!$P$1,IF(OFFSET(Aragón_datos!W38,0,((Resumen!$Q$1-1)*12))=0," ",OFFSET(Aragón_datos!W38,0,((Resumen!$Q$1-1)*12)))," ") -> 20581.56 | L13: =IF(L$1<=Resumen!$P$1,IF(OFFSET(Aragón_datos!X38,0,((Resumen!$Q$1-1)*12))=0," ",OFFSET(Aragón_datos!X38,0,((Resumen!$Q$1-1)*12)))," ") -> 12814.211 | M13: =IF(M$1<=Resumen!$P$1,IF(OFFSET(Aragón_datos!Y38,0,((Resumen!$Q$1-1)*12))=0," ",OFFSET(Aragón_datos!Y38,0,((Resumen!$Q$1-1)*12)))," ") ->  | N13: 275603.455
A14: Solar térmica | B14: =IF(B$1<=Resumen!$P$1,IF(OFFSET(Aragón_datos!N39,0,((Resumen!$Q$1-1)*12))=0," ",OFFSET(Aragón_datos!N39,0,((Resumen!$Q$1-1)*12)))," ") ->  | C14: =IF(C$1<=Resumen!$P$1,IF(OFFSET(Aragón_datos!O39,0,((Resumen!$Q$1-1)*12))=0," ",OFFSET(Aragón_datos!O39,0,((Resumen!$Q$1-1)*12)))," ") ->  | D14: =IF(D$1<=Resumen!$P$1,IF(OFFSET(Aragón_datos!P39,0,((Resumen!$Q$1-1)*12))=0," ",OFFSET(Aragón_datos!P39,0,((Resumen!$Q$1-1)*12)))," ") ->  | E14: =IF(E$1<=Resumen!$P$1,IF(OFFSET(Aragón_datos!Q39,0,((Resumen!$Q$1-1)*12))=0," ",OFFSET(Aragón_datos!Q39,0,((Resumen!$Q$1-1)*12)))," ") ->  | F14: =IF(F$1<=Resumen!$P$1,IF(OFFSET(Aragón_datos!R39,0,((Resumen!$Q$1-1)*12))=0," ",OFFSET(Aragón_datos!R39,0,((Resumen!$Q$1-1)*12)))," ") ->  | G14: =IF(G$1<=Resumen!$P$1,IF(OFFSET(Aragón_datos!S39,0,((Resumen!$Q$1-1)*12))=0," ",OFFSET(Aragón_datos!S39,0,((Resumen!$Q$1-1)*12)))," ") ->  | H14: =IF(H$1<=Resumen!$P$1,IF(OFFSET(Aragón_datos!T39,0,((Resumen!$Q$1-1)*12))=0," ",OFFSET(Aragón_datos!T39,0,((Resumen!$Q$1-1)*12)))," ") ->  | I14: =IF(I$1<=Resumen!$P$1,IF(OFFSET(Aragón_datos!U39,0,((Resumen!$Q$1-1)*12))=0," ",OFFSET(Aragón_datos!U39,0,((Resumen!$Q$1-1)*12)))," ") ->  | J14: =IF(J$1<=Resumen!$P$1,IF(OFFSET(Aragón_datos!V39,0,((Resumen!$Q$1-1)*12))=0," ",OFFSET(Aragón_datos!V39,0,((Resumen!$Q$1-1)*12)))," ") ->  | K14: =IF(K$1<=Resumen!$P$1,IF(OFFSET(Aragón_datos!W39,0,((Resumen!$Q$1-1)*12))=0," ",OFFSET(Aragón_datos!W39,0,((Resumen!$Q$1-1)*12)))," ") ->  | L14: =IF(L$1<=Resumen!$P$1,IF(OFFSET(Aragón_datos!X39,0,((Resumen!$Q$1-1)*12))=0," ",OFFSET(Aragón_datos!X39,0,((Resumen!$Q$1-1)*12)))," ") ->  | M14: =IF(M$1<=Resumen!$P$1,IF(OFFSET(Aragón_datos!Y39,0,((Resumen!$Q$1-1)*12))=0," ",OFFSET(Aragón_datos!Y39,0,((Resumen!$Q$1-1)*12)))," ") -> 
A15: Otras renovables | B15: =IF(B$1<=Resumen!$P$1,IF(OFFSET(Aragón_datos!N40,0,((Resumen!$Q$1-1)*12))=0," ",OFFSET(Aragón_datos!N40,0,((Resumen!$Q$1-1)*12)))," ") -> 3501.161 | C15: =IF(C$1<=Resumen!$P$1,IF(OFFSET(Aragón_datos!O40,0,((Resumen!$Q$1-1)*12))=0," ",OFFSET(Aragón_datos!O40,0,((Resumen!$Q$1-1)*12)))," ") -> 3620.145 | D15: =IF(D$1<=Resumen!$P$1,IF(OFFSET(Aragón_datos!P40,0,((Resumen!$Q$1-1)*12))=0," ",OFFSET(Aragón_datos!P40,0,((Resumen!$Q$1-1)*12)))," ") -> 4236.041 | E15: =IF(E$1<=Resumen!$P$1,IF(OFFSET(Aragón_datos!Q40,0,((Resumen!$Q$1-1)*12))=0," ",OFFSET(Aragón_datos!Q40,0,((Resumen!$Q$1-1)*12)))," ") -> 4335.759 | F15: =IF(F$1<=Resumen!$P$1,IF(OFFSET(Aragón_datos!R40,0,((Resumen!$Q$1-1)*12))=0," ",OFFSET(Aragón_datos!R40,0,((Resumen!$Q$1-1)*12)))," ") -> 5650.157 | G15: =IF(G$1<=Resumen!$P$1,IF(OFFSET(Aragón_datos!S40,0,((Resumen!$Q$1-1)*12))=0," ",OFFSET(Aragón_datos!S40,0,((Resumen!$Q$1-1)*12)))," ") -> 5202.753 | H15: =IF(H$1<=Resumen!$P$1,IF(OFFSET(Aragón_datos!T40,0,((Resumen!$Q$1-1)*12))=0," ",OFFSET(Aragón_datos!T40,0,((Resumen!$Q$1-1)*12)))," ") -> 5227.098 | I15: =IF(I$1<=Resumen!$P$1,IF(OFFSET(Aragón_datos!U40,0,((Resumen!$Q$1-1)*12))=0," ",OFFSET(Aragón_datos!U40,0,((Resumen!$Q$1-1)*12)))," ") -> 5095.701 | J15: =IF(J$1<=Resumen!$P$1,IF(OFFSET(Aragón_datos!V40,0,((Resumen!$Q$1-1)*12))=0," ",OFFSET(Aragón_datos!V40,0,((Resumen!$Q$1-1)*12)))," ") -> 5805.892 | K15: =IF(K$1<=Resumen!$P$1,IF(OFFSET(Aragón_datos!W40,0,((Resumen!$Q$1-1)*12))=0," ",OFFSET(Aragón_datos!W40,0,((Resumen!$Q$1-1)*12)))," ") -> 5336.947 | L15: =IF(L$1<=Resumen!$P$1,IF(OFFSET(Aragón_datos!X40,0,((Resumen!$Q$1-1)*12))=0," ",OFFSET(Aragón_datos!X40,0,((Resumen!$Q$1-1)*12)))," ") -> 3675.32 | M15: =IF(M$1<=Resumen!$P$1,IF(OFFSET(Aragón_datos!Y40,0,((Resumen!$Q$1-1)*12))=0," ",OFFSET(Aragón_datos!Y40,0,((Resumen!$Q$1-1)*12)))," ") ->  | N15: 51686.974
A16: Cogeneración | B16: =IF(B$1<=Resumen!$P$1,IF(OFFSET(Aragón_datos!N41,0,((Resumen!$Q$1-1)*12))=0," ",OFFSET(Aragón_datos!N41,0,((Resumen!$Q$1-1)*12)))," ") -> 253784.968 | C16: =IF(C$1<=Resumen!$P$1,IF(OFFSET(Aragón_datos!O41,0,((Resumen!$Q$1-1)*12))=0," ",OFFSET(Aragón_datos!O41,0,((Resumen!$Q$1-1)*12)))," ") -> 257991.785 | D16: =IF(D$1<=Resumen!$P$1,IF(OFFSET(Aragón_datos!P41,0,((Resumen!$Q$1-1)*12))=0," ",OFFSET(Aragón_datos!P41,0,((Resumen!$Q$1-1)*12)))," ") -> 250560.595 | E16: =IF(E$1<=Resumen!$P$1,IF(OFFSET(Aragón_datos!Q41,0,((Resumen!$Q$1-1)*12))=0," ",OFFSET(Aragón_datos!Q41,0,((Resumen!$Q$1-1)*12)))," ") -> 254347.415 | F16: =IF(F$1<=Resumen!$P$1,IF(OFFSET(Aragón_datos!R41,0,((Resumen!$Q$1-1)*12))=0," ",OFFSET(Aragón_datos!R41,0,((Resumen!$Q$1-1)*12)))," ") -> 277379.29 | G16: =IF(G$1<=Resumen!$P$1,IF(OFFSET(Aragón_datos!S41,0,((Resumen!$Q$1-1)*12))=0," ",OFFSET(Aragón_datos!S41,0,((Resumen!$Q$1-1)*12)))," ") -> 258304.93 | H16: =IF(H$1<=Resumen!$P$1,IF(OFFSET(Aragón_datos!T41,0,((Resumen!$Q$1-1)*12))=0," ",OFFSET(Aragón_datos!T41,0,((Resumen!$Q$1-1)*12)))," ") -> 263089.68 | I16: =IF(I$1<=Resumen!$P$1,IF(OFFSET(Aragón_datos!U41,0,((Resumen!$Q$1-1)*12))=0," ",OFFSET(Aragón_datos!U41,0,((Resumen!$Q$1-1)*12)))," ") -> 237890.672 | J16: =IF(J$1<=Resumen!$P$1,IF(OFFSET(Aragón_datos!V41,0,((Resumen!$Q$1-1)*12))=0," ",OFFSET(Aragón_datos!V41,0,((Resumen!$Q$1-1)*12)))," ") -> 257816.873 | K16: =IF(K$1<=Resumen!$P$1,IF(OFFSET(Aragón_datos!W41,0,((Resumen!$Q$1-1)*12))=0," ",OFFSET(Aragón_datos!W41,0,((Resumen!$Q$1-1)*12)))," ") -> 257942.023 | L16: =IF(L$1<=Resumen!$P$1,IF(OFFSET(Aragón_datos!X41,0,((Resumen!$Q$1-1)*12))=0," ",OFFSET(Aragón_datos!X41,0,((Resumen!$Q$1-1)*12)))," ") -> 271168.793 | M16: =IF(M$1<=Resumen!$P$1,IF(OFFSET(Aragón_datos!Y41,0,((Resumen!$Q$1-1)*12))=0," ",OFFSET(Aragón_datos!Y41,0,((Resumen!$Q$1-1)*12)))," ") ->  | N16: 2840277.024
A17: Residuos no renovables | B17: =IF(B$1<=Resumen!$P$1,IF(OFFSET(Aragón_datos!N42,0,((Resumen!$Q$1-1)*12))=0," ",OFFSET(Aragón_datos!N42,0,((Resumen!$Q$1-1)*12)))," ") -> 33441.12 | C17: =IF(C$1<=Resumen!$P$1,IF(OFFSET(Aragón_datos!O42,0,((Resumen!$Q$1-1)*12))=0," ",OFFSET(Aragón_datos!O42,0,((Resumen!$Q$1-1)*12)))," ") -> 33872.259 | D17: =IF(D$1<=Resumen!$P$1,IF(OFFSET(Aragón_datos!P42,0,((Resumen!$Q$1-1)*12))=0," ",OFFSET(Aragón_datos!P42,0,((Resumen!$Q$1-1)*12)))," ") -> 34915.968 | E17: =IF(E$1<=Resumen!$P$1,IF(OFFSET(Aragón_datos!Q42,0,((Resumen!$Q$1-1)*12))=0," ",OFFSET(Aragón_datos!Q42,0,((Resumen!$Q$1-1)*12)))," ") -> 34523.768 | F17: =IF(F$1<=Resumen!$P$1,IF(OFFSET(Aragón_datos!R42,0,((Resumen!$Q$1-1)*12))=0," ",OFFSET(Aragón_datos!R42,0,((Resumen!$Q$1-1)*12)))," ") -> 24944.178 | G17: =IF(G$1<=Resumen!$P$1,IF(OFFSET(Aragón_datos!S42,0,((Resumen!$Q$1-1)*12))=0," ",OFFSET(Aragón_datos!S42,0,((Resumen!$Q$1-1)*12)))," ") -> 35627.522 | H17: =IF(H$1<=Resumen!$P$1,IF(OFFSET(Aragón_datos!T42,0,((Resumen!$Q$1-1)*12))=0," ",OFFSET(Aragón_datos!T42,0,((Resumen!$Q$1-1)*12)))," ") -> 37609.578 | I17: =IF(I$1<=Resumen!$P$1,IF(OFFSET(Aragón_datos!U42,0,((Resumen!$Q$1-1)*12))=0," ",OFFSET(Aragón_datos!U42,0,((Resumen!$Q$1-1)*12)))," ") -> 38896.679 | J17: =IF(J$1<=Resumen!$P$1,IF(OFFSET(Aragón_datos!V42,0,((Resumen!$Q$1-1)*12))=0," ",OFFSET(Aragón_datos!V42,0,((Resumen!$Q$1-1)*12)))," ") -> 36943.386 | K17: =IF(K$1<=Resumen!$P$1,IF(OFFSET(Aragón_datos!W42,0,((Resumen!$Q$1-1)*12))=0," ",OFFSET(Aragón_datos!W42,0,((Resumen!$Q$1-1)*12)))," ") -> 37076.516 | L17: =IF(L$1<=Resumen!$P$1,IF(OFFSET(Aragón_datos!X42,0,((Resumen!$Q$1-1)*12))=0," ",OFFSET(Aragón_datos!X42,0,((Resumen!$Q$1-1)*12)))," ") -> 35052.258 | M17: =IF(M$1<=Resumen!$P$1,IF(OFFSET(Aragón_datos!Y42,0,((Resumen!$Q$1-1)*12))=0," ",OFFSET(Aragón_datos!Y42,0,((Resumen!$Q$1-1)*12)))," ") ->  | N17: 382903.232
A18: Residuos renovables | B18: =IF(B$1<=Resumen!$P$1,IF(OFFSET(Aragón_datos!N43,0,((Resumen!$Q$1-1)*12))=0," ",OFFSET(Aragón_datos!N43,0,((Resumen!$Q$1-1)*12)))," ") ->  | C18: =IF(C$1<=Resumen!$P$1,IF(OFFSET(Aragón_datos!O43,0,((Resumen!$Q$1-1)*12))=0," ",OFFSET(Aragón_datos!O43,0,((Resumen!$Q$1-1)*12)))," ") ->  | D18: =IF(D$1<=Resumen!$P$1,IF(OFFSET(Aragón_datos!P43,0,((Resumen!$Q$1-1)*12))=0," ",OFFSET(Aragón_datos!P43,0,((Resumen!$Q$1-1)*12)))," ") ->  | E18: =IF(E$1<=Resumen!$P$1,IF(OFFSET(Aragón_datos!Q43,0,((Resumen!$Q$1-1)*12))=0," ",OFFSET(Aragón_datos!Q43,0,((Resumen!$Q$1-1)*12)))," ") ->  | F18: =IF(F$1<=Resumen!$P$1,IF(OFFSET(Aragón_datos!R43,0,((Resumen!$Q$1-1)*12))=0," ",OFFSET(Aragón_datos!R43,0,((Resumen!$Q$1-1)*12)))," ") ->  | G18: =IF(G$1<=Resumen!$P$1,IF(OFFSET(Aragón_datos!S43,0,((Resumen!$Q$1-1)*12))=0," ",OFFSET(Aragón_datos!S43,0,((Resumen!$Q$1-1)*12)))," ") ->  | H18: =IF(H$1<=Resumen!$P$1,IF(OFFSET(Aragón_datos!T43,0,((Resumen!$Q$1-1)*12))=0," ",OFFSET(Aragón_datos!T43,0,((Resumen!$Q$1-1)*12)))," ") ->  | I18: =IF(I$1<=Resumen!$P$1,IF(OFFSET(Aragón_datos!U43,0,((Resumen!$Q$1-1)*12))=0," ",OFFSET(Aragón_datos!U43,0,((Resumen!$Q$1-1)*12)))," ") ->  | J18: =IF(J$1<=Resumen!$P$1,IF(OFFSET(Aragón_datos!V43,0,((Resumen!$Q$1-1)*12))=0," ",OFFSET(Aragón_datos!V43,0,((Resumen!$Q$1-1)*12)))," ") ->  | K18: =IF(K$1<=Resumen!$P$1,IF(OFFSET(Aragón_datos!W43,0,((Resumen!$Q$1-1)*12))=0," ",OFFSET(Aragón_datos!W43,0,((Resumen!$Q$1-1)*12)))," ") ->  | L18: =IF(L$1<=Resumen!$P$1,IF(OFFSET(Aragón_datos!X43,0,((Resumen!$Q$1-1)*12))=0," ",OFFSET(Aragón_datos!X43,0,((Resumen!$Q$1-1)*12)))," ") ->  | M18: =IF(M$1<=Resumen!$P$1,IF(OFFSET(Aragón_datos!Y43,0,((Resumen!$Q$1-1)*12))=0," ",OFFSET(Aragón_datos!Y43,0,((Resumen!$Q$1-1)*12)))," ") ->  | N18: =IF(SUM(B18:M18)=0," ",SUM(B18:M18)) -> 
A19: Generación neta | B19: =IF(B$1<=Resumen!$P$1,IF(OFFSET(Aragón_datos!N44,0,((Resumen!$Q$1-1)*12))=0," ",OFFSET(Aragón_datos!N44,0,((Resumen!$Q$1-1)*12)))," ") -> 1268764.615 | C19: =IF(C$1<=Resumen!$P$1,IF(OFFSET(Aragón_datos!O44,0,((Resumen!$Q$1-1)*12))=0," ",OFFSET(Aragón_datos!O44,0,((Resumen!$Q$1-1)*12)))," ") -> 1500498.614 | D19: =IF(D$1<=Resumen!$P$1,IF(OFFSET(Aragón_datos!P44,0,((Resumen!$Q$1-1)*12))=0," ",OFFSET(Aragón_datos!P44,0,((Resumen!$Q$1-1)*12)))," ") -> 1287893.614 | E19: =IF(E$1<=Resumen!$P$1,IF(OFFSET(Aragón_datos!Q44,0,((Resumen!$Q$1-1)*12))=0," ",OFFSET(Aragón_datos!Q44,0,((Resumen!$Q$1-1)*12)))," ") -> 1167394.38 | F19: =IF(F$1<=Resumen!$P$1,IF(OFFSET(Aragón_datos!R44,0,((Resumen!$Q$1-1)*12))=0," ",OFFSET(Aragón_datos!R44,0,((Resumen!$Q$1-1)*12)))," ") -> 1385028.085 | G19: =IF(G$1<=Resumen!$P$1,IF(OFFSET(Aragón_datos!S44,0,((Resumen!$Q$1-1)*12))=0," ",OFFSET(Aragón_datos!S44,0,((Resumen!$Q$1-1)*12)))," ") -> 1471835.593 | H19: =IF(H$1<=Resumen!$P$1,IF(OFFSET(Aragón_datos!T44,0,((Resumen!$Q$1-1)*12))=0," ",OFFSET(Aragón_datos!T44,0,((Resumen!$Q$1-1)*12)))," ") -> 1398869.493 | I19: =IF(I$1<=Resumen!$P$1,IF(OFFSET(Aragón_datos!U44,0,((Resumen!$Q$1-1)*12))=0," ",OFFSET(Aragón_datos!U44,0,((Resumen!$Q$1-1)*12)))," ") -> 1182203.78 | J19: =IF(J$1<=Resumen!$P$1,IF(OFFSET(Aragón_datos!V44,0,((Resumen!$Q$1-1)*12))=0," ",OFFSET(Aragón_datos!V44,0,((Resumen!$Q$1-1)*12)))," ") -> 1218078.227 | K19: =IF(K$1<=Resumen!$P$1,IF(OFFSET(Aragón_datos!W44,0,((Resumen!$Q$1-1)*12))=0," ",OFFSET(Aragón_datos!W44,0,((Resumen!$Q$1-1)*12)))," ") -> 1205595.487 | L19: =IF(L$1<=Resumen!$P$1,IF(OFFSET(Aragón_datos!X44,0,((Resumen!$Q$1-1)*12))=0," ",OFFSET(Aragón_datos!X44,0,((Resumen!$Q$1-1)*12)))," ") -> 1073308.347 | M19: =IF(M$1<=Resumen!$P$1,IF(OFFSET(Aragón_datos!Y44,0,((Resumen!$Q$1-1)*12))=0," ",OFFSET(Aragón_datos!Y44,0,((Resumen!$Q$1-1)*12)))," ") ->  | N19: 14159470.23
A20: Consumos en bombeo | B20: =IF(B$1<=Resumen!$P$1,IF(OFFSET(Aragón_datos!N45,0,((Resumen!$Q$1-1)*12))=0," ",OFFSET(Aragón_datos!N45,0,((Resumen!$Q$1-1)*12)))," ") -> -23806.937 | C20: =IF(C$1<=Resumen!$P$1,IF(OFFSET(Aragón_datos!O45,0,((Resumen!$Q$1-1)*12))=0," ",OFFSET(Aragón_datos!O45,0,((Resumen!$Q$1-1)*12)))," ") -> -13741.381 | D20: =IF(D$1<=Resumen!$P$1,IF(OFFSET(Aragón_datos!P45,0,((Resumen!$Q$1-1)*12))=0," ",OFFSET(Aragón_datos!P45,0,((Resumen!$Q$1-1)*12)))," ") -> -49294.499 | E20: =IF(E$1<=Resumen!$P$1,IF(OFFSET(Aragón_datos!Q45,0,((Resumen!$Q$1-1)*12))=0," ",OFFSET(Aragón_datos!Q45,0,((Resumen!$Q$1-1)*12)))," ") -> -32576.843 | F20: =IF(F$1<=Resumen!$P$1,IF(OFFSET(Aragón_datos!R45,0,((Resumen!$Q$1-1)*12))=0," ",OFFSET(Aragón_datos!R45,0,((Resumen!$Q$1-1)*12)))," ") -> -8737.071 | G20: =IF(G$1<=Resumen!$P$1,IF(OFFSET(Aragón_datos!S45,0,((Resumen!$Q$1-1)*12))=0," ",OFFSET(Aragón_datos!S45,0,((Resumen!$Q$1-1)*12)))," ") -> -4176.906 | H20: =IF(H$1<=Resumen!$P$1,IF(OFFSET(Aragón_datos!T45,0,((Resumen!$Q$1-1)*12))=0," ",OFFSET(Aragón_datos!T45,0,((Resumen!$Q$1-1)*12)))," ") -> -679.958 | I20: =IF(I$1<=Resumen!$P$1,IF(OFFSET(Aragón_datos!U45,0,((Resumen!$Q$1-1)*12))=0," ",OFFSET(Aragón_datos!U45,0,((Resumen!$Q$1-1)*12)))," ") -> -0.021 | J20: =IF(J$1<=Resumen!$P$1,IF(OFFSET(Aragón_datos!V45,0,((Resumen!$Q$1-1)*12))=0," ",OFFSET(Aragón_datos!V45,0,((Resumen!$Q$1-1)*12)))," ") -> -0.007 | K20: =IF(K$1<=Resumen!$P$1,IF(OFFSET(Aragón_datos!W45,0,((Resumen!$Q$1-1)*12))=0," ",OFFSET(Aragón_datos!W45,0,((Resumen!$Q$1-1)*12)))," ") -> -8578.385 | L20: =IF(L$1<=Resumen!$P$1,IF(OFFSET(Aragón_datos!X45,0,((Resumen!$Q$1-1)*12))=0," ",OFFSET(Aragón_datos!X45,0,((Resumen!$Q$1-1)*12)))," ") -> -11323.369 | M20: =IF(M$1<=Resumen!$P$1,IF(OFFSET(Aragón_datos!Y45,0,((Resumen!$Q$1-1)*12))=0," ",OFFSET(Aragón_datos!Y45,0,((Resumen!$Q$1-1)*12)))," ") ->  | N20: -152915.377
A21: Saldo Intercambios | B21: =IF(B$1<=Resumen!$P$1,IF(OFFSET(Aragón_datos!N46,0,((Resumen!$Q$1-1)*12))=0," ",OFFSET(Aragón_datos!N46,0,((Resumen!$Q$1-1)*12)))," ") -> -327964.585 | C21: =IF(C$1<=Resumen!$P$1,IF(OFFSET(Aragón_datos!O46,0,((Resumen!$Q$1-1)*12))=0," ",OFFSET(Aragón_datos!O46,0,((Resumen!$Q$1-1)*12)))," ") -> -613621.981 | D21: =IF(D$1<=Resumen!$P$1,IF(OFFSET(Aragón_datos!P46,0,((Resumen!$Q$1-1)*12))=0," ",OFFSET(Aragón_datos!P46,0,((Resumen!$Q$1-1)*12)))," ") -> -306128.56 | E21: =IF(E$1<=Resumen!$P$1,IF(OFFSET(Aragón_datos!Q46,0,((Resumen!$Q$1-1)*12))=0," ",OFFSET(Aragón_datos!Q46,0,((Resumen!$Q$1-1)*12)))," ") -> -282413.502 | F21: =IF(F$1<=Resumen!$P$1,IF(OFFSET(Aragón_datos!R46,0,((Resumen!$Q$1-1)*12))=0," ",OFFSET(Aragón_datos!R46,0,((Resumen!$Q$1-1)*12)))," ") -> -491582.36 | G21: =IF(G$1<=Resumen!$P$1,IF(OFFSET(Aragón_datos!S46,0,((Resumen!$Q$1-1)*12))=0," ",OFFSET(Aragón_datos!S46,0,((Resumen!$Q$1-1)*12)))," ") -> -606363.298 | H21: =IF(H$1<=Resumen!$P$1,IF(OFFSET(Aragón_datos!T46,0,((Resumen!$Q$1-1)*12))=0," ",OFFSET(Aragón_datos!T46,0,((Resumen!$Q$1-1)*12)))," ") -> -484336.746 | I21: =IF(I$1<=Resumen!$P$1,IF(OFFSET(Aragón_datos!U46,0,((Resumen!$Q$1-1)*12))=0," ",OFFSET(Aragón_datos!U46,0,((Resumen!$Q$1-1)*12)))," ") -> -264968.111 | J21: =IF(J$1<=Resumen!$P$1,IF(OFFSET(Aragón_datos!V46,0,((Resumen!$Q$1-1)*12))=0," ",OFFSET(Aragón_datos!V46,0,((Resumen!$Q$1-1)*12)))," ") -> -331427.803 | K21: =IF(K$1<=Resumen!$P$1,IF(OFFSET(Aragón_datos!W46,0,((Resumen!$Q$1-1)*12))=0," ",OFFSET(Aragón_datos!W46,0,((Resumen!$Q$1-1)*12)))," ") -> -311708.806 | L21: =IF(L$1<=Resumen!$P$1,IF(OFFSET(Aragón_datos!X46,0,((Resumen!$Q$1-1)*12))=0," ",OFFSET(Aragón_datos!X46,0,((Resumen!$Q$1-1)*12)))," ") -> -130439.66 | M21: =IF(M$1<=Resumen!$P$1,IF(OFFSET(Aragón_datos!Y46,0,((Resumen!$Q$1-1)*12))=0," ",OFFSET(Aragón_datos!Y46,0,((Resumen!$Q$1-1)*12)))," ") ->  | N21: -4150955.412
A22: Demanda B.C | B22: =IF(B$1<=Resumen!$P$1,IF(OFFSET(Aragón_datos!N47,0,((Resumen!$Q$1-1)*12))=0," ",OFFSET(Aragón_datos!N47,0,((Resumen!$Q$1-1)*12)))," ") -> 916993.093 | C22: =IF(C$1<=Resumen!$P$1,IF(OFFSET(Aragón_datos!O47,0,((Resumen!$Q$1-1)*12))=0," ",OFFSET(Aragón_datos!O47,0,((Resumen!$Q$1-1)*12)))," ") -> 873135.252 | D22: =IF(D$1<=Resumen!$P$1,IF(OFFSET(Aragón_datos!P47,0,((Resumen!$Q$1-1)*12))=0," ",OFFSET(Aragón_datos!P47,0,((Resumen!$Q$1-1)*12)))," ") -> 932470.555 | E22: =IF(E$1<=Resumen!$P$1,IF(OFFSET(Aragón_datos!Q47,0,((Resumen!$Q$1-1)*12))=0," ",OFFSET(Aragón_datos!Q47,0,((Resumen!$Q$1-1)*12)))," ") -> 852404.035 | F22: =IF(F$1<=Resumen!$P$1,IF(OFFSET(Aragón_datos!R47,0,((Resumen!$Q$1-1)*12))=0," ",OFFSET(Aragón_datos!R47,0,((Resumen!$Q$1-1)*12)))," ") -> 884708.654 | G22: =IF(G$1<=Resumen!$P$1,IF(OFFSET(Aragón_datos!S47,0,((Resumen!$Q$1-1)*12))=0," ",OFFSET(Aragón_datos!S47,0,((Resumen!$Q$1-1)*12)))," ") -> 861295.389 | H22: =IF(H$1<=Resumen!$P$1,IF(OFFSET(Aragón_datos!T47,0,((Resumen!$Q$1-1)*12))=0," ",OFFSET(Aragón_datos!T47,0,((Resumen!$Q$1-1)*12)))," ") -> 913852.789 | I22: =IF(I$1<=Resumen!$P$1,IF(OFFSET(Aragón_datos!U47,0,((Resumen!$Q$1-1)*12))=0," ",OFFSET(Aragón_datos!U47,0,((Resumen!$Q$1-1)*12)))," ") -> 917235.648 | J22: =IF(J$1<=Resumen!$P$1,IF(OFFSET(Aragón_datos!V47,0,((Resumen!$Q$1-1)*12))=0," ",OFFSET(Aragón_datos!V47,0,((Resumen!$Q$1-1)*12)))," ") -> 886650.417 | K22: =IF(K$1<=Resumen!$P$1,IF(OFFSET(Aragón_datos!W47,0,((Resumen!$Q$1-1)*12))=0," ",OFFSET(Aragón_datos!W47,0,((Resumen!$Q$1-1)*12)))," ") -> 885308.296 | L22: =IF(L$1<=Resumen!$P$1,IF(OFFSET(Aragón_datos!X47,0,((Resumen!$Q$1-1)*12))=0," ",OFFSET(Aragón_datos!X47,0,((Resumen!$Q$1-1)*12)))," ") -> 931545.318 | M22: =IF(M$1<=Resumen!$P$1,IF(OFFSET(Aragón_datos!Y47,0,((Resumen!$Q$1-1)*12))=0," ",OFFSET(Aragón_datos!Y47,0,((Resumen!$Q$1-1)*12)))," ") ->  | N22: 9855599.446
A23: =Resumen!A24 -> %Δ 18/17 | B23: =IF(B$1<=Resumen!$P$1,IF(OFFSET(Aragón_datos!N48,0,((Resumen!$Q$1-1)*12))=0," ",OFFSET(Aragón_datos!N48,0,((Resumen!$Q$1-1)*12)))," ") -> -2.035578519 | C23: =IF(C$1<=Resumen!$P$1,IF(OFFSET(Aragón_datos!O48,0,((Resumen!$Q$1-1)*12))=0," ",OFFSET(Aragón_datos!O48,0,((Resumen!$Q$1-1)*12)))," ") -> 4.563636933 | D23: =IF(D$1<=Resumen!$P$1,IF(OFFSET(Aragón_datos!P48,0,((Resumen!$Q$1-1)*12))=0," ",OFFSET(Aragón_datos!P48,0,((Resumen!$Q$1-1)*12)))," ") -> 3.61506648 | E23: =IF(E$1<=Resumen!$P$1,IF(OFFSET(Aragón_datos!Q48,0,((Resumen!$Q$1-1)*12))=0," ",OFFSET(Aragón_datos!Q48,0,((Resumen!$Q$1-1)*12)))," ") -> 2.829646769 | F23: =IF(F$1<=Resumen!$P$1,IF(OFFSET(Aragón_datos!R48,0,((Resumen!$Q$1-1)*12))=0," ",OFFSET(Aragón_datos!R48,0,((Resumen!$Q$1-1)*12)))," ") -> -1.01673935 | G23: =IF(G$1<=Resumen!$P$1,IF(OFFSET(Aragón_datos!S48,0,((Resumen!$Q$1-1)*12))=0," ",OFFSET(Aragón_datos!S48,0,((Resumen!$Q$1-1)*12)))," ") -> -6.196795087 | H23: =IF(H$1<=Resumen!$P$1,IF(OFFSET(Aragón_datos!T48,0,((Resumen!$Q$1-1)*12))=0," ",OFFSET(Aragón_datos!T48,0,((Resumen!$Q$1-1)*12)))," ") -> 1.018566595 | I23: =IF(I$1<=Resumen!$P$1,IF(OFFSET(Aragón_datos!U48,0,((Resumen!$Q$1-1)*12))=0," ",OFFSET(Aragón_datos!U48,0,((Resumen!$Q$1-1)*12)))," ") -> 1.678905006 | J23: =IF(J$1<=Resumen!$P$1,IF(OFFSET(Aragón_datos!V48,0,((Resumen!$Q$1-1)*12))=0," ",OFFSET(Aragón_datos!V48,0,((Resumen!$Q$1-1)*12)))," ") -> 3.303933435 | K23: =IF(K$1<=Resumen!$P$1,IF(OFFSET(Aragón_datos!W48,0,((Resumen!$Q$1-1)*12))=0," ",OFFSET(Aragón_datos!W48,0,((Resumen!$Q$1-1)*12)))," ") -> 2.500230551 | L23: =IF(L$1<=Resumen!$P$1,IF(OFFSET(Aragón_datos!X48,0,((Resumen!$Q$1-1)*12))=0," ",OFFSET(Aragón_datos!X48,0,((Resumen!$Q$1-1)*12)))," ") -> 2.883759633 | M23: =IF(M$1<=Resumen!$P$1,IF(OFFSET(Aragón_datos!Y48,0,((Resumen!$Q$1-1)*12))=0," ",OFFSET(Aragón_datos!Y48,0,((Resumen!$Q$1-1)*12)))," ") ->  | N23: =((N22/SUM(OFFSET(Aragón_datos!N47,0,(Resumen!$Q$1-2)*12):OFFSET(Aragón_datos!N47,0,((Resumen!$Q$1-2)*12)+Resumen!$P$1-1))-1)*100) -> 1.123313746
A69: =A1 -> Aragón | B69: =L22 -> 931545.318
A70: Resto nacional | B70: =Nacional_datos!CF47-B69 -> 21123933.23
A71: =A1 -> Aragón
A72: Resto nacional

Sheet Asturias
A1: Asturias | B1: 1 | C1: 2 | D1: 3 | E1: 4 | F1: 5 | G1: 6 | H1: 7 | I1: 8 | J1: 9 | K1: 10 | L1: 11 | M1: 12
A2: Balance mensual de energía electrica. GWh
B3: 2018
B4: Ene | C4: Feb | D4: Mar | E4: Abr | F4: May | G4: Jun | H4: Jul | I4: Ago | J4: Sep | K4: Oct | L4: Nov | M4: Dic | N4: TOTAL
A5: Hidraulica | B5: =IF(B$1<=Resumen!$P$1,IF(OFFSET(Asturias_datos!N30,0,((Resumen!$Q$1-1)*12))=0," ",OFFSET(Asturias_datos!N30,0,((Resumen!$Q$1-1)*12)))," ") -> 228748.5986 | C5: =IF(C$1<=Resumen!$P$1,IF(OFFSET(Asturias_datos!O30,0,((Resumen!$Q$1-1)*12))=0," ",OFFSET(Asturias_datos!O30,0,((Resumen!$Q$1-1)*12)))," ") -> 301074.3404 | D5: =IF(D$1<=Resumen!$P$1,IF(OFFSET(Asturias_datos!P30,0,((Resumen!$Q$1-1)*12))=0," ",OFFSET(Asturias_datos!P30,0,((Resumen!$Q$1-1)*12)))," ") -> 346153.6071 | E5: =IF(E$1<=Resumen!$P$1,IF(OFFSET(Asturias_datos!Q30,0,((Resumen!$Q$1-1)*12))=0," ",OFFSET(Asturias_datos!Q30,0,((Resumen!$Q$1-1)*12)))," ") -> 358824.6579 | F5: =IF(F$1<=Resumen!$P$1,IF(OFFSET(Asturias_datos!R30,0,((Resumen!$Q$1-1)*12))=0," ",OFFSET(Asturias_datos!R30,0,((Resumen!$Q$1-1)*12)))," ") -> 193857.9336 | G5: =IF(G$1<=Resumen!$P$1,IF(OFFSET(Asturias_datos!S30,0,((Resumen!$Q$1-1)*12))=0," ",OFFSET(Asturias_datos!S30,0,((Resumen!$Q$1-1)*12)))," ") -> 207120.4478 | H5: =IF(H$1<=Resumen!$P$1,IF(OFFSET(Asturias_datos!T30,0,((Resumen!$Q$1-1)*12))=0," ",OFFSET(Asturias_datos!T30,0,((Resumen!$Q$1-1)*12)))," ") -> 125632.7906 | I5: =IF(I$1<=Resumen!$P$1,IF(OFFSET(Asturias_datos!U30,0,((Resumen!$Q$1-1)*12))=0," ",OFFSET(Asturias_datos!U30,0,((Resumen!$Q$1-1)*12)))," ") -> 69073.2739 | J5: =IF(J$1<=Resumen!$P$1,IF(OFFSET(Asturias_datos!V30,0,((Resumen!$Q$1-1)*12))=0," ",OFFSET(Asturias_datos!V30,0,((Resumen!$Q$1-1)*12)))," ") -> 45578.3512 | K5: =IF(K$1<=Resumen!$P$1,IF(OFFSET(Asturias_datos!W30,0,((Resumen!$Q$1-1)*12))=0," ",OFFSET(Asturias_datos!W30,0,((Resumen!$Q$1-1)*12)))," ") -> 53053.9838 | L5: =IF(L$1<=Resumen!$P$1,IF(OFFSET(Asturias_datos!X30,0,((Resumen!$Q$1-1)*12))=0," ",OFFSET(Asturias_datos!X30,0,((Resumen!$Q$1-1)*12)))," ") -> 156657.7876 | M5: =IF(M$1<=Resumen!$P$1,IF(OFFSET(Asturias_datos!Y30,0,((Resumen!$Q$1-1)*12))=0," ",OFFSET(Asturias_datos!Y30,0,((Resumen!$Q$1-1)*12)))," ") ->  | N5: =IF(SUM(B5:M5)=0," ",SUM(B5:M5)) -> 2085775.772
A6: Turbinación bombeo | B6: =IF(B$1<=Resumen!$P$1,IF(OFFSET(Asturias_datos!N31,0,((Resumen!$Q$1-1)*12))=0," ",OFFSET(Asturias_datos!N31,0,((Resumen!$Q$1-1)*12)))," ") -> 2580.4464 | C6: =IF(C$1<=Resumen!$P$1,IF(OFFSET(Asturias_datos!O31,0,((Resumen!$Q$1-1)*12))=0," ",OFFSET(Asturias_datos!O31,0,((Resumen!$Q$1-1)*12)))," ") -> 147.9436 | D6: =IF(D$1<=Resumen!$P$1,IF(OFFSET(Asturias_datos!P31,0,((Resumen!$Q$1-1)*12))=0," ",OFFSET(Asturias_datos!P31,0,((Resumen!$Q$1-1)*12)))," ") -> 1855.4389 | E6: =IF(E$1<=Resumen!$P$1,IF(OFFSET(Asturias_datos!Q31,0,((Resumen!$Q$1-1)*12))=0," ",OFFSET(Asturias_datos!Q31,0,((Resumen!$Q$1-1)*12)))," ") -> 1530.0691 | F6: =IF(F$1<=Resumen!$P$1,IF(OFFSET(Asturias_datos!R31,0,((Resumen!$Q$1-1)*12))=0," ",OFFSET(Asturias_datos!R31,0,((Resumen!$Q$1-1)*12)))," ") -> 500.4454 | G6: =IF(G$1<=Resumen!$P$1,IF(OFFSET(Asturias_datos!S31,0,((Resumen!$Q$1-1)*12))=0," ",OFFSET(Asturias_datos!S31,0,((Resumen!$Q$1-1)*12)))," ") -> 0.2352 | H6: =IF(H$1<=Resumen!$P$1,IF(OFFSET(Asturias_datos!T31,0,((Resumen!$Q$1-1)*12))=0," ",OFFSET(Asturias_datos!T31,0,((Resumen!$Q$1-1)*12)))," ") -> 0.1344 | I6: =IF(I$1<=Resumen!$P$1,IF(OFFSET(Asturias_datos!U31,0,((Resumen!$Q$1-1)*12))=0," ",OFFSET(Asturias_datos!U31,0,((Resumen!$Q$1-1)*12)))," ") -> 93.6901 | J6: =IF(J$1<=Resumen!$P$1,IF(OFFSET(Asturias_datos!V31,0,((Resumen!$Q$1-1)*12))=0," ",OFFSET(Asturias_datos!V31,0,((Resumen!$Q$1-1)*12)))," ") -> 0.0868 | K6: =IF(K$1<=Resumen!$P$1,IF(OFFSET(Asturias_datos!W31,0,((Resumen!$Q$1-1)*12))=0," ",OFFSET(Asturias_datos!W31,0,((Resumen!$Q$1-1)*12)))," ") -> 449.4742 | L6: =IF(L$1<=Resumen!$P$1,IF(OFFSET(Asturias_datos!X31,0,((Resumen!$Q$1-1)*12))=0," ",OFFSET(Asturias_datos!X31,0,((Resumen!$Q$1-1)*12)))," ") -> 291.7684 | M6: =IF(M$1<=Resumen!$P$1,IF(OFFSET(Asturias_datos!Y31,0,((Resumen!$Q$1-1)*12))=0," ",OFFSET(Asturias_datos!Y31,0,((Resumen!$Q$1-1)*12)))," ") ->  | N6: =IF(SUM(B6:M6)=0," ",SUM(B6:M6)) -> 7449.7325
A7: Nuclear | B7: =IF(B$1<=Resumen!$P$1,IF(OFFSET(Asturias_datos!N32,0,((Resumen!$Q$1-1)*12))=0," ",OFFSET(Asturias_datos!N32,0,((Resumen!$Q$1-1)*12)))," ") ->  | C7: =IF(C$1<=Resumen!$P$1,IF(OFFSET(Asturias_datos!O32,0,((Resumen!$Q$1-1)*12))=0," ",OFFSET(Asturias_datos!O32,0,((Resumen!$Q$1-1)*12)))," ") ->  | D7: =IF(D$1<=Resumen!$P$1,IF(OFFSET(Asturias_datos!P32,0,((Resumen!$Q$1-1)*12))=0," ",OFFSET(Asturias_datos!P32,0,((Resumen!$Q$1-1)*12)))," ") ->  | E7: =IF(E$1<=Resumen!$P$1,IF(OFFSET(Asturias_datos!Q32,0,((Resumen!$Q$1-1)*12))=0," ",OFFSET(Asturias_datos!Q32,0,((Resumen!$Q$1-1)*12)))," ") ->  | F7: =IF(F$1<=Resumen!$P$1,IF(OFFSET(Asturias_datos!R32,0,((Resumen!$Q$1-1)*12))=0," ",OFFSET(Asturias_datos!R32,0,((Resumen!$Q$1-1)*12)))," ") ->  | G7: =IF(G$1<=Resumen!$P$1,IF(OFFSET(Asturias_datos!S32,0,((Resumen!$Q$1-1)*12))=0," ",OFFSET(Asturias_datos!S32,0,((Resumen!$Q$1-1)*12)))," ") ->  | H7: =IF(H$1<=Resumen!$P$1,IF(OFFSET(Asturias_datos!T32,0,((Resumen!$Q$1-1)*12))=0," ",OFFSET(Asturias_datos!T32,0,((Resumen!$Q$1-1)*12)))," ") ->  | I7: =IF(I$1<=Resumen!$P$1,IF(OFFSET(Asturias_datos!U32,0,((Resumen!$Q$1-1)*12))=0," ",OFFSET(Asturias_datos!U32,0,((Resumen!$Q$1-1)*12)))," ") ->  | J7: =IF(J$1<=Resumen!$P$1,IF(OFFSET(Asturias_datos!V32,0,((Resumen!$Q$1-1)*12))=0," ",OFFSET(Asturias_datos!V32,0,((Resumen!$Q$1-1)*12)))," ") ->  | K7: =IF(K$1<=Resumen!$P$1,IF(OFFSET(Asturias_datos!W32,0,((Resumen!$Q$1-1)*12))=0," ",OFFSET(Asturias_datos!W32,0,((Resumen!$Q$1-1)*12)))," ") ->  | L7: =IF(L$1<=Resumen!$P$1,IF(OFFSET(Asturias_datos!X32,0,((Resumen!$Q$1-1)*12))=0," ",OFFSET(Asturias_datos!X32,0,((Resumen!$Q$1-1)*12)))," ") ->  | M7: =IF(M$1<=Resumen!$P$1,IF(OFFSET(Asturias_datos!Y32,0,((Resumen!$Q$1-1)*12))=0," ",OFFSET(Asturias_datos!Y32,0,((Resumen!$Q$1-1)*12)))," ") ->  | N7: =IF(SUM(B7:M7)=0," ",SUM(B7:M7)) -> 
A8: Carbón | B8: =IF(B$1<=Resumen!$P$1,IF(OFFSET(Asturias_datos!N33,0,((Resumen!$Q$1-1)*12))=0," ",OFFSET(Asturias_datos!N33,0,((Resumen!$Q$1-1)*12)))," ") -> 604167.966 | C8: =IF(C$1<=Resumen!$P$1,IF(OFFSET(Asturias_datos!O33,0,((Resumen!$Q$1-1)*12))=0," ",OFFSET(Asturias_datos!O33,0,((Resumen!$Q$1-1)*12)))," ") -> 522392.421 | D8: =IF(D$1<=Resumen!$P$1,IF(OFFSET(Asturias_datos!P33,0,((Resumen!$Q$1-1)*12))=0," ",OFFSET(Asturias_datos!P33,0,((Resumen!$Q$1-1)*12)))," ") -> 346252.772 | E8: =IF(E$1<=Resumen!$P$1,IF(OFFSET(Asturias_datos!Q33,0,((Resumen!$Q$1-1)*12))=0," ",OFFSET(Asturias_datos!Q33,0,((Resumen!$Q$1-1)*12)))," ") -> 369850.978 | F8: =IF(F$1<=Resumen!$P$1,IF(OFFSET(Asturias_datos!R33,0,((Resumen!$Q$1-1)*12))=0," ",OFFSET(Asturias_datos!R33,0,((Resumen!$Q$1-1)*12)))," ") -> 496241.856 | G8: =IF(G$1<=Resumen!$P$1,IF(OFFSET(Asturias_datos!S33,0,((Resumen!$Q$1-1)*12))=0," ",OFFSET(Asturias_datos!S33,0,((Resumen!$Q$1-1)*12)))," ") -> 500718.991 | H8: =IF(H$1<=Resumen!$P$1,IF(OFFSET(Asturias_datos!T33,0,((Resumen!$Q$1-1)*12))=0," ",OFFSET(Asturias_datos!T33,0,((Resumen!$Q$1-1)*12)))," ") -> 672711.38 | I8: =IF(I$1<=Resumen!$P$1,IF(OFFSET(Asturias_datos!U33,0,((Resumen!$Q$1-1)*12))=0," ",OFFSET(Asturias_datos!U33,0,((Resumen!$Q$1-1)*12)))," ") -> 836449.102 | J8: =IF(J$1<=Resumen!$P$1,IF(OFFSET(Asturias_datos!V33,0,((Resumen!$Q$1-1)*12))=0," ",OFFSET(Asturias_datos!V33,0,((Resumen!$Q$1-1)*12)))," ") -> 900001.153 | K8: =IF(K$1<=Resumen!$P$1,IF(OFFSET(Asturias_datos!W33,0,((Resumen!$Q$1-1)*12))=0," ",OFFSET(Asturias_datos!W33,0,((Resumen!$Q$1-1)*12)))," ") -> 667407.886 | L8: =IF(L$1<=Resumen!$P$1,IF(OFFSET(Asturias_datos!X33,0,((Resumen!$Q$1-1)*12))=0," ",OFFSET(Asturias_datos!X33,0,((Resumen!$Q$1-1)*12)))," ") -> 890561.911 | M8: =IF(M$1<=Resumen!$P$1,IF(OFFSET(Asturias_datos!Y33,0,((Resumen!$Q$1-1)*12))=0," ",OFFSET(Asturias_datos!Y33,0,((Resumen!$Q$1-1)*12)))," ") ->  | N8: 6806756.416
A9: Fuel-Gas | B9: =IF(B$1<=Resumen!$P$1,IF(OFFSET(Asturias_datos!N34,0,((Resumen!$Q$1-1)*12))=0," ",OFFSET(Asturias_datos!N34,0,((Resumen!$Q$1-1)*12)))," ") ->  | C9: =IF(C$1<=Resumen!$P$1,IF(OFFSET(Asturias_datos!O34,0,((Resumen!$Q$1-1)*12))=0," ",OFFSET(Asturias_datos!O34,0,((Resumen!$Q$1-1)*12)))," ") ->  | D9: =IF(D$1<=Resumen!$P$1,IF(OFFSET(Asturias_datos!P34,0,((Resumen!$Q$1-1)*12))=0," ",OFFSET(Asturias_datos!P34,0,((Resumen!$Q$1-1)*12)))," ") ->  | E9: =IF(E$1<=Resumen!$P$1,IF(OFFSET(Asturias_datos!Q34,0,((Resumen!$Q$1-1)*12))=0," ",OFFSET(Asturias_datos!Q34,0,((Resumen!$Q$1-1)*12)))," ") ->  | F9: =IF(F$1<=Resumen!$P$1,IF(OFFSET(Asturias_datos!R34,0,((Resumen!$Q$1-1)*12))=0," ",OFFSET(Asturias_datos!R34,0,((Resumen!$Q$1-1)*12)))," ") ->  | G9: =IF(G$1<=Resumen!$P$1,IF(OFFSET(Asturias_datos!S34,0,((Resumen!$Q$1-1)*12))=0," ",OFFSET(Asturias_datos!S34,0,((Resumen!$Q$1-1)*12)))," ") ->  | H9: =IF(H$1<=Resumen!$P$1,IF(OFFSET(Asturias_datos!T34,0,((Resumen!$Q$1-1)*12))=0," ",OFFSET(Asturias_datos!T34,0,((Resumen!$Q$1-1)*12)))," ") ->  | I9: =IF(I$1<=Resumen!$P$1,IF(OFFSET(Asturias_datos!U34,0,((Resumen!$Q$1-1)*12))=0," ",OFFSET(Asturias_datos!U34,0,((Resumen!$Q$1-1)*12)))," ") ->  | J9: =IF(J$1<=Resumen!$P$1,IF(OFFSET(Asturias_datos!V34,0,((Resumen!$Q$1-1)*12))=0," ",OFFSET(Asturias_datos!V34,0,((Resumen!$Q$1-1)*12)))," ") ->  | K9: =IF(K$1<=Resumen!$P$1,IF(OFFSET(Asturias_datos!W34,0,((Resumen!$Q$1-1)*12))=0," ",OFFSET(Asturias_datos!W34,0,((Resumen!$Q$1-1)*12)))," ") ->  | L9: =IF(L$1<=Resumen!$P$1,IF(OFFSET(Asturias_datos!X34,0,((Resumen!$Q$1-1)*12))=0," ",OFFSET(Asturias_datos!X34,0,((Resumen!$Q$1-1)*12)))," ") ->  | M9: =IF(M$1<=Resumen!$P$1,IF(OFFSET(Asturias_datos!Y34,0,((Resumen!$Q$1-1)*12))=0," ",OFFSET(Asturias_datos!Y34,0,((Resumen!$Q$1-1)*12)))," ") -> 
A10: Ciclo combinado | B10: =IF(B$1<=Resumen!$P$1,IF(OFFSET(Asturias_datos!N35,0,((Resumen!$Q$1-1)*12))=0," ",OFFSET(Asturias_datos!N35,0,((Resumen!$Q$1-1)*12)))," ") -> 125042.474 | C10: =IF(C$1<=Resumen!$P$1,IF(OFFSET(Asturias_datos!O35,0,((Resumen!$Q$1-1)*12))=0," ",OFFSET(Asturias_datos!O35,0,((Resumen!$Q$1-1)*12)))," ") -> 120600.382 | D10: =IF(D$1<=Resumen!$P$1,IF(OFFSET(Asturias_datos!P35,0,((Resumen!$Q$1-1)*12))=0," ",OFFSET(Asturias_datos!P35,0,((Resumen!$Q$1-1)*12)))," ") -> 25200.875 | E10: =IF(E$1<=Resumen!$P$1,IF(OFFSET(Asturias_datos!Q35,0,((Resumen!$Q$1-1)*12))=0," ",OFFSET(Asturias_datos!Q35,0,((Resumen!$Q$1-1)*12)))," ") -> 28440.366 | F10: =IF(F$1<=Resumen!$P$1,IF(OFFSET(Asturias_datos!R35,0,((Resumen!$Q$1-1)*12))=0," ",OFFSET(Asturias_datos!R35,0,((Resumen!$Q$1-1)*12)))," ") -> 40552.045 | G10: =IF(G$1<=Resumen!$P$1,IF(OFFSET(Asturias_datos!S35,0,((Resumen!$Q$1-1)*12))=0," ",OFFSET(Asturias_datos!S35,0,((Resumen!$Q$1-1)*12)))," ") -> 26336.242 | H10: =IF(H$1<=Resumen!$P$1,IF(OFFSET(Asturias_datos!T35,0,((Resumen!$Q$1-1)*12))=0," ",OFFSET(Asturias_datos!T35,0,((Resumen!$Q$1-1)*12)))," ") -> 5013.086 | I10: =IF(I$1<=Resumen!$P$1,IF(OFFSET(Asturias_datos!U35,0,((Resumen!$Q$1-1)*12))=0," ",OFFSET(Asturias_datos!U35,0,((Resumen!$Q$1-1)*12)))," ") -> 70273.297 | J10: =IF(J$1<=Resumen!$P$1,IF(OFFSET(Asturias_datos!V35,0,((Resumen!$Q$1-1)*12))=0," ",OFFSET(Asturias_datos!V35,0,((Resumen!$Q$1-1)*12)))," ") -> 74933.048 | K10: =IF(K$1<=Resumen!$P$1,IF(OFFSET(Asturias_datos!W35,0,((Resumen!$Q$1-1)*12))=0," ",OFFSET(Asturias_datos!W35,0,((Resumen!$Q$1-1)*12)))," ") -> 60511.523 | L10: =IF(L$1<=Resumen!$P$1,IF(OFFSET(Asturias_datos!X35,0,((Resumen!$Q$1-1)*12))=0," ",OFFSET(Asturias_datos!X35,0,((Resumen!$Q$1-1)*12)))," ") -> 9223.503 | M10: =IF(M$1<=Resumen!$P$1,IF(OFFSET(Asturias_datos!Y35,0,((Resumen!$Q$1-1)*12))=0," ",OFFSET(Asturias_datos!Y35,0,((Resumen!$Q$1-1)*12)))," ") ->  | N10: 586126.841
A11: Hidroeólica | B11: =IF(B$1<=Resumen!$P$1,IF(OFFSET(Asturias_datos!N36,0,((Resumen!$Q$1-1)*12))=0," ",OFFSET(Asturias_datos!N36,0,((Resumen!$Q$1-1)*12)))," ") ->  | C11: =IF(C$1<=Resumen!$P$1,IF(OFFSET(Asturias_datos!O36,0,((Resumen!$Q$1-1)*12))=0," ",OFFSET(Asturias_datos!O36,0,((Resumen!$Q$1-1)*12)))," ") ->  | D11: =IF(D$1<=Resumen!$P$1,IF(OFFSET(Asturias_datos!P36,0,((Resumen!$Q$1-1)*12))=0," ",OFFSET(Asturias_datos!P36,0,((Resumen!$Q$1-1)*12)))," ") ->  | E11: =IF(E$1<=Resumen!$P$1,IF(OFFSET(Asturias_datos!Q36,0,((Resumen!$Q$1-1)*12))=0," ",OFFSET(Asturias_datos!Q36,0,((Resumen!$Q$1-1)*12)))," ") ->  | F11: =IF(F$1<=Resumen!$P$1,IF(OFFSET(Asturias_datos!R36,0,((Resumen!$Q$1-1)*12))=0," ",OFFSET(Asturias_datos!R36,0,((Resumen!$Q$1-1)*12)))," ") ->  | G11: =IF(G$1<=Resumen!$P$1,IF(OFFSET(Asturias_datos!S36,0,((Resumen!$Q$1-1)*12))=0," ",OFFSET(Asturias_datos!S36,0,((Resumen!$Q$1-1)*12)))," ") ->  | H11: =IF(H$1<=Resumen!$P$1,IF(OFFSET(Asturias_datos!T36,0,((Resumen!$Q$1-1)*12))=0," ",OFFSET(Asturias_datos!T36,0,((Resumen!$Q$1-1)*12)))," ") ->  | I11: =IF(I$1<=Resumen!$P$1,IF(OFFSET(Asturias_datos!U36,0,((Resumen!$Q$1-1)*12))=0," ",OFFSET(Asturias_datos!U36,0,((Resumen!$Q$1-1)*12)))," ") ->  | J11: =IF(J$1<=Resumen!$P$1,IF(OFFSET(Asturias_datos!V36,0,((Resumen!$Q$1-1)*12))=0," ",OFFSET(Asturias_datos!V36,0,((Resumen!$Q$1-1)*12)))," ") ->  | K11: =IF(K$1<=Resumen!$P$1,IF(OFFSET(Asturias_datos!W36,0,((Resumen!$Q$1-1)*12))=0," ",OFFSET(Asturias_datos!W36,0,((Resumen!$Q$1-1)*12)))," ") ->  | L11: =IF(L$1<=Resumen!$P$1,IF(OFFSET(Asturias_datos!X36,0,((Resumen!$Q$1-1)*12))=0," ",OFFSET(Asturias_datos!X36,0,((Resumen!$Q$1-1)*12)))," ") ->  | M11: =IF(M$1<=Resumen!$P$1,IF(OFFSET(Asturias_datos!Y36,0,((Resumen!$Q$1-1)*12))=0," ",OFFSET(Asturias_datos!Y36,0,((Resumen!$Q$1-1)*12)))," ") -> 
A12: Eólica | B12: =IF(B$1<=Resumen!$P$1,IF(OFFSET(Asturias_datos!N37,0,((Resumen!$Q$1-1)*12))=0," ",OFFSET(Asturias_datos!N37,0,((Resumen!$Q$1-1)*12)))," ") -> 155312.146 | C12: =IF(C$1<=Resumen!$P$1,IF(OFFSET(Asturias_datos!O37,0,((Resumen!$Q$1-1)*12))=0," ",OFFSET(Asturias_datos!O37,0,((Resumen!$Q$1-1)*12)))," ") -> 96537.898 | D12: =IF(D$1<=Resumen!$P$1,IF(OFFSET(Asturias_datos!P37,0,((Resumen!$Q$1-1)*12))=0," ",OFFSET(Asturias_datos!P37,0,((Resumen!$Q$1-1)*12)))," ") -> 186360.366 | E12: =IF(E$1<=Resumen!$P$1,IF(OFFSET(Asturias_datos!Q37,0,((Resumen!$Q$1-1)*12))=0," ",OFFSET(Asturias_datos!Q37,0,((Resumen!$Q$1-1)*12)))," ") -> 72381.384 | F12: =IF(F$1<=Resumen!$P$1,IF(OFFSET(Asturias_datos!R37,0,((Resumen!$Q$1-1)*12))=0," ",OFFSET(Asturias_datos!R37,0,((Resumen!$Q$1-1)*12)))," ") -> 66378.319 | G12: =IF(G$1<=Resumen!$P$1,IF(OFFSET(Asturias_datos!S37,0,((Resumen!$Q$1-1)*12))=0," ",OFFSET(Asturias_datos!S37,0,((Resumen!$Q$1-1)*12)))," ") -> 31562.048 | H12: =IF(H$1<=Resumen!$P$1,IF(OFFSET(Asturias_datos!T37,0,((Resumen!$Q$1-1)*12))=0," ",OFFSET(Asturias_datos!T37,0,((Resumen!$Q$1-1)*12)))," ") -> 33254.86 | I12: =IF(I$1<=Resumen!$P$1,IF(OFFSET(Asturias_datos!U37,0,((Resumen!$Q$1-1)*12))=0," ",OFFSET(Asturias_datos!U37,0,((Resumen!$Q$1-1)*12)))," ") -> 38738.371 | J12: =IF(J$1<=Resumen!$P$1,IF(OFFSET(Asturias_datos!V37,0,((Resumen!$Q$1-1)*12))=0," ",OFFSET(Asturias_datos!V37,0,((Resumen!$Q$1-1)*12)))," ") -> 47848.776 | K12: =IF(K$1<=Resumen!$P$1,IF(OFFSET(Asturias_datos!W37,0,((Resumen!$Q$1-1)*12))=0," ",OFFSET(Asturias_datos!W37,0,((Resumen!$Q$1-1)*12)))," ") -> 101730.56 | L12: =IF(L$1<=Resumen!$P$1,IF(OFFSET(Asturias_datos!X37,0,((Resumen!$Q$1-1)*12))=0," ",OFFSET(Asturias_datos!X37,0,((Resumen!$Q$1-1)*12)))," ") -> 128662.039 | M12: =IF(M$1<=Resumen!$P$1,IF(OFFSET(Asturias_datos!Y37,0,((Resumen!$Q$1-1)*12))=0," ",OFFSET(Asturias_datos!Y37,0,((Resumen!$Q$1-1)*12)))," ") ->  | N12: 958766.767
A13: Solar fotovoltaico | B13: =IF(B$1<=Resumen!$P$1,IF(OFFSET(Asturias_datos!N38,0,((Resumen!$Q$1-1)*12))=0," ",OFFSET(Asturias_datos!N38,0,((Resumen!$Q$1-1)*12)))," ") -> 26.166 | C13: =IF(C$1<=Resumen!$P$1,IF(OFFSET(Asturias_datos!O38,0,((Resumen!$Q$1-1)*12))=0," ",OFFSET(Asturias_datos!O38,0,((Resumen!$Q$1-1)*12)))," ") -> 27.129 | D13: =IF(D$1<=Resumen!$P$1,IF(OFFSET(Asturias_datos!P38,0,((Resumen!$Q$1-1)*12))=0," ",OFFSET(Asturias_datos!P38,0,((Resumen!$Q$1-1)*12)))," ") -> 42.552 | E13: =IF(E$1<=Resumen!$P$1,IF(OFFSET(Asturias_datos!Q38,0,((Resumen!$Q$1-1)*12))=0," ",OFFSET(Asturias_datos!Q38,0,((Resumen!$Q$1-1)*12)))," ") -> 51.612 | F13: =IF(F$1<=Resumen!$P$1,IF(OFFSET(Asturias_datos!R38,0,((Resumen!$Q$1-1)*12))=0," ",OFFSET(Asturias_datos!R38,0,((Resumen!$Q$1-1)*12)))," ") -> 58.573 | G13: =IF(G$1<=Resumen!$P$1,IF(OFFSET(Asturias_datos!S38,0,((Resumen!$Q$1-1)*12))=0," ",OFFSET(Asturias_datos!S38,0,((Resumen!$Q$1-1)*12)))," ") -> 32.966 | H13: =IF(H$1<=Resumen!$P$1,IF(OFFSET(Asturias_datos!T38,0,((Resumen!$Q$1-1)*12))=0," ",OFFSET(Asturias_datos!T38,0,((Resumen!$Q$1-1)*12)))," ") -> 45.346 | I13: =IF(I$1<=Resumen!$P$1,IF(OFFSET(Asturias_datos!U38,0,((Resumen!$Q$1-1)*12))=0," ",OFFSET(Asturias_datos!U38,0,((Resumen!$Q$1-1)*12)))," ") -> 58.898 | J13: =IF(J$1<=Resumen!$P$1,IF(OFFSET(Asturias_datos!V38,0,((Resumen!$Q$1-1)*12))=0," ",OFFSET(Asturias_datos!V38,0,((Resumen!$Q$1-1)*12)))," ") -> 48.788 | K13: =IF(K$1<=Resumen!$P$1,IF(OFFSET(Asturias_datos!W38,0,((Resumen!$Q$1-1)*12))=0," ",OFFSET(Asturias_datos!W38,0,((Resumen!$Q$1-1)*12)))," ") -> 40.601 | L13: =IF(L$1<=Resumen!$P$1,IF(OFFSET(Asturias_datos!X38,0,((Resumen!$Q$1-1)*12))=0," ",OFFSET(Asturias_datos!X38,0,((Resumen!$Q$1-1)*12)))," ") -> 26.762 | M13: =IF(M$1<=Resumen!$P$1,IF(OFFSET(Asturias_datos!Y38,0,((Resumen!$Q$1-1)*12))=0," ",OFFSET(Asturias_datos!Y38,0,((Resumen!$Q$1-1)*12)))," ") ->  | N13: 459.393
A14: Solar térmica | B14: =IF(B$1<=Resumen!$P$1,IF(OFFSET(Asturias_datos!N39,0,((Resumen!$Q$1-1)*12))=0," ",OFFSET(Asturias_datos!N39,0,((Resumen!$Q$1-1)*12)))," ") ->  | C14: =IF(C$1<=Resumen!$P$1,IF(OFFSET(Asturias_datos!O39,0,((Resumen!$Q$1-1)*12))=0," ",OFFSET(Asturias_datos!O39,0,((Resumen!$Q$1-1)*12)))," ") ->  | D14: =IF(D$1<=Resumen!$P$1,IF(OFFSET(Asturias_datos!P39,0,((Resumen!$Q$1-1)*12))=0," ",OFFSET(Asturias_datos!P39,0,((Resumen!$Q$1-1)*12)))," ") ->  | E14: =IF(E$1<=Resumen!$P$1,IF(OFFSET(Asturias_datos!Q39,0,((Resumen!$Q$1-1)*12))=0," ",OFFSET(Asturias_datos!Q39,0,((Resumen!$Q$1-1)*12)))," ") ->  | F14: =IF(F$1<=Resumen!$P$1,IF(OFFSET(Asturias_datos!R39,0,((Resumen!$Q$1-1)*12))=0," ",OFFSET(Asturias_datos!R39,0,((Resumen!$Q$1-1)*12)))," ") ->  | G14: =IF(G$1<=Resumen!$P$1,IF(OFFSET(Asturias_datos!S39,0,((Resumen!$Q$1-1)*12))=0," ",OFFSET(Asturias_datos!S39,0,((Resumen!$Q$1-1)*12)))," ") ->  | H14: =IF(H$1<=Resumen!$P$1,IF(OFFSET(Asturias_datos!T39,0,((Resumen!$Q$1-1)*12))=0," ",OFFSET(Asturias_datos!T39,0,((Resumen!$Q$1-1)*12)))," ") ->  | I14: =IF(I$1<=Resumen!$P$1,IF(OFFSET(Asturias_datos!U39,0,((Resumen!$Q$1-1)*12))=0," ",OFFSET(Asturias_datos!U39,0,((Resumen!$Q$1-1)*12)))," ") ->  | J14: =IF(J$1<=Resumen!$P$1,IF(OFFSET(Asturias_datos!V39,0,((Resumen!$Q$1-1)*12))=0," ",OFFSET(Asturias_datos!V39,0,((Resumen!$Q$1-1)*12)))," ") ->  | K14: =IF(K$1<=Resumen!$P$1,IF(OFFSET(Asturias_datos!W39,0,((Resumen!$Q$1-1)*12))=0," ",OFFSET(Asturias_datos!W39,0,((Resumen!$Q$1-1)*12)))," ") ->  | L14: =IF(L$1<=Resumen!$P$1,IF(OFFSET(Asturias_datos!X39,0,((Resumen!$Q$1-1)*12))=0," ",OFFSET(Asturias_datos!X39,0,((Resumen!$Q$1-1)*12)))," ") ->  | M14: =IF(M$1<=Resumen!$P$1,IF(OFFSET(Asturias_datos!Y39,0,((Resumen!$Q$1-1)*12))=0," ",OFFSET(Asturias_datos!Y39,0,((Resumen!$Q$1-1)*12)))," ") -> 
A15: Otras renovables | B15: =IF(B$1<=Resumen!$P$1,IF(OFFSET(Asturias_datos!N40,0,((Resumen!$Q$1-1)*12))=0," ",OFFSET(Asturias_datos!N40,0,((Resumen!$Q$1-1)*12)))," ") -> 23513.389 | C15: =IF(C$1<=Resumen!$P$1,IF(OFFSET(Asturias_datos!O40,0,((Resumen!$Q$1-1)*12))=0," ",OFFSET(Asturias_datos!O40,0,((Resumen!$Q$1-1)*12)))," ") -> 19910.826 | D15: =IF(D$1<=Resumen!$P$1,IF(OFFSET(Asturias_datos!P40,0,((Resumen!$Q$1-1)*12))=0," ",OFFSET(Asturias_datos!P40,0,((Resumen!$Q$1-1)*12)))," ") -> 21103.725 | E15: =IF(E$1<=Resumen!$P$1,IF(OFFSET(Asturias_datos!Q40,0,((Resumen!$Q$1-1)*12))=0," ",OFFSET(Asturias_datos!Q40,0,((Resumen!$Q$1-1)*12)))," ") -> 20123.43 | F15: =IF(F$1<=Resumen!$P$1,IF(OFFSET(Asturias_datos!R40,0,((Resumen!$Q$1-1)*12))=0," ",OFFSET(Asturias_datos!R40,0,((Resumen!$Q$1-1)*12)))," ") -> 15209.916 | G15: =IF(G$1<=Resumen!$P$1,IF(OFFSET(Asturias_datos!S40,0,((Resumen!$Q$1-1)*12))=0," ",OFFSET(Asturias_datos!S40,0,((Resumen!$Q$1-1)*12)))," ") -> 19916.513 | H15: =IF(H$1<=Resumen!$P$1,IF(OFFSET(Asturias_datos!T40,0,((Resumen!$Q$1-1)*12))=0," ",OFFSET(Asturias_datos!T40,0,((Resumen!$Q$1-1)*12)))," ") -> 16292.633 | I15: =IF(I$1<=Resumen!$P$1,IF(OFFSET(Asturias_datos!U40,0,((Resumen!$Q$1-1)*12))=0," ",OFFSET(Asturias_datos!U40,0,((Resumen!$Q$1-1)*12)))," ") -> 24880.994 | J15: =IF(J$1<=Resumen!$P$1,IF(OFFSET(Asturias_datos!V40,0,((Resumen!$Q$1-1)*12))=0," ",OFFSET(Asturias_datos!V40,0,((Resumen!$Q$1-1)*12)))," ") -> 25089.151 | K15: =IF(K$1<=Resumen!$P$1,IF(OFFSET(Asturias_datos!W40,0,((Resumen!$Q$1-1)*12))=0," ",OFFSET(Asturias_datos!W40,0,((Resumen!$Q$1-1)*12)))," ") -> 23661.797 | L15: =IF(L$1<=Resumen!$P$1,IF(OFFSET(Asturias_datos!X40,0,((Resumen!$Q$1-1)*12))=0," ",OFFSET(Asturias_datos!X40,0,((Resumen!$Q$1-1)*12)))," ") -> 22626.563 | M15: =IF(M$1<=Resumen!$P$1,IF(OFFSET(Asturias_datos!Y40,0,((Resumen!$Q$1-1)*12))=0," ",OFFSET(Asturias_datos!Y40,0,((Resumen!$Q$1-1)*12)))," ") ->  | N15: 232328.937
A16: Cogeneración | B16: =IF(B$1<=Resumen!$P$1,IF(OFFSET(Asturias_datos!N41,0,((Resumen!$Q$1-1)*12))=0," ",OFFSET(Asturias_datos!N41,0,((Resumen!$Q$1-1)*12)))," ") -> 31864.029 | C16: =IF(C$1<=Resumen!$P$1,IF(OFFSET(Asturias_datos!O41,0,((Resumen!$Q$1-1)*12))=0," ",OFFSET(Asturias_datos!O41,0,((Resumen!$Q$1-1)*12)))," ") -> 29476.45 | D16: =IF(D$1<=Resumen!$P$1,IF(OFFSET(Asturias_datos!P41,0,((Resumen!$Q$1-1)*12))=0," ",OFFSET(Asturias_datos!P41,0,((Resumen!$Q$1-1)*12)))," ") -> 30877.732 | E16: =IF(E$1<=Resumen!$P$1,IF(OFFSET(Asturias_datos!Q41,0,((Resumen!$Q$1-1)*12))=0," ",OFFSET(Asturias_datos!Q41,0,((Resumen!$Q$1-1)*12)))," ") -> 27272.798 | F16: =IF(F$1<=Resumen!$P$1,IF(OFFSET(Asturias_datos!R41,0,((Resumen!$Q$1-1)*12))=0," ",OFFSET(Asturias_datos!R41,0,((Resumen!$Q$1-1)*12)))," ") -> 29787.89 | G16: =IF(G$1<=Resumen!$P$1,IF(OFFSET(Asturias_datos!S41,0,((Resumen!$Q$1-1)*12))=0," ",OFFSET(Asturias_datos!S41,0,((Resumen!$Q$1-1)*12)))," ") -> 25909.351 | H16: =IF(H$1<=Resumen!$P$1,IF(OFFSET(Asturias_datos!T41,0,((Resumen!$Q$1-1)*12))=0," ",OFFSET(Asturias_datos!T41,0,((Resumen!$Q$1-1)*12)))," ") -> 27302.456 | I16: =IF(I$1<=Resumen!$P$1,IF(OFFSET(Asturias_datos!U41,0,((Resumen!$Q$1-1)*12))=0," ",OFFSET(Asturias_datos!U41,0,((Resumen!$Q$1-1)*12)))," ") -> 25870.32 | J16: =IF(J$1<=Resumen!$P$1,IF(OFFSET(Asturias_datos!V41,0,((Resumen!$Q$1-1)*12))=0," ",OFFSET(Asturias_datos!V41,0,((Resumen!$Q$1-1)*12)))," ") -> 28655.447 | K16: =IF(K$1<=Resumen!$P$1,IF(OFFSET(Asturias_datos!W41,0,((Resumen!$Q$1-1)*12))=0," ",OFFSET(Asturias_datos!W41,0,((Resumen!$Q$1-1)*12)))," ") -> 32951.506 | L16: =IF(L$1<=Resumen!$P$1,IF(OFFSET(Asturias_datos!X41,0,((Resumen!$Q$1-1)*12))=0," ",OFFSET(Asturias_datos!X41,0,((Resumen!$Q$1-1)*12)))," ") -> 34149.364 | M16: =IF(M$1<=Resumen!$P$1,IF(OFFSET(Asturias_datos!Y41,0,((Resumen!$Q$1-1)*12))=0," ",OFFSET(Asturias_datos!Y41,0,((Resumen!$Q$1-1)*12)))," ") ->  | N16: 324117.343
A17: Residuos no renovables | B17: =IF(B$1<=Resumen!$P$1,IF(OFFSET(Asturias_datos!N42,0,((Resumen!$Q$1-1)*12))=0," ",OFFSET(Asturias_datos!N42,0,((Resumen!$Q$1-1)*12)))," ") -> 64816.558 | C17: =IF(C$1<=Resumen!$P$1,IF(OFFSET(Asturias_datos!O42,0,((Resumen!$Q$1-1)*12))=0," ",OFFSET(Asturias_datos!O42,0,((Resumen!$Q$1-1)*12)))," ") -> 60188.407 | D17: =IF(D$1<=Resumen!$P$1,IF(OFFSET(Asturias_datos!P42,0,((Resumen!$Q$1-1)*12))=0," ",OFFSET(Asturias_datos!P42,0,((Resumen!$Q$1-1)*12)))," ") -> 64434.024 | E17: =IF(E$1<=Resumen!$P$1,IF(OFFSET(Asturias_datos!Q42,0,((Resumen!$Q$1-1)*12))=0," ",OFFSET(Asturias_datos!Q42,0,((Resumen!$Q$1-1)*12)))," ") -> 41428.444 | F17: =IF(F$1<=Resumen!$P$1,IF(OFFSET(Asturias_datos!R42,0,((Resumen!$Q$1-1)*12))=0," ",OFFSET(Asturias_datos!R42,0,((Resumen!$Q$1-1)*12)))," ") -> 62110.035 | G17: =IF(G$1<=Resumen!$P$1,IF(OFFSET(Asturias_datos!S42,0,((Resumen!$Q$1-1)*12))=0," ",OFFSET(Asturias_datos!S42,0,((Resumen!$Q$1-1)*12)))," ") -> 68828.703 | H17: =IF(H$1<=Resumen!$P$1,IF(OFFSET(Asturias_datos!T42,0,((Resumen!$Q$1-1)*12))=0," ",OFFSET(Asturias_datos!T42,0,((Resumen!$Q$1-1)*12)))," ") -> 73677.865 | I17: =IF(I$1<=Resumen!$P$1,IF(OFFSET(Asturias_datos!U42,0,((Resumen!$Q$1-1)*12))=0," ",OFFSET(Asturias_datos!U42,0,((Resumen!$Q$1-1)*12)))," ") -> 64508.199 | J17: =IF(J$1<=Resumen!$P$1,IF(OFFSET(Asturias_datos!V42,0,((Resumen!$Q$1-1)*12))=0," ",OFFSET(Asturias_datos!V42,0,((Resumen!$Q$1-1)*12)))," ") -> 62786.234 | K17: =IF(K$1<=Resumen!$P$1,IF(OFFSET(Asturias_datos!W42,0,((Resumen!$Q$1-1)*12))=0," ",OFFSET(Asturias_datos!W42,0,((Resumen!$Q$1-1)*12)))," ") -> 68975.298 | L17: =IF(L$1<=Resumen!$P$1,IF(OFFSET(Asturias_datos!X42,0,((Resumen!$Q$1-1)*12))=0," ",OFFSET(Asturias_datos!X42,0,((Resumen!$Q$1-1)*12)))," ") -> 67684.582 | M17: =IF(M$1<=Resumen!$P$1,IF(OFFSET(Asturias_datos!Y42,0,((Resumen!$Q$1-1)*12))=0," ",OFFSET(Asturias_datos!Y42,0,((Resumen!$Q$1-1)*12)))," ") ->  | N17: 699438.349
A18: Residuos renovables | B18: =IF(B$1<=Resumen!$P$1,IF(OFFSET(Asturias_datos!N43,0,((Resumen!$Q$1-1)*12))=0," ",OFFSET(Asturias_datos!N43,0,((Resumen!$Q$1-1)*12)))," ") ->  | C18: =IF(C$1<=Resumen!$P$1,IF(OFFSET(Asturias_datos!O43,0,((Resumen!$Q$1-1)*12))=0," ",OFFSET(Asturias_datos!O43,0,((Resumen!$Q$1-1)*12)))," ") ->  | D18: =IF(D$1<=Resumen!$P$1,IF(OFFSET(Asturias_datos!P43,0,((Resumen!$Q$1-1)*12))=0," ",OFFSET(Asturias_datos!P43,0,((Resumen!$Q$1-1)*12)))," ") ->  | E18: =IF(E$1<=Resumen!$P$1,IF(OFFSET(Asturias_datos!Q43,0,((Resumen!$Q$1-1)*12))=0," ",OFFSET(Asturias_datos!Q43,0,((Resumen!$Q$1-1)*12)))," ") ->  | F18: =IF(F$1<=Resumen!$P$1,IF(OFFSET(Asturias_datos!R43,0,((Resumen!$Q$1-1)*12))=0," ",OFFSET(Asturias_datos!R43,0,((Resumen!$Q$1-1)*12)))," ") ->  | G18: =IF(G$1<=Resumen!$P$1,IF(OFFSET(Asturias_datos!S43,0,((Resumen!$Q$1-1)*12))=0," ",OFFSET(Asturias_datos!S43,0,((Resumen!$Q$1-1)*12)))," ") ->  | H18: =IF(H$1<=Resumen!$P$1,IF(OFFSET(Asturias_datos!T43,0,((Resumen!$Q$1-1)*12))=0," ",OFFSET(Asturias_datos!T43,0,((Resumen!$Q$1-1)*12)))," ") ->  | I18: =IF(I$1<=Resumen!$P$1,IF(OFFSET(Asturias_datos!U43,0,((Resumen!$Q$1-1)*12))=0," ",OFFSET(Asturias_datos!U43,0,((Resumen!$Q$1-1)*12)))," ") ->  | J18: =IF(J$1<=Resumen!$P$1,IF(OFFSET(Asturias_datos!V43,0,((Resumen!$Q$1-1)*12))=0," ",OFFSET(Asturias_datos!V43,0,((Resumen!$Q$1-1)*12)))," ") ->  | K18: =IF(K$1<=Resumen!$P$1,IF(OFFSET(Asturias_datos!W43,0,((Resumen!$Q$1-1)*12))=0," ",OFFSET(Asturias_datos!W43,0,((Resumen!$Q$1-1)*12)))," ") ->  | L18: =IF(L$1<=Resumen!$P$1,IF(OFFSET(Asturias_datos!X43,0,((Resumen!$Q$1-1)*12))=0," ",OFFSET(Asturias_datos!X43,0,((Resumen!$Q$1-1)*12)))," ") ->  | M18: =IF(M$1<=Resumen!$P$1,IF(OFFSET(Asturias_datos!Y43,0,((Resumen!$Q$1-1)*12))=0," ",OFFSET(Asturias_datos!Y43,0,((Resumen!$Q$1-1)*12)))," ") ->  | N18: =IF(SUM(B18:M18)=0," ",SUM(B18:M18)) -> 
A19: Generación neta | B19: =IF(B$1<=Resumen!$P$1,IF(OFFSET(Asturias_datos!N44,0,((Resumen!$Q$1-1)*12))=0," ",OFFSET(Asturias_datos!N44,0,((Resumen!$Q$1-1)*12)))," ") -> 1236071.773 | C19: =IF(C$1<=Resumen!$P$1,IF(OFFSET(Asturias_datos!O44,0,((Resumen!$Q$1-1)*12))=0," ",OFFSET(Asturias_datos!O44,0,((Resumen!$Q$1-1)*12)))," ") -> 1150355.797 | D19: =IF(D$1<=Resumen!$P$1,IF(OFFSET(Asturias_datos!P44,0,((Resumen!$Q$1-1)*12))=0," ",OFFSET(Asturias_datos!P44,0,((Resumen!$Q$1-1)*12)))," ") -> 1022281.092 | E19: =IF(E$1<=Resumen!$P$1,IF(OFFSET(Asturias_datos!Q44,0,((Resumen!$Q$1-1)*12))=0," ",OFFSET(Asturias_datos!Q44,0,((Resumen!$Q$1-1)*12)))," ") -> 919903.739 | F19: =IF(F$1<=Resumen!$P$1,IF(OFFSET(Asturias_datos!R44,0,((Resumen!$Q$1-1)*12))=0," ",OFFSET(Asturias_datos!R44,0,((Resumen!$Q$1-1)*12)))," ") -> 904697.013 | G19: =IF(G$1<=Resumen!$P$1,IF(OFFSET(Asturias_datos!S44,0,((Resumen!$Q$1-1)*12))=0," ",OFFSET(Asturias_datos!S44,0,((Resumen!$Q$1-1)*12)))," ") -> 880425.497 | H19: =IF(H$1<=Resumen!$P$1,IF(OFFSET(Asturias_datos!T44,0,((Resumen!$Q$1-1)*12))=0," ",OFFSET(Asturias_datos!T44,0,((Resumen!$Q$1-1)*12)))," ") -> 953930.551 | I19: =IF(I$1<=Resumen!$P$1,IF(OFFSET(Asturias_datos!U44,0,((Resumen!$Q$1-1)*12))=0," ",OFFSET(Asturias_datos!U44,0,((Resumen!$Q$1-1)*12)))," ") -> 1129946.145 | J19: =IF(J$1<=Resumen!$P$1,IF(OFFSET(Asturias_datos!V44,0,((Resumen!$Q$1-1)*12))=0," ",OFFSET(Asturias_datos!V44,0,((Resumen!$Q$1-1)*12)))," ") -> 1184941.035 | K19: =IF(K$1<=Resumen!$P$1,IF(OFFSET(Asturias_datos!W44,0,((Resumen!$Q$1-1)*12))=0," ",OFFSET(Asturias_datos!W44,0,((Resumen!$Q$1-1)*12)))," ") -> 1008782.629 | L19: =IF(L$1<=Resumen!$P$1,IF(OFFSET(Asturias_datos!X44,0,((Resumen!$Q$1-1)*12))=0," ",OFFSET(Asturias_datos!X44,0,((Resumen!$Q$1-1)*12)))," ") -> 1309884.28 | M19: =IF(M$1<=Resumen!$P$1,IF(OFFSET(Asturias_datos!Y44,0,((Resumen!$Q$1-1)*12))=0," ",OFFSET(Asturias_datos!Y44,0,((Resumen!$Q$1-1)*12)))," ") ->  | N19: 11701219.55
A20: Consumos en bombeo | B20: =IF(B$1<=Resumen!$P$1,IF(OFFSET(Asturias_datos!N45,0,((Resumen!$Q$1-1)*12))=0," ",OFFSET(Asturias_datos!N45,0,((Resumen!$Q$1-1)*12)))," ") -> -3856.992 | C20: =IF(C$1<=Resumen!$P$1,IF(OFFSET(Asturias_datos!O45,0,((Resumen!$Q$1-1)*12))=0," ",OFFSET(Asturias_datos!O45,0,((Resumen!$Q$1-1)*12)))," ") -> -211.348 | D20: =IF(D$1<=Resumen!$P$1,IF(OFFSET(Asturias_datos!P45,0,((Resumen!$Q$1-1)*12))=0," ",OFFSET(Asturias_datos!P45,0,((Resumen!$Q$1-1)*12)))," ") -> -2650.627 | E20: =IF(E$1<=Resumen!$P$1,IF(OFFSET(Asturias_datos!Q45,0,((Resumen!$Q$1-1)*12))=0," ",OFFSET(Asturias_datos!Q45,0,((Resumen!$Q$1-1)*12)))," ") -> -2185.813 | F20: =IF(F$1<=Resumen!$P$1,IF(OFFSET(Asturias_datos!R45,0,((Resumen!$Q$1-1)*12))=0," ",OFFSET(Asturias_datos!R45,0,((Resumen!$Q$1-1)*12)))," ") -> -714.922 | G20: =IF(G$1<=Resumen!$P$1,IF(OFFSET(Asturias_datos!S45,0,((Resumen!$Q$1-1)*12))=0," ",OFFSET(Asturias_datos!S45,0,((Resumen!$Q$1-1)*12)))," ") -> -0.336 | H20: =IF(H$1<=Resumen!$P$1,IF(OFFSET(Asturias_datos!T45,0,((Resumen!$Q$1-1)*12))=0," ",OFFSET(Asturias_datos!T45,0,((Resumen!$Q$1-1)*12)))," ") -> -0.192 | I20: =IF(I$1<=Resumen!$P$1,IF(OFFSET(Asturias_datos!U45,0,((Resumen!$Q$1-1)*12))=0," ",OFFSET(Asturias_datos!U45,0,((Resumen!$Q$1-1)*12)))," ") -> -133.853 | J20: =IF(J$1<=Resumen!$P$1,IF(OFFSET(Asturias_datos!V45,0,((Resumen!$Q$1-1)*12))=0," ",OFFSET(Asturias_datos!V45,0,((Resumen!$Q$1-1)*12)))," ") -> -0.124 | K20: =IF(K$1<=Resumen!$P$1,IF(OFFSET(Asturias_datos!W45,0,((Resumen!$Q$1-1)*12))=0," ",OFFSET(Asturias_datos!W45,0,((Resumen!$Q$1-1)*12)))," ") -> -707.031 | L20: =IF(L$1<=Resumen!$P$1,IF(OFFSET(Asturias_datos!X45,0,((Resumen!$Q$1-1)*12))=0," ",OFFSET(Asturias_datos!X45,0,((Resumen!$Q$1-1)*12)))," ") -> -729.897 | M20: =IF(M$1<=Resumen!$P$1,IF(OFFSET(Asturias_datos!Y45,0,((Resumen!$Q$1-1)*12))=0," ",OFFSET(Asturias_datos!Y45,0,((Resumen!$Q$1-1)*12)))," ") ->  | N20: -11191.135
A21: Saldo Intercambios | B21: =IF(B$1<=Resumen!$P$1,IF(OFFSET(Asturias_datos!N46,0,((Resumen!$Q$1-1)*12))=0," ",OFFSET(Asturias_datos!N46,0,((Resumen!$Q$1-1)*12)))," ") -> -281935.403 | C21: =IF(C$1<=Resumen!$P$1,IF(OFFSET(Asturias_datos!O46,0,((Resumen!$Q$1-1)*12))=0," ",OFFSET(Asturias_datos!O46,0,((Resumen!$Q$1-1)*12)))," ") -> -266530.533 | D21: =IF(D$1<=Resumen!$P$1,IF(OFFSET(Asturias_datos!P46,0,((Resumen!$Q$1-1)*12))=0," ",OFFSET(Asturias_datos!P46,0,((Resumen!$Q$1-1)*12)))," ") -> -68581.576 | E21: =IF(E$1<=Resumen!$P$1,IF(OFFSET(Asturias_datos!Q46,0,((Resumen!$Q$1-1)*12))=0," ",OFFSET(Asturias_datos!Q46,0,((Resumen!$Q$1-1)*12)))," ") -> -37733.711 | F21: =IF(F$1<=Resumen!$P$1,IF(OFFSET(Asturias_datos!R46,0,((Resumen!$Q$1-1)*12))=0," ",OFFSET(Asturias_datos!R46,0,((Resumen!$Q$1-1)*12)))," ") -> -32328.745 | G21: =IF(G$1<=Resumen!$P$1,IF(OFFSET(Asturias_datos!S46,0,((Resumen!$Q$1-1)*12))=0," ",OFFSET(Asturias_datos!S46,0,((Resumen!$Q$1-1)*12)))," ") -> -38381.92 | H21: =IF(H$1<=Resumen!$P$1,IF(OFFSET(Asturias_datos!T46,0,((Resumen!$Q$1-1)*12))=0," ",OFFSET(Asturias_datos!T46,0,((Resumen!$Q$1-1)*12)))," ") -> -83825.421 | I21: =IF(I$1<=Resumen!$P$1,IF(OFFSET(Asturias_datos!U46,0,((Resumen!$Q$1-1)*12))=0," ",OFFSET(Asturias_datos!U46,0,((Resumen!$Q$1-1)*12)))," ") -> -268659.852 | J21: =IF(J$1<=Resumen!$P$1,IF(OFFSET(Asturias_datos!V46,0,((Resumen!$Q$1-1)*12))=0," ",OFFSET(Asturias_datos!V46,0,((Resumen!$Q$1-1)*12)))," ") -> -332288.81 | K21: =IF(K$1<=Resumen!$P$1,IF(OFFSET(Asturias_datos!W46,0,((Resumen!$Q$1-1)*12))=0," ",OFFSET(Asturias_datos!W46,0,((Resumen!$Q$1-1)*12)))," ") -> -133703.592 | L21: =IF(L$1<=Resumen!$P$1,IF(OFFSET(Asturias_datos!X46,0,((Resumen!$Q$1-1)*12))=0," ",OFFSET(Asturias_datos!X46,0,((Resumen!$Q$1-1)*12)))," ") -> -422329.427 | M21: =IF(M$1<=Resumen!$P$1,IF(OFFSET(Asturias_datos!Y46,0,((Resumen!$Q$1-1)*12))=0," ",OFFSET(Asturias_datos!Y46,0,((Resumen!$Q$1-1)*12)))," ") ->  | N21: -1966298.99
A22: Demanda B.C | B22: =IF(B$1<=Resumen!$P$1,IF(OFFSET(Asturias_datos!N47,0,((Resumen!$Q$1-1)*12))=0," ",OFFSET(Asturias_datos!N47,0,((Resumen!$Q$1-1)*12)))," ") -> 950279.378 | C22: =IF(C$1<=Resumen!$P$1,IF(OFFSET(Asturias_datos!O47,0,((Resumen!$Q$1-1)*12))=0," ",OFFSET(Asturias_datos!O47,0,((Resumen!$Q$1-1)*12)))," ") -> 883613.916 | D22: =IF(D$1<=Resumen!$P$1,IF(OFFSET(Asturias_datos!P47,0,((Resumen!$Q$1-1)*12))=0," ",OFFSET(Asturias_datos!P47,0,((Resumen!$Q$1-1)*12)))," ") -> 951048.889 | E22: =IF(E$1<=Resumen!$P$1,IF(OFFSET(Asturias_datos!Q47,0,((Resumen!$Q$1-1)*12))=0," ",OFFSET(Asturias_datos!Q47,0,((Resumen!$Q$1-1)*12)))," ") -> 879984.215 | F22: =IF(F$1<=Resumen!$P$1,IF(OFFSET(Asturias_datos!R47,0,((Resumen!$Q$1-1)*12))=0," ",OFFSET(Asturias_datos!R47,0,((Resumen!$Q$1-1)*12)))," ") -> 871653.346 | G22: =IF(G$1<=Resumen!$P$1,IF(OFFSET(Asturias_datos!S47,0,((Resumen!$Q$1-1)*12))=0," ",OFFSET(Asturias_datos!S47,0,((Resumen!$Q$1-1)*12)))," ") -> 842043.241 | H22: =IF(H$1<=Resumen!$P$1,IF(OFFSET(Asturias_datos!T47,0,((Resumen!$Q$1-1)*12))=0," ",OFFSET(Asturias_datos!T47,0,((Resumen!$Q$1-1)*12)))," ") -> 870104.938 | I22: =IF(I$1<=Resumen!$P$1,IF(OFFSET(Asturias_datos!U47,0,((Resumen!$Q$1-1)*12))=0," ",OFFSET(Asturias_datos!U47,0,((Resumen!$Q$1-1)*12)))," ") -> 861152.44 | J22: =IF(J$1<=Resumen!$P$1,IF(OFFSET(Asturias_datos!V47,0,((Resumen!$Q$1-1)*12))=0," ",OFFSET(Asturias_datos!V47,0,((Resumen!$Q$1-1)*12)))," ") -> 852652.101 | K22: =IF(K$1<=Resumen!$P$1,IF(OFFSET(Asturias_datos!W47,0,((Resumen!$Q$1-1)*12))=0," ",OFFSET(Asturias_datos!W47,0,((Resumen!$Q$1-1)*12)))," ") -> 874372.006 | L22: =IF(L$1<=Resumen!$P$1,IF(OFFSET(Asturias_datos!X47,0,((Resumen!$Q$1-1)*12))=0," ",OFFSET(Asturias_datos!X47,0,((Resumen!$Q$1-1)*12)))," ") -> 886824.956 | M22: =IF(M$1<=Resumen!$P$1,IF(OFFSET(Asturias_datos!Y47,0,((Resumen!$Q$1-1)*12))=0," ",OFFSET(Asturias_datos!Y47,0,((Resumen!$Q$1-1)*12)))," ") ->  | N22: 9723729.426
A23: =Resumen!A24 -> %Δ 18/17 | B23: =IF(B$1<=Resumen!$P$1,IF(OFFSET(Asturias_datos!N48,0,((Resumen!$Q$1-1)*12))=0," ",OFFSET(Asturias_datos!N48,0,((Resumen!$Q$1-1)*12)))," ") -> -0.4796701233 | C23: =IF(C$1<=Resumen!$P$1,IF(OFFSET(Asturias_datos!O48,0,((Resumen!$Q$1-1)*12))=0," ",OFFSET(Asturias_datos!O48,0,((Resumen!$Q$1-1)*12)))," ") -> 3.936346573 | D23: =IF(D$1<=Resumen!$P$1,IF(OFFSET(Asturias_datos!P48,0,((Resumen!$Q$1-1)*12))=0," ",OFFSET(Asturias_datos!P48,0,((Resumen!$Q$1-1)*12)))," ") -> 3.337500717 | E23: =IF(E$1<=Resumen!$P$1,IF(OFFSET(Asturias_datos!Q48,0,((Resumen!$Q$1-1)*12))=0," ",OFFSET(Asturias_datos!Q48,0,((Resumen!$Q$1-1)*12)))," ") -> 4.170035656 | F23: =IF(F$1<=Resumen!$P$1,IF(OFFSET(Asturias_datos!R48,0,((Resumen!$Q$1-1)*12))=0," ",OFFSET(Asturias_datos!R48,0,((Resumen!$Q$1-1)*12)))," ") -> -0.3016575574 | G23: =IF(G$1<=Resumen!$P$1,IF(OFFSET(Asturias_datos!S48,0,((Resumen!$Q$1-1)*12))=0," ",OFFSET(Asturias_datos!S48,0,((Resumen!$Q$1-1)*12)))," ") -> -0.3267464742 | H23: =IF(H$1<=Resumen!$P$1,IF(OFFSET(Asturias_datos!T48,0,((Resumen!$Q$1-1)*12))=0," ",OFFSET(Asturias_datos!T48,0,((Resumen!$Q$1-1)*12)))," ") -> -0.6994743653 | I23: =IF(I$1<=Resumen!$P$1,IF(OFFSET(Asturias_datos!U48,0,((Resumen!$Q$1-1)*12))=0," ",OFFSET(Asturias_datos!U48,0,((Resumen!$Q$1-1)*12)))," ") -> 0.3403656973 | J23: =IF(J$1<=Resumen!$P$1,IF(OFFSET(Asturias_datos!V48,0,((Resumen!$Q$1-1)*12))=0," ",OFFSET(Asturias_datos!V48,0,((Resumen!$Q$1-1)*12)))," ") -> 1.310004099 | K23: =IF(K$1<=Resumen!$P$1,IF(OFFSET(Asturias_datos!W48,0,((Resumen!$Q$1-1)*12))=0," ",OFFSET(Asturias_datos!W48,0,((Resumen!$Q$1-1)*12)))," ") -> -0.6725616647 | L23: =IF(L$1<=Resumen!$P$1,IF(OFFSET(Asturias_datos!X48,0,((Resumen!$Q$1-1)*12))=0," ",OFFSET(Asturias_datos!X48,0,((Resumen!$Q$1-1)*12)))," ") -> -1.761012248 | M23: =IF(M$1<=Resumen!$P$1,IF(OFFSET(Asturias_datos!Y48,0,((Resumen!$Q$1-1)*12))=0," ",OFFSET(Asturias_datos!Y48,0,((Resumen!$Q$1-1)*12)))," ") ->  | N23: =((N22/SUM(OFFSET(Asturias_datos!N47,0,(Resumen!$Q$1-2)*12):OFFSET(Asturias_datos!N47,0,((Resumen!$Q$1-2)*12)+Resumen!$P$1-1))-1)*100) -> 0.7817915728
A69: =A1 -> Asturias | B69: =L22 -> 886824.956
A70: Resto nacional | B70: =Nacional_datos!CF47-B69 -> 21168653.6

Sheet Baleares
A1: Baleares | B1: 1 | C1: 2 | D1: 3 | E1: 4 | F1: 5 | G1: 6 | H1: 7 | I1: 8 | J1: 9 | K1: 10 | L1: 11 | M1: 12
A2: Balance mensual de energía electrica. MWh
B3: 2018
B4: Ene | C4: Feb | D4: Mar | E4: Abr | F4: May | G4: Jun | H4: Jul | I4: Ago | J4: Sep | K4: Oct | L4: Nov | M4: Dic | N4: TOTAL
A5: Hidraulica | B5: =IF(B$1<=Resumen!$P$1,IF(OFFSET(Baleares_datos!N30,0,((Resumen!$Q$1-1)*12))=0," ",OFFSET(Baleares_datos!N30,0,((Resumen!$Q$1-1)*12)))," ") ->  | C5: =IF(C$1<=Resumen!$P$1,IF(OFFSET(Baleares_datos!O30,0,((Resumen!$Q$1-1)*12))=0," ",OFFSET(Baleares_datos!O30,0,((Resumen!$Q$1-1)*12)))," ") ->  | D5: =IF(D$1<=Resumen!$P$1,IF(OFFSET(Baleares_datos!P30,0,((Resumen!$Q$1-1)*12))=0," ",OFFSET(Baleares_datos!P30,0,((Resumen!$Q$1-1)*12)))," ") ->  | E5: =IF(E$1<=Resumen!$P$1,IF(OFFSET(Baleares_datos!Q30,0,((Resumen!$Q$1-1)*12))=0," ",OFFSET(Baleares_datos!Q30,0,((Resumen!$Q$1-1)*12)))," ") ->  | F5: =IF(F$1<=Resumen!$P$1,IF(OFFSET(Baleares_datos!R30,0,((Resumen!$Q$1-1)*12))=0," ",OFFSET(Baleares_datos!R30,0,((Resumen!$Q$1-1)*12)))," ") ->  | G5: =IF(G$1<=Resumen!$P$1,IF(OFFSET(Baleares_datos!S30,0,((Resumen!$Q$1-1)*12))=0," ",OFFSET(Baleares_datos!S30,0,((Resumen!$Q$1-1)*12)))," ") ->  | H5: =IF(H$1<=Resumen!$P$1,IF(OFFSET(Baleares_datos!T30,0,((Resumen!$Q$1-1)*12))=0," ",OFFSET(Baleares_datos!T30,0,((Resumen!$Q$1-1)*12)))," ") ->  | I5: =IF(I$1<=Resumen!$P$1,IF(OFFSET(Baleares_datos!U30,0,((Resumen!$Q$1-1)*12))=0," ",OFFSET(Baleares_datos!U30,0,((Resumen!$Q$1-1)*12)))," ") ->  | J5: =IF(J$1<=Resumen!$P$1,IF(OFFSET(Baleares_datos!V30,0,((Resumen!$Q$1-1)*12))=0," ",OFFSET(Baleares_datos!V30,0,((Resumen!$Q$1-1)*12)))," ") ->  | K5: =IF(K$1<=Resumen!$P$1,IF(OFFSET(Baleares_datos!W30,0,((Resumen!$Q$1-1)*12))=0," ",OFFSET(Baleares_datos!W30,0,((Resumen!$Q$1-1)*12)))," ") ->  | L5: =IF(L$1<=Resumen!$P$1,IF(OFFSET(Baleares_datos!X30,0,((Resumen!$Q$1-1)*12))=0," ",OFFSET(Baleares_datos!X30,0,((Resumen!$Q$1-1)*12)))," ") ->  | M5: =IF(M$1<=Resumen!$P$1,IF(OFFSET(Baleares_datos!Y30,0,((Resumen!$Q$1-1)*12))=0," ",OFFSET(Baleares_datos!Y30,0,((Resumen!$Q$1-1)*12)))," ") ->  | N5: =IF(SUM(B5:M5)=0," ",SUM(B5:M5)) -> 
A6: Turbinación bombeo | B6: =IF(B$1<=Resumen!$P$1,IF(OFFSET(Baleares_datos!N31,0,((Resumen!$Q$1-1)*12))=0," ",OFFSET(Baleares_datos!N31,0,((Resumen!$Q$1-1)*12)))," ") ->  | C6: =IF(C$1<=Resumen!$P$1,IF(OFFSET(Baleares_datos!O31,0,((Resumen!$Q$1-1)*12))=0," ",OFFSET(Baleares_datos!O31,0,((Resumen!$Q$1-1)*12)))," ") ->  | D6: =IF(D$1<=Resumen!$P$1,IF(OFFSET(Baleares_datos!P31,0,((Resumen!$Q$1-1)*12))=0," ",OFFSET(Baleares_datos!P31,0,((Resumen!$Q$1-1)*12)))," ") ->  | E6: =IF(E$1<=Resumen!$P$1,IF(OFFSET(Baleares_datos!Q31,0,((Resumen!$Q$1-1)*12))=0," ",OFFSET(Baleares_datos!Q31,0,((Resumen!$Q$1-1)*12)))," ") ->  | F6: =IF(F$1<=Resumen!$P$1,IF(OFFSET(Baleares_datos!R31,0,((Resumen!$Q$1-1)*12))=0," ",OFFSET(Baleares_datos!R31,0,((Resumen!$Q$1-1)*12)))," ") ->  | G6: =IF(G$1<=Resumen!$P$1,IF(OFFSET(Baleares_datos!S31,0,((Resumen!$Q$1-1)*12))=0," ",OFFSET(Baleares_datos!S31,0,((Resumen!$Q$1-1)*12)))," ") ->  | H6: =IF(H$1<=Resumen!$P$1,IF(OFFSET(Baleares_datos!T31,0,((Resumen!$Q$1-1)*12))=0," ",OFFSET(Baleares_datos!T31,0,((Resumen!$Q$1-1)*12)))," ") ->  | I6: =IF(I$1<=Resumen!$P$1,IF(OFFSET(Baleares_datos!U31,0,((Resumen!$Q$1-1)*12))=0," ",OFFSET(Baleares_datos!U31,0,((Resumen!$Q$1-1)*12)))," ") ->  | J6: =IF(J$1<=Resumen!$P$1,IF(OFFSET(Baleares_datos!V31,0,((Resumen!$Q$1-1)*12))=0," ",OFFSET(Baleares_datos!V31,0,((Resumen!$Q$1-1)*12)))," ") ->  | K6: =IF(K$1<=Resumen!$P$1,IF(OFFSET(Baleares_datos!W31,0,((Resumen!$Q$1-1)*12))=0," ",OFFSET(Baleares_datos!W31,0,((Resumen!$Q$1-1)*12)))," ") ->  | L6: =IF(L$1<=Resumen!$P$1,IF(OFFSET(Baleares_datos!X31,0,((Resumen!$Q$1-1)*12))=0," ",OFFSET(Baleares_datos!X31,0,((Resumen!$Q$1-1)*12)))," ") ->  | M6: =IF(M$1<=Resumen!$P$1,IF(OFFSET(Baleares_datos!Y31,0,((Resumen!$Q$1-1)*12))=0," ",OFFSET(Baleares_datos!Y31,0,((Resumen!$Q$1-1)*12)))," ") ->  | N6: =IF(SUM(B6:M6)=0," ",SUM(B6:M6)) -> 
A7: Nuclear | B7: =IF(B$1<=Resumen!$P$1,IF(OFFSET(Baleares_datos!N32,0,((Resumen!$Q$1-1)*12))=0," ",OFFSET(Baleares_datos!N32,0,((Resumen!$Q$1-1)*12)))," ") ->  | C7: =IF(C$1<=Resumen!$P$1,IF(OFFSET(Baleares_datos!O32,0,((Resumen!$Q$1-1)*12))=0," ",OFFSET(Baleares_datos!O32,0,((Resumen!$Q$1-1)*12)))," ") ->  | D7: =IF(D$1<=Resumen!$P$1,IF(OFFSET(Baleares_datos!P32,0,((Resumen!$Q$1-1)*12))=0," ",OFFSET(Baleares_datos!P32,0,((Resumen!$Q$1-1)*12)))," ") ->  | E7: =IF(E$1<=Resumen!$P$1,IF(OFFSET(Baleares_datos!Q32,0,((Resumen!$Q$1-1)*12))=0," ",OFFSET(Baleares_datos!Q32,0,((Resumen!$Q$1-1)*12)))," ") ->  | F7: =IF(F$1<=Resumen!$P$1,IF(OFFSET(Baleares_datos!R32,0,((Resumen!$Q$1-1)*12))=0," ",OFFSET(Baleares_datos!R32,0,((Resumen!$Q$1-1)*12)))," ") ->  | G7: =IF(G$1<=Resumen!$P$1,IF(OFFSET(Baleares_datos!S32,0,((Resumen!$Q$1-1)*12))=0," ",OFFSET(Baleares_datos!S32,0,((Resumen!$Q$1-1)*12)))," ") ->  | H7: =IF(H$1<=Resumen!$P$1,IF(OFFSET(Baleares_datos!T32,0,((Resumen!$Q$1-1)*12))=0," ",OFFSET(Baleares_datos!T32,0,((Resumen!$Q$1-1)*12)))," ") ->  | I7: =IF(I$1<=Resumen!$P$1,IF(OFFSET(Baleares_datos!U32,0,((Resumen!$Q$1-1)*12))=0," ",OFFSET(Baleares_datos!U32,0,((Resumen!$Q$1-1)*12)))," ") ->  | J7: =IF(J$1<=Resumen!$P$1,IF(OFFSET(Baleares_datos!V32,0,((Resumen!$Q$1-1)*12))=0," ",OFFSET(Baleares_datos!V32,0,((Resumen!$Q$1-1)*12)))," ") ->  | K7: =IF(K$1<=Resumen!$P$1,IF(OFFSET(Baleares_datos!W32,0,((Resumen!$Q$1-1)*12))=0," ",OFFSET(Baleares_datos!W32,0,((Resumen!$Q$1-1)*12)))," ") ->  | L7: =IF(L$1<=Resumen!$P$1,IF(OFFSET(Baleares_datos!X32,0,((Resumen!$Q$1-1)*12))=0," ",OFFSET(Baleares_datos!X32,0,((Resumen!$Q$1-1)*12)))," ") ->  | M7: =IF(M$1<=Resumen!$P$1,IF(OFFSET(Baleares_datos!Y32,0,((Resumen!$Q$1-1)*12))=0," ",OFFSET(Baleares_datos!Y32,0,((Resumen!$Q$1-1)*12)))," ") ->  | N7: =IF(SUM(B7:M7)=0," ",SUM(B7:M7)) -> 
A8: Carbón | B8: =IF(B$1<=Resumen!$P$1,IF(OFFSET(Baleares_datos!N33,0,((Resumen!$Q$1-1)*12))=0," ",OFFSET(Baleares_datos!N33,0,((Resumen!$Q$1-1)*12)))," ") -> 198555.029 | C8: =IF(C$1<=Resumen!$P$1,IF(OFFSET(Baleares_datos!O33,0,((Resumen!$Q$1-1)*12))=0," ",OFFSET(Baleares_datos!O33,0,((Resumen!$Q$1-1)*12)))," ") -> 192794.934 | D8: =IF(D$1<=Resumen!$P$1,IF(OFFSET(Baleares_datos!P33,0,((Resumen!$Q$1-1)*12))=0," ",OFFSET(Baleares_datos!P33,0,((Resumen!$Q$1-1)*12)))," ") -> 199821.57 | E8: =IF(E$1<=Resumen!$P$1,IF(OFFSET(Baleares_datos!Q33,0,((Resumen!$Q$1-1)*12))=0," ",OFFSET(Baleares_datos!Q33,0,((Resumen!$Q$1-1)*12)))," ") -> 183056.221 | F8: =IF(F$1<=Resumen!$P$1,IF(OFFSET(Baleares_datos!R33,0,((Resumen!$Q$1-1)*12))=0," ",OFFSET(Baleares_datos!R33,0,((Resumen!$Q$1-1)*12)))," ") -> 187058.672 | G8: =IF(G$1<=Resumen!$P$1,IF(OFFSET(Baleares_datos!S33,0,((Resumen!$Q$1-1)*12))=0," ",OFFSET(Baleares_datos!S33,0,((Resumen!$Q$1-1)*12)))," ") -> 204879.731 | H8: =IF(H$1<=Resumen!$P$1,IF(OFFSET(Baleares_datos!T33,0,((Resumen!$Q$1-1)*12))=0," ",OFFSET(Baleares_datos!T33,0,((Resumen!$Q$1-1)*12)))," ") -> 242068.479 | I8: =IF(I$1<=Resumen!$P$1,IF(OFFSET(Baleares_datos!U33,0,((Resumen!$Q$1-1)*12))=0," ",OFFSET(Baleares_datos!U33,0,((Resumen!$Q$1-1)*12)))," ") -> 257313.11 | J8: =IF(J$1<=Resumen!$P$1,IF(OFFSET(Baleares_datos!V33,0,((Resumen!$Q$1-1)*12))=0," ",OFFSET(Baleares_datos!V33,0,((Resumen!$Q$1-1)*12)))," ") -> 250630.395 | K8: =IF(K$1<=Resumen!$P$1,IF(OFFSET(Baleares_datos!W33,0,((Resumen!$Q$1-1)*12))=0," ",OFFSET(Baleares_datos!W33,0,((Resumen!$Q$1-1)*12)))," ") -> 186346.343 | L8: =IF(L$1<=Resumen!$P$1,IF(OFFSET(Baleares_datos!X33,0,((Resumen!$Q$1-1)*12))=0," ",OFFSET(Baleares_datos!X33,0,((Resumen!$Q$1-1)*12)))," ") -> 108147.407 | M8: =IF(M$1<=Resumen!$P$1,IF(OFFSET(Baleares_datos!Y33,0,((Resumen!$Q$1-1)*12))=0," ",OFFSET(Baleares_datos!Y33,0,((Resumen!$Q$1-1)*12)))," ") ->  | N8: =IF(SUM(B8:M8)=0," ",SUM(B8:M8)) -> 2210671.891
A9: Fuel-Gas | B9: =IF(B$1<=Resumen!$P$1,IF(OFFSET(Baleares_datos!N34,0,((Resumen!$Q$1-1)*12))=0," ",OFFSET(Baleares_datos!N34,0,((Resumen!$Q$1-1)*12)))," ") -> 94932.438 | C9: =IF(C$1<=Resumen!$P$1,IF(OFFSET(Baleares_datos!O34,0,((Resumen!$Q$1-1)*12))=0," ",OFFSET(Baleares_datos!O34,0,((Resumen!$Q$1-1)*12)))," ") -> 98852.191 | D9: =IF(D$1<=Resumen!$P$1,IF(OFFSET(Baleares_datos!P34,0,((Resumen!$Q$1-1)*12))=0," ",OFFSET(Baleares_datos!P34,0,((Resumen!$Q$1-1)*12)))," ") -> 96980.013 | E9: =IF(E$1<=Resumen!$P$1,IF(OFFSET(Baleares_datos!Q34,0,((Resumen!$Q$1-1)*12))=0," ",OFFSET(Baleares_datos!Q34,0,((Resumen!$Q$1-1)*12)))," ") -> 94399.131 | F9: =IF(F$1<=Resumen!$P$1,IF(OFFSET(Baleares_datos!R34,0,((Resumen!$Q$1-1)*12))=0," ",OFFSET(Baleares_datos!R34,0,((Resumen!$Q$1-1)*12)))," ") -> 117634.89 | G9: =IF(G$1<=Resumen!$P$1,IF(OFFSET(Baleares_datos!S34,0,((Resumen!$Q$1-1)*12))=0," ",OFFSET(Baleares_datos!S34,0,((Resumen!$Q$1-1)*12)))," ") -> 137881.469 | H9: =IF(H$1<=Resumen!$P$1,IF(OFFSET(Baleares_datos!T34,0,((Resumen!$Q$1-1)*12))=0," ",OFFSET(Baleares_datos!T34,0,((Resumen!$Q$1-1)*12)))," ") -> 181892.819 | I9: =IF(I$1<=Resumen!$P$1,IF(OFFSET(Baleares_datos!U34,0,((Resumen!$Q$1-1)*12))=0," ",OFFSET(Baleares_datos!U34,0,((Resumen!$Q$1-1)*12)))," ") -> 185888.459 | J9: =IF(J$1<=Resumen!$P$1,IF(OFFSET(Baleares_datos!V34,0,((Resumen!$Q$1-1)*12))=0," ",OFFSET(Baleares_datos!V34,0,((Resumen!$Q$1-1)*12)))," ") -> 149447.45 | K9: =IF(K$1<=Resumen!$P$1,IF(OFFSET(Baleares_datos!W34,0,((Resumen!$Q$1-1)*12))=0," ",OFFSET(Baleares_datos!W34,0,((Resumen!$Q$1-1)*12)))," ") -> 112507.555 | L9: =IF(L$1<=Resumen!$P$1,IF(OFFSET(Baleares_datos!X34,0,((Resumen!$Q$1-1)*12))=0," ",OFFSET(Baleares_datos!X34,0,((Resumen!$Q$1-1)*12)))," ") -> 89969.028 | M9: =IF(M$1<=Resumen!$P$1,IF(OFFSET(Baleares_datos!Y34,0,((Resumen!$Q$1-1)*12))=0," ",OFFSET(Baleares_datos!Y34,0,((Resumen!$Q$1-1)*12)))," ") ->  | N9: 1360385.443
A10: Ciclo combinado | B10: =IF(B$1<=Resumen!$P$1,IF(OFFSET(Baleares_datos!N35,0,((Resumen!$Q$1-1)*12))=0," ",OFFSET(Baleares_datos!N35,0,((Resumen!$Q$1-1)*12)))," ") -> 31200.264 | C10: =IF(C$1<=Resumen!$P$1,IF(OFFSET(Baleares_datos!O35,0,((Resumen!$Q$1-1)*12))=0," ",OFFSET(Baleares_datos!O35,0,((Resumen!$Q$1-1)*12)))," ") -> 48135.34 | D10: =IF(D$1<=Resumen!$P$1,IF(OFFSET(Baleares_datos!P35,0,((Resumen!$Q$1-1)*12))=0," ",OFFSET(Baleares_datos!P35,0,((Resumen!$Q$1-1)*12)))," ") -> 39439.262 | E10: =IF(E$1<=Resumen!$P$1,IF(OFFSET(Baleares_datos!Q35,0,((Resumen!$Q$1-1)*12))=0," ",OFFSET(Baleares_datos!Q35,0,((Resumen!$Q$1-1)*12)))," ") -> 48047.037 | F10: =IF(F$1<=Resumen!$P$1,IF(OFFSET(Baleares_datos!R35,0,((Resumen!$Q$1-1)*12))=0," ",OFFSET(Baleares_datos!R35,0,((Resumen!$Q$1-1)*12)))," ") -> 45724.514 | G10: =IF(G$1<=Resumen!$P$1,IF(OFFSET(Baleares_datos!S35,0,((Resumen!$Q$1-1)*12))=0," ",OFFSET(Baleares_datos!S35,0,((Resumen!$Q$1-1)*12)))," ") -> 36755.219 | H10: =IF(H$1<=Resumen!$P$1,IF(OFFSET(Baleares_datos!T35,0,((Resumen!$Q$1-1)*12))=0," ",OFFSET(Baleares_datos!T35,0,((Resumen!$Q$1-1)*12)))," ") -> 53754.595 | I10: =IF(I$1<=Resumen!$P$1,IF(OFFSET(Baleares_datos!U35,0,((Resumen!$Q$1-1)*12))=0," ",OFFSET(Baleares_datos!U35,0,((Resumen!$Q$1-1)*12)))," ") -> 62510.635 | J10: =IF(J$1<=Resumen!$P$1,IF(OFFSET(Baleares_datos!V35,0,((Resumen!$Q$1-1)*12))=0," ",OFFSET(Baleares_datos!V35,0,((Resumen!$Q$1-1)*12)))," ") -> 31104.753 | K10: =IF(K$1<=Resumen!$P$1,IF(OFFSET(Baleares_datos!W35,0,((Resumen!$Q$1-1)*12))=0," ",OFFSET(Baleares_datos!W35,0,((Resumen!$Q$1-1)*12)))," ") -> 45569.164 | L10: =IF(L$1<=Resumen!$P$1,IF(OFFSET(Baleares_datos!X35,0,((Resumen!$Q$1-1)*12))=0," ",OFFSET(Baleares_datos!X35,0,((Resumen!$Q$1-1)*12)))," ") -> 109560.933 | M10: =IF(M$1<=Resumen!$P$1,IF(OFFSET(Baleares_datos!Y35,0,((Resumen!$Q$1-1)*12))=0," ",OFFSET(Baleares_datos!Y35,0,((Resumen!$Q$1-1)*12)))," ") ->  | N10: 551801.716
A11: Hidroeólica | B11: =IF(B$1<=Resumen!$P$1,IF(OFFSET(Baleares_datos!N36,0,((Resumen!$Q$1-1)*12))=0," ",OFFSET(Baleares_datos!N36,0,((Resumen!$Q$1-1)*12)))," ") ->  | C11: =IF(C$1<=Resumen!$P$1,IF(OFFSET(Baleares_datos!O36,0,((Resumen!$Q$1-1)*12))=0," ",OFFSET(Baleares_datos!O36,0,((Resumen!$Q$1-1)*12)))," ") ->  | D11: =IF(D$1<=Resumen!$P$1,IF(OFFSET(Baleares_datos!P36,0,((Resumen!$Q$1-1)*12))=0," ",OFFSET(Baleares_datos!P36,0,((Resumen!$Q$1-1)*12)))," ") ->  | E11: =IF(E$1<=Resumen!$P$1,IF(OFFSET(Baleares_datos!Q36,0,((Resumen!$Q$1-1)*12))=0," ",OFFSET(Baleares_datos!Q36,0,((Resumen!$Q$1-1)*12)))," ") ->  | F11: =IF(F$1<=Resumen!$P$1,IF(OFFSET(Baleares_datos!R36,0,((Resumen!$Q$1-1)*12))=0," ",OFFSET(Baleares_datos!R36,0,((Resumen!$Q$1-1)*12)))," ") ->  | G11: =IF(G$1<=Resumen!$P$1,IF(OFFSET(Baleares_datos!S36,0,((Resumen!$Q$1-1)*12))=0," ",OFFSET(Baleares_datos!S36,0,((Resumen!$Q$1-1)*12)))," ") ->  | H11: =IF(H$1<=Resumen!$P$1,IF(OFFSET(Baleares_datos!T36,0,((Resumen!$Q$1-1)*12))=0," ",OFFSET(Baleares_datos!T36,0,((Resumen!$Q$1-1)*12)))," ") ->  | I11: =IF(I$1<=Resumen!$P$1,IF(OFFSET(Baleares_datos!U36,0,((Resumen!$Q$1-1)*12))=0," ",OFFSET(Baleares_datos!U36,0,((Resumen!$Q$1-1)*12)))," ") ->  | J11: =IF(J$1<=Resumen!$P$1,IF(OFFSET(Baleares_datos!V36,0,((Resumen!$Q$1-1)*12))=0," ",OFFSET(Baleares_datos!V36,0,((Resumen!$Q$1-1)*12)))," ") ->  | K11: =IF(K$1<=Resumen!$P$1,IF(OFFSET(Baleares_datos!W36,0,((Resumen!$Q$1-1)*12))=0," ",OFFSET(Baleares_datos!W36,0,((Resumen!$Q$1-1)*12)))," ") ->  | L11: =IF(L$1<=Resumen!$P$1,IF(OFFSET(Baleares_datos!X36,0,((Resumen!$Q$1-1)*12))=0," ",OFFSET(Baleares_datos!X36,0,((Resumen!$Q$1-1)*12)))," ") ->  | M11: =IF(M$1<=Resumen!$P$1,IF(OFFSET(Baleares_datos!Y36,0,((Resumen!$Q$1-1)*12))=0," ",OFFSET(Baleares_datos!Y36,0,((Resumen!$Q$1-1)*12)))," ") -> 
A12: Eólica | B12: =IF(B$1<=Resumen!$P$1,IF(OFFSET(Baleares_datos!N37,0,((Resumen!$Q$1-1)*12))=0," ",OFFSET(Baleares_datos!N37,0,((Resumen!$Q$1-1)*12)))," ") -> 252.64 | C12: =IF(C$1<=Resumen!$P$1,IF(OFFSET(Baleares_datos!O37,0,((Resumen!$Q$1-1)*12))=0," ",OFFSET(Baleares_datos!O37,0,((Resumen!$Q$1-1)*12)))," ") -> 324.012 | D12: =IF(D$1<=Resumen!$P$1,IF(OFFSET(Baleares_datos!P37,0,((Resumen!$Q$1-1)*12))=0," ",OFFSET(Baleares_datos!P37,0,((Resumen!$Q$1-1)*12)))," ") -> 405.924 | E12: =IF(E$1<=Resumen!$P$1,IF(OFFSET(Baleares_datos!Q37,0,((Resumen!$Q$1-1)*12))=0," ",OFFSET(Baleares_datos!Q37,0,((Resumen!$Q$1-1)*12)))," ") -> 282.65 | F12: =IF(F$1<=Resumen!$P$1,IF(OFFSET(Baleares_datos!R37,0,((Resumen!$Q$1-1)*12))=0," ",OFFSET(Baleares_datos!R37,0,((Resumen!$Q$1-1)*12)))," ") -> 228.893 | G12: =IF(G$1<=Resumen!$P$1,IF(OFFSET(Baleares_datos!S37,0,((Resumen!$Q$1-1)*12))=0," ",OFFSET(Baleares_datos!S37,0,((Resumen!$Q$1-1)*12)))," ") -> 138.682 | H12: =IF(H$1<=Resumen!$P$1,IF(OFFSET(Baleares_datos!T37,0,((Resumen!$Q$1-1)*12))=0," ",OFFSET(Baleares_datos!T37,0,((Resumen!$Q$1-1)*12)))," ") -> 139.329 | I12: =IF(I$1<=Resumen!$P$1,IF(OFFSET(Baleares_datos!U37,0,((Resumen!$Q$1-1)*12))=0," ",OFFSET(Baleares_datos!U37,0,((Resumen!$Q$1-1)*12)))," ") -> 192.208 | J12: =IF(J$1<=Resumen!$P$1,IF(OFFSET(Baleares_datos!V37,0,((Resumen!$Q$1-1)*12))=0," ",OFFSET(Baleares_datos!V37,0,((Resumen!$Q$1-1)*12)))," ") -> 198.176 | K12: =IF(K$1<=Resumen!$P$1,IF(OFFSET(Baleares_datos!W37,0,((Resumen!$Q$1-1)*12))=0," ",OFFSET(Baleares_datos!W37,0,((Resumen!$Q$1-1)*12)))," ") -> 620.313 | L12: =IF(L$1<=Resumen!$P$1,IF(OFFSET(Baleares_datos!X37,0,((Resumen!$Q$1-1)*12))=0," ",OFFSET(Baleares_datos!X37,0,((Resumen!$Q$1-1)*12)))," ") -> 555.396 | M12: =IF(M$1<=Resumen!$P$1,IF(OFFSET(Baleares_datos!Y37,0,((Resumen!$Q$1-1)*12))=0," ",OFFSET(Baleares_datos!Y37,0,((Resumen!$Q$1-1)*12)))," ") ->  | N12: 3338.223
A13: Solar fotovoltaico | B13: =IF(B$1<=Resumen!$P$1,IF(OFFSET(Baleares_datos!N38,0,((Resumen!$Q$1-1)*12))=0," ",OFFSET(Baleares_datos!N38,0,((Resumen!$Q$1-1)*12)))," ") -> 7044.5 | C13: =IF(C$1<=Resumen!$P$1,IF(OFFSET(Baleares_datos!O38,0,((Resumen!$Q$1-1)*12))=0," ",OFFSET(Baleares_datos!O38,0,((Resumen!$Q$1-1)*12)))," ") -> 5338.09 | D13: =IF(D$1<=Resumen!$P$1,IF(OFFSET(Baleares_datos!P38,0,((Resumen!$Q$1-1)*12))=0," ",OFFSET(Baleares_datos!P38,0,((Resumen!$Q$1-1)*12)))," ") -> 10194.158 | E13: =IF(E$1<=Resumen!$P$1,IF(OFFSET(Baleares_datos!Q38,0,((Resumen!$Q$1-1)*12))=0," ",OFFSET(Baleares_datos!Q38,0,((Resumen!$Q$1-1)*12)))," ") -> 11477.546 | F13: =IF(F$1<=Resumen!$P$1,IF(OFFSET(Baleares_datos!R38,0,((Resumen!$Q$1-1)*12))=0," ",OFFSET(Baleares_datos!R38,0,((Resumen!$Q$1-1)*12)))," ") -> 11838.53 | G13: =IF(G$1<=Resumen!$P$1,IF(OFFSET(Baleares_datos!S38,0,((Resumen!$Q$1-1)*12))=0," ",OFFSET(Baleares_datos!S38,0,((Resumen!$Q$1-1)*12)))," ") -> 12382.848 | H13: =IF(H$1<=Resumen!$P$1,IF(OFFSET(Baleares_datos!T38,0,((Resumen!$Q$1-1)*12))=0," ",OFFSET(Baleares_datos!T38,0,((Resumen!$Q$1-1)*12)))," ") -> 13341.704 | I13: =IF(I$1<=Resumen!$P$1,IF(OFFSET(Baleares_datos!U38,0,((Resumen!$Q$1-1)*12))=0," ",OFFSET(Baleares_datos!U38,0,((Resumen!$Q$1-1)*12)))," ") -> 11250.524 | J13: =IF(J$1<=Resumen!$P$1,IF(OFFSET(Baleares_datos!V38,0,((Resumen!$Q$1-1)*12))=0," ",OFFSET(Baleares_datos!V38,0,((Resumen!$Q$1-1)*12)))," ") -> 9026.385 | K13: =IF(K$1<=Resumen!$P$1,IF(OFFSET(Baleares_datos!W38,0,((Resumen!$Q$1-1)*12))=0," ",OFFSET(Baleares_datos!W38,0,((Resumen!$Q$1-1)*12)))," ") -> 7841.485 | L13: =IF(L$1<=Resumen!$P$1,IF(OFFSET(Baleares_datos!X38,0,((Resumen!$Q$1-1)*12))=0," ",OFFSET(Baleares_datos!X38,0,((Resumen!$Q$1-1)*12)))," ") -> 5979.458 | M13: =IF(M$1<=Resumen!$P$1,IF(OFFSET(Baleares_datos!Y38,0,((Resumen!$Q$1-1)*12))=0," ",OFFSET(Baleares_datos!Y38,0,((Resumen!$Q$1-1)*12)))," ") ->  | N13: 105715.228
A14: Solar térmica | B14: =IF(B$1<=Resumen!$P$1,IF(OFFSET(Baleares_datos!N39,0,((Resumen!$Q$1-1)*12))=0," ",OFFSET(Baleares_datos!N39,0,((Resumen!$Q$1-1)*12)))," ") ->  | C14: =IF(C$1<=Resumen!$P$1,IF(OFFSET(Baleares_datos!O39,0,((Resumen!$Q$1-1)*12))=0," ",OFFSET(Baleares_datos!O39,0,((Resumen!$Q$1-1)*12)))," ") ->  | D14: =IF(D$1<=Resumen!$P$1,IF(OFFSET(Baleares_datos!P39,0,((Resumen!$Q$1-1)*12))=0," ",OFFSET(Baleares_datos!P39,0,((Resumen!$Q$1-1)*12)))," ") ->  | E14: =IF(E$1<=Resumen!$P$1,IF(OFFSET(Baleares_datos!Q39,0,((Resumen!$Q$1-1)*12))=0," ",OFFSET(Baleares_datos!Q39,0,((Resumen!$Q$1-1)*12)))," ") ->  | F14: =IF(F$1<=Resumen!$P$1,IF(OFFSET(Baleares_datos!R39,0,((Resumen!$Q$1-1)*12))=0," ",OFFSET(Baleares_datos!R39,0,((Resumen!$Q$1-1)*12)))," ") ->  | G14: =IF(G$1<=Resumen!$P$1,IF(OFFSET(Baleares_datos!S39,0,((Resumen!$Q$1-1)*12))=0," ",OFFSET(Baleares_datos!S39,0,((Resumen!$Q$1-1)*12)))," ") ->  | H14: =IF(H$1<=Resumen!$P$1,IF(OFFSET(Baleares_datos!T39,0,((Resumen!$Q$1-1)*12))=0," ",OFFSET(Baleares_datos!T39,0,((Resumen!$Q$1-1)*12)))," ") ->  | I14: =IF(I$1<=Resumen!$P$1,IF(OFFSET(Baleares_datos!U39,0,((Resumen!$Q$1-1)*12))=0," ",OFFSET(Baleares_datos!U39,0,((Resumen!$Q$1-1)*12)))," ") ->  | J14: =IF(J$1<=Resumen!$P$1,IF(OFFSET(Baleares_datos!V39,0,((Resumen!$Q$1-1)*12))=0," ",OFFSET(Baleares_datos!V39,0,((Resumen!$Q$1-1)*12)))," ") ->  | K14: =IF(K$1<=Resumen!$P$1,IF(OFFSET(Baleares_datos!W39,0,((Resumen!$Q$1-1)*12))=0," ",OFFSET(Baleares_datos!W39,0,((Resumen!$Q$1-1)*12)))," ") ->  | L14: =IF(L$1<=Resumen!$P$1,IF(OFFSET(Baleares_datos!X39,0,((Resumen!$Q$1-1)*12))=0," ",OFFSET(Baleares_datos!X39,0,((Resumen!$Q$1-1)*12)))," ") ->  | M14: =IF(M$1<=Resumen!$P$1,IF(OFFSET(Baleares_datos!Y39,0,((Resumen!$Q$1-1)*12))=0," ",OFFSET(Baleares_datos!Y39,0,((Resumen!$Q$1-1)*12)))," ") -> 
A15: Otras renovables | B15: =IF(B$1<=Resumen!$P$1,IF(OFFSET(Baleares_datos!N40,0,((Resumen!$Q$1-1)*12))=0," ",OFFSET(Baleares_datos!N40,0,((Resumen!$Q$1-1)*12)))," ") -> 219.363 | C15: =IF(C$1<=Resumen!$P$1,IF(OFFSET(Baleares_datos!O40,0,((Resumen!$Q$1-1)*12))=0," ",OFFSET(Baleares_datos!O40,0,((Resumen!$Q$1-1)*12)))," ") -> 166.24 | D15: =IF(D$1<=Resumen!$P$1,IF(OFFSET(Baleares_datos!P40,0,((Resumen!$Q$1-1)*12))=0," ",OFFSET(Baleares_datos!P40,0,((Resumen!$Q$1-1)*12)))," ") -> 184.165 | E15: =IF(E$1<=Resumen!$P$1,IF(OFFSET(Baleares_datos!Q40,0,((Resumen!$Q$1-1)*12))=0," ",OFFSET(Baleares_datos!Q40,0,((Resumen!$Q$1-1)*12)))," ") -> 130.801 | F15: =IF(F$1<=Resumen!$P$1,IF(OFFSET(Baleares_datos!R40,0,((Resumen!$Q$1-1)*12))=0," ",OFFSET(Baleares_datos!R40,0,((Resumen!$Q$1-1)*12)))," ") -> 127.68 | G15: =IF(G$1<=Resumen!$P$1,IF(OFFSET(Baleares_datos!S40,0,((Resumen!$Q$1-1)*12))=0," ",OFFSET(Baleares_datos!S40,0,((Resumen!$Q$1-1)*12)))," ") -> 110.028 | H15: =IF(H$1<=Resumen!$P$1,IF(OFFSET(Baleares_datos!T40,0,((Resumen!$Q$1-1)*12))=0," ",OFFSET(Baleares_datos!T40,0,((Resumen!$Q$1-1)*12)))," ") -> 57.737 | I15: =IF(I$1<=Resumen!$P$1,IF(OFFSET(Baleares_datos!U40,0,((Resumen!$Q$1-1)*12))=0," ",OFFSET(Baleares_datos!U40,0,((Resumen!$Q$1-1)*12)))," ") -> 56.852 | J15: =IF(J$1<=Resumen!$P$1,IF(OFFSET(Baleares_datos!V40,0,((Resumen!$Q$1-1)*12))=0," ",OFFSET(Baleares_datos!V40,0,((Resumen!$Q$1-1)*12)))," ") -> 19.17 | K15: =IF(K$1<=Resumen!$P$1,IF(OFFSET(Baleares_datos!W40,0,((Resumen!$Q$1-1)*12))=0," ",OFFSET(Baleares_datos!W40,0,((Resumen!$Q$1-1)*12)))," ") -> 60.415 | L15: =IF(L$1<=Resumen!$P$1,IF(OFFSET(Baleares_datos!X40,0,((Resumen!$Q$1-1)*12))=0," ",OFFSET(Baleares_datos!X40,0,((Resumen!$Q$1-1)*12)))," ") -> 68.766 | M15: =IF(M$1<=Resumen!$P$1,IF(OFFSET(Baleares_datos!Y40,0,((Resumen!$Q$1-1)*12))=0," ",OFFSET(Baleares_datos!Y40,0,((Resumen!$Q$1-1)*12)))," ") ->  | N15: 1201.217
A16: Cogeneración | B16: =IF(B$1<=Resumen!$P$1,IF(OFFSET(Baleares_datos!N41,0,((Resumen!$Q$1-1)*12))=0," ",OFFSET(Baleares_datos!N41,0,((Resumen!$Q$1-1)*12)))," ") -> 3182.987 | C16: =IF(C$1<=Resumen!$P$1,IF(OFFSET(Baleares_datos!O41,0,((Resumen!$Q$1-1)*12))=0," ",OFFSET(Baleares_datos!O41,0,((Resumen!$Q$1-1)*12)))," ") -> 3083.654 | D16: =IF(D$1<=Resumen!$P$1,IF(OFFSET(Baleares_datos!P41,0,((Resumen!$Q$1-1)*12))=0," ",OFFSET(Baleares_datos!P41,0,((Resumen!$Q$1-1)*12)))," ") -> 2294.685 | E16: =IF(E$1<=Resumen!$P$1,IF(OFFSET(Baleares_datos!Q41,0,((Resumen!$Q$1-1)*12))=0," ",OFFSET(Baleares_datos!Q41,0,((Resumen!$Q$1-1)*12)))," ") -> 1982.166 | F16: =IF(F$1<=Resumen!$P$1,IF(OFFSET(Baleares_datos!R41,0,((Resumen!$Q$1-1)*12))=0," ",OFFSET(Baleares_datos!R41,0,((Resumen!$Q$1-1)*12)))," ") -> 2578.575 | G16: =IF(G$1<=Resumen!$P$1,IF(OFFSET(Baleares_datos!S41,0,((Resumen!$Q$1-1)*12))=0," ",OFFSET(Baleares_datos!S41,0,((Resumen!$Q$1-1)*12)))," ") -> 3357.242 | H16: =IF(H$1<=Resumen!$P$1,IF(OFFSET(Baleares_datos!T41,0,((Resumen!$Q$1-1)*12))=0," ",OFFSET(Baleares_datos!T41,0,((Resumen!$Q$1-1)*12)))," ") -> 3565.564 | I16: =IF(I$1<=Resumen!$P$1,IF(OFFSET(Baleares_datos!U41,0,((Resumen!$Q$1-1)*12))=0," ",OFFSET(Baleares_datos!U41,0,((Resumen!$Q$1-1)*12)))," ") -> 3515.458 | J16: =IF(J$1<=Resumen!$P$1,IF(OFFSET(Baleares_datos!V41,0,((Resumen!$Q$1-1)*12))=0," ",OFFSET(Baleares_datos!V41,0,((Resumen!$Q$1-1)*12)))," ") -> 2436.55 | K16: =IF(K$1<=Resumen!$P$1,IF(OFFSET(Baleares_datos!W41,0,((Resumen!$Q$1-1)*12))=0," ",OFFSET(Baleares_datos!W41,0,((Resumen!$Q$1-1)*12)))," ") -> 2571.509 | L16: =IF(L$1<=Resumen!$P$1,IF(OFFSET(Baleares_datos!X41,0,((Resumen!$Q$1-1)*12))=0," ",OFFSET(Baleares_datos!X41,0,((Resumen!$Q$1-1)*12)))," ") -> 3145.667 | M16: =IF(M$1<=Resumen!$P$1,IF(OFFSET(Baleares_datos!Y41,0,((Resumen!$Q$1-1)*12))=0," ",OFFSET(Baleares_datos!Y41,0,((Resumen!$Q$1-1)*12)))," ") ->  | N16: 31714.057
A17: Residuos no renovables | B17: =IF(B$1<=Resumen!$P$1,IF(OFFSET(Baleares_datos!N42,0,((Resumen!$Q$1-1)*12))=0," ",OFFSET(Baleares_datos!N42,0,((Resumen!$Q$1-1)*12)))," ") -> 7481.4245 | C17: =IF(C$1<=Resumen!$P$1,IF(OFFSET(Baleares_datos!O42,0,((Resumen!$Q$1-1)*12))=0," ",OFFSET(Baleares_datos!O42,0,((Resumen!$Q$1-1)*12)))," ") -> 4455.9545 | D17: =IF(D$1<=Resumen!$P$1,IF(OFFSET(Baleares_datos!P42,0,((Resumen!$Q$1-1)*12))=0," ",OFFSET(Baleares_datos!P42,0,((Resumen!$Q$1-1)*12)))," ") -> 11199.8515 | E17: =IF(E$1<=Resumen!$P$1,IF(OFFSET(Baleares_datos!Q42,0,((Resumen!$Q$1-1)*12))=0," ",OFFSET(Baleares_datos!Q42,0,((Resumen!$Q$1-1)*12)))," ") -> 10486.7385 | F17: =IF(F$1<=Resumen!$P$1,IF(OFFSET(Baleares_datos!R42,0,((Resumen!$Q$1-1)*12))=0," ",OFFSET(Baleares_datos!R42,0,((Resumen!$Q$1-1)*12)))," ") -> 10524.592 | G17: =IF(G$1<=Resumen!$P$1,IF(OFFSET(Baleares_datos!S42,0,((Resumen!$Q$1-1)*12))=0," ",OFFSET(Baleares_datos!S42,0,((Resumen!$Q$1-1)*12)))," ") -> 14709.1545 | H17: =IF(H$1<=Resumen!$P$1,IF(OFFSET(Baleares_datos!T42,0,((Resumen!$Q$1-1)*12))=0," ",OFFSET(Baleares_datos!T42,0,((Resumen!$Q$1-1)*12)))," ") -> 14429.119 | I17: =IF(I$1<=Resumen!$P$1,IF(OFFSET(Baleares_datos!U42,0,((Resumen!$Q$1-1)*12))=0," ",OFFSET(Baleares_datos!U42,0,((Resumen!$Q$1-1)*12)))," ") -> 14961.3625 | J17: =IF(J$1<=Resumen!$P$1,IF(OFFSET(Baleares_datos!V42,0,((Resumen!$Q$1-1)*12))=0," ",OFFSET(Baleares_datos!V42,0,((Resumen!$Q$1-1)*12)))," ") -> 13453.5695 | K17: =IF(K$1<=Resumen!$P$1,IF(OFFSET(Baleares_datos!W42,0,((Resumen!$Q$1-1)*12))=0," ",OFFSET(Baleares_datos!W42,0,((Resumen!$Q$1-1)*12)))," ") -> 13897.6735 | L17: =IF(L$1<=Resumen!$P$1,IF(OFFSET(Baleares_datos!X42,0,((Resumen!$Q$1-1)*12))=0," ",OFFSET(Baleares_datos!X42,0,((Resumen!$Q$1-1)*12)))," ") -> 7033.376 | M17: =IF(M$1<=Resumen!$P$1,IF(OFFSET(Baleares_datos!Y42,0,((Resumen!$Q$1-1)*12))=0," ",OFFSET(Baleares_datos!Y42,0,((Resumen!$Q$1-1)*12)))," ") ->  | N17: 122632.816
A18: Residuos renovables | B18: =IF(B$1<=Resumen!$P$1,IF(OFFSET(Baleares_datos!N43,0,((Resumen!$Q$1-1)*12))=0," ",OFFSET(Baleares_datos!N43,0,((Resumen!$Q$1-1)*12)))," ") -> 7481.4245 | C18: =IF(C$1<=Resumen!$P$1,IF(OFFSET(Baleares_datos!O43,0,((Resumen!$Q$1-1)*12))=0," ",OFFSET(Baleares_datos!O43,0,((Resumen!$Q$1-1)*12)))," ") -> 4455.9545 | D18: =IF(D$1<=Resumen!$P$1,IF(OFFSET(Baleares_datos!P43,0,((Resumen!$Q$1-1)*12))=0," ",OFFSET(Baleares_datos!P43,0,((Resumen!$Q$1-1)*12)))," ") -> 11199.8515 | E18: =IF(E$1<=Resumen!$P$1,IF(OFFSET(Baleares_datos!Q43,0,((Resumen!$Q$1-1)*12))=0," ",OFFSET(Baleares_datos!Q43,0,((Resumen!$Q$1-1)*12)))," ") -> 10486.7385 | F18: =IF(F$1<=Resumen!$P$1,IF(OFFSET(Baleares_datos!R43,0,((Resumen!$Q$1-1)*12))=0," ",OFFSET(Baleares_datos!R43,0,((Resumen!$Q$1-1)*12)))," ") -> 10524.592 | G18: =IF(G$1<=Resumen!$P$1,IF(OFFSET(Baleares_datos!S43,0,((Resumen!$Q$1-1)*12))=0," ",OFFSET(Baleares_datos!S43,0,((Resumen!$Q$1-1)*12)))," ") -> 14709.1545 | H18: =IF(H$1<=Resumen!$P$1,IF(OFFSET(Baleares_datos!T43,0,((Resumen!$Q$1-1)*12))=0," ",OFFSET(Baleares_datos!T43,0,((Resumen!$Q$1-1)*12)))," ") -> 14429.119 | I18: =IF(I$1<=Resumen!$P$1,IF(OFFSET(Baleares_datos!U43,0,((Resumen!$Q$1-1)*12))=0," ",OFFSET(Baleares_datos!U43,0,((Resumen!$Q$1-1)*12)))," ") -> 14961.3625 | J18: =IF(J$1<=Resumen!$P$1,IF(OFFSET(Baleares_datos!V43,0,((Resumen!$Q$1-1)*12))=0," ",OFFSET(Baleares_datos!V43,0,((Resumen!$Q$1-1)*12)))," ") -> 13453.5695 | K18: =IF(K$1<=Resumen!$P$1,IF(OFFSET(Baleares_datos!W43,0,((Resumen!$Q$1-1)*12))=0," ",OFFSET(Baleares_datos!W43,0,((Resumen!$Q$1-1)*12)))," ") -> 13897.6735 | L18: =IF(L$1<=Resumen!$P$1,IF(OFFSET(Baleares_datos!X43,0,((Resumen!$Q$1-1)*12))=0," ",OFFSET(Baleares_datos!X43,0,((Resumen!$Q$1-1)*12)))," ") -> 7033.376 | M18: =IF(M$1<=Resumen!$P$1,IF(OFFSET(Baleares_datos!Y43,0,((Resumen!$Q$1-1)*12))=0," ",OFFSET(Baleares_datos!Y43,0,((Resumen!$Q$1-1)*12)))," ") ->  | N18: =IF(SUM(B18:M18)=0," ",SUM(B18:M18)) -> 122632.816
A19: Generación neta | B19: =IF(B$1<=Resumen!$P$1,IF(OFFSET(Baleares_datos!N44,0,((Resumen!$Q$1-1)*12))=0," ",OFFSET(Baleares_datos!N44,0,((Resumen!$Q$1-1)*12)))," ") -> 350350.07 | C19: =IF(C$1<=Resumen!$P$1,IF(OFFSET(Baleares_datos!O44,0,((Resumen!$Q$1-1)*12))=0," ",OFFSET(Baleares_datos!O44,0,((Resumen!$Q$1-1)*12)))," ") -> 357606.37 | D19: =IF(D$1<=Resumen!$P$1,IF(OFFSET(Baleares_datos!P44,0,((Resumen!$Q$1-1)*12))=0," ",OFFSET(Baleares_datos!P44,0,((Resumen!$Q$1-1)*12)))," ") -> 371719.48 | E19: =IF(E$1<=Resumen!$P$1,IF(OFFSET(Baleares_datos!Q44,0,((Resumen!$Q$1-1)*12))=0," ",OFFSET(Baleares_datos!Q44,0,((Resumen!$Q$1-1)*12)))," ") -> 360349.029 | F19: =IF(F$1<=Resumen!$P$1,IF(OFFSET(Baleares_datos!R44,0,((Resumen!$Q$1-1)*12))=0," ",OFFSET(Baleares_datos!R44,0,((Resumen!$Q$1-1)*12)))," ") -> 386240.938 | G19: =IF(G$1<=Resumen!$P$1,IF(OFFSET(Baleares_datos!S44,0,((Resumen!$Q$1-1)*12))=0," ",OFFSET(Baleares_datos!S44,0,((Resumen!$Q$1-1)*12)))," ") -> 424923.528 | H19: =IF(H$1<=Resumen!$P$1,IF(OFFSET(Baleares_datos!T44,0,((Resumen!$Q$1-1)*12))=0," ",OFFSET(Baleares_datos!T44,0,((Resumen!$Q$1-1)*12)))," ") -> 523678.465 | I19: =IF(I$1<=Resumen!$P$1,IF(OFFSET(Baleares_datos!U44,0,((Resumen!$Q$1-1)*12))=0," ",OFFSET(Baleares_datos!U44,0,((Resumen!$Q$1-1)*12)))," ") -> 550649.971 | J19: =IF(J$1<=Resumen!$P$1,IF(OFFSET(Baleares_datos!V44,0,((Resumen!$Q$1-1)*12))=0," ",OFFSET(Baleares_datos!V44,0,((Resumen!$Q$1-1)*12)))," ") -> 469770.018 | K19: =IF(K$1<=Resumen!$P$1,IF(OFFSET(Baleares_datos!W44,0,((Resumen!$Q$1-1)*12))=0," ",OFFSET(Baleares_datos!W44,0,((Resumen!$Q$1-1)*12)))," ") -> 383312.131 | L19: =IF(L$1<=Resumen!$P$1,IF(OFFSET(Baleares_datos!X44,0,((Resumen!$Q$1-1)*12))=0," ",OFFSET(Baleares_datos!X44,0,((Resumen!$Q$1-1)*12)))," ") -> 331493.407 | M19: =IF(M$1<=Resumen!$P$1,IF(OFFSET(Baleares_datos!Y44,0,((Resumen!$Q$1-1)*12))=0," ",OFFSET(Baleares_datos!Y44,0,((Resumen!$Q$1-1)*12)))," ") ->  | N19: 4510093.407
A20: Consumos en bombeo | B20: =IF(B$1<=Resumen!$P$1,IF(OFFSET(Baleares_datos!N45,0,((Resumen!$Q$1-1)*12))=0," ",OFFSET(Baleares_datos!N45,0,((Resumen!$Q$1-1)*12)))," ") ->  | C20: =IF(C$1<=Resumen!$P$1,IF(OFFSET(Baleares_datos!O45,0,((Resumen!$Q$1-1)*12))=0," ",OFFSET(Baleares_datos!O45,0,((Resumen!$Q$1-1)*12)))," ") ->  | D20: =IF(D$1<=Resumen!$P$1,IF(OFFSET(Baleares_datos!P45,0,((Resumen!$Q$1-1)*12))=0," ",OFFSET(Baleares_datos!P45,0,((Resumen!$Q$1-1)*12)))," ") ->  | E20: =IF(E$1<=Resumen!$P$1,IF(OFFSET(Baleares_datos!Q45,0,((Resumen!$Q$1-1)*12))=0," ",OFFSET(Baleares_datos!Q45,0,((Resumen!$Q$1-1)*12)))," ") ->  | F20: =IF(F$1<=Resumen!$P$1,IF(OFFSET(Baleares_datos!R45,0,((Resumen!$Q$1-1)*12))=0," ",OFFSET(Baleares_datos!R45,0,((Resumen!$Q$1-1)*12)))," ") ->  | G20: =IF(G$1<=Resumen!$P$1,IF(OFFSET(Baleares_datos!S45,0,((Resumen!$Q$1-1)*12))=0," ",OFFSET(Baleares_datos!S45,0,((Resumen!$Q$1-1)*12)))," ") ->  | H20: =IF(H$1<=Resumen!$P$1,IF(OFFSET(Baleares_datos!T45,0,((Resumen!$Q$1-1)*12))=0," ",OFFSET(Baleares_datos!T45,0,((Resumen!$Q$1-1)*12)))," ") ->  | I20: =IF(I$1<=Resumen!$P$1,IF(OFFSET(Baleares_datos!U45,0,((Resumen!$Q$1-1)*12))=0," ",OFFSET(Baleares_datos!U45,0,((Resumen!$Q$1-1)*12)))," ") ->  | J20: =IF(J$1<=Resumen!$P$1,IF(OFFSET(Baleares_datos!V45,0,((Resumen!$Q$1-1)*12))=0," ",OFFSET(Baleares_datos!V45,0,((Resumen!$Q$1-1)*12)))," ") ->  | K20: =IF(K$1<=Resumen!$P$1,IF(OFFSET(Baleares_datos!W45,0,((Resumen!$Q$1-1)*12))=0," ",OFFSET(Baleares_datos!W45,0,((Resumen!$Q$1-1)*12)))," ") ->  | L20: =IF(L$1<=Resumen!$P$1,IF(OFFSET(Baleares_datos!X45,0,((Resumen!$Q$1-1)*12))=0," ",OFFSET(Baleares_datos!X45,0,((Resumen!$Q$1-1)*12)))," ") ->  | M20: =IF(M$1<=Resumen!$P$1,IF(OFFSET(Baleares_datos!Y45,0,((Resumen!$Q$1-1)*12))=0," ",OFFSET(Baleares_datos!Y45,0,((Resumen!$Q$1-1)*12)))," ") -> 
A21: Saldo Intercambios | B21: =IF(B$1<=Resumen!$P$1,IF(OFFSET(Baleares_datos!N46,0,((Resumen!$Q$1-1)*12))=0," ",OFFSET(Baleares_datos!N46,0,((Resumen!$Q$1-1)*12)))," ") -> 86203.829 | C21: =IF(C$1<=Resumen!$P$1,IF(OFFSET(Baleares_datos!O46,0,((Resumen!$Q$1-1)*12))=0," ",OFFSET(Baleares_datos!O46,0,((Resumen!$Q$1-1)*12)))," ") -> 99993.399 | D21: =IF(D$1<=Resumen!$P$1,IF(OFFSET(Baleares_datos!P46,0,((Resumen!$Q$1-1)*12))=0," ",OFFSET(Baleares_datos!P46,0,((Resumen!$Q$1-1)*12)))," ") -> 89996.875 | E21: =IF(E$1<=Resumen!$P$1,IF(OFFSET(Baleares_datos!Q46,0,((Resumen!$Q$1-1)*12))=0," ",OFFSET(Baleares_datos!Q46,0,((Resumen!$Q$1-1)*12)))," ") -> 66467.52 | F21: =IF(F$1<=Resumen!$P$1,IF(OFFSET(Baleares_datos!R46,0,((Resumen!$Q$1-1)*12))=0," ",OFFSET(Baleares_datos!R46,0,((Resumen!$Q$1-1)*12)))," ") -> 89565.091 | G21: =IF(G$1<=Resumen!$P$1,IF(OFFSET(Baleares_datos!S46,0,((Resumen!$Q$1-1)*12))=0," ",OFFSET(Baleares_datos!S46,0,((Resumen!$Q$1-1)*12)))," ") -> 108623.635 | H21: =IF(H$1<=Resumen!$P$1,IF(OFFSET(Baleares_datos!T46,0,((Resumen!$Q$1-1)*12))=0," ",OFFSET(Baleares_datos!T46,0,((Resumen!$Q$1-1)*12)))," ") -> 161791.603 | I21: =IF(I$1<=Resumen!$P$1,IF(OFFSET(Baleares_datos!U46,0,((Resumen!$Q$1-1)*12))=0," ",OFFSET(Baleares_datos!U46,0,((Resumen!$Q$1-1)*12)))," ") -> 153133.589 | J21: =IF(J$1<=Resumen!$P$1,IF(OFFSET(Baleares_datos!V46,0,((Resumen!$Q$1-1)*12))=0," ",OFFSET(Baleares_datos!V46,0,((Resumen!$Q$1-1)*12)))," ") -> 107931.268 | K21: =IF(K$1<=Resumen!$P$1,IF(OFFSET(Baleares_datos!W46,0,((Resumen!$Q$1-1)*12))=0," ",OFFSET(Baleares_datos!W46,0,((Resumen!$Q$1-1)*12)))," ") -> 92007.577 | L21: =IF(L$1<=Resumen!$P$1,IF(OFFSET(Baleares_datos!X46,0,((Resumen!$Q$1-1)*12))=0," ",OFFSET(Baleares_datos!X46,0,((Resumen!$Q$1-1)*12)))," ") -> 65068.315 | M21: =IF(M$1<=Resumen!$P$1,IF(OFFSET(Baleares_datos!Y46,0,((Resumen!$Q$1-1)*12))=0," ",OFFSET(Baleares_datos!Y46,0,((Resumen!$Q$1-1)*12)))," ") ->  | N21: 1120782.701
A22: Demanda B.C | B22: =IF(B$1<=Resumen!$P$1,IF(OFFSET(Baleares_datos!N47,0,((Resumen!$Q$1-1)*12))=0," ",OFFSET(Baleares_datos!N47,0,((Resumen!$Q$1-1)*12)))," ") -> 436553.899 | C22: =IF(C$1<=Resumen!$P$1,IF(OFFSET(Baleares_datos!O47,0,((Resumen!$Q$1-1)*12))=0," ",OFFSET(Baleares_datos!O47,0,((Resumen!$Q$1-1)*12)))," ") -> 457599.769 | D22: =IF(D$1<=Resumen!$P$1,IF(OFFSET(Baleares_datos!P47,0,((Resumen!$Q$1-1)*12))=0," ",OFFSET(Baleares_datos!P47,0,((Resumen!$Q$1-1)*12)))," ") -> 461716.355 | E22: =IF(E$1<=Resumen!$P$1,IF(OFFSET(Baleares_datos!Q47,0,((Resumen!$Q$1-1)*12))=0," ",OFFSET(Baleares_datos!Q47,0,((Resumen!$Q$1-1)*12)))," ") -> 426816.549 | F22: =IF(F$1<=Resumen!$P$1,IF(OFFSET(Baleares_datos!R47,0,((Resumen!$Q$1-1)*12))=0," ",OFFSET(Baleares_datos!R47,0,((Resumen!$Q$1-1)*12)))," ") -> 475806.029 | G22: =IF(G$1<=Resumen!$P$1,IF(OFFSET(Baleares_datos!S47,0,((Resumen!$Q$1-1)*12))=0," ",OFFSET(Baleares_datos!S47,0,((Resumen!$Q$1-1)*12)))," ") -> 533547.163 | H22: =IF(H$1<=Resumen!$P$1,IF(OFFSET(Baleares_datos!T47,0,((Resumen!$Q$1-1)*12))=0," ",OFFSET(Baleares_datos!T47,0,((Resumen!$Q$1-1)*12)))," ") -> 685470.068 | I22: =IF(I$1<=Resumen!$P$1,IF(OFFSET(Baleares_datos!U47,0,((Resumen!$Q$1-1)*12))=0," ",OFFSET(Baleares_datos!U47,0,((Resumen!$Q$1-1)*12)))," ") -> 703783.56 | J22: =IF(J$1<=Resumen!$P$1,IF(OFFSET(Baleares_datos!V47,0,((Resumen!$Q$1-1)*12))=0," ",OFFSET(Baleares_datos!V47,0,((Resumen!$Q$1-1)*12)))," ") -> 577701.286 | K22: =IF(K$1<=Resumen!$P$1,IF(OFFSET(Baleares_datos!W47,0,((Resumen!$Q$1-1)*12))=0," ",OFFSET(Baleares_datos!W47,0,((Resumen!$Q$1-1)*12)))," ") -> 475319.708 | L22: =IF(L$1<=Resumen!$P$1,IF(OFFSET(Baleares_datos!X47,0,((Resumen!$Q$1-1)*12))=0," ",OFFSET(Baleares_datos!X47,0,((Resumen!$Q$1-1)*12)))," ") -> 396561.722 | M22: =IF(M$1<=Resumen!$P$1,IF(OFFSET(Baleares_datos!Y47,0,((Resumen!$Q$1-1)*12))=0," ",OFFSET(Baleares_datos!Y47,0,((Resumen!$Q$1-1)*12)))," ") ->  | N22: 5630876.108
A23: =Resumen!A24 -> %Δ 18/17 | B23: =IF(B$1<=Resumen!$P$1,IF(OFFSET(Baleares_datos!N48,0,((Resumen!$Q$1-1)*12))=0," ",OFFSET(Baleares_datos!N48,0,((Resumen!$Q$1-1)*12)))," ") -> -8.552194644 | C23: =IF(C$1<=Resumen!$P$1,IF(OFFSET(Baleares_datos!O48,0,((Resumen!$Q$1-1)*12))=0," ",OFFSET(Baleares_datos!O48,0,((Resumen!$Q$1-1)*12)))," ") -> 15.67075875 | D23: =IF(D$1<=Resumen!$P$1,IF(OFFSET(Baleares_datos!P48,0,((Resumen!$Q$1-1)*12))=0," ",OFFSET(Baleares_datos!P48,0,((Resumen!$Q$1-1)*12)))," ") -> 12.9189579 | E23: =IF(E$1<=Resumen!$P$1,IF(OFFSET(Baleares_datos!Q48,0,((Resumen!$Q$1-1)*12))=0," ",OFFSET(Baleares_datos!Q48,0,((Resumen!$Q$1-1)*12)))," ") -> 2.797087979 | F23: =IF(F$1<=Resumen!$P$1,IF(OFFSET(Baleares_datos!R48,0,((Resumen!$Q$1-1)*12))=0," ",OFFSET(Baleares_datos!R48,0,((Resumen!$Q$1-1)*12)))," ") -> -1.332109549 | G23: =IF(G$1<=Resumen!$P$1,IF(OFFSET(Baleares_datos!S48,0,((Resumen!$Q$1-1)*12))=0," ",OFFSET(Baleares_datos!S48,0,((Resumen!$Q$1-1)*12)))," ") -> -7.735806584 | H23: =IF(H$1<=Resumen!$P$1,IF(OFFSET(Baleares_datos!T48,0,((Resumen!$Q$1-1)*12))=0," ",OFFSET(Baleares_datos!T48,0,((Resumen!$Q$1-1)*12)))," ") -> 1.145959691 | I23: =IF(I$1<=Resumen!$P$1,IF(OFFSET(Baleares_datos!U48,0,((Resumen!$Q$1-1)*12))=0," ",OFFSET(Baleares_datos!U48,0,((Resumen!$Q$1-1)*12)))," ") -> -0.4072941534 | J23: =IF(J$1<=Resumen!$P$1,IF(OFFSET(Baleares_datos!V48,0,((Resumen!$Q$1-1)*12))=0," ",OFFSET(Baleares_datos!V48,0,((Resumen!$Q$1-1)*12)))," ") -> 7.625895292 | K23: =IF(K$1<=Resumen!$P$1,IF(OFFSET(Baleares_datos!W48,0,((Resumen!$Q$1-1)*12))=0," ",OFFSET(Baleares_datos!W48,0,((Resumen!$Q$1-1)*12)))," ") -> 0.05815678692 | L23: =IF(L$1<=Resumen!$P$1,IF(OFFSET(Baleares_datos!X48,0,((Resumen!$Q$1-1)*12))=0," ",OFFSET(Baleares_datos!X48,0,((Resumen!$Q$1-1)*12)))," ") -> -1.765582341 | M23: =IF(M$1<=Resumen!$P$1,IF(OFFSET(Baleares_datos!Y48,0,((Resumen!$Q$1-1)*12))=0," ",OFFSET(Baleares_datos!Y48,0,((Resumen!$Q$1-1)*12)))," ") ->  | N23: =((N22/SUM(OFFSET(Baleares_datos!N47,0,(Resumen!$Q$1-2)*12):OFFSET(Baleares_datos!N47,0,((Resumen!$Q$1-2)*12)+Resumen!$P$1-1))-1)*100) -> 1.32106433
A69: =A1 -> Baleares | B69: =L22 -> 396561.722
A70: Resto nacional | B70: =Nacional_datos!CF47-B69 -> 21658916.83

Sheet Canarias
A1: Canarias | B1: 1 | C1: 2 | D1: 3 | E1: 4 | F1: 5 | G1: 6 | H1: 7 | I1: 8 | J1: 9 | K1: 10 | L1: 11 | M1: 12
A2: Balance mensual de energía electrica. MWh
B3: 2018
B4: Ene | C4: Feb | D4: Mar | E4: Abr | F4: May | G4: Jun | H4: Jul | I4: Ago | J4: Sep | K4: Oct | L4: Nov | M4: Dic | N4: TOTAL
A5: Hidraulica | B5: =IF(B$1<=Resumen!$P$1,IF(OFFSET(Canarias_datos!N30,0,((Resumen!$Q$1-1)*12))=0," ",OFFSET(Canarias_datos!N30,0,((Resumen!$Q$1-1)*12)))," ") -> 279.432 | C5: =IF(C$1<=Resumen!$P$1,IF(OFFSET(Canarias_datos!O30,0,((Resumen!$Q$1-1)*12))=0," ",OFFSET(Canarias_datos!O30,0,((Resumen!$Q$1-1)*12)))," ") -> 34.173 | D5: =IF(D$1<=Resumen!$P$1,IF(OFFSET(Canarias_datos!P30,0,((Resumen!$Q$1-1)*12))=0," ",OFFSET(Canarias_datos!P30,0,((Resumen!$Q$1-1)*12)))," ") -> 309.946 | E5: =IF(E$1<=Resumen!$P$1,IF(OFFSET(Canarias_datos!Q30,0,((Resumen!$Q$1-1)*12))=0," ",OFFSET(Canarias_datos!Q30,0,((Resumen!$Q$1-1)*12)))," ") -> 276.123 | F5: =IF(F$1<=Resumen!$P$1,IF(OFFSET(Canarias_datos!R30,0,((Resumen!$Q$1-1)*12))=0," ",OFFSET(Canarias_datos!R30,0,((Resumen!$Q$1-1)*12)))," ") -> 308.334 | G5: =IF(G$1<=Resumen!$P$1,IF(OFFSET(Canarias_datos!S30,0,((Resumen!$Q$1-1)*12))=0," ",OFFSET(Canarias_datos!S30,0,((Resumen!$Q$1-1)*12)))," ") -> 294.482 | H5: =IF(H$1<=Resumen!$P$1,IF(OFFSET(Canarias_datos!T30,0,((Resumen!$Q$1-1)*12))=0," ",OFFSET(Canarias_datos!T30,0,((Resumen!$Q$1-1)*12)))," ") -> 295.596 | I5: =IF(I$1<=Resumen!$P$1,IF(OFFSET(Canarias_datos!U30,0,((Resumen!$Q$1-1)*12))=0," ",OFFSET(Canarias_datos!U30,0,((Resumen!$Q$1-1)*12)))," ") -> 307.64 | J5: =IF(J$1<=Resumen!$P$1,IF(OFFSET(Canarias_datos!V30,0,((Resumen!$Q$1-1)*12))=0," ",OFFSET(Canarias_datos!V30,0,((Resumen!$Q$1-1)*12)))," ") -> 288.399 | K5: =IF(K$1<=Resumen!$P$1,IF(OFFSET(Canarias_datos!W30,0,((Resumen!$Q$1-1)*12))=0," ",OFFSET(Canarias_datos!W30,0,((Resumen!$Q$1-1)*12)))," ") -> 296.97 | L5: =IF(L$1<=Resumen!$P$1,IF(OFFSET(Canarias_datos!X30,0,((Resumen!$Q$1-1)*12))=0," ",OFFSET(Canarias_datos!X30,0,((Resumen!$Q$1-1)*12)))," ") -> 288.507 | M5: =IF(M$1<=Resumen!$P$1,IF(OFFSET(Canarias_datos!Y30,0,((Resumen!$Q$1-1)*12))=0," ",OFFSET(Canarias_datos!Y30,0,((Resumen!$Q$1-1)*12)))," ") ->  | N5: =IF(SUM(B5:M5)=0," ",SUM(B5:M5)) -> 2979.602
A6: Turbinación bombeo | B6: =IF(B$1<=Resumen!$P$1,IF(OFFSET(Canarias_datos!N31,0,((Resumen!$Q$1-1)*12))=0," ",OFFSET(Canarias_datos!N31,0,((Resumen!$Q$1-1)*12)))," ") ->  | C6: =IF(C$1<=Resumen!$P$1,IF(OFFSET(Canarias_datos!O31,0,((Resumen!$Q$1-1)*12))=0," ",OFFSET(Canarias_datos!O31,0,((Resumen!$Q$1-1)*12)))," ") ->  | D6: =IF(D$1<=Resumen!$P$1,IF(OFFSET(Canarias_datos!P31,0,((Resumen!$Q$1-1)*12))=0," ",OFFSET(Canarias_datos!P31,0,((Resumen!$Q$1-1)*12)))," ") ->  | E6: =IF(E$1<=Resumen!$P$1,IF(OFFSET(Canarias_datos!Q31,0,((Resumen!$Q$1-1)*12))=0," ",OFFSET(Canarias_datos!Q31,0,((Resumen!$Q$1-1)*12)))," ") ->  | F6: =IF(F$1<=Resumen!$P$1,IF(OFFSET(Canarias_datos!R31,0,((Resumen!$Q$1-1)*12))=0," ",OFFSET(Canarias_datos!R31,0,((Resumen!$Q$1-1)*12)))," ") ->  | G6: =IF(G$1<=Resumen!$P$1,IF(OFFSET(Canarias_datos!S31,0,((Resumen!$Q$1-1)*12))=0," ",OFFSET(Canarias_datos!S31,0,((Resumen!$Q$1-1)*12)))," ") ->  | H6: =IF(H$1<=Resumen!$P$1,IF(OFFSET(Canarias_datos!T31,0,((Resumen!$Q$1-1)*12))=0," ",OFFSET(Canarias_datos!T31,0,((Resumen!$Q$1-1)*12)))," ") ->  | I6: =IF(I$1<=Resumen!$P$1,IF(OFFSET(Canarias_datos!U31,0,((Resumen!$Q$1-1)*12))=0," ",OFFSET(Canarias_datos!U31,0,((Resumen!$Q$1-1)*12)))," ") ->  | J6: =IF(J$1<=Resumen!$P$1,IF(OFFSET(Canarias_datos!V31,0,((Resumen!$Q$1-1)*12))=0," ",OFFSET(Canarias_datos!V31,0,((Resumen!$Q$1-1)*12)))," ") ->  | K6: =IF(K$1<=Resumen!$P$1,IF(OFFSET(Canarias_datos!W31,0,((Resumen!$Q$1-1)*12))=0," ",OFFSET(Canarias_datos!W31,0,((Resumen!$Q$1-1)*12)))," ") ->  | L6: =IF(L$1<=Resumen!$P$1,IF(OFFSET(Canarias_datos!X31,0,((Resumen!$Q$1-1)*12))=0," ",OFFSET(Canarias_datos!X31,0,((Resumen!$Q$1-1)*12)))," ") ->  | M6: =IF(M$1<=Resumen!$P$1,IF(OFFSET(Canarias_datos!Y31,0,((Resumen!$Q$1-1)*12))=0," ",OFFSET(Canarias_datos!Y31,0,((Resumen!$Q$1-1)*12)))," ") ->  | N6: =IF(SUM(B6:M6)=0," ",SUM(B6:M6)) -> 
A7: Nuclear | B7: =IF(B$1<=Resumen!$P$1,IF(OFFSET(Canarias_datos!N32,0,((Resumen!$Q$1-1)*12))=0," ",OFFSET(Canarias_datos!N32,0,((Resumen!$Q$1-1)*12)))," ") ->  | C7: =IF(C$1<=Resumen!$P$1,IF(OFFSET(Canarias_datos!O32,0,((Resumen!$Q$1-1)*12))=0," ",OFFSET(Canarias_datos!O32,0,((Resumen!$Q$1-1)*12)))," ") ->  | D7: =IF(D$1<=Resumen!$P$1,IF(OFFSET(Canarias_datos!P32,0,((Resumen!$Q$1-1)*12))=0," ",OFFSET(Canarias_datos!P32,0,((Resumen!$Q$1-1)*12)))," ") ->  | E7: =IF(E$1<=Resumen!$P$1,IF(OFFSET(Canarias_datos!Q32,0,((Resumen!$Q$1-1)*12))=0," ",OFFSET(Canarias_datos!Q32,0,((Resumen!$Q$1-1)*12)))," ") ->  | F7: =IF(F$1<=Resumen!$P$1,IF(OFFSET(Canarias_datos!R32,0,((Resumen!$Q$1-1)*12))=0," ",OFFSET(Canarias_datos!R32,0,((Resumen!$Q$1-1)*12)))," ") ->  | G7: =IF(G$1<=Resumen!$P$1,IF(OFFSET(Canarias_datos!S32,0,((Resumen!$Q$1-1)*12))=0," ",OFFSET(Canarias_datos!S32,0,((Resumen!$Q$1-1)*12)))," ") ->  | H7: =IF(H$1<=Resumen!$P$1,IF(OFFSET(Canarias_datos!T32,0,((Resumen!$Q$1-1)*12))=0," ",OFFSET(Canarias_datos!T32,0,((Resumen!$Q$1-1)*12)))," ") ->  | I7: =IF(I$1<=Resumen!$P$1,IF(OFFSET(Canarias_datos!U32,0,((Resumen!$Q$1-1)*12))=0," ",OFFSET(Canarias_datos!U32,0,((Resumen!$Q$1-1)*12)))," ") ->  | J7: =IF(J$1<=Resumen!$P$1,IF(OFFSET(Canarias_datos!V32,0,((Resumen!$Q$1-1)*12))=0," ",OFFSET(Canarias_datos!V32,0,((Resumen!$Q$1-1)*12)))," ") ->  | K7: =IF(K$1<=Resumen!$P$1,IF(OFFSET(Canarias_datos!W32,0,((Resumen!$Q$1-1)*12))=0," ",OFFSET(Canarias_datos!W32,0,((Resumen!$Q$1-1)*12)))," ") ->  | L7: =IF(L$1<=Resumen!$P$1,IF(OFFSET(Canarias_datos!X32,0,((Resumen!$Q$1-1)*12))=0," ",OFFSET(Canarias_datos!X32,0,((Resumen!$Q$1-1)*12)))," ") ->  | M7: =IF(M$1<=Resumen!$P$1,IF(OFFSET(Canarias_datos!Y32,0,((Resumen!$Q$1-1)*12))=0," ",OFFSET(Canarias_datos!Y32,0,((Resumen!$Q$1-1)*12)))," ") ->  | N7: =IF(SUM(B7:M7)=0," ",SUM(B7:M7)) -> 
A8: Carbón | B8: =IF(B$1<=Resumen!$P$1,IF(OFFSET(Canarias_datos!N33,0,((Resumen!$Q$1-1)*12))=0," ",OFFSET(Canarias_datos!N33,0,((Resumen!$Q$1-1)*12)))," ") ->  | C8: =IF(C$1<=Resumen!$P$1,IF(OFFSET(Canarias_datos!O33,0,((Resumen!$Q$1-1)*12))=0," ",OFFSET(Canarias_datos!O33,0,((Resumen!$Q$1-1)*12)))," ") ->  | D8: =IF(D$1<=Resumen!$P$1,IF(OFFSET(Canarias_datos!P33,0,((Resumen!$Q$1-1)*12))=0," ",OFFSET(Canarias_datos!P33,0,((Resumen!$Q$1-1)*12)))," ") ->  | E8: =IF(E$1<=Resumen!$P$1,IF(OFFSET(Canarias_datos!Q33,0,((Resumen!$Q$1-1)*12))=0," ",OFFSET(Canarias_datos!Q33,0,((Resumen!$Q$1-1)*12)))," ") ->  | F8: =IF(F$1<=Resumen!$P$1,IF(OFFSET(Canarias_datos!R33,0,((Resumen!$Q$1-1)*12))=0," ",OFFSET(Canarias_datos!R33,0,((Resumen!$Q$1-1)*12)))," ") ->  | G8: =IF(G$1<=Resumen!$P$1,IF(OFFSET(Canarias_datos!S33,0,((Resumen!$Q$1-1)*12))=0," ",OFFSET(Canarias_datos!S33,0,((Resumen!$Q$1-1)*12)))," ") ->  | H8: =IF(H$1<=Resumen!$P$1,IF(OFFSET(Canarias_datos!T33,0,((Resumen!$Q$1-1)*12))=0," ",OFFSET(Canarias_datos!T33,0,((Resumen!$Q$1-1)*12)))," ") ->  | I8: =IF(I$1<=Resumen!$P$1,IF(OFFSET(Canarias_datos!U33,0,((Resumen!$Q$1-1)*12))=0," ",OFFSET(Canarias_datos!U33,0,((Resumen!$Q$1-1)*12)))," ") ->  | J8: =IF(J$1<=Resumen!$P$1,IF(OFFSET(Canarias_datos!V33,0,((Resumen!$Q$1-1)*12))=0," ",OFFSET(Canarias_datos!V33,0,((Resumen!$Q$1-1)*12)))," ") ->  | K8: =IF(K$1<=Resumen!$P$1,IF(OFFSET(Canarias_datos!W33,0,((Resumen!$Q$1-1)*12))=0," ",OFFSET(Canarias_datos!W33,0,((Resumen!$Q$1-1)*12)))," ") ->  | L8: =IF(L$1<=Resumen!$P$1,IF(OFFSET(Canarias_datos!X33,0,((Resumen!$Q$1-1)*12))=0," ",OFFSET(Canarias_datos!X33,0,((Resumen!$Q$1-1)*12)))," ") ->  | M8: =IF(M$1<=Resumen!$P$1,IF(OFFSET(Canarias_datos!Y33,0,((Resumen!$Q$1-1)*12))=0," ",OFFSET(Canarias_datos!Y33,0,((Resumen!$Q$1-1)*12)))," ") -> 
A9: Fuel-Gas | B9: =IF(B$1<=Resumen!$P$1,IF(OFFSET(Canarias_datos!N34,0,((Resumen!$Q$1-1)*12))=0," ",OFFSET(Canarias_datos!N34,0,((Resumen!$Q$1-1)*12)))," ") -> 442104.88 | C9: =IF(C$1<=Resumen!$P$1,IF(OFFSET(Canarias_datos!O34,0,((Resumen!$Q$1-1)*12))=0," ",OFFSET(Canarias_datos!O34,0,((Resumen!$Q$1-1)*12)))," ") -> 400679.384 | D9: =IF(D$1<=Resumen!$P$1,IF(OFFSET(Canarias_datos!P34,0,((Resumen!$Q$1-1)*12))=0," ",OFFSET(Canarias_datos!P34,0,((Resumen!$Q$1-1)*12)))," ") -> 390680.414 | E9: =IF(E$1<=Resumen!$P$1,IF(OFFSET(Canarias_datos!Q34,0,((Resumen!$Q$1-1)*12))=0," ",OFFSET(Canarias_datos!Q34,0,((Resumen!$Q$1-1)*12)))," ") -> 383043.868 | F9: =IF(F$1<=Resumen!$P$1,IF(OFFSET(Canarias_datos!R34,0,((Resumen!$Q$1-1)*12))=0," ",OFFSET(Canarias_datos!R34,0,((Resumen!$Q$1-1)*12)))," ") -> 385793.967 | G9: =IF(G$1<=Resumen!$P$1,IF(OFFSET(Canarias_datos!S34,0,((Resumen!$Q$1-1)*12))=0," ",OFFSET(Canarias_datos!S34,0,((Resumen!$Q$1-1)*12)))," ") -> 386902.758 | H9: =IF(H$1<=Resumen!$P$1,IF(OFFSET(Canarias_datos!T34,0,((Resumen!$Q$1-1)*12))=0," ",OFFSET(Canarias_datos!T34,0,((Resumen!$Q$1-1)*12)))," ") -> 399578.092 | I9: =IF(I$1<=Resumen!$P$1,IF(OFFSET(Canarias_datos!U34,0,((Resumen!$Q$1-1)*12))=0," ",OFFSET(Canarias_datos!U34,0,((Resumen!$Q$1-1)*12)))," ") -> 433846.683 | J9: =IF(J$1<=Resumen!$P$1,IF(OFFSET(Canarias_datos!V34,0,((Resumen!$Q$1-1)*12))=0," ",OFFSET(Canarias_datos!V34,0,((Resumen!$Q$1-1)*12)))," ") -> 404236.123 | K9: =IF(K$1<=Resumen!$P$1,IF(OFFSET(Canarias_datos!W34,0,((Resumen!$Q$1-1)*12))=0," ",OFFSET(Canarias_datos!W34,0,((Resumen!$Q$1-1)*12)))," ") -> 417762.724 | L9: =IF(L$1<=Resumen!$P$1,IF(OFFSET(Canarias_datos!X34,0,((Resumen!$Q$1-1)*12))=0," ",OFFSET(Canarias_datos!X34,0,((Resumen!$Q$1-1)*12)))," ") -> 413521.377 | M9: =IF(M$1<=Resumen!$P$1,IF(OFFSET(Canarias_datos!Y34,0,((Resumen!$Q$1-1)*12))=0," ",OFFSET(Canarias_datos!Y34,0,((Resumen!$Q$1-1)*12)))," ") ->  | N9: 4458150.27
A10: Ciclo combinado | B10: =IF(B$1<=Resumen!$P$1,IF(OFFSET(Canarias_datos!N35,0,((Resumen!$Q$1-1)*12))=0," ",OFFSET(Canarias_datos!N35,0,((Resumen!$Q$1-1)*12)))," ") -> 233901.625 | C10: =IF(C$1<=Resumen!$P$1,IF(OFFSET(Canarias_datos!O35,0,((Resumen!$Q$1-1)*12))=0," ",OFFSET(Canarias_datos!O35,0,((Resumen!$Q$1-1)*12)))," ") -> 215216.772 | D10: =IF(D$1<=Resumen!$P$1,IF(OFFSET(Canarias_datos!P35,0,((Resumen!$Q$1-1)*12))=0," ",OFFSET(Canarias_datos!P35,0,((Resumen!$Q$1-1)*12)))," ") -> 260839.181 | E10: =IF(E$1<=Resumen!$P$1,IF(OFFSET(Canarias_datos!Q35,0,((Resumen!$Q$1-1)*12))=0," ",OFFSET(Canarias_datos!Q35,0,((Resumen!$Q$1-1)*12)))," ") -> 246337.683 | F10: =IF(F$1<=Resumen!$P$1,IF(OFFSET(Canarias_datos!R35,0,((Resumen!$Q$1-1)*12))=0," ",OFFSET(Canarias_datos!R35,0,((Resumen!$Q$1-1)*12)))," ") -> 248616.789 | G10: =IF(G$1<=Resumen!$P$1,IF(OFFSET(Canarias_datos!S35,0,((Resumen!$Q$1-1)*12))=0," ",OFFSET(Canarias_datos!S35,0,((Resumen!$Q$1-1)*12)))," ") -> 234948.236 | H10: =IF(H$1<=Resumen!$P$1,IF(OFFSET(Canarias_datos!T35,0,((Resumen!$Q$1-1)*12))=0," ",OFFSET(Canarias_datos!T35,0,((Resumen!$Q$1-1)*12)))," ") -> 230145.596 | I10: =IF(I$1<=Resumen!$P$1,IF(OFFSET(Canarias_datos!U35,0,((Resumen!$Q$1-1)*12))=0," ",OFFSET(Canarias_datos!U35,0,((Resumen!$Q$1-1)*12)))," ") -> 251789.052 | J10: =IF(J$1<=Resumen!$P$1,IF(OFFSET(Canarias_datos!V35,0,((Resumen!$Q$1-1)*12))=0," ",OFFSET(Canarias_datos!V35,0,((Resumen!$Q$1-1)*12)))," ") -> 281474.674 | K10: =IF(K$1<=Resumen!$P$1,IF(OFFSET(Canarias_datos!W35,0,((Resumen!$Q$1-1)*12))=0," ",OFFSET(Canarias_datos!W35,0,((Resumen!$Q$1-1)*12)))," ") -> 317069.143 | L10: =IF(L$1<=Resumen!$P$1,IF(OFFSET(Canarias_datos!X35,0,((Resumen!$Q$1-1)*12))=0," ",OFFSET(Canarias_datos!X35,0,((Resumen!$Q$1-1)*12)))," ") -> 256696.966 | M10: =IF(M$1<=Resumen!$P$1,IF(OFFSET(Canarias_datos!Y35,0,((Resumen!$Q$1-1)*12))=0," ",OFFSET(Canarias_datos!Y35,0,((Resumen!$Q$1-1)*12)))," ") ->  | N10: 2777035.717
A11: Hidroeólica | B11: =IF(B$1<=Resumen!$P$1,IF(OFFSET(Canarias_datos!N36,0,((Resumen!$Q$1-1)*12))=0," ",OFFSET(Canarias_datos!N36,0,((Resumen!$Q$1-1)*12)))," ") -> 2257.767 | C11: =IF(C$1<=Resumen!$P$1,IF(OFFSET(Canarias_datos!O36,0,((Resumen!$Q$1-1)*12))=0," ",OFFSET(Canarias_datos!O36,0,((Resumen!$Q$1-1)*12)))," ") -> 1754.305 | D11: =IF(D$1<=Resumen!$P$1,IF(OFFSET(Canarias_datos!P36,0,((Resumen!$Q$1-1)*12))=0," ",OFFSET(Canarias_datos!P36,0,((Resumen!$Q$1-1)*12)))," ") -> 1599.522 | E11: =IF(E$1<=Resumen!$P$1,IF(OFFSET(Canarias_datos!Q36,0,((Resumen!$Q$1-1)*12))=0," ",OFFSET(Canarias_datos!Q36,0,((Resumen!$Q$1-1)*12)))," ") -> 2262.646 | F11: =IF(F$1<=Resumen!$P$1,IF(OFFSET(Canarias_datos!R36,0,((Resumen!$Q$1-1)*12))=0," ",OFFSET(Canarias_datos!R36,0,((Resumen!$Q$1-1)*12)))," ") -> 2034.203 | G11: =IF(G$1<=Resumen!$P$1,IF(OFFSET(Canarias_datos!S36,0,((Resumen!$Q$1-1)*12))=0," ",OFFSET(Canarias_datos!S36,0,((Resumen!$Q$1-1)*12)))," ") -> 2321.804 | H11: =IF(H$1<=Resumen!$P$1,IF(OFFSET(Canarias_datos!T36,0,((Resumen!$Q$1-1)*12))=0," ",OFFSET(Canarias_datos!T36,0,((Resumen!$Q$1-1)*12)))," ") -> 3716.283 | I11: =IF(I$1<=Resumen!$P$1,IF(OFFSET(Canarias_datos!U36,0,((Resumen!$Q$1-1)*12))=0," ",OFFSET(Canarias_datos!U36,0,((Resumen!$Q$1-1)*12)))," ") -> 2859.321 | J11: =IF(J$1<=Resumen!$P$1,IF(OFFSET(Canarias_datos!V36,0,((Resumen!$Q$1-1)*12))=0," ",OFFSET(Canarias_datos!V36,0,((Resumen!$Q$1-1)*12)))," ") -> 2165.861 | K11: =IF(K$1<=Resumen!$P$1,IF(OFFSET(Canarias_datos!W36,0,((Resumen!$Q$1-1)*12))=0," ",OFFSET(Canarias_datos!W36,0,((Resumen!$Q$1-1)*12)))," ") -> 873.311 | L11: =IF(L$1<=Resumen!$P$1,IF(OFFSET(Canarias_datos!X36,0,((Resumen!$Q$1-1)*12))=0," ",OFFSET(Canarias_datos!X36,0,((Resumen!$Q$1-1)*12)))," ") -> 900.788 | M11: =IF(M$1<=Resumen!$P$1,IF(OFFSET(Canarias_datos!Y36,0,((Resumen!$Q$1-1)*12))=0," ",OFFSET(Canarias_datos!Y36,0,((Resumen!$Q$1-1)*12)))," ") ->  | N11: 22745.811
A12: Eólica | B12: =IF(B$1<=Resumen!$P$1,IF(OFFSET(Canarias_datos!N37,0,((Resumen!$Q$1-1)*12))=0," ",OFFSET(Canarias_datos!N37,0,((Resumen!$Q$1-1)*12)))," ") -> 56908.339 | C12: =IF(C$1<=Resumen!$P$1,IF(OFFSET(Canarias_datos!O37,0,((Resumen!$Q$1-1)*12))=0," ",OFFSET(Canarias_datos!O37,0,((Resumen!$Q$1-1)*12)))," ") -> 46206.065 | D12: =IF(D$1<=Resumen!$P$1,IF(OFFSET(Canarias_datos!P37,0,((Resumen!$Q$1-1)*12))=0," ",OFFSET(Canarias_datos!P37,0,((Resumen!$Q$1-1)*12)))," ") -> 50516.178 | E12: =IF(E$1<=Resumen!$P$1,IF(OFFSET(Canarias_datos!Q37,0,((Resumen!$Q$1-1)*12))=0," ",OFFSET(Canarias_datos!Q37,0,((Resumen!$Q$1-1)*12)))," ") -> 45545.818 | F12: =IF(F$1<=Resumen!$P$1,IF(OFFSET(Canarias_datos!R37,0,((Resumen!$Q$1-1)*12))=0," ",OFFSET(Canarias_datos!R37,0,((Resumen!$Q$1-1)*12)))," ") -> 55351.522 | G12: =IF(G$1<=Resumen!$P$1,IF(OFFSET(Canarias_datos!S37,0,((Resumen!$Q$1-1)*12))=0," ",OFFSET(Canarias_datos!S37,0,((Resumen!$Q$1-1)*12)))," ") -> 56421.117 | H12: =IF(H$1<=Resumen!$P$1,IF(OFFSET(Canarias_datos!T37,0,((Resumen!$Q$1-1)*12))=0," ",OFFSET(Canarias_datos!T37,0,((Resumen!$Q$1-1)*12)))," ") -> 95158.367 | I12: =IF(I$1<=Resumen!$P$1,IF(OFFSET(Canarias_datos!U37,0,((Resumen!$Q$1-1)*12))=0," ",OFFSET(Canarias_datos!U37,0,((Resumen!$Q$1-1)*12)))," ") -> 65080.791 | J12: =IF(J$1<=Resumen!$P$1,IF(OFFSET(Canarias_datos!V37,0,((Resumen!$Q$1-1)*12))=0," ",OFFSET(Canarias_datos!V37,0,((Resumen!$Q$1-1)*12)))," ") -> 51688.221 | K12: =IF(K$1<=Resumen!$P$1,IF(OFFSET(Canarias_datos!W37,0,((Resumen!$Q$1-1)*12))=0," ",OFFSET(Canarias_datos!W37,0,((Resumen!$Q$1-1)*12)))," ") -> 22335.968 | L12: =IF(L$1<=Resumen!$P$1,IF(OFFSET(Canarias_datos!X37,0,((Resumen!$Q$1-1)*12))=0," ",OFFSET(Canarias_datos!X37,0,((Resumen!$Q$1-1)*12)))," ") -> 32426.612 | M12: =IF(M$1<=Resumen!$P$1,IF(OFFSET(Canarias_datos!Y37,0,((Resumen!$Q$1-1)*12))=0," ",OFFSET(Canarias_datos!Y37,0,((Resumen!$Q$1-1)*12)))," ") ->  | N12: 577638.998
A13: Solar fotovoltaico | B13: =IF(B$1<=Resumen!$P$1,IF(OFFSET(Canarias_datos!N38,0,((Resumen!$Q$1-1)*12))=0," ",OFFSET(Canarias_datos!N38,0,((Resumen!$Q$1-1)*12)))," ") -> 19072.745 | C13: =IF(C$1<=Resumen!$P$1,IF(OFFSET(Canarias_datos!O38,0,((Resumen!$Q$1-1)*12))=0," ",OFFSET(Canarias_datos!O38,0,((Resumen!$Q$1-1)*12)))," ") -> 17886.313 | D13: =IF(D$1<=Resumen!$P$1,IF(OFFSET(Canarias_datos!P38,0,((Resumen!$Q$1-1)*12))=0," ",OFFSET(Canarias_datos!P38,0,((Resumen!$Q$1-1)*12)))," ") -> 25105.015 | E13: =IF(E$1<=Resumen!$P$1,IF(OFFSET(Canarias_datos!Q38,0,((Resumen!$Q$1-1)*12))=0," ",OFFSET(Canarias_datos!Q38,0,((Resumen!$Q$1-1)*12)))," ") -> 25211.384 | F13: =IF(F$1<=Resumen!$P$1,IF(OFFSET(Canarias_datos!R38,0,((Resumen!$Q$1-1)*12))=0," ",OFFSET(Canarias_datos!R38,0,((Resumen!$Q$1-1)*12)))," ") -> 23079.87 | G13: =IF(G$1<=Resumen!$P$1,IF(OFFSET(Canarias_datos!S38,0,((Resumen!$Q$1-1)*12))=0," ",OFFSET(Canarias_datos!S38,0,((Resumen!$Q$1-1)*12)))," ") -> 25992.826 | H13: =IF(H$1<=Resumen!$P$1,IF(OFFSET(Canarias_datos!T38,0,((Resumen!$Q$1-1)*12))=0," ",OFFSET(Canarias_datos!T38,0,((Resumen!$Q$1-1)*12)))," ") -> 29450.45 | I13: =IF(I$1<=Resumen!$P$1,IF(OFFSET(Canarias_datos!U38,0,((Resumen!$Q$1-1)*12))=0," ",OFFSET(Canarias_datos!U38,0,((Resumen!$Q$1-1)*12)))," ") -> 27718.481 | J13: =IF(J$1<=Resumen!$P$1,IF(OFFSET(Canarias_datos!V38,0,((Resumen!$Q$1-1)*12))=0," ",OFFSET(Canarias_datos!V38,0,((Resumen!$Q$1-1)*12)))," ") -> 24127.854 | K13: =IF(K$1<=Resumen!$P$1,IF(OFFSET(Canarias_datos!W38,0,((Resumen!$Q$1-1)*12))=0," ",OFFSET(Canarias_datos!W38,0,((Resumen!$Q$1-1)*12)))," ") -> 19456.084 | L13: =IF(L$1<=Resumen!$P$1,IF(OFFSET(Canarias_datos!X38,0,((Resumen!$Q$1-1)*12))=0," ",OFFSET(Canarias_datos!X38,0,((Resumen!$Q$1-1)*12)))," ") -> 16088.982 | M13: =IF(M$1<=Resumen!$P$1,IF(OFFSET(Canarias_datos!Y38,0,((Resumen!$Q$1-1)*12))=0," ",OFFSET(Canarias_datos!Y38,0,((Resumen!$Q$1-1)*12)))," ") ->  | N13: 253190.004
A14: Solar térmica | B14: =IF(B$1<=Resumen!$P$1,IF(OFFSET(Canarias_datos!N39,0,((Resumen!$Q$1-1)*12))=0," ",OFFSET(Canarias_datos!N39,0,((Resumen!$Q$1-1)*12)))," ") ->  | C14: =IF(C$1<=Resumen!$P$1,IF(OFFSET(Canarias_datos!O39,0,((Resumen!$Q$1-1)*12))=0," ",OFFSET(Canarias_datos!O39,0,((Resumen!$Q$1-1)*12)))," ") ->  | D14: =IF(D$1<=Resumen!$P$1,IF(OFFSET(Canarias_datos!P39,0,((Resumen!$Q$1-1)*12))=0," ",OFFSET(Canarias_datos!P39,0,((Resumen!$Q$1-1)*12)))," ") ->  | E14: =IF(E$1<=Resumen!$P$1,IF(OFFSET(Canarias_datos!Q39,0,((Resumen!$Q$1-1)*12))=0," ",OFFSET(Canarias_datos!Q39,0,((Resumen!$Q$1-1)*12)))," ") ->  | F14: =IF(F$1<=Resumen!$P$1,IF(OFFSET(Canarias_datos!R39,0,((Resumen!$Q$1-1)*12))=0," ",OFFSET(Canarias_datos!R39,0,((Resumen!$Q$1-1)*12)))," ") ->  | G14: =IF(G$1<=Resumen!$P$1,IF(OFFSET(Canarias_datos!S39,0,((Resumen!$Q$1-1)*12))=0," ",OFFSET(Canarias_datos!S39,0,((Resumen!$Q$1-1)*12)))," ") ->  | H14: =IF(H$1<=Resumen!$P$1,IF(OFFSET(Canarias_datos!T39,0,((Resumen!$Q$1-1)*12))=0," ",OFFSET(Canarias_datos!T39,0,((Resumen!$Q$1-1)*12)))," ") ->  | I14: =IF(I$1<=Resumen!$P$1,IF(OFFSET(Canarias_datos!U39,0,((Resumen!$Q$1-1)*12))=0," ",OFFSET(Canarias_datos!U39,0,((Resumen!$Q$1-1)*12)))," ") ->  | J14: =IF(J$1<=Resumen!$P$1,IF(OFFSET(Canarias_datos!V39,0,((Resumen!$Q$1-1)*12))=0," ",OFFSET(Canarias_datos!V39,0,((Resumen!$Q$1-1)*12)))," ") ->  | K14: =IF(K$1<=Resumen!$P$1,IF(OFFSET(Canarias_datos!W39,0,((Resumen!$Q$1-1)*12))=0," ",OFFSET(Canarias_datos!W39,0,((Resumen!$Q$1-1)*12)))," ") ->  | L14: =IF(L$1<=Resumen!$P$1,IF(OFFSET(Canarias_datos!X39,0,((Resumen!$Q$1-1)*12))=0," ",OFFSET(Canarias_datos!X39,0,((Resumen!$Q$1-1)*12)))," ") ->  | M14: =IF(M$1<=Resumen!$P$1,IF(OFFSET(Canarias_datos!Y39,0,((Resumen!$Q$1-1)*12))=0," ",OFFSET(Canarias_datos!Y39,0,((Resumen!$Q$1-1)*12)))," ") -> 
A15: Otras renovables | B15: =IF(B$1<=Resumen!$P$1,IF(OFFSET(Canarias_datos!N40,0,((Resumen!$Q$1-1)*12))=0," ",OFFSET(Canarias_datos!N40,0,((Resumen!$Q$1-1)*12)))," ") -> 762.423 | C15: =IF(C$1<=Resumen!$P$1,IF(OFFSET(Canarias_datos!O40,0,((Resumen!$Q$1-1)*12))=0," ",OFFSET(Canarias_datos!O40,0,((Resumen!$Q$1-1)*12)))," ") -> 646.573 | D15: =IF(D$1<=Resumen!$P$1,IF(OFFSET(Canarias_datos!P40,0,((Resumen!$Q$1-1)*12))=0," ",OFFSET(Canarias_datos!P40,0,((Resumen!$Q$1-1)*12)))," ") -> 837.294 | E15: =IF(E$1<=Resumen!$P$1,IF(OFFSET(Canarias_datos!Q40,0,((Resumen!$Q$1-1)*12))=0," ",OFFSET(Canarias_datos!Q40,0,((Resumen!$Q$1-1)*12)))," ") -> 538.897 | F15: =IF(F$1<=Resumen!$P$1,IF(OFFSET(Canarias_datos!R40,0,((Resumen!$Q$1-1)*12))=0," ",OFFSET(Canarias_datos!R40,0,((Resumen!$Q$1-1)*12)))," ") -> 750.601 | G15: =IF(G$1<=Resumen!$P$1,IF(OFFSET(Canarias_datos!S40,0,((Resumen!$Q$1-1)*12))=0," ",OFFSET(Canarias_datos!S40,0,((Resumen!$Q$1-1)*12)))," ") -> 531.015 | H15: =IF(H$1<=Resumen!$P$1,IF(OFFSET(Canarias_datos!T40,0,((Resumen!$Q$1-1)*12))=0," ",OFFSET(Canarias_datos!T40,0,((Resumen!$Q$1-1)*12)))," ") -> 702.394 | I15: =IF(I$1<=Resumen!$P$1,IF(OFFSET(Canarias_datos!U40,0,((Resumen!$Q$1-1)*12))=0," ",OFFSET(Canarias_datos!U40,0,((Resumen!$Q$1-1)*12)))," ") -> 816.452 | J15: =IF(J$1<=Resumen!$P$1,IF(OFFSET(Canarias_datos!V40,0,((Resumen!$Q$1-1)*12))=0," ",OFFSET(Canarias_datos!V40,0,((Resumen!$Q$1-1)*12)))," ") -> 782.909 | K15: =IF(K$1<=Resumen!$P$1,IF(OFFSET(Canarias_datos!W40,0,((Resumen!$Q$1-1)*12))=0," ",OFFSET(Canarias_datos!W40,0,((Resumen!$Q$1-1)*12)))," ") -> 813.334 | L15: =IF(L$1<=Resumen!$P$1,IF(OFFSET(Canarias_datos!X40,0,((Resumen!$Q$1-1)*12))=0," ",OFFSET(Canarias_datos!X40,0,((Resumen!$Q$1-1)*12)))," ") -> 850.253 | M15: =IF(M$1<=Resumen!$P$1,IF(OFFSET(Canarias_datos!Y40,0,((Resumen!$Q$1-1)*12))=0," ",OFFSET(Canarias_datos!Y40,0,((Resumen!$Q$1-1)*12)))," ") ->  | N15: 8032.145
A16: Cogeneración | B16: =IF(B$1<=Resumen!$P$1,IF(OFFSET(Canarias_datos!N41,0,((Resumen!$Q$1-1)*12))=0," ",OFFSET(Canarias_datos!N41,0,((Resumen!$Q$1-1)*12)))," ") ->  | C16: =IF(C$1<=Resumen!$P$1,IF(OFFSET(Canarias_datos!O41,0,((Resumen!$Q$1-1)*12))=0," ",OFFSET(Canarias_datos!O41,0,((Resumen!$Q$1-1)*12)))," ") ->  | D16: =IF(D$1<=Resumen!$P$1,IF(OFFSET(Canarias_datos!P41,0,((Resumen!$Q$1-1)*12))=0," ",OFFSET(Canarias_datos!P41,0,((Resumen!$Q$1-1)*12)))," ") ->  | E16: =IF(E$1<=Resumen!$P$1,IF(OFFSET(Canarias_datos!Q41,0,((Resumen!$Q$1-1)*12))=0," ",OFFSET(Canarias_datos!Q41,0,((Resumen!$Q$1-1)*12)))," ") ->  | F16: =IF(F$1<=Resumen!$P$1,IF(OFFSET(Canarias_datos!R41,0,((Resumen!$Q$1-1)*12))=0," ",OFFSET(Canarias_datos!R41,0,((Resumen!$Q$1-1)*12)))," ") ->  | G16: =IF(G$1<=Resumen!$P$1,IF(OFFSET(Canarias_datos!S41,0,((Resumen!$Q$1-1)*12))=0," ",OFFSET(Canarias_datos!S41,0,((Resumen!$Q$1-1)*12)))," ") ->  | H16: =IF(H$1<=Resumen!$P$1,IF(OFFSET(Canarias_datos!T41,0,((Resumen!$Q$1-1)*12))=0," ",OFFSET(Canarias_datos!T41,0,((Resumen!$Q$1-1)*12)))," ") ->  | I16: =IF(I$1<=Resumen!$P$1,IF(OFFSET(Canarias_datos!U41,0,((Resumen!$Q$1-1)*12))=0," ",OFFSET(Canarias_datos!U41,0,((Resumen!$Q$1-1)*12)))," ") ->  | J16: =IF(J$1<=Resumen!$P$1,IF(OFFSET(Canarias_datos!V41,0,((Resumen!$Q$1-1)*12))=0," ",OFFSET(Canarias_datos!V41,0,((Resumen!$Q$1-1)*12)))," ") ->  | K16: =IF(K$1<=Resumen!$P$1,IF(OFFSET(Canarias_datos!W41,0,((Resumen!$Q$1-1)*12))=0," ",OFFSET(Canarias_datos!W41,0,((Resumen!$Q$1-1)*12)))," ") ->  | L16: =IF(L$1<=Resumen!$P$1,IF(OFFSET(Canarias_datos!X41,0,((Resumen!$Q$1-1)*12))=0," ",OFFSET(Canarias_datos!X41,0,((Resumen!$Q$1-1)*12)))," ") ->  | M16: =IF(M$1<=Resumen!$P$1,IF(OFFSET(Canarias_datos!Y41,0,((Resumen!$Q$1-1)*12))=0," ",OFFSET(Canarias_datos!Y41,0,((Resumen!$Q$1-1)*12)))," ") -> 
A17: Residuos no renovables | B17: =IF(B$1<=Resumen!$P$1,IF(OFFSET(Canarias_datos!N42,0,((Resumen!$Q$1-1)*12))=0," ",OFFSET(Canarias_datos!N42,0,((Resumen!$Q$1-1)*12)))," ") ->  | C17: =IF(C$1<=Resumen!$P$1,IF(OFFSET(Canarias_datos!O42,0,((Resumen!$Q$1-1)*12))=0," ",OFFSET(Canarias_datos!O42,0,((Resumen!$Q$1-1)*12)))," ") ->  | D17: =IF(D$1<=Resumen!$P$1,IF(OFFSET(Canarias_datos!P42,0,((Resumen!$Q$1-1)*12))=0," ",OFFSET(Canarias_datos!P42,0,((Resumen!$Q$1-1)*12)))," ") ->  | E17: =IF(E$1<=Resumen!$P$1,IF(OFFSET(Canarias_datos!Q42,0,((Resumen!$Q$1-1)*12))=0," ",OFFSET(Canarias_datos!Q42,0,((Resumen!$Q$1-1)*12)))," ") ->  | F17: =IF(F$1<=Resumen!$P$1,IF(OFFSET(Canarias_datos!R42,0,((Resumen!$Q$1-1)*12))=0," ",OFFSET(Canarias_datos!R42,0,((Resumen!$Q$1-1)*12)))," ") ->  | G17: =IF(G$1<=Resumen!$P$1,IF(OFFSET(Canarias_datos!S42,0,((Resumen!$Q$1-1)*12))=0," ",OFFSET(Canarias_datos!S42,0,((Resumen!$Q$1-1)*12)))," ") ->  | H17: =IF(H$1<=Resumen!$P$1,IF(OFFSET(Canarias_datos!T42,0,((Resumen!$Q$1-1)*12))=0," ",OFFSET(Canarias_datos!T42,0,((Resumen!$Q$1-1)*12)))," ") ->  | I17: =IF(I$1<=Resumen!$P$1,IF(OFFSET(Canarias_datos!U42,0,((Resumen!$Q$1-1)*12))=0," ",OFFSET(Canarias_datos!U42,0,((Resumen!$Q$1-1)*12)))," ") ->  | J17: =IF(J$1<=Resumen!$P$1,IF(OFFSET(Canarias_datos!V42,0,((Resumen!$Q$1-1)*12))=0," ",OFFSET(Canarias_datos!V42,0,((Resumen!$Q$1-1)*12)))," ") ->  | K17: =IF(K$1<=Resumen!$P$1,IF(OFFSET(Canarias_datos!W42,0,((Resumen!$Q$1-1)*12))=0," ",OFFSET(Canarias_datos!W42,0,((Resumen!$Q$1-1)*12)))," ") ->  | L17: =IF(L$1<=Resumen!$P$1,IF(OFFSET(Canarias_datos!X42,0,((Resumen!$Q$1-1)*12))=0," ",OFFSET(Canarias_datos!X42,0,((Resumen!$Q$1-1)*12)))," ") ->  | M17: =IF(M$1<=Resumen!$P$1,IF(OFFSET(Canarias_datos!Y42,0,((Resumen!$Q$1-1)*12))=0," ",OFFSET(Canarias_datos!Y42,0,((Resumen!$Q$1-1)*12)))," ") -> 
A18: Residuos renovables | B18: =IF(B$1<=Resumen!$P$1,IF(OFFSET(Canarias_datos!N43,0,((Resumen!$Q$1-1)*12))=0," ",OFFSET(Canarias_datos!N43,0,((Resumen!$Q$1-1)*12)))," ") ->  | C18: =IF(C$1<=Resumen!$P$1,IF(OFFSET(Canarias_datos!O43,0,((Resumen!$Q$1-1)*12))=0," ",OFFSET(Canarias_datos!O43,0,((Resumen!$Q$1-1)*12)))," ") ->  | D18: =IF(D$1<=Resumen!$P$1,IF(OFFSET(Canarias_datos!P43,0,((Resumen!$Q$1-1)*12))=0," ",OFFSET(Canarias_datos!P43,0,((Resumen!$Q$1-1)*12)))," ") ->  | E18: =IF(E$1<=Resumen!$P$1,IF(OFFSET(Canarias_datos!Q43,0,((Resumen!$Q$1-1)*12))=0," ",OFFSET(Canarias_datos!Q43,0,((Resumen!$Q$1-1)*12)))," ") ->  | F18: =IF(F$1<=Resumen!$P$1,IF(OFFSET(Canarias_datos!R43,0,((Resumen!$Q$1-1)*12))=0," ",OFFSET(Canarias_datos!R43,0,((Resumen!$Q$1-1)*12)))," ") ->  | G18: =IF(G$1<=Resumen!$P$1,IF(OFFSET(Canarias_datos!S43,0,((Resumen!$Q$1-1)*12))=0," ",OFFSET(Canarias_datos!S43,0,((Resumen!$Q$1-1)*12)))," ") ->  | H18: =IF(H$1<=Resumen!$P$1,IF(OFFSET(Canarias_datos!T43,0,((Resumen!$Q$1-1)*12))=0," ",OFFSET(Canarias_datos!T43,0,((Resumen!$Q$1-1)*12)))," ") ->  | I18: =IF(I$1<=Resumen!$P$1,IF(OFFSET(Canarias_datos!U43,0,((Resumen!$Q$1-1)*12))=0," ",OFFSET(Canarias_datos!U43,0,((Resumen!$Q$1-1)*12)))," ") ->  | J18: =IF(J$1<=Resumen!$P$1,IF(OFFSET(Canarias_datos!V43,0,((Resumen!$Q$1-1)*12))=0," ",OFFSET(Canarias_datos!V43,0,((Resumen!$Q$1-1)*12)))," ") ->  | K18: =IF(K$1<=Resumen!$P$1,IF(OFFSET(Canarias_datos!W43,0,((Resumen!$Q$1-1)*12))=0," ",OFFSET(Canarias_datos!W43,0,((Resumen!$Q$1-1)*12)))," ") ->  | L18: =IF(L$1<=Resumen!$P$1,IF(OFFSET(Canarias_datos!X43,0,((Resumen!$Q$1-1)*12))=0," ",OFFSET(Canarias_datos!X43,0,((Resumen!$Q$1-1)*12)))," ") ->  | M18: =IF(M$1<=Resumen!$P$1,IF(OFFSET(Canarias_datos!Y43,0,((Resumen!$Q$1-1)*12))=0," ",OFFSET(Canarias_datos!Y43,0,((Resumen!$Q$1-1)*12)))," ") ->  | N18: =IF(SUM(B18:M18)=0," ",SUM(B18:M18)) -> 
A19: Generación neta | B19: =IF(B$1<=Resumen!$P$1,IF(OFFSET(Canarias_datos!N44,0,((Resumen!$Q$1-1)*12))=0," ",OFFSET(Canarias_datos!N44,0,((Resumen!$Q$1-1)*12)))," ") -> 755287.211 | C19: =IF(C$1<=Resumen!$P$1,IF(OFFSET(Canarias_datos!O44,0,((Resumen!$Q$1-1)*12))=0," ",OFFSET(Canarias_datos!O44,0,((Resumen!$Q$1-1)*12)))," ") -> 682423.585 | D19: =IF(D$1<=Resumen!$P$1,IF(OFFSET(Canarias_datos!P44,0,((Resumen!$Q$1-1)*12))=0," ",OFFSET(Canarias_datos!P44,0,((Resumen!$Q$1-1)*12)))," ") -> 729887.55 | E19: =IF(E$1<=Resumen!$P$1,IF(OFFSET(Canarias_datos!Q44,0,((Resumen!$Q$1-1)*12))=0," ",OFFSET(Canarias_datos!Q44,0,((Resumen!$Q$1-1)*12)))," ") -> 703216.419 | F19: =IF(F$1<=Resumen!$P$1,IF(OFFSET(Canarias_datos!R44,0,((Resumen!$Q$1-1)*12))=0," ",OFFSET(Canarias_datos!R44,0,((Resumen!$Q$1-1)*12)))," ") -> 715935.286 | G19: =IF(G$1<=Resumen!$P$1,IF(OFFSET(Canarias_datos!S44,0,((Resumen!$Q$1-1)*12))=0," ",OFFSET(Canarias_datos!S44,0,((Resumen!$Q$1-1)*12)))," ") -> 707412.238 | H19: =IF(H$1<=Resumen!$P$1,IF(OFFSET(Canarias_datos!T44,0,((Resumen!$Q$1-1)*12))=0," ",OFFSET(Canarias_datos!T44,0,((Resumen!$Q$1-1)*12)))," ") -> 759046.778 | I19: =IF(I$1<=Resumen!$P$1,IF(OFFSET(Canarias_datos!U44,0,((Resumen!$Q$1-1)*12))=0," ",OFFSET(Canarias_datos!U44,0,((Resumen!$Q$1-1)*12)))," ") -> 782418.42 | J19: =IF(J$1<=Resumen!$P$1,IF(OFFSET(Canarias_datos!V44,0,((Resumen!$Q$1-1)*12))=0," ",OFFSET(Canarias_datos!V44,0,((Resumen!$Q$1-1)*12)))," ") -> 764764.041 | K19: =IF(K$1<=Resumen!$P$1,IF(OFFSET(Canarias_datos!W44,0,((Resumen!$Q$1-1)*12))=0," ",OFFSET(Canarias_datos!W44,0,((Resumen!$Q$1-1)*12)))," ") -> 778607.534 | L19: =IF(L$1<=Resumen!$P$1,IF(OFFSET(Canarias_datos!X44,0,((Resumen!$Q$1-1)*12))=0," ",OFFSET(Canarias_datos!X44,0,((Resumen!$Q$1-1)*12)))," ") -> 720773.485 | M19: =IF(M$1<=Resumen!$P$1,IF(OFFSET(Canarias_datos!Y44,0,((Resumen!$Q$1-1)*12))=0," ",OFFSET(Canarias_datos!Y44,0,((Resumen!$Q$1-1)*12)))," ") ->  | N19: 8099772.547
A20: Consumos en bombeo | B20: =IF(B$1<=Resumen!$P$1,IF(OFFSET(Canarias_datos!N45,0,((Resumen!$Q$1-1)*12))=0," ",OFFSET(Canarias_datos!N45,0,((Resumen!$Q$1-1)*12)))," ") ->  | C20: =IF(C$1<=Resumen!$P$1,IF(OFFSET(Canarias_datos!O45,0,((Resumen!$Q$1-1)*12))=0," ",OFFSET(Canarias_datos!O45,0,((Resumen!$Q$1-1)*12)))," ") ->  | D20: =IF(D$1<=Resumen!$P$1,IF(OFFSET(Canarias_datos!P45,0,((Resumen!$Q$1-1)*12))=0," ",OFFSET(Canarias_datos!P45,0,((Resumen!$Q$1-1)*12)))," ") ->  | E20: =IF(E$1<=Resumen!$P$1,IF(OFFSET(Canarias_datos!Q45,0,((Resumen!$Q$1-1)*12))=0," ",OFFSET(Canarias_datos!Q45,0,((Resumen!$Q$1-1)*12)))," ") ->  | F20: =IF(F$1<=Resumen!$P$1,IF(OFFSET(Canarias_datos!R45,0,((Resumen!$Q$1-1)*12))=0," ",OFFSET(Canarias_datos!R45,0,((Resumen!$Q$1-1)*12)))," ") ->  | G20: =IF(G$1<=Resumen!$P$1,IF(OFFSET(Canarias_datos!S45,0,((Resumen!$Q$1-1)*12))=0," ",OFFSET(Canarias_datos!S45,0,((Resumen!$Q$1-1)*12)))," ") ->  | H20: =IF(H$1<=Resumen!$P$1,IF(OFFSET(Canarias_datos!T45,0,((Resumen!$Q$1-1)*12))=0," ",OFFSET(Canarias_datos!T45,0,((Resumen!$Q$1-1)*12)))," ") ->  | I20: =IF(I$1<=Resumen!$P$1,IF(OFFSET(Canarias_datos!U45,0,((Resumen!$Q$1-1)*12))=0," ",OFFSET(Canarias_datos!U45,0,((Resumen!$Q$1-1)*12)))," ") ->  | J20: =IF(J$1<=Resumen!$P$1,IF(OFFSET(Canarias_datos!V45,0,((Resumen!$Q$1-1)*12))=0," ",OFFSET(Canarias_datos!V45,0,((Resumen!$Q$1-1)*12)))," ") ->  | K20: =IF(K$1<=Resumen!$P$1,IF(OFFSET(Canarias_datos!W45,0,((Resumen!$Q$1-1)*12))=0," ",OFFSET(Canarias_datos!W45,0,((Resumen!$Q$1-1)*12)))," ") ->  | L20: =IF(L$1<=Resumen!$P$1,IF(OFFSET(Canarias_datos!X45,0,((Resumen!$Q$1-1)*12))=0," ",OFFSET(Canarias_datos!X45,0,((Resumen!$Q$1-1)*12)))," ") ->  | M20: =IF(M$1<=Resumen!$P$1,IF(OFFSET(Canarias_datos!Y45,0,((Resumen!$Q$1-1)*12))=0," ",OFFSET(Canarias_datos!Y45,0,((Resumen!$Q$1-1)*12)))," ") -> 
A21: Saldo Intercambios | B21: =IF(B$1<=Resumen!$P$1,IF(OFFSET(Canarias_datos!N46,0,((Resumen!$Q$1-1)*12))=0," ",OFFSET(Canarias_datos!N46,0,((Resumen!$Q$1-1)*12)))," ") ->  | C21: =IF(C$1<=Resumen!$P$1,IF(OFFSET(Canarias_datos!O46,0,((Resumen!$Q$1-1)*12))=0," ",OFFSET(Canarias_datos!O46,0,((Resumen!$Q$1-1)*12)))," ") ->  | D21: =IF(D$1<=Resumen!$P$1,IF(OFFSET(Canarias_datos!P46,0,((Resumen!$Q$1-1)*12))=0," ",OFFSET(Canarias_datos!P46,0,((Resumen!$Q$1-1)*12)))," ") ->  | E21: =IF(E$1<=Resumen!$P$1,IF(OFFSET(Canarias_datos!Q46,0,((Resumen!$Q$1-1)*12))=0," ",OFFSET(Canarias_datos!Q46,0,((Resumen!$Q$1-1)*12)))," ") ->  | F21: =IF(F$1<=Resumen!$P$1,IF(OFFSET(Canarias_datos!R46,0,((Resumen!$Q$1-1)*12))=0," ",OFFSET(Canarias_datos!R46,0,((Resumen!$Q$1-1)*12)))," ") ->  | G21: =IF(G$1<=Resumen!$P$1,IF(OFFSET(Canarias_datos!S46,0,((Resumen!$Q$1-1)*12))=0," ",OFFSET(Canarias_datos!S46,0,((Resumen!$Q$1-1)*12)))," ") ->  | H21: =IF(H$1<=Resumen!$P$1,IF(OFFSET(Canarias_datos!T46,0,((Resumen!$Q$1-1)*12))=0," ",OFFSET(Canarias_datos!T46,0,((Resumen!$Q$1-1)*12)))," ") ->  | I21: =IF(I$1<=Resumen!$P$1,IF(OFFSET(Canarias_datos!U46,0,((Resumen!$Q$1-1)*12))=0," ",OFFSET(Canarias_datos!U46,0,((Resumen!$Q$1-1)*12)))," ") ->  | J21: =IF(J$1<=Resumen!$P$1,IF(OFFSET(Canarias_datos!V46,0,((Resumen!$Q$1-1)*12))=0," ",OFFSET(Canarias_datos!V46,0,((Resumen!$Q$1-1)*12)))," ") ->  | K21: =IF(K$1<=Resumen!$P$1,IF(OFFSET(Canarias_datos!W46,0,((Resumen!$Q$1-1)*12))=0," ",OFFSET(Canarias_datos!W46,0,((Resumen!$Q$1-1)*12)))," ") ->  | L21: =IF(L$1<=Resumen!$P$1,IF(OFFSET(Canarias_datos!X46,0,((Resumen!$Q$1-1)*12))=0," ",OFFSET(Canarias_datos!X46,0,((Resumen!$Q$1-1)*12)))," ") ->  | M21: =IF(M$1<=Resumen!$P$1,IF(OFFSET(Canarias_datos!Y46,0,((Resumen!$Q$1-1)*12))=0," ",OFFSET(Canarias_datos!Y46,0,((Resumen!$Q$1-1)*12)))," ") -> 
A22: Demanda B.C | B22: =IF(B$1<=Resumen!$P$1,IF(OFFSET(Canarias_datos!N47,0,((Resumen!$Q$1-1)*12))=0," ",OFFSET(Canarias_datos!N47,0,((Resumen!$Q$1-1)*12)))," ") -> 755287.211 | C22: =IF(C$1<=Resumen!$P$1,IF(OFFSET(Canarias_datos!O47,0,((Resumen!$Q$1-1)*12))=0," ",OFFSET(Canarias_datos!O47,0,((Resumen!$Q$1-1)*12)))," ") -> 682423.585 | D22: =IF(D$1<=Resumen!$P$1,IF(OFFSET(Canarias_datos!P47,0,((Resumen!$Q$1-1)*12))=0," ",OFFSET(Canarias_datos!P47,0,((Resumen!$Q$1-1)*12)))," ") -> 729887.55 | E22: =IF(E$1<=Resumen!$P$1,IF(OFFSET(Canarias_datos!Q47,0,((Resumen!$Q$1-1)*12))=0," ",OFFSET(Canarias_datos!Q47,0,((Resumen!$Q$1-1)*12)))," ") -> 703216.419 | F22: =IF(F$1<=Resumen!$P$1,IF(OFFSET(Canarias_datos!R47,0,((Resumen!$Q$1-1)*12))=0," ",OFFSET(Canarias_datos!R47,0,((Resumen!$Q$1-1)*12)))," ") -> 715935.286 | G22: =IF(G$1<=Resumen!$P$1,IF(OFFSET(Canarias_datos!S47,0,((Resumen!$Q$1-1)*12))=0," ",OFFSET(Canarias_datos!S47,0,((Resumen!$Q$1-1)*12)))," ") -> 707412.238 | H22: =IF(H$1<=Resumen!$P$1,IF(OFFSET(Canarias_datos!T47,0,((Resumen!$Q$1-1)*12))=0," ",OFFSET(Canarias_datos!T47,0,((Resumen!$Q$1-1)*12)))," ") -> 759046.778 | I22: =IF(I$1<=Resumen!$P$1,IF(OFFSET(Canarias_datos!U47,0,((Resumen!$Q$1-1)*12))=0," ",OFFSET(Canarias_datos!U47,0,((Resumen!$Q$1-1)*12)))," ") -> 782418.42 | J22: =IF(J$1<=Resumen!$P$1,IF(OFFSET(Canarias_datos!V47,0,((Resumen!$Q$1-1)*12))=0," ",OFFSET(Canarias_datos!V47,0,((Resumen!$Q$1-1)*12)))," ") -> 764764.041 | K22: =IF(K$1<=Resumen!$P$1,IF(OFFSET(Canarias_datos!W47,0,((Resumen!$Q$1-1)*12))=0," ",OFFSET(Canarias_datos!W47,0,((Resumen!$Q$1-1)*12)))," ") -> 778607.534 | L22: =IF(L$1<=Resumen!$P$1,IF(OFFSET(Canarias_datos!X47,0,((Resumen!$Q$1-1)*12))=0," ",OFFSET(Canarias_datos!X47,0,((Resumen!$Q$1-1)*12)))," ") -> 720773.485 | M22: =IF(M$1<=Resumen!$P$1,IF(OFFSET(Canarias_datos!Y47,0,((Resumen!$Q$1-1)*12))=0," ",OFFSET(Canarias_datos!Y47,0,((Resumen!$Q$1-1)*12)))," ") ->  | N22: 8099772.547
A23: =Resumen!A24 -> %Δ 18/17 | B23: =IF(B$1<=Resumen!$P$1,IF(OFFSET(Canarias_datos!N48,0,((Resumen!$Q$1-1)*12))=0," ",OFFSET(Canarias_datos!N48,0,((Resumen!$Q$1-1)*12)))," ") -> 1.325447705 | C23: =IF(C$1<=Resumen!$P$1,IF(OFFSET(Canarias_datos!O48,0,((Resumen!$Q$1-1)*12))=0," ",OFFSET(Canarias_datos!O48,0,((Resumen!$Q$1-1)*12)))," ") -> 2.588590033 | D23: =IF(D$1<=Resumen!$P$1,IF(OFFSET(Canarias_datos!P48,0,((Resumen!$Q$1-1)*12))=0," ",OFFSET(Canarias_datos!P48,0,((Resumen!$Q$1-1)*12)))," ") -> -0.9267293185 | E23: =IF(E$1<=Resumen!$P$1,IF(OFFSET(Canarias_datos!Q48,0,((Resumen!$Q$1-1)*12))=0," ",OFFSET(Canarias_datos!Q48,0,((Resumen!$Q$1-1)*12)))," ") -> -0.3417813035 | F23: =IF(F$1<=Resumen!$P$1,IF(OFFSET(Canarias_datos!R48,0,((Resumen!$Q$1-1)*12))=0," ",OFFSET(Canarias_datos!R48,0,((Resumen!$Q$1-1)*12)))," ") -> -1.791112329 | G23: =IF(G$1<=Resumen!$P$1,IF(OFFSET(Canarias_datos!S48,0,((Resumen!$Q$1-1)*12))=0," ",OFFSET(Canarias_datos!S48,0,((Resumen!$Q$1-1)*12)))," ") -> -3.115061886 | H23: =IF(H$1<=Resumen!$P$1,IF(OFFSET(Canarias_datos!T48,0,((Resumen!$Q$1-1)*12))=0," ",OFFSET(Canarias_datos!T48,0,((Resumen!$Q$1-1)*12)))," ") -> -1.402003859 | I23: =IF(I$1<=Resumen!$P$1,IF(OFFSET(Canarias_datos!U48,0,((Resumen!$Q$1-1)*12))=0," ",OFFSET(Canarias_datos!U48,0,((Resumen!$Q$1-1)*12)))," ") -> -3.053663246 | J23: =IF(J$1<=Resumen!$P$1,IF(OFFSET(Canarias_datos!V48,0,((Resumen!$Q$1-1)*12))=0," ",OFFSET(Canarias_datos!V48,0,((Resumen!$Q$1-1)*12)))," ") -> 0.7613758691 | K23: =IF(K$1<=Resumen!$P$1,IF(OFFSET(Canarias_datos!W48,0,((Resumen!$Q$1-1)*12))=0," ",OFFSET(Canarias_datos!W48,0,((Resumen!$Q$1-1)*12)))," ") -> -1.424797957 | L23: =IF(L$1<=Resumen!$P$1,IF(OFFSET(Canarias_datos!X48,0,((Resumen!$Q$1-1)*12))=0," ",OFFSET(Canarias_datos!X48,0,((Resumen!$Q$1-1)*12)))," ") -> -3.090754694 | M23: =IF(M$1<=Resumen!$P$1,IF(OFFSET(Canarias_datos!Y48,0,((Resumen!$Q$1-1)*12))=0," ",OFFSET(Canarias_datos!Y48,0,((Resumen!$Q$1-1)*12)))," ") ->  | N23: =((N22/SUM(OFFSET(Canarias_datos!N47,0,(Resumen!$Q$1-2)*12):OFFSET(Canarias_datos!N47,0,((Resumen!$Q$1-2)*12)+Resumen!$P$1-1))-1)*100) -> -1.000325748
A69: =A1 -> Canarias | B69: =L22 -> 720773.485
A70: Resto nacional | B70: =Nacional_datos!CF47-B69 -> 21334705.07

Sheet Cantabria
A1: Cantabria | B1: 1 | C1: 2 | D1: 3 | E1: 4 | F1: 5 | G1: 6 | H1: 7 | I1: 8 | J1: 9 | K1: 10 | L1: 11 | M1: 12
A2: Balance mensual de energía electrica. MWh
B3: 2018
B4: Ene | C4: Feb | D4: Mar | E4: Abr | F4: May | G4: Jun | H4: Jul | I4: Ago | J4: Sep | K4: Oct | L4: Nov | M4: Dic | N4: TOTAL
A5: Hidraulica | B5: =IF(B$1<=Resumen!$P$1,IF(OFFSET(Cantabria_datos!N30,0,((Resumen!$Q$1-1)*12))=0," ",OFFSET(Cantabria_datos!N30,0,((Resumen!$Q$1-1)*12)))," ") -> 39037.026 | C5: =IF(C$1<=Resumen!$P$1,IF(OFFSET(Cantabria_datos!O30,0,((Resumen!$Q$1-1)*12))=0," ",OFFSET(Cantabria_datos!O30,0,((Resumen!$Q$1-1)*12)))," ") -> 40976.63 | D5: =IF(D$1<=Resumen!$P$1,IF(OFFSET(Cantabria_datos!P30,0,((Resumen!$Q$1-1)*12))=0," ",OFFSET(Cantabria_datos!P30,0,((Resumen!$Q$1-1)*12)))," ") -> 48505.245 | E5: =IF(E$1<=Resumen!$P$1,IF(OFFSET(Cantabria_datos!Q30,0,((Resumen!$Q$1-1)*12))=0," ",OFFSET(Cantabria_datos!Q30,0,((Resumen!$Q$1-1)*12)))," ") -> 45707.065 | F5: =IF(F$1<=Resumen!$P$1,IF(OFFSET(Cantabria_datos!R30,0,((Resumen!$Q$1-1)*12))=0," ",OFFSET(Cantabria_datos!R30,0,((Resumen!$Q$1-1)*12)))," ") -> 35316.015 | G5: =IF(G$1<=Resumen!$P$1,IF(OFFSET(Cantabria_datos!S30,0,((Resumen!$Q$1-1)*12))=0," ",OFFSET(Cantabria_datos!S30,0,((Resumen!$Q$1-1)*12)))," ") -> 34909.784 | H5: =IF(H$1<=Resumen!$P$1,IF(OFFSET(Cantabria_datos!T30,0,((Resumen!$Q$1-1)*12))=0," ",OFFSET(Cantabria_datos!T30,0,((Resumen!$Q$1-1)*12)))," ") -> 20599.829 | I5: =IF(I$1<=Resumen!$P$1,IF(OFFSET(Cantabria_datos!U30,0,((Resumen!$Q$1-1)*12))=0," ",OFFSET(Cantabria_datos!U30,0,((Resumen!$Q$1-1)*12)))," ") -> 2325.714 | J5: =IF(J$1<=Resumen!$P$1,IF(OFFSET(Cantabria_datos!V30,0,((Resumen!$Q$1-1)*12))=0," ",OFFSET(Cantabria_datos!V30,0,((Resumen!$Q$1-1)*12)))," ") -> 6405.55 | K5: =IF(K$1<=Resumen!$P$1,IF(OFFSET(Cantabria_datos!W30,0,((Resumen!$Q$1-1)*12))=0," ",OFFSET(Cantabria_datos!W30,0,((Resumen!$Q$1-1)*12)))," ") -> 8921.062 | L5: =IF(L$1<=Resumen!$P$1,IF(OFFSET(Cantabria_datos!X30,0,((Resumen!$Q$1-1)*12))=0," ",OFFSET(Cantabria_datos!X30,0,((Resumen!$Q$1-1)*12)))," ") -> 20926.008 | M5: =IF(M$1<=Resumen!$P$1,IF(OFFSET(Cantabria_datos!Y30,0,((Resumen!$Q$1-1)*12))=0," ",OFFSET(Cantabria_datos!Y30,0,((Resumen!$Q$1-1)*12)))," ") ->  | N5: =IF(SUM(B5:M5)=0," ",SUM(B5:M5)) -> 303629.928
A6: Turbinación bombeo | B6: =IF(B$1<=Resumen!$P$1,IF(OFFSET(Cantabria_datos!N31,0,((Resumen!$Q$1-1)*12))=0," ",OFFSET(Cantabria_datos!N31,0,((Resumen!$Q$1-1)*12)))," ") -> 38233.998 | C6: =IF(C$1<=Resumen!$P$1,IF(OFFSET(Cantabria_datos!O31,0,((Resumen!$Q$1-1)*12))=0," ",OFFSET(Cantabria_datos!O31,0,((Resumen!$Q$1-1)*12)))," ") -> 27188.343 | D6: =IF(D$1<=Resumen!$P$1,IF(OFFSET(Cantabria_datos!P31,0,((Resumen!$Q$1-1)*12))=0," ",OFFSET(Cantabria_datos!P31,0,((Resumen!$Q$1-1)*12)))," ") -> 46007.85 | E6: =IF(E$1<=Resumen!$P$1,IF(OFFSET(Cantabria_datos!Q31,0,((Resumen!$Q$1-1)*12))=0," ",OFFSET(Cantabria_datos!Q31,0,((Resumen!$Q$1-1)*12)))," ") -> 43496.3 | F6: =IF(F$1<=Resumen!$P$1,IF(OFFSET(Cantabria_datos!R31,0,((Resumen!$Q$1-1)*12))=0," ",OFFSET(Cantabria_datos!R31,0,((Resumen!$Q$1-1)*12)))," ") -> 22458.28 | G6: =IF(G$1<=Resumen!$P$1,IF(OFFSET(Cantabria_datos!S31,0,((Resumen!$Q$1-1)*12))=0," ",OFFSET(Cantabria_datos!S31,0,((Resumen!$Q$1-1)*12)))," ") -> 15164.22 | H6: =IF(H$1<=Resumen!$P$1,IF(OFFSET(Cantabria_datos!T31,0,((Resumen!$Q$1-1)*12))=0," ",OFFSET(Cantabria_datos!T31,0,((Resumen!$Q$1-1)*12)))," ") -> 6357.86 | I6: =IF(I$1<=Resumen!$P$1,IF(OFFSET(Cantabria_datos!U31,0,((Resumen!$Q$1-1)*12))=0," ",OFFSET(Cantabria_datos!U31,0,((Resumen!$Q$1-1)*12)))," ") -> 13718.57 | J6: =IF(J$1<=Resumen!$P$1,IF(OFFSET(Cantabria_datos!V31,0,((Resumen!$Q$1-1)*12))=0," ",OFFSET(Cantabria_datos!V31,0,((Resumen!$Q$1-1)*12)))," ") -> 7342.73 | K6: =IF(K$1<=Resumen!$P$1,IF(OFFSET(Cantabria_datos!W31,0,((Resumen!$Q$1-1)*12))=0," ",OFFSET(Cantabria_datos!W31,0,((Resumen!$Q$1-1)*12)))," ") -> 25723.42 | L6: =IF(L$1<=Resumen!$P$1,IF(OFFSET(Cantabria_datos!X31,0,((Resumen!$Q$1-1)*12))=0," ",OFFSET(Cantabria_datos!X31,0,((Resumen!$Q$1-1)*12)))," ") -> 23063.62 | M6: =IF(M$1<=Resumen!$P$1,IF(OFFSET(Cantabria_datos!Y31,0,((Resumen!$Q$1-1)*12))=0," ",OFFSET(Cantabria_datos!Y31,0,((Resumen!$Q$1-1)*12)))," ") ->  | N6: =IF(SUM(B6:M6)=0," ",SUM(B6:M6)) -> 268755.191
A7: Nuclear | B7: =IF(B$1<=Resumen!$P$1,IF(OFFSET(Cantabria_datos!N32,0,((Resumen!$Q$1-1)*12))=0," ",OFFSET(Cantabria_datos!N32,0,((Resumen!$Q$1-1)*12)))," ") ->  | C7: =IF(C$1<=Resumen!$P$1,IF(OFFSET(Cantabria_datos!O32,0,((Resumen!$Q$1-1)*12))=0," ",OFFSET(Cantabria_datos!O32,0,((Resumen!$Q$1-1)*12)))," ") ->  | D7: =IF(D$1<=Resumen!$P$1,IF(OFFSET(Cantabria_datos!P32,0,((Resumen!$Q$1-1)*12))=0," ",OFFSET(Cantabria_datos!P32,0,((Resumen!$Q$1-1)*12)))," ") ->  | E7: =IF(E$1<=Resumen!$P$1,IF(OFFSET(Cantabria_datos!Q32,0,((Resumen!$Q$1-1)*12))=0," ",OFFSET(Cantabria_datos!Q32,0,((Resumen!$Q$1-1)*12)))," ") ->  | F7: =IF(F$1<=Resumen!$P$1,IF(OFFSET(Cantabria_datos!R32,0,((Resumen!$Q$1-1)*12))=0," ",OFFSET(Cantabria_datos!R32,0,((Resumen!$Q$1-1)*12)))," ") ->  | G7: =IF(G$1<=Resumen!$P$1,IF(OFFSET(Cantabria_datos!S32,0,((Resumen!$Q$1-1)*12))=0," ",OFFSET(Cantabria_datos!S32,0,((Resumen!$Q$1-1)*12)))," ") ->  | H7: =IF(H$1<=Resumen!$P$1,IF(OFFSET(Cantabria_datos!T32,0,((Resumen!$Q$1-1)*12))=0," ",OFFSET(Cantabria_datos!T32,0,((Resumen!$Q$1-1)*12)))," ") ->  | I7: =IF(I$1<=Resumen!$P$1,IF(OFFSET(Cantabria_datos!U32,0,((Resumen!$Q$1-1)*12))=0," ",OFFSET(Cantabria_datos!U32,0,((Resumen!$Q$1-1)*12)))," ") ->  | J7: =IF(J$1<=Resumen!$P$1,IF(OFFSET(Cantabria_datos!V32,0,((Resumen!$Q$1-1)*12))=0," ",OFFSET(Cantabria_datos!V32,0,((Resumen!$Q$1-1)*12)))," ") ->  | K7: =IF(K$1<=Resumen!$P$1,IF(OFFSET(Cantabria_datos!W32,0,((Resumen!$Q$1-1)*12))=0," ",OFFSET(Cantabria_datos!W32,0,((Resumen!$Q$1-1)*12)))," ") ->  | L7: =IF(L$1<=Resumen!$P$1,IF(OFFSET(Cantabria_datos!X32,0,((Resumen!$Q$1-1)*12))=0," ",OFFSET(Cantabria_datos!X32,0,((Resumen!$Q$1-1)*12)))," ") ->  | M7: =IF(M$1<=Resumen!$P$1,IF(OFFSET(Cantabria_datos!Y32,0,((Resumen!$Q$1-1)*12))=0," ",OFFSET(Cantabria_datos!Y32,0,((Resumen!$Q$1-1)*12)))," ") ->  | N7: =IF(SUM(B7:M7)=0," ",SUM(B7:M7)) -> 
A8: Carbón | B8: =IF(B$1<=Resumen!$P$1,IF(OFFSET(Cantabria_datos!N33,0,((Resumen!$Q$1-1)*12))=0," ",OFFSET(Cantabria_datos!N33,0,((Resumen!$Q$1-1)*12)))," ") ->  | C8: =IF(C$1<=Resumen!$P$1,IF(OFFSET(Cantabria_datos!O33,0,((Resumen!$Q$1-1)*12))=0," ",OFFSET(Cantabria_datos!O33,0,((Resumen!$Q$1-1)*12)))," ") ->  | D8: =IF(D$1<=Resumen!$P$1,IF(OFFSET(Cantabria_datos!P33,0,((Resumen!$Q$1-1)*12))=0," ",OFFSET(Cantabria_datos!P33,0,((Resumen!$Q$1-1)*12)))," ") ->  | E8: =IF(E$1<=Resumen!$P$1,IF(OFFSET(Cantabria_datos!Q33,0,((Resumen!$Q$1-1)*12))=0," ",OFFSET(Cantabria_datos!Q33,0,((Resumen!$Q$1-1)*12)))," ") ->  | F8: =IF(F$1<=Resumen!$P$1,IF(OFFSET(Cantabria_datos!R33,0,((Resumen!$Q$1-1)*12))=0," ",OFFSET(Cantabria_datos!R33,0,((Resumen!$Q$1-1)*12)))," ") ->  | G8: =IF(G$1<=Resumen!$P$1,IF(OFFSET(Cantabria_datos!S33,0,((Resumen!$Q$1-1)*12))=0," ",OFFSET(Cantabria_datos!S33,0,((Resumen!$Q$1-1)*12)))," ") ->  | H8: =IF(H$1<=Resumen!$P$1,IF(OFFSET(Cantabria_datos!T33,0,((Resumen!$Q$1-1)*12))=0," ",OFFSET(Cantabria_datos!T33,0,((Resumen!$Q$1-1)*12)))," ") ->  | I8: =IF(I$1<=Resumen!$P$1,IF(OFFSET(Cantabria_datos!U33,0,((Resumen!$Q$1-1)*12))=0," ",OFFSET(Cantabria_datos!U33,0,((Resumen!$Q$1-1)*12)))," ") ->  | J8: =IF(J$1<=Resumen!$P$1,IF(OFFSET(Cantabria_datos!V33,0,((Resumen!$Q$1-1)*12))=0," ",OFFSET(Cantabria_datos!V33,0,((Resumen!$Q$1-1)*12)))," ") ->  | K8: =IF(K$1<=Resumen!$P$1,IF(OFFSET(Cantabria_datos!W33,0,((Resumen!$Q$1-1)*12))=0," ",OFFSET(Cantabria_datos!W33,0,((Resumen!$Q$1-1)*12)))," ") ->  | L8: =IF(L$1<=Resumen!$P$1,IF(OFFSET(Cantabria_datos!X33,0,((Resumen!$Q$1-1)*12))=0," ",OFFSET(Cantabria_datos!X33,0,((Resumen!$Q$1-1)*12)))," ") ->  | M8: =IF(M$1<=Resumen!$P$1,IF(OFFSET(Cantabria_datos!Y33,0,((Resumen!$Q$1-1)*12))=0," ",OFFSET(Cantabria_datos!Y33,0,((Resumen!$Q$1-1)*12)))," ") -> 
A9: Fuel-Gas | B9: =IF(B$1<=Resumen!$P$1,IF(OFFSET(Cantabria_datos!N34,0,((Resumen!$Q$1-1)*12))=0," ",OFFSET(Cantabria_datos!N34,0,((Resumen!$Q$1-1)*12)))," ") ->  | C9: =IF(C$1<=Resumen!$P$1,IF(OFFSET(Cantabria_datos!O34,0,((Resumen!$Q$1-1)*12))=0," ",OFFSET(Cantabria_datos!O34,0,((Resumen!$Q$1-1)*12)))," ") ->  | D9: =IF(D$1<=Resumen!$P$1,IF(OFFSET(Cantabria_datos!P34,0,((Resumen!$Q$1-1)*12))=0," ",OFFSET(Cantabria_datos!P34,0,((Resumen!$Q$1-1)*12)))," ") ->  | E9: =IF(E$1<=Resumen!$P$1,IF(OFFSET(Cantabria_datos!Q34,0,((Resumen!$Q$1-1)*12))=0," ",OFFSET(Cantabria_datos!Q34,0,((Resumen!$Q$1-1)*12)))," ") ->  | F9: =IF(F$1<=Resumen!$P$1,IF(OFFSET(Cantabria_datos!R34,0,((Resumen!$Q$1-1)*12))=0," ",OFFSET(Cantabria_datos!R34,0,((Resumen!$Q$1-1)*12)))," ") ->  | G9: =IF(G$1<=Resumen!$P$1,IF(OFFSET(Cantabria_datos!S34,0,((Resumen!$Q$1-1)*12))=0," ",OFFSET(Cantabria_datos!S34,0,((Resumen!$Q$1-1)*12)))," ") ->  | H9: =IF(H$1<=Resumen!$P$1,IF(OFFSET(Cantabria_datos!T34,0,((Resumen!$Q$1-1)*12))=0," ",OFFSET(Cantabria_datos!T34,0,((Resumen!$Q$1-1)*12)))," ") ->  | I9: =IF(I$1<=Resumen!$P$1,IF(OFFSET(Cantabria_datos!U34,0,((Resumen!$Q$1-1)*12))=0," ",OFFSET(Cantabria_datos!U34,0,((Resumen!$Q$1-1)*12)))," ") ->  | J9: =IF(J$1<=Resumen!$P$1,IF(OFFSET(Cantabria_datos!V34,0,((Resumen!$Q$1-1)*12))=0," ",OFFSET(Cantabria_datos!V34,0,((Resumen!$Q$1-1)*12)))," ") ->  | K9: =IF(K$1<=Resumen!$P$1,IF(OFFSET(Cantabria_datos!W34,0,((Resumen!$Q$1-1)*12))=0," ",OFFSET(Cantabria_datos!W34,0,((Resumen!$Q$1-1)*12)))," ") ->  | L9: =IF(L$1<=Resumen!$P$1,IF(OFFSET(Cantabria_datos!X34,0,((Resumen!$Q$1-1)*12))=0," ",OFFSET(Cantabria_datos!X34,0,((Resumen!$Q$1-1)*12)))," ") ->  | M9: =IF(M$1<=Resumen!$P$1,IF(OFFSET(Cantabria_datos!Y34,0,((Resumen!$Q$1-1)*12))=0," ",OFFSET(Cantabria_datos!Y34,0,((Resumen!$Q$1-1)*12)))," ") -> 
A10: Ciclo combinado | B10: =IF(B$1<=Resumen!$P$1,IF(OFFSET(Cantabria_datos!N35,0,((Resumen!$Q$1-1)*12))=0," ",OFFSET(Cantabria_datos!N35,0,((Resumen!$Q$1-1)*12)))," ") ->  | C10: =IF(C$1<=Resumen!$P$1,IF(OFFSET(Cantabria_datos!O35,0,((Resumen!$Q$1-1)*12))=0," ",OFFSET(Cantabria_datos!O35,0,((Resumen!$Q$1-1)*12)))," ") ->  | D10: =IF(D$1<=Resumen!$P$1,IF(OFFSET(Cantabria_datos!P35,0,((Resumen!$Q$1-1)*12))=0," ",OFFSET(Cantabria_datos!P35,0,((Resumen!$Q$1-1)*12)))," ") ->  | E10: =IF(E$1<=Resumen!$P$1,IF(OFFSET(Cantabria_datos!Q35,0,((Resumen!$Q$1-1)*12))=0," ",OFFSET(Cantabria_datos!Q35,0,((Resumen!$Q$1-1)*12)))," ") ->  | F10: =IF(F$1<=Resumen!$P$1,IF(OFFSET(Cantabria_datos!R35,0,((Resumen!$Q$1-1)*12))=0," ",OFFSET(Cantabria_datos!R35,0,((Resumen!$Q$1-1)*12)))," ") ->  | G10: =IF(G$1<=Resumen!$P$1,IF(OFFSET(Cantabria_datos!S35,0,((Resumen!$Q$1-1)*12))=0," ",OFFSET(Cantabria_datos!S35,0,((Resumen!$Q$1-1)*12)))," ") ->  | H10: =IF(H$1<=Resumen!$P$1,IF(OFFSET(Cantabria_datos!T35,0,((Resumen!$Q$1-1)*12))=0," ",OFFSET(Cantabria_datos!T35,0,((Resumen!$Q$1-1)*12)))," ") ->  | I10: =IF(I$1<=Resumen!$P$1,IF(OFFSET(Cantabria_datos!U35,0,((Resumen!$Q$1-1)*12))=0," ",OFFSET(Cantabria_datos!U35,0,((Resumen!$Q$1-1)*12)))," ") ->  | J10: =IF(J$1<=Resumen!$P$1,IF(OFFSET(Cantabria_datos!V35,0,((Resumen!$Q$1-1)*12))=0," ",OFFSET(Cantabria_datos!V35,0,((Resumen!$Q$1-1)*12)))," ") ->  | K10: =IF(K$1<=Resumen!$P$1,IF(OFFSET(Cantabria_datos!W35,0,((Resumen!$Q$1-1)*12))=0," ",OFFSET(Cantabria_datos!W35,0,((Resumen!$Q$1-1)*12)))," ") ->  | L10: =IF(L$1<=Resumen!$P$1,IF(OFFSET(Cantabria_datos!X35,0,((Resumen!$Q$1-1)*12))=0," ",OFFSET(Cantabria_datos!X35,0,((Resumen!$Q$1-1)*12)))," ") ->  | M10: =IF(M$1<=Resumen!$P$1,IF(OFFSET(Cantabria_datos!Y35,0,((Resumen!$Q$1-1)*12))=0," ",OFFSET(Cantabria_datos!Y35,0,((Resumen!$Q$1-1)*12)))," ") -> 
A11: Hidroeólica | B11: =IF(B$1<=Resumen!$P$1,IF(OFFSET(Cantabria_datos!N36,0,((Resumen!$Q$1-1)*12))=0," ",OFFSET(Cantabria_datos!N36,0,((Resumen!$Q$1-1)*12)))," ") ->  | C11: =IF(C$1<=Resumen!$P$1,IF(OFFSET(Cantabria_datos!O36,0,((Resumen!$Q$1-1)*12))=0," ",OFFSET(Cantabria_datos!O36,0,((Resumen!$Q$1-1)*12)))," ") ->  | D11: =IF(D$1<=Resumen!$P$1,IF(OFFSET(Cantabria_datos!P36,0,((Resumen!$Q$1-1)*12))=0," ",OFFSET(Cantabria_datos!P36,0,((Resumen!$Q$1-1)*12)))," ") ->  | E11: =IF(E$1<=Resumen!$P$1,IF(OFFSET(Cantabria_datos!Q36,0,((Resumen!$Q$1-1)*12))=0," ",OFFSET(Cantabria_datos!Q36,0,((Resumen!$Q$1-1)*12)))," ") ->  | F11: =IF(F$1<=Resumen!$P$1,IF(OFFSET(Cantabria_datos!R36,0,((Resumen!$Q$1-1)*12))=0," ",OFFSET(Cantabria_datos!R36,0,((Resumen!$Q$1-1)*12)))," ") ->  | G11: =IF(G$1<=Resumen!$P$1,IF(OFFSET(Cantabria_datos!S36,0,((Resumen!$Q$1-1)*12))=0," ",OFFSET(Cantabria_datos!S36,0,((Resumen!$Q$1-1)*12)))," ") ->  | H11: =IF(H$1<=Resumen!$P$1,IF(OFFSET(Cantabria_datos!T36,0,((Resumen!$Q$1-1)*12))=0," ",OFFSET(Cantabria_datos!T36,0,((Resumen!$Q$1-1)*12)))," ") ->  | I11: =IF(I$1<=Resumen!$P$1,IF(OFFSET(Cantabria_datos!U36,0,((Resumen!$Q$1-1)*12))=0," ",OFFSET(Cantabria_datos!U36,0,((Resumen!$Q$1-1)*12)))," ") ->  | J11: =IF(J$1<=Resumen!$P$1,IF(OFFSET(Cantabria_datos!V36,0,((Resumen!$Q$1-1)*12))=0," ",OFFSET(Cantabria_datos!V36,0,((Resumen!$Q$1-1)*12)))," ") ->  | K11: =IF(K$1<=Resumen!$P$1,IF(OFFSET(Cantabria_datos!W36,0,((Resumen!$Q$1-1)*12))=0," ",OFFSET(Cantabria_datos!W36,0,((Resumen!$Q$1-1)*12)))," ") ->  | L11: =IF(L$1<=Resumen!$P$1,IF(OFFSET(Cantabria_datos!X36,0,((Resumen!$Q$1-1)*12))=0," ",OFFSET(Cantabria_datos!X36,0,((Resumen!$Q$1-1)*12)))," ") ->  | M11: =IF(M$1<=Resumen!$P$1,IF(OFFSET(Cantabria_datos!Y36,0,((Resumen!$Q$1-1)*12))=0," ",OFFSET(Cantabria_datos!Y36,0,((Resumen!$Q$1-1)*12)))," ") -> 
A12: Eólica | B12: =IF(B$1<=Resumen!$P$1,IF(OFFSET(Cantabria_datos!N37,0,((Resumen!$Q$1-1)*12))=0," ",OFFSET(Cantabria_datos!N37,0,((Resumen!$Q$1-1)*12)))," ") -> 7810.512 | C12: =IF(C$1<=Resumen!$P$1,IF(OFFSET(Cantabria_datos!O37,0,((Resumen!$Q$1-1)*12))=0," ",OFFSET(Cantabria_datos!O37,0,((Resumen!$Q$1-1)*12)))," ") -> 5391.243 | D12: =IF(D$1<=Resumen!$P$1,IF(OFFSET(Cantabria_datos!P37,0,((Resumen!$Q$1-1)*12))=0," ",OFFSET(Cantabria_datos!P37,0,((Resumen!$Q$1-1)*12)))," ") -> 11191.913 | E12: =IF(E$1<=Resumen!$P$1,IF(OFFSET(Cantabria_datos!Q37,0,((Resumen!$Q$1-1)*12))=0," ",OFFSET(Cantabria_datos!Q37,0,((Resumen!$Q$1-1)*12)))," ") -> 7664.437 | F12: =IF(F$1<=Resumen!$P$1,IF(OFFSET(Cantabria_datos!R37,0,((Resumen!$Q$1-1)*12))=0," ",OFFSET(Cantabria_datos!R37,0,((Resumen!$Q$1-1)*12)))," ") -> 2950.32 | G12: =IF(G$1<=Resumen!$P$1,IF(OFFSET(Cantabria_datos!S37,0,((Resumen!$Q$1-1)*12))=0," ",OFFSET(Cantabria_datos!S37,0,((Resumen!$Q$1-1)*12)))," ") -> 2277.133 | H12: =IF(H$1<=Resumen!$P$1,IF(OFFSET(Cantabria_datos!T37,0,((Resumen!$Q$1-1)*12))=0," ",OFFSET(Cantabria_datos!T37,0,((Resumen!$Q$1-1)*12)))," ") -> 1070.467 | I12: =IF(I$1<=Resumen!$P$1,IF(OFFSET(Cantabria_datos!U37,0,((Resumen!$Q$1-1)*12))=0," ",OFFSET(Cantabria_datos!U37,0,((Resumen!$Q$1-1)*12)))," ") -> 1611.751 | J12: =IF(J$1<=Resumen!$P$1,IF(OFFSET(Cantabria_datos!V37,0,((Resumen!$Q$1-1)*12))=0," ",OFFSET(Cantabria_datos!V37,0,((Resumen!$Q$1-1)*12)))," ") -> 2435.907 | K12: =IF(K$1<=Resumen!$P$1,IF(OFFSET(Cantabria_datos!W37,0,((Resumen!$Q$1-1)*12))=0," ",OFFSET(Cantabria_datos!W37,0,((Resumen!$Q$1-1)*12)))," ") -> 6628.862 | L12: =IF(L$1<=Resumen!$P$1,IF(OFFSET(Cantabria_datos!X37,0,((Resumen!$Q$1-1)*12))=0," ",OFFSET(Cantabria_datos!X37,0,((Resumen!$Q$1-1)*12)))," ") -> 11044.519 | M12: =IF(M$1<=Resumen!$P$1,IF(OFFSET(Cantabria_datos!Y37,0,((Resumen!$Q$1-1)*12))=0," ",OFFSET(Cantabria_datos!Y37,0,((Resumen!$Q$1-1)*12)))," ") ->  | N12: 60077.064
A13: Solar fotovoltaico | B13: =IF(B$1<=Resumen!$P$1,IF(OFFSET(Cantabria_datos!N38,0,((Resumen!$Q$1-1)*12))=0," ",OFFSET(Cantabria_datos!N38,0,((Resumen!$Q$1-1)*12)))," ") -> 76.458 | C13: =IF(C$1<=Resumen!$P$1,IF(OFFSET(Cantabria_datos!O38,0,((Resumen!$Q$1-1)*12))=0," ",OFFSET(Cantabria_datos!O38,0,((Resumen!$Q$1-1)*12)))," ") -> 82.254 | D13: =IF(D$1<=Resumen!$P$1,IF(OFFSET(Cantabria_datos!P38,0,((Resumen!$Q$1-1)*12))=0," ",OFFSET(Cantabria_datos!P38,0,((Resumen!$Q$1-1)*12)))," ") -> 157.039 | E13: =IF(E$1<=Resumen!$P$1,IF(OFFSET(Cantabria_datos!Q38,0,((Resumen!$Q$1-1)*12))=0," ",OFFSET(Cantabria_datos!Q38,0,((Resumen!$Q$1-1)*12)))," ") -> 171.074 | F13: =IF(F$1<=Resumen!$P$1,IF(OFFSET(Cantabria_datos!R38,0,((Resumen!$Q$1-1)*12))=0," ",OFFSET(Cantabria_datos!R38,0,((Resumen!$Q$1-1)*12)))," ") -> 210.905 | G13: =IF(G$1<=Resumen!$P$1,IF(OFFSET(Cantabria_datos!S38,0,((Resumen!$Q$1-1)*12))=0," ",OFFSET(Cantabria_datos!S38,0,((Resumen!$Q$1-1)*12)))," ") -> 193.885 | H13: =IF(H$1<=Resumen!$P$1,IF(OFFSET(Cantabria_datos!T38,0,((Resumen!$Q$1-1)*12))=0," ",OFFSET(Cantabria_datos!T38,0,((Resumen!$Q$1-1)*12)))," ") -> 181.529 | I13: =IF(I$1<=Resumen!$P$1,IF(OFFSET(Cantabria_datos!U38,0,((Resumen!$Q$1-1)*12))=0," ",OFFSET(Cantabria_datos!U38,0,((Resumen!$Q$1-1)*12)))," ") -> 210.903 | J13: =IF(J$1<=Resumen!$P$1,IF(OFFSET(Cantabria_datos!V38,0,((Resumen!$Q$1-1)*12))=0," ",OFFSET(Cantabria_datos!V38,0,((Resumen!$Q$1-1)*12)))," ") -> 173.777 | K13: =IF(K$1<=Resumen!$P$1,IF(OFFSET(Cantabria_datos!W38,0,((Resumen!$Q$1-1)*12))=0," ",OFFSET(Cantabria_datos!W38,0,((Resumen!$Q$1-1)*12)))," ") -> 139.97 | L13: =IF(L$1<=Resumen!$P$1,IF(OFFSET(Cantabria_datos!X38,0,((Resumen!$Q$1-1)*12))=0," ",OFFSET(Cantabria_datos!X38,0,((Resumen!$Q$1-1)*12)))," ") -> 116.616 | M13: =IF(M$1<=Resumen!$P$1,IF(OFFSET(Cantabria_datos!Y38,0,((Resumen!$Q$1-1)*12))=0," ",OFFSET(Cantabria_datos!Y38,0,((Resumen!$Q$1-1)*12)))," ") ->  | N13: 1714.41
A14: Solar térmica | B14: =IF(B$1<=Resumen!$P$1,IF(OFFSET(Cantabria_datos!N39,0,((Resumen!$Q$1-1)*12))=0," ",OFFSET(Cantabria_datos!N39,0,((Resumen!$Q$1-1)*12)))," ") ->  | C14: =IF(C$1<=Resumen!$P$1,IF(OFFSET(Cantabria_datos!O39,0,((Resumen!$Q$1-1)*12))=0," ",OFFSET(Cantabria_datos!O39,0,((Resumen!$Q$1-1)*12)))," ") ->  | D14: =IF(D$1<=Resumen!$P$1,IF(OFFSET(Cantabria_datos!P39,0,((Resumen!$Q$1-1)*12))=0," ",OFFSET(Cantabria_datos!P39,0,((Resumen!$Q$1-1)*12)))," ") ->  | E14: =IF(E$1<=Resumen!$P$1,IF(OFFSET(Cantabria_datos!Q39,0,((Resumen!$Q$1-1)*12))=0," ",OFFSET(Cantabria_datos!Q39,0,((Resumen!$Q$1-1)*12)))," ") ->  | F14: =IF(F$1<=Resumen!$P$1,IF(OFFSET(Cantabria_datos!R39,0,((Resumen!$Q$1-1)*12))=0," ",OFFSET(Cantabria_datos!R39,0,((Resumen!$Q$1-1)*12)))," ") ->  | G14: =IF(G$1<=Resumen!$P$1,IF(OFFSET(Cantabria_datos!S39,0,((Resumen!$Q$1-1)*12))=0," ",OFFSET(Cantabria_datos!S39,0,((Resumen!$Q$1-1)*12)))," ") ->  | H14: =IF(H$1<=Resumen!$P$1,IF(OFFSET(Cantabria_datos!T39,0,((Resumen!$Q$1-1)*12))=0," ",OFFSET(Cantabria_datos!T39,0,((Resumen!$Q$1-1)*12)))," ") ->  | I14: =IF(I$1<=Resumen!$P$1,IF(OFFSET(Cantabria_datos!U39,0,((Resumen!$Q$1-1)*12))=0," ",OFFSET(Cantabria_datos!U39,0,((Resumen!$Q$1-1)*12)))," ") ->  | J14: =IF(J$1<=Resumen!$P$1,IF(OFFSET(Cantabria_datos!V39,0,((Resumen!$Q$1-1)*12))=0," ",OFFSET(Cantabria_datos!V39,0,((Resumen!$Q$1-1)*12)))," ") ->  | K14: =IF(K$1<=Resumen!$P$1,IF(OFFSET(Cantabria_datos!W39,0,((Resumen!$Q$1-1)*12))=0," ",OFFSET(Cantabria_datos!W39,0,((Resumen!$Q$1-1)*12)))," ") ->  | L14: =IF(L$1<=Resumen!$P$1,IF(OFFSET(Cantabria_datos!X39,0,((Resumen!$Q$1-1)*12))=0," ",OFFSET(Cantabria_datos!X39,0,((Resumen!$Q$1-1)*12)))," ") ->  | M14: =IF(M$1<=Resumen!$P$1,IF(OFFSET(Cantabria_datos!Y39,0,((Resumen!$Q$1-1)*12))=0," ",OFFSET(Cantabria_datos!Y39,0,((Resumen!$Q$1-1)*12)))," ") -> 
A15: Otras renovables | B15: =IF(B$1<=Resumen!$P$1,IF(OFFSET(Cantabria_datos!N40,0,((Resumen!$Q$1-1)*12))=0," ",OFFSET(Cantabria_datos!N40,0,((Resumen!$Q$1-1)*12)))," ") -> 7228.941 | C15: =IF(C$1<=Resumen!$P$1,IF(OFFSET(Cantabria_datos!O40,0,((Resumen!$Q$1-1)*12))=0," ",OFFSET(Cantabria_datos!O40,0,((Resumen!$Q$1-1)*12)))," ") -> 3758.081 | D15: =IF(D$1<=Resumen!$P$1,IF(OFFSET(Cantabria_datos!P40,0,((Resumen!$Q$1-1)*12))=0," ",OFFSET(Cantabria_datos!P40,0,((Resumen!$Q$1-1)*12)))," ") -> 7293.661 | E15: =IF(E$1<=Resumen!$P$1,IF(OFFSET(Cantabria_datos!Q40,0,((Resumen!$Q$1-1)*12))=0," ",OFFSET(Cantabria_datos!Q40,0,((Resumen!$Q$1-1)*12)))," ") -> 7044.733 | F15: =IF(F$1<=Resumen!$P$1,IF(OFFSET(Cantabria_datos!R40,0,((Resumen!$Q$1-1)*12))=0," ",OFFSET(Cantabria_datos!R40,0,((Resumen!$Q$1-1)*12)))," ") -> 7268.877 | G15: =IF(G$1<=Resumen!$P$1,IF(OFFSET(Cantabria_datos!S40,0,((Resumen!$Q$1-1)*12))=0," ",OFFSET(Cantabria_datos!S40,0,((Resumen!$Q$1-1)*12)))," ") -> 6997.114 | H15: =IF(H$1<=Resumen!$P$1,IF(OFFSET(Cantabria_datos!T40,0,((Resumen!$Q$1-1)*12))=0," ",OFFSET(Cantabria_datos!T40,0,((Resumen!$Q$1-1)*12)))," ") -> 7261.564 | I15: =IF(I$1<=Resumen!$P$1,IF(OFFSET(Cantabria_datos!U40,0,((Resumen!$Q$1-1)*12))=0," ",OFFSET(Cantabria_datos!U40,0,((Resumen!$Q$1-1)*12)))," ") -> 7188.687 | J15: =IF(J$1<=Resumen!$P$1,IF(OFFSET(Cantabria_datos!V40,0,((Resumen!$Q$1-1)*12))=0," ",OFFSET(Cantabria_datos!V40,0,((Resumen!$Q$1-1)*12)))," ") -> 6663.841 | K15: =IF(K$1<=Resumen!$P$1,IF(OFFSET(Cantabria_datos!W40,0,((Resumen!$Q$1-1)*12))=0," ",OFFSET(Cantabria_datos!W40,0,((Resumen!$Q$1-1)*12)))," ") -> 7294.709 | L15: =IF(L$1<=Resumen!$P$1,IF(OFFSET(Cantabria_datos!X40,0,((Resumen!$Q$1-1)*12))=0," ",OFFSET(Cantabria_datos!X40,0,((Resumen!$Q$1-1)*12)))," ") -> 6642.381 | M15: =IF(M$1<=Resumen!$P$1,IF(OFFSET(Cantabria_datos!Y40,0,((Resumen!$Q$1-1)*12))=0," ",OFFSET(Cantabria_datos!Y40,0,((Resumen!$Q$1-1)*12)))," ") ->  | N15: 74642.589
A16: Cogeneración | B16: =IF(B$1<=Resumen!$P$1,IF(OFFSET(Cantabria_datos!N41,0,((Resumen!$Q$1-1)*12))=0," ",OFFSET(Cantabria_datos!N41,0,((Resumen!$Q$1-1)*12)))," ") -> 138510.01 | C16: =IF(C$1<=Resumen!$P$1,IF(OFFSET(Cantabria_datos!O41,0,((Resumen!$Q$1-1)*12))=0," ",OFFSET(Cantabria_datos!O41,0,((Resumen!$Q$1-1)*12)))," ") -> 121141.629 | D16: =IF(D$1<=Resumen!$P$1,IF(OFFSET(Cantabria_datos!P41,0,((Resumen!$Q$1-1)*12))=0," ",OFFSET(Cantabria_datos!P41,0,((Resumen!$Q$1-1)*12)))," ") -> 100329.964 | E16: =IF(E$1<=Resumen!$P$1,IF(OFFSET(Cantabria_datos!Q41,0,((Resumen!$Q$1-1)*12))=0," ",OFFSET(Cantabria_datos!Q41,0,((Resumen!$Q$1-1)*12)))," ") -> 108125.715 | F16: =IF(F$1<=Resumen!$P$1,IF(OFFSET(Cantabria_datos!R41,0,((Resumen!$Q$1-1)*12))=0," ",OFFSET(Cantabria_datos!R41,0,((Resumen!$Q$1-1)*12)))," ") -> 91355.67 | G16: =IF(G$1<=Resumen!$P$1,IF(OFFSET(Cantabria_datos!S41,0,((Resumen!$Q$1-1)*12))=0," ",OFFSET(Cantabria_datos!S41,0,((Resumen!$Q$1-1)*12)))," ") -> 119004.476 | H16: =IF(H$1<=Resumen!$P$1,IF(OFFSET(Cantabria_datos!T41,0,((Resumen!$Q$1-1)*12))=0," ",OFFSET(Cantabria_datos!T41,0,((Resumen!$Q$1-1)*12)))," ") -> 116412.371 | I16: =IF(I$1<=Resumen!$P$1,IF(OFFSET(Cantabria_datos!U41,0,((Resumen!$Q$1-1)*12))=0," ",OFFSET(Cantabria_datos!U41,0,((Resumen!$Q$1-1)*12)))," ") -> 135608.957 | J16: =IF(J$1<=Resumen!$P$1,IF(OFFSET(Cantabria_datos!V41,0,((Resumen!$Q$1-1)*12))=0," ",OFFSET(Cantabria_datos!V41,0,((Resumen!$Q$1-1)*12)))," ") -> 116914.11 | K16: =IF(K$1<=Resumen!$P$1,IF(OFFSET(Cantabria_datos!W41,0,((Resumen!$Q$1-1)*12))=0," ",OFFSET(Cantabria_datos!W41,0,((Resumen!$Q$1-1)*12)))," ") -> 124319.255 | L16: =IF(L$1<=Resumen!$P$1,IF(OFFSET(Cantabria_datos!X41,0,((Resumen!$Q$1-1)*12))=0," ",OFFSET(Cantabria_datos!X41,0,((Resumen!$Q$1-1)*12)))," ") -> 82016.055 | M16: =IF(M$1<=Resumen!$P$1,IF(OFFSET(Cantabria_datos!Y41,0,((Resumen!$Q$1-1)*12))=0," ",OFFSET(Cantabria_datos!Y41,0,((Resumen!$Q$1-1)*12)))," ") ->  | N16: 1253738.212
A17: Residuos no renovables | B17: =IF(B$1<=Resumen!$P$1,IF(OFFSET(Cantabria_datos!N42,0,((Resumen!$Q$1-1)*12))=0," ",OFFSET(Cantabria_datos!N42,0,((Resumen!$Q$1-1)*12)))," ") -> 1386.5915 | C17: =IF(C$1<=Resumen!$P$1,IF(OFFSET(Cantabria_datos!O42,0,((Resumen!$Q$1-1)*12))=0," ",OFFSET(Cantabria_datos!O42,0,((Resumen!$Q$1-1)*12)))," ") -> 2620.844 | D17: =IF(D$1<=Resumen!$P$1,IF(OFFSET(Cantabria_datos!P42,0,((Resumen!$Q$1-1)*12))=0," ",OFFSET(Cantabria_datos!P42,0,((Resumen!$Q$1-1)*12)))," ") -> 3389.2825 | E17: =IF(E$1<=Resumen!$P$1,IF(OFFSET(Cantabria_datos!Q42,0,((Resumen!$Q$1-1)*12))=0," ",OFFSET(Cantabria_datos!Q42,0,((Resumen!$Q$1-1)*12)))," ") -> 3234.8975 | F17: =IF(F$1<=Resumen!$P$1,IF(OFFSET(Cantabria_datos!R42,0,((Resumen!$Q$1-1)*12))=0," ",OFFSET(Cantabria_datos!R42,0,((Resumen!$Q$1-1)*12)))," ") -> 3321.5215 | G17: =IF(G$1<=Resumen!$P$1,IF(OFFSET(Cantabria_datos!S42,0,((Resumen!$Q$1-1)*12))=0," ",OFFSET(Cantabria_datos!S42,0,((Resumen!$Q$1-1)*12)))," ") -> 3168.6205 | H17: =IF(H$1<=Resumen!$P$1,IF(OFFSET(Cantabria_datos!T42,0,((Resumen!$Q$1-1)*12))=0," ",OFFSET(Cantabria_datos!T42,0,((Resumen!$Q$1-1)*12)))," ") -> 3235.833 | I17: =IF(I$1<=Resumen!$P$1,IF(OFFSET(Cantabria_datos!U42,0,((Resumen!$Q$1-1)*12))=0," ",OFFSET(Cantabria_datos!U42,0,((Resumen!$Q$1-1)*12)))," ") -> 3427.0105 | J17: =IF(J$1<=Resumen!$P$1,IF(OFFSET(Cantabria_datos!V42,0,((Resumen!$Q$1-1)*12))=0," ",OFFSET(Cantabria_datos!V42,0,((Resumen!$Q$1-1)*12)))," ") -> 3330.4745 | K17: =IF(K$1<=Resumen!$P$1,IF(OFFSET(Cantabria_datos!W42,0,((Resumen!$Q$1-1)*12))=0," ",OFFSET(Cantabria_datos!W42,0,((Resumen!$Q$1-1)*12)))," ") -> 3302.881 | L17: =IF(L$1<=Resumen!$P$1,IF(OFFSET(Cantabria_datos!X42,0,((Resumen!$Q$1-1)*12))=0," ",OFFSET(Cantabria_datos!X42,0,((Resumen!$Q$1-1)*12)))," ") -> 2812.205 | M17: =IF(M$1<=Resumen!$P$1,IF(OFFSET(Cantabria_datos!Y42,0,((Resumen!$Q$1-1)*12))=0," ",OFFSET(Cantabria_datos!Y42,0,((Resumen!$Q$1-1)*12)))," ") ->  | N17: 33230.1615
A18: Residuos renovables | B18: =IF(B$1<=Resumen!$P$1,IF(OFFSET(Cantabria_datos!N43,0,((Resumen!$Q$1-1)*12))=0," ",OFFSET(Cantabria_datos!N43,0,((Resumen!$Q$1-1)*12)))," ") -> 1386.5915 | C18: =IF(C$1<=Resumen!$P$1,IF(OFFSET(Cantabria_datos!O43,0,((Resumen!$Q$1-1)*12))=0," ",OFFSET(Cantabria_datos!O43,0,((Resumen!$Q$1-1)*12)))," ") -> 2620.844 | D18: =IF(D$1<=Resumen!$P$1,IF(OFFSET(Cantabria_datos!P43,0,((Resumen!$Q$1-1)*12))=0," ",OFFSET(Cantabria_datos!P43,0,((Resumen!$Q$1-1)*12)))," ") -> 3389.2825 | E18: =IF(E$1<=Resumen!$P$1,IF(OFFSET(Cantabria_datos!Q43,0,((Resumen!$Q$1-1)*12))=0," ",OFFSET(Cantabria_datos!Q43,0,((Resumen!$Q$1-1)*12)))," ") -> 3234.8975 | F18: =IF(F$1<=Resumen!$P$1,IF(OFFSET(Cantabria_datos!R43,0,((Resumen!$Q$1-1)*12))=0," ",OFFSET(Cantabria_datos!R43,0,((Resumen!$Q$1-1)*12)))," ") -> 3321.5215 | G18: =IF(G$1<=Resumen!$P$1,IF(OFFSET(Cantabria_datos!S43,0,((Resumen!$Q$1-1)*12))=0," ",OFFSET(Cantabria_datos!S43,0,((Resumen!$Q$1-1)*12)))," ") -> 3168.6205 | H18: =IF(H$1<=Resumen!$P$1,IF(OFFSET(Cantabria_datos!T43,0,((Resumen!$Q$1-1)*12))=0," ",OFFSET(Cantabria_datos!T43,0,((Resumen!$Q$1-1)*12)))," ") -> 3235.833 | I18: =IF(I$1<=Resumen!$P$1,IF(OFFSET(Cantabria_datos!U43,0,((Resumen!$Q$1-1)*12))=0," ",OFFSET(Cantabria_datos!U43,0,((Resumen!$Q$1-1)*12)))," ") -> 3427.0105 | J18: =IF(J$1<=Resumen!$P$1,IF(OFFSET(Cantabria_datos!V43,0,((Resumen!$Q$1-1)*12))=0," ",OFFSET(Cantabria_datos!V43,0,((Resumen!$Q$1-1)*12)))," ") -> 3330.4745 | K18: =IF(K$1<=Resumen!$P$1,IF(OFFSET(Cantabria_datos!W43,0,((Resumen!$Q$1-1)*12))=0," ",OFFSET(Cantabria_datos!W43,0,((Resumen!$Q$1-1)*12)))," ") -> 3302.881 | L18: =IF(L$1<=Resumen!$P$1,IF(OFFSET(Cantabria_datos!X43,0,((Resumen!$Q$1-1)*12))=0," ",OFFSET(Cantabria_datos!X43,0,((Resumen!$Q$1-1)*12)))," ") -> 2812.205 | M18: =IF(M$1<=Resumen!$P$1,IF(OFFSET(Cantabria_datos!Y43,0,((Resumen!$Q$1-1)*12))=0," ",OFFSET(Cantabria_datos!Y43,0,((Resumen!$Q$1-1)*12)))," ") ->  | N18: =IF(SUM(B18:M18)=0," ",SUM(B18:M18)) -> 33230.1615
A19: Generación neta | B19: =IF(B$1<=Resumen!$P$1,IF(OFFSET(Cantabria_datos!N44,0,((Resumen!$Q$1-1)*12))=0," ",OFFSET(Cantabria_datos!N44,0,((Resumen!$Q$1-1)*12)))," ") -> 233670.128 | C19: =IF(C$1<=Resumen!$P$1,IF(OFFSET(Cantabria_datos!O44,0,((Resumen!$Q$1-1)*12))=0," ",OFFSET(Cantabria_datos!O44,0,((Resumen!$Q$1-1)*12)))," ") -> 203779.868 | D19: =IF(D$1<=Resumen!$P$1,IF(OFFSET(Cantabria_datos!P44,0,((Resumen!$Q$1-1)*12))=0," ",OFFSET(Cantabria_datos!P44,0,((Resumen!$Q$1-1)*12)))," ") -> 220264.237 | E19: =IF(E$1<=Resumen!$P$1,IF(OFFSET(Cantabria_datos!Q44,0,((Resumen!$Q$1-1)*12))=0," ",OFFSET(Cantabria_datos!Q44,0,((Resumen!$Q$1-1)*12)))," ") -> 218679.119 | F19: =IF(F$1<=Resumen!$P$1,IF(OFFSET(Cantabria_datos!R44,0,((Resumen!$Q$1-1)*12))=0," ",OFFSET(Cantabria_datos!R44,0,((Resumen!$Q$1-1)*12)))," ") -> 166203.11 | G19: =IF(G$1<=Resumen!$P$1,IF(OFFSET(Cantabria_datos!S44,0,((Resumen!$Q$1-1)*12))=0," ",OFFSET(Cantabria_datos!S44,0,((Resumen!$Q$1-1)*12)))," ") -> 184883.853 | H19: =IF(H$1<=Resumen!$P$1,IF(OFFSET(Cantabria_datos!T44,0,((Resumen!$Q$1-1)*12))=0," ",OFFSET(Cantabria_datos!T44,0,((Resumen!$Q$1-1)*12)))," ") -> 158355.286 | I19: =IF(I$1<=Resumen!$P$1,IF(OFFSET(Cantabria_datos!U44,0,((Resumen!$Q$1-1)*12))=0," ",OFFSET(Cantabria_datos!U44,0,((Resumen!$Q$1-1)*12)))," ") -> 167518.603 | J19: =IF(J$1<=Resumen!$P$1,IF(OFFSET(Cantabria_datos!V44,0,((Resumen!$Q$1-1)*12))=0," ",OFFSET(Cantabria_datos!V44,0,((Resumen!$Q$1-1)*12)))," ") -> 146596.864 | K19: =IF(K$1<=Resumen!$P$1,IF(OFFSET(Cantabria_datos!W44,0,((Resumen!$Q$1-1)*12))=0," ",OFFSET(Cantabria_datos!W44,0,((Resumen!$Q$1-1)*12)))," ") -> 179633.04 | L19: =IF(L$1<=Resumen!$P$1,IF(OFFSET(Cantabria_datos!X44,0,((Resumen!$Q$1-1)*12))=0," ",OFFSET(Cantabria_datos!X44,0,((Resumen!$Q$1-1)*12)))," ") -> 149433.609 | M19: =IF(M$1<=Resumen!$P$1,IF(OFFSET(Cantabria_datos!Y44,0,((Resumen!$Q$1-1)*12))=0," ",OFFSET(Cantabria_datos!Y44,0,((Resumen!$Q$1-1)*12)))," ") ->  | N19: 2029017.717
A20: Consumos en bombeo | B20: =IF(B$1<=Resumen!$P$1,IF(OFFSET(Cantabria_datos!N45,0,((Resumen!$Q$1-1)*12))=0," ",OFFSET(Cantabria_datos!N45,0,((Resumen!$Q$1-1)*12)))," ") -> -55131.03 | C20: =IF(C$1<=Resumen!$P$1,IF(OFFSET(Cantabria_datos!O45,0,((Resumen!$Q$1-1)*12))=0," ",OFFSET(Cantabria_datos!O45,0,((Resumen!$Q$1-1)*12)))," ") -> -39701.204 | D20: =IF(D$1<=Resumen!$P$1,IF(OFFSET(Cantabria_datos!P45,0,((Resumen!$Q$1-1)*12))=0," ",OFFSET(Cantabria_datos!P45,0,((Resumen!$Q$1-1)*12)))," ") -> -74010.83 | E20: =IF(E$1<=Resumen!$P$1,IF(OFFSET(Cantabria_datos!Q45,0,((Resumen!$Q$1-1)*12))=0," ",OFFSET(Cantabria_datos!Q45,0,((Resumen!$Q$1-1)*12)))," ") -> -60645.929 | F20: =IF(F$1<=Resumen!$P$1,IF(OFFSET(Cantabria_datos!R45,0,((Resumen!$Q$1-1)*12))=0," ",OFFSET(Cantabria_datos!R45,0,((Resumen!$Q$1-1)*12)))," ") -> -30431.981 | G20: =IF(G$1<=Resumen!$P$1,IF(OFFSET(Cantabria_datos!S45,0,((Resumen!$Q$1-1)*12))=0," ",OFFSET(Cantabria_datos!S45,0,((Resumen!$Q$1-1)*12)))," ") -> -20784.85 | H20: =IF(H$1<=Resumen!$P$1,IF(OFFSET(Cantabria_datos!T45,0,((Resumen!$Q$1-1)*12))=0," ",OFFSET(Cantabria_datos!T45,0,((Resumen!$Q$1-1)*12)))," ") -> -18036.63 | I20: =IF(I$1<=Resumen!$P$1,IF(OFFSET(Cantabria_datos!U45,0,((Resumen!$Q$1-1)*12))=0," ",OFFSET(Cantabria_datos!U45,0,((Resumen!$Q$1-1)*12)))," ") -> -12441.77 | J20: =IF(J$1<=Resumen!$P$1,IF(OFFSET(Cantabria_datos!V45,0,((Resumen!$Q$1-1)*12))=0," ",OFFSET(Cantabria_datos!V45,0,((Resumen!$Q$1-1)*12)))," ") -> -10661.049 | K20: =IF(K$1<=Resumen!$P$1,IF(OFFSET(Cantabria_datos!W45,0,((Resumen!$Q$1-1)*12))=0," ",OFFSET(Cantabria_datos!W45,0,((Resumen!$Q$1-1)*12)))," ") -> -45012.031 | L20: =IF(L$1<=Resumen!$P$1,IF(OFFSET(Cantabria_datos!X45,0,((Resumen!$Q$1-1)*12))=0," ",OFFSET(Cantabria_datos!X45,0,((Resumen!$Q$1-1)*12)))," ") -> -30491.85 | M20: =IF(M$1<=Resumen!$P$1,IF(OFFSET(Cantabria_datos!Y45,0,((Resumen!$Q$1-1)*12))=0," ",OFFSET(Cantabria_datos!Y45,0,((Resumen!$Q$1-1)*12)))," ") ->  | N20: -397349.154
A21: Saldo Intercambios | B21: =IF(B$1<=Resumen!$P$1,IF(OFFSET(Cantabria_datos!N46,0,((Resumen!$Q$1-1)*12))=0," ",OFFSET(Cantabria_datos!N46,0,((Resumen!$Q$1-1)*12)))," ") -> 181456.503 | C21: =IF(C$1<=Resumen!$P$1,IF(OFFSET(Cantabria_datos!O46,0,((Resumen!$Q$1-1)*12))=0," ",OFFSET(Cantabria_datos!O46,0,((Resumen!$Q$1-1)*12)))," ") -> 181223.921 | D21: =IF(D$1<=Resumen!$P$1,IF(OFFSET(Cantabria_datos!P46,0,((Resumen!$Q$1-1)*12))=0," ",OFFSET(Cantabria_datos!P46,0,((Resumen!$Q$1-1)*12)))," ") -> 234804.657 | E21: =IF(E$1<=Resumen!$P$1,IF(OFFSET(Cantabria_datos!Q46,0,((Resumen!$Q$1-1)*12))=0," ",OFFSET(Cantabria_datos!Q46,0,((Resumen!$Q$1-1)*12)))," ") -> 199761.787 | F21: =IF(F$1<=Resumen!$P$1,IF(OFFSET(Cantabria_datos!R46,0,((Resumen!$Q$1-1)*12))=0," ",OFFSET(Cantabria_datos!R46,0,((Resumen!$Q$1-1)*12)))," ") -> 224881.042 | G21: =IF(G$1<=Resumen!$P$1,IF(OFFSET(Cantabria_datos!S46,0,((Resumen!$Q$1-1)*12))=0," ",OFFSET(Cantabria_datos!S46,0,((Resumen!$Q$1-1)*12)))," ") -> 178921.932 | H21: =IF(H$1<=Resumen!$P$1,IF(OFFSET(Cantabria_datos!T46,0,((Resumen!$Q$1-1)*12))=0," ",OFFSET(Cantabria_datos!T46,0,((Resumen!$Q$1-1)*12)))," ") -> 224634.46 | I21: =IF(I$1<=Resumen!$P$1,IF(OFFSET(Cantabria_datos!U46,0,((Resumen!$Q$1-1)*12))=0," ",OFFSET(Cantabria_datos!U46,0,((Resumen!$Q$1-1)*12)))," ") -> 206976.571 | J21: =IF(J$1<=Resumen!$P$1,IF(OFFSET(Cantabria_datos!V46,0,((Resumen!$Q$1-1)*12))=0," ",OFFSET(Cantabria_datos!V46,0,((Resumen!$Q$1-1)*12)))," ") -> 216611.385 | K21: =IF(K$1<=Resumen!$P$1,IF(OFFSET(Cantabria_datos!W46,0,((Resumen!$Q$1-1)*12))=0," ",OFFSET(Cantabria_datos!W46,0,((Resumen!$Q$1-1)*12)))," ") -> 224560.001 | L21: =IF(L$1<=Resumen!$P$1,IF(OFFSET(Cantabria_datos!X46,0,((Resumen!$Q$1-1)*12))=0," ",OFFSET(Cantabria_datos!X46,0,((Resumen!$Q$1-1)*12)))," ") -> 229605.47 | M21: =IF(M$1<=Resumen!$P$1,IF(OFFSET(Cantabria_datos!Y46,0,((Resumen!$Q$1-1)*12))=0," ",OFFSET(Cantabria_datos!Y46,0,((Resumen!$Q$1-1)*12)))," ") ->  | N21: 2303437.729
A22: Demanda B.C | B22: =IF(B$1<=Resumen!$P$1,IF(OFFSET(Cantabria_datos!N47,0,((Resumen!$Q$1-1)*12))=0," ",OFFSET(Cantabria_datos!N47,0,((Resumen!$Q$1-1)*12)))," ") -> 359995.601 | C22: =IF(C$1<=Resumen!$P$1,IF(OFFSET(Cantabria_datos!O47,0,((Resumen!$Q$1-1)*12))=0," ",OFFSET(Cantabria_datos!O47,0,((Resumen!$Q$1-1)*12)))," ") -> 345302.585 | D22: =IF(D$1<=Resumen!$P$1,IF(OFFSET(Cantabria_datos!P47,0,((Resumen!$Q$1-1)*12))=0," ",OFFSET(Cantabria_datos!P47,0,((Resumen!$Q$1-1)*12)))," ") -> 381058.064 | E22: =IF(E$1<=Resumen!$P$1,IF(OFFSET(Cantabria_datos!Q47,0,((Resumen!$Q$1-1)*12))=0," ",OFFSET(Cantabria_datos!Q47,0,((Resumen!$Q$1-1)*12)))," ") -> 357794.977 | F22: =IF(F$1<=Resumen!$P$1,IF(OFFSET(Cantabria_datos!R47,0,((Resumen!$Q$1-1)*12))=0," ",OFFSET(Cantabria_datos!R47,0,((Resumen!$Q$1-1)*12)))," ") -> 360652.171 | G22: =IF(G$1<=Resumen!$P$1,IF(OFFSET(Cantabria_datos!S47,0,((Resumen!$Q$1-1)*12))=0," ",OFFSET(Cantabria_datos!S47,0,((Resumen!$Q$1-1)*12)))," ") -> 343020.935 | H22: =IF(H$1<=Resumen!$P$1,IF(OFFSET(Cantabria_datos!T47,0,((Resumen!$Q$1-1)*12))=0," ",OFFSET(Cantabria_datos!T47,0,((Resumen!$Q$1-1)*12)))," ") -> 364953.116 | I22: =IF(I$1<=Resumen!$P$1,IF(OFFSET(Cantabria_datos!U47,0,((Resumen!$Q$1-1)*12))=0," ",OFFSET(Cantabria_datos!U47,0,((Resumen!$Q$1-1)*12)))," ") -> 362053.404 | J22: =IF(J$1<=Resumen!$P$1,IF(OFFSET(Cantabria_datos!V47,0,((Resumen!$Q$1-1)*12))=0," ",OFFSET(Cantabria_datos!V47,0,((Resumen!$Q$1-1)*12)))," ") -> 352547.2 | K22: =IF(K$1<=Resumen!$P$1,IF(OFFSET(Cantabria_datos!W47,0,((Resumen!$Q$1-1)*12))=0," ",OFFSET(Cantabria_datos!W47,0,((Resumen!$Q$1-1)*12)))," ") -> 359181.01 | L22: =IF(L$1<=Resumen!$P$1,IF(OFFSET(Cantabria_datos!X47,0,((Resumen!$Q$1-1)*12))=0," ",OFFSET(Cantabria_datos!X47,0,((Resumen!$Q$1-1)*12)))," ") -> 348547.229 | M22: =IF(M$1<=Resumen!$P$1,IF(OFFSET(Cantabria_datos!Y47,0,((Resumen!$Q$1-1)*12))=0," ",OFFSET(Cantabria_datos!Y47,0,((Resumen!$Q$1-1)*12)))," ") ->  | N22: 3935106.292
A23: =Resumen!A24 -> %Δ 18/17 | B23: =IF(B$1<=Resumen!$P$1,IF(OFFSET(Cantabria_datos!N48,0,((Resumen!$Q$1-1)*12))=0," ",OFFSET(Cantabria_datos!N48,0,((Resumen!$Q$1-1)*12)))," ") -> -5.674231487 | C23: =IF(C$1<=Resumen!$P$1,IF(OFFSET(Cantabria_datos!O48,0,((Resumen!$Q$1-1)*12))=0," ",OFFSET(Cantabria_datos!O48,0,((Resumen!$Q$1-1)*12)))," ") -> 1.025428805 | D23: =IF(D$1<=Resumen!$P$1,IF(OFFSET(Cantabria_datos!P48,0,((Resumen!$Q$1-1)*12))=0," ",OFFSET(Cantabria_datos!P48,0,((Resumen!$Q$1-1)*12)))," ") -> -0.8353917719 | E23: =IF(E$1<=Resumen!$P$1,IF(OFFSET(Cantabria_datos!Q48,0,((Resumen!$Q$1-1)*12))=0," ",OFFSET(Cantabria_datos!Q48,0,((Resumen!$Q$1-1)*12)))," ") -> -1.79696457 | F23: =IF(F$1<=Resumen!$P$1,IF(OFFSET(Cantabria_datos!R48,0,((Resumen!$Q$1-1)*12))=0," ",OFFSET(Cantabria_datos!R48,0,((Resumen!$Q$1-1)*12)))," ") -> -2.307323783 | G23: =IF(G$1<=Resumen!$P$1,IF(OFFSET(Cantabria_datos!S48,0,((Resumen!$Q$1-1)*12))=0," ",OFFSET(Cantabria_datos!S48,0,((Resumen!$Q$1-1)*12)))," ") -> -2.87520217 | H23: =IF(H$1<=Resumen!$P$1,IF(OFFSET(Cantabria_datos!T48,0,((Resumen!$Q$1-1)*12))=0," ",OFFSET(Cantabria_datos!T48,0,((Resumen!$Q$1-1)*12)))," ") -> 2.729113312 | I23: =IF(I$1<=Resumen!$P$1,IF(OFFSET(Cantabria_datos!U48,0,((Resumen!$Q$1-1)*12))=0," ",OFFSET(Cantabria_datos!U48,0,((Resumen!$Q$1-1)*12)))," ") -> -0.4845451409 | J23: =IF(J$1<=Resumen!$P$1,IF(OFFSET(Cantabria_datos!V48,0,((Resumen!$Q$1-1)*12))=0," ",OFFSET(Cantabria_datos!V48,0,((Resumen!$Q$1-1)*12)))," ") -> -1.355274572 | K23: =IF(K$1<=Resumen!$P$1,IF(OFFSET(Cantabria_datos!W48,0,((Resumen!$Q$1-1)*12))=0," ",OFFSET(Cantabria_datos!W48,0,((Resumen!$Q$1-1)*12)))," ") -> -4.213838934 | L23: =IF(L$1<=Resumen!$P$1,IF(OFFSET(Cantabria_datos!X48,0,((Resumen!$Q$1-1)*12))=0," ",OFFSET(Cantabria_datos!X48,0,((Resumen!$Q$1-1)*12)))," ") -> -8.929460921 | M23: =IF(M$1<=Resumen!$P$1,IF(OFFSET(Cantabria_datos!Y48,0,((Resumen!$Q$1-1)*12))=0," ",OFFSET(Cantabria_datos!Y48,0,((Resumen!$Q$1-1)*12)))," ") ->  | N23: =((N22/SUM(OFFSET(Cantabria_datos!N47,0,(Resumen!$Q$1-2)*12):OFFSET(Cantabria_datos!N47,0,((Resumen!$Q$1-2)*12)+Resumen!$P$1-1))-1)*100) -> -2.320122761
A69: =A1 -> Cantabria | B69: =L22 -> 348547.229
A70: Resto nacional | B70: =Nacional_datos!CF47-B69 -> 21706931.32

Sheet Castilla la Mancha
A1: Castilla la Mancha | B1: 1 | C1: 2 | D1: 3 | E1: 4 | F1: 5 | G1: 6 | H1: 7 | I1: 8 | J1: 9 | K1: 10 | L1: 11 | M1: 12
A2: Balance mensual de energía electrica. MWh
B3: 2018
B4: Ene | C4: Feb | D4: Mar | E4: Abr | F4: May | G4: Jun | H4: Jul | I4: Ago | J4: Sep | K4: Oct | L4: Nov | M4: Dic | N4: TOTAL
A5: Hidraulica | B5: =IF(B$1<=Resumen!$P$1,IF(OFFSET('Castilla la Mancha_datos'!N30,0,((Resumen!$Q$1-1)*12))=0," ",OFFSET('Castilla la Mancha_datos'!N30,0,((Resumen!$Q$1-1)*12)))," ") -> 26884.47 | C5: =IF(C$1<=Resumen!$P$1,IF(OFFSET('Castilla la Mancha_datos'!O30,0,((Resumen!$Q$1-1)*12))=0," ",OFFSET('Castilla la Mancha_datos'!O30,0,((Resumen!$Q$1-1)*12)))," ") -> 23587.021 | D5: =IF(D$1<=Resumen!$P$1,IF(OFFSET('Castilla la Mancha_datos'!P30,0,((Resumen!$Q$1-1)*12))=0," ",OFFSET('Castilla la Mancha_datos'!P30,0,((Resumen!$Q$1-1)*12)))," ") -> 102606.865 | E5: =IF(E$1<=Resumen!$P$1,IF(OFFSET('Castilla la Mancha_datos'!Q30,0,((Resumen!$Q$1-1)*12))=0," ",OFFSET('Castilla la Mancha_datos'!Q30,0,((Resumen!$Q$1-1)*12)))," ") -> 103011.541 | F5: =IF(F$1<=Resumen!$P$1,IF(OFFSET('Castilla la Mancha_datos'!R30,0,((Resumen!$Q$1-1)*12))=0," ",OFFSET('Castilla la Mancha_datos'!R30,0,((Resumen!$Q$1-1)*12)))," ") -> 97394.105 | G5: =IF(G$1<=Resumen!$P$1,IF(OFFSET('Castilla la Mancha_datos'!S30,0,((Resumen!$Q$1-1)*12))=0," ",OFFSET('Castilla la Mancha_datos'!S30,0,((Resumen!$Q$1-1)*12)))," ") -> 88354.945 | H5: =IF(H$1<=Resumen!$P$1,IF(OFFSET('Castilla la Mancha_datos'!T30,0,((Resumen!$Q$1-1)*12))=0," ",OFFSET('Castilla la Mancha_datos'!T30,0,((Resumen!$Q$1-1)*12)))," ") -> 58367.2 | I5: =IF(I$1<=Resumen!$P$1,IF(OFFSET('Castilla la Mancha_datos'!U30,0,((Resumen!$Q$1-1)*12))=0," ",OFFSET('Castilla la Mancha_datos'!U30,0,((Resumen!$Q$1-1)*12)))," ") -> 62712.228 | J5: =IF(J$1<=Resumen!$P$1,IF(OFFSET('Castilla la Mancha_datos'!V30,0,((Resumen!$Q$1-1)*12))=0," ",OFFSET('Castilla la Mancha_datos'!V30,0,((Resumen!$Q$1-1)*12)))," ") -> 63964.139 | K5: =IF(K$1<=Resumen!$P$1,IF(OFFSET('Castilla la Mancha_datos'!W30,0,((Resumen!$Q$1-1)*12))=0," ",OFFSET('Castilla la Mancha_datos'!W30,0,((Resumen!$Q$1-1)*12)))," ") -> 34260.365 | L5: =IF(L$1<=Resumen!$P$1,IF(OFFSET('Castilla la Mancha_datos'!X30,0,((Resumen!$Q$1-1)*12))=0," ",OFFSET('Castilla la Mancha_datos'!X30,0,((Resumen!$Q$1-1)*12)))," ") -> 51764.615 | M5: =IF(M$1<=Resumen!$P$1,IF(OFFSET('Castilla la Mancha_datos'!Y30,0,((Resumen!$Q$1-1)*12))=0," ",OFFSET('Castilla la Mancha_datos'!Y30,0,((Resumen!$Q$1-1)*12)))," ") ->  | N5: =IF(SUM(B5:M5)=0," ",SUM(B5:M5)) -> 712907.494
A6: Turbinación bombeo | B6: =IF(B$1<=Resumen!$P$1,IF(OFFSET('Castilla la Mancha_datos'!N31,0,((Resumen!$Q$1-1)*12))=0," ",OFFSET('Castilla la Mancha_datos'!N31,0,((Resumen!$Q$1-1)*12)))," ") -> 10620.64 | C6: =IF(C$1<=Resumen!$P$1,IF(OFFSET('Castilla la Mancha_datos'!O31,0,((Resumen!$Q$1-1)*12))=0," ",OFFSET('Castilla la Mancha_datos'!O31,0,((Resumen!$Q$1-1)*12)))," ") -> 5956.24 | D6: =IF(D$1<=Resumen!$P$1,IF(OFFSET('Castilla la Mancha_datos'!P31,0,((Resumen!$Q$1-1)*12))=0," ",OFFSET('Castilla la Mancha_datos'!P31,0,((Resumen!$Q$1-1)*12)))," ") -> 8576.8 | E6: =IF(E$1<=Resumen!$P$1,IF(OFFSET('Castilla la Mancha_datos'!Q31,0,((Resumen!$Q$1-1)*12))=0," ",OFFSET('Castilla la Mancha_datos'!Q31,0,((Resumen!$Q$1-1)*12)))," ") -> 4637.63 | F6: =IF(F$1<=Resumen!$P$1,IF(OFFSET('Castilla la Mancha_datos'!R31,0,((Resumen!$Q$1-1)*12))=0," ",OFFSET('Castilla la Mancha_datos'!R31,0,((Resumen!$Q$1-1)*12)))," ") -> 487.02 | G6: =IF(G$1<=Resumen!$P$1,IF(OFFSET('Castilla la Mancha_datos'!S31,0,((Resumen!$Q$1-1)*12))=0," ",OFFSET('Castilla la Mancha_datos'!S31,0,((Resumen!$Q$1-1)*12)))," ") -> 322.58 | H6: =IF(H$1<=Resumen!$P$1,IF(OFFSET('Castilla la Mancha_datos'!T31,0,((Resumen!$Q$1-1)*12))=0," ",OFFSET('Castilla la Mancha_datos'!T31,0,((Resumen!$Q$1-1)*12)))," ") -> 1064.977 | I6: =IF(I$1<=Resumen!$P$1,IF(OFFSET('Castilla la Mancha_datos'!U31,0,((Resumen!$Q$1-1)*12))=0," ",OFFSET('Castilla la Mancha_datos'!U31,0,((Resumen!$Q$1-1)*12)))," ") -> 767.817 | J6: =IF(J$1<=Resumen!$P$1,IF(OFFSET('Castilla la Mancha_datos'!V31,0,((Resumen!$Q$1-1)*12))=0," ",OFFSET('Castilla la Mancha_datos'!V31,0,((Resumen!$Q$1-1)*12)))," ") -> 376.144 | K6: =IF(K$1<=Resumen!$P$1,IF(OFFSET('Castilla la Mancha_datos'!W31,0,((Resumen!$Q$1-1)*12))=0," ",OFFSET('Castilla la Mancha_datos'!W31,0,((Resumen!$Q$1-1)*12)))," ") -> 5469.88 | L6: =IF(L$1<=Resumen!$P$1,IF(OFFSET('Castilla la Mancha_datos'!X31,0,((Resumen!$Q$1-1)*12))=0," ",OFFSET('Castilla la Mancha_datos'!X31,0,((Resumen!$Q$1-1)*12)))," ") -> 1786.952 | M6: =IF(M$1<=Resumen!$P$1,IF(OFFSET('Castilla la Mancha_datos'!Y31,0,((Resumen!$Q$1-1)*12))=0," ",OFFSET('Castilla la Mancha_datos'!Y31,0,((Resumen!$Q$1-1)*12)))," ") ->  | N6: =IF(SUM(B6:M6)=0," ",SUM(B6:M6)) -> 40066.68
A7: Nuclear | B7: =IF(B$1<=Resumen!$P$1,IF(OFFSET('Castilla la Mancha_datos'!N32,0,((Resumen!$Q$1-1)*12))=0," ",OFFSET('Castilla la Mancha_datos'!N32,0,((Resumen!$Q$1-1)*12)))," ") -> 740146.666 | C7: =IF(C$1<=Resumen!$P$1,IF(OFFSET('Castilla la Mancha_datos'!O32,0,((Resumen!$Q$1-1)*12))=0," ",OFFSET('Castilla la Mancha_datos'!O32,0,((Resumen!$Q$1-1)*12)))," ") -> 668016.925 | D7: =IF(D$1<=Resumen!$P$1,IF(OFFSET('Castilla la Mancha_datos'!P32,0,((Resumen!$Q$1-1)*12))=0," ",OFFSET('Castilla la Mancha_datos'!P32,0,((Resumen!$Q$1-1)*12)))," ") -> 726757.195 | E7: =IF(E$1<=Resumen!$P$1,IF(OFFSET('Castilla la Mancha_datos'!Q32,0,((Resumen!$Q$1-1)*12))=0," ",OFFSET('Castilla la Mancha_datos'!Q32,0,((Resumen!$Q$1-1)*12)))," ") -> 713603.207 | F7: =IF(F$1<=Resumen!$P$1,IF(OFFSET('Castilla la Mancha_datos'!R32,0,((Resumen!$Q$1-1)*12))=0," ",OFFSET('Castilla la Mancha_datos'!R32,0,((Resumen!$Q$1-1)*12)))," ") -> 405335.555 | G7: =IF(G$1<=Resumen!$P$1,IF(OFFSET('Castilla la Mancha_datos'!S32,0,((Resumen!$Q$1-1)*12))=0," ",OFFSET('Castilla la Mancha_datos'!S32,0,((Resumen!$Q$1-1)*12)))," ") -> 89823.769 | H7: =IF(H$1<=Resumen!$P$1,IF(OFFSET('Castilla la Mancha_datos'!T32,0,((Resumen!$Q$1-1)*12))=0," ",OFFSET('Castilla la Mancha_datos'!T32,0,((Resumen!$Q$1-1)*12)))," ") -> 732196.777 | I7: =IF(I$1<=Resumen!$P$1,IF(OFFSET('Castilla la Mancha_datos'!U32,0,((Resumen!$Q$1-1)*12))=0," ",OFFSET('Castilla la Mancha_datos'!U32,0,((Resumen!$Q$1-1)*12)))," ") -> 732900.233 | J7: =IF(J$1<=Resumen!$P$1,IF(OFFSET('Castilla la Mancha_datos'!V32,0,((Resumen!$Q$1-1)*12))=0," ",OFFSET('Castilla la Mancha_datos'!V32,0,((Resumen!$Q$1-1)*12)))," ") -> 711444.698 | K7: =IF(K$1<=Resumen!$P$1,IF(OFFSET('Castilla la Mancha_datos'!W32,0,((Resumen!$Q$1-1)*12))=0," ",OFFSET('Castilla la Mancha_datos'!W32,0,((Resumen!$Q$1-1)*12)))," ") -> 739211.063 | L7: =IF(L$1<=Resumen!$P$1,IF(OFFSET('Castilla la Mancha_datos'!X32,0,((Resumen!$Q$1-1)*12))=0," ",OFFSET('Castilla la Mancha_datos'!X32,0,((Resumen!$Q$1-1)*12)))," ") -> 715185.263 | M7: =IF(M$1<=Resumen!$P$1,IF(OFFSET('Castilla la Mancha_datos'!Y32,0,((Resumen!$Q$1-1)*12))=0," ",OFFSET('Castilla la Mancha_datos'!Y32,0,((Resumen!$Q$1-1)*12)))," ") ->  | N7: =IF(SUM(B7:M7)=0," ",SUM(B7:M7)) -> 6974621.351
A8: Carbón | B8: =IF(B$1<=Resumen!$P$1,IF(OFFSET('Castilla la Mancha_datos'!N33,0,((Resumen!$Q$1-1)*12))=0," ",OFFSET('Castilla la Mancha_datos'!N33,0,((Resumen!$Q$1-1)*12)))," ") ->  | C8: =IF(C$1<=Resumen!$P$1,IF(OFFSET('Castilla la Mancha_datos'!O33,0,((Resumen!$Q$1-1)*12))=0," ",OFFSET('Castilla la Mancha_datos'!O33,0,((Resumen!$Q$1-1)*12)))," ") ->  | D8: =IF(D$1<=Resumen!$P$1,IF(OFFSET('Castilla la Mancha_datos'!P33,0,((Resumen!$Q$1-1)*12))=0," ",OFFSET('Castilla la Mancha_datos'!P33,0,((Resumen!$Q$1-1)*12)))," ") ->  | E8: =IF(E$1<=Resumen!$P$1,IF(OFFSET('Castilla la Mancha_datos'!Q33,0,((Resumen!$Q$1-1)*12))=0," ",OFFSET('Castilla la Mancha_datos'!Q33,0,((Resumen!$Q$1-1)*12)))," ") ->  | F8: =IF(F$1<=Resumen!$P$1,IF(OFFSET('Castilla la Mancha_datos'!R33,0,((Resumen!$Q$1-1)*12))=0," ",OFFSET('Castilla la Mancha_datos'!R33,0,((Resumen!$Q$1-1)*12)))," ") ->  | G8: =IF(G$1<=Resumen!$P$1,IF(OFFSET('Castilla la Mancha_datos'!S33,0,((Resumen!$Q$1-1)*12))=0," ",OFFSET('Castilla la Mancha_datos'!S33,0,((Resumen!$Q$1-1)*12)))," ") ->  | H8: =IF(H$1<=Resumen!$P$1,IF(OFFSET('Castilla la Mancha_datos'!T33,0,((Resumen!$Q$1-1)*12))=0," ",OFFSET('Castilla la Mancha_datos'!T33,0,((Resumen!$Q$1-1)*12)))," ") ->  | I8: =IF(I$1<=Resumen!$P$1,IF(OFFSET('Castilla la Mancha_datos'!U33,0,((Resumen!$Q$1-1)*12))=0," ",OFFSET('Castilla la Mancha_datos'!U33,0,((Resumen!$Q$1-1)*12)))," ") ->  | J8: =IF(J$1<=Resumen!$P$1,IF(OFFSET('Castilla la Mancha_datos'!V33,0,((Resumen!$Q$1-1)*12))=0," ",OFFSET('Castilla la Mancha_datos'!V33,0,((Resumen!$Q$1-1)*12)))," ") ->  | K8: =IF(K$1<=Resumen!$P$1,IF(OFFSET('Castilla la Mancha_datos'!W33,0,((Resumen!$Q$1-1)*12))=0," ",OFFSET('Castilla la Mancha_datos'!W33,0,((Resumen!$Q$1-1)*12)))," ") ->  | L8: =IF(L$1<=Resumen!$P$1,IF(OFFSET('Castilla la Mancha_datos'!X33,0,((Resumen!$Q$1-1)*12))=0," ",OFFSET('Castilla la Mancha_datos'!X33,0,((Resumen!$Q$1-1)*12)))," ") ->  | M8: =IF(M$1<=Resumen!$P$1,IF(OFFSET('Castilla la Mancha_datos'!Y33,0,((Resumen!$Q$1-1)*12))=0," ",OFFSET('Castilla la Mancha_datos'!Y33,0,((Resumen!$Q$1-1)*12)))," ") -> 
A9: Fuel-Gas | B9: =IF(B$1<=Resumen!$P$1,IF(OFFSET('Castilla la Mancha_datos'!N34,0,((Resumen!$Q$1-1)*12))=0," ",OFFSET('Castilla la Mancha_datos'!N34,0,((Resumen!$Q$1-1)*12)))," ") ->  | C9: =IF(C$1<=Resumen!$P$1,IF(OFFSET('Castilla la Mancha_datos'!O34,0,((Resumen!$Q$1-1)*12))=0," ",OFFSET('Castilla la Mancha_datos'!O34,0,((Resumen!$Q$1-1)*12)))," ") ->  | D9: =IF(D$1<=Resumen!$P$1,IF(OFFSET('Castilla la Mancha_datos'!P34,0,((Resumen!$Q$1-1)*12))=0," ",OFFSET('Castilla la Mancha_datos'!P34,0,((Resumen!$Q$1-1)*12)))," ") ->  | E9: =IF(E$1<=Resumen!$P$1,IF(OFFSET('Castilla la Mancha_datos'!Q34,0,((Resumen!$Q$1-1)*12))=0," ",OFFSET('Castilla la Mancha_datos'!Q34,0,((Resumen!$Q$1-1)*12)))," ") ->  | F9: =IF(F$1<=Resumen!$P$1,IF(OFFSET('Castilla la Mancha_datos'!R34,0,((Resumen!$Q$1-1)*12))=0," ",OFFSET('Castilla la Mancha_datos'!R34,0,((Resumen!$Q$1-1)*12)))," ") ->  | G9: =IF(G$1<=Resumen!$P$1,IF(OFFSET('Castilla la Mancha_datos'!S34,0,((Resumen!$Q$1-1)*12))=0," ",OFFSET('Castilla la Mancha_datos'!S34,0,((Resumen!$Q$1-1)*12)))," ") ->  | H9: =IF(H$1<=Resumen!$P$1,IF(OFFSET('Castilla la Mancha_datos'!T34,0,((Resumen!$Q$1-1)*12))=0," ",OFFSET('Castilla la Mancha_datos'!T34,0,((Resumen!$Q$1-1)*12)))," ") ->  | I9: =IF(I$1<=Resumen!$P$1,IF(OFFSET('Castilla la Mancha_datos'!U34,0,((Resumen!$Q$1-1)*12))=0," ",OFFSET('Castilla la Mancha_datos'!U34,0,((Resumen!$Q$1-1)*12)))," ") ->  | J9: =IF(J$1<=Resumen!$P$1,IF(OFFSET('Castilla la Mancha_datos'!V34,0,((Resumen!$Q$1-1)*12))=0," ",OFFSET('Castilla la Mancha_datos'!V34,0,((Resumen!$Q$1-1)*12)))," ") ->  | K9: =IF(K$1<=Resumen!$P$1,IF(OFFSET('Castilla la Mancha_datos'!W34,0,((Resumen!$Q$1-1)*12))=0," ",OFFSET('Castilla la Mancha_datos'!W34,0,((Resumen!$Q$1-1)*12)))," ") ->  | L9: =IF(L$1<=Resumen!$P$1,IF(OFFSET('Castilla la Mancha_datos'!X34,0,((Resumen!$Q$1-1)*12))=0," ",OFFSET('Castilla la Mancha_datos'!X34,0,((Resumen!$Q$1-1)*12)))," ") ->  | M9: =IF(M$1<=Resumen!$P$1,IF(OFFSET('Castilla la Mancha_datos'!Y34,0,((Resumen!$Q$1-1)*12))=0," ",OFFSET('Castilla la Mancha_datos'!Y34,0,((Resumen!$Q$1-1)*12)))," ") -> 
A10: Ciclo combinado | B10: =IF(B$1<=Resumen!$P$1,IF(OFFSET('Castilla la Mancha_datos'!N35,0,((Resumen!$Q$1-1)*12))=0," ",OFFSET('Castilla la Mancha_datos'!N35,0,((Resumen!$Q$1-1)*12)))," ") -> 170008.376 | C10: =IF(C$1<=Resumen!$P$1,IF(OFFSET('Castilla la Mancha_datos'!O35,0,((Resumen!$Q$1-1)*12))=0," ",OFFSET('Castilla la Mancha_datos'!O35,0,((Resumen!$Q$1-1)*12)))," ") -> 101385.905 | D10: =IF(D$1<=Resumen!$P$1,IF(OFFSET('Castilla la Mancha_datos'!P35,0,((Resumen!$Q$1-1)*12))=0," ",OFFSET('Castilla la Mancha_datos'!P35,0,((Resumen!$Q$1-1)*12)))," ") -> 136225.623 | E10: =IF(E$1<=Resumen!$P$1,IF(OFFSET('Castilla la Mancha_datos'!Q35,0,((Resumen!$Q$1-1)*12))=0," ",OFFSET('Castilla la Mancha_datos'!Q35,0,((Resumen!$Q$1-1)*12)))," ") -> 87084.015 | F10: =IF(F$1<=Resumen!$P$1,IF(OFFSET('Castilla la Mancha_datos'!R35,0,((Resumen!$Q$1-1)*12))=0," ",OFFSET('Castilla la Mancha_datos'!R35,0,((Resumen!$Q$1-1)*12)))," ") -> 159607.837 | G10: =IF(G$1<=Resumen!$P$1,IF(OFFSET('Castilla la Mancha_datos'!S35,0,((Resumen!$Q$1-1)*12))=0," ",OFFSET('Castilla la Mancha_datos'!S35,0,((Resumen!$Q$1-1)*12)))," ") -> 140481.002 | H10: =IF(H$1<=Resumen!$P$1,IF(OFFSET('Castilla la Mancha_datos'!T35,0,((Resumen!$Q$1-1)*12))=0," ",OFFSET('Castilla la Mancha_datos'!T35,0,((Resumen!$Q$1-1)*12)))," ") -> 70446.009 | I10: =IF(I$1<=Resumen!$P$1,IF(OFFSET('Castilla la Mancha_datos'!U35,0,((Resumen!$Q$1-1)*12))=0," ",OFFSET('Castilla la Mancha_datos'!U35,0,((Resumen!$Q$1-1)*12)))," ") -> 83271.815 | J10: =IF(J$1<=Resumen!$P$1,IF(OFFSET('Castilla la Mancha_datos'!V35,0,((Resumen!$Q$1-1)*12))=0," ",OFFSET('Castilla la Mancha_datos'!V35,0,((Resumen!$Q$1-1)*12)))," ") -> 87040.932 | K10: =IF(K$1<=Resumen!$P$1,IF(OFFSET('Castilla la Mancha_datos'!W35,0,((Resumen!$Q$1-1)*12))=0," ",OFFSET('Castilla la Mancha_datos'!W35,0,((Resumen!$Q$1-1)*12)))," ") -> 41508.008 | L10: =IF(L$1<=Resumen!$P$1,IF(OFFSET('Castilla la Mancha_datos'!X35,0,((Resumen!$Q$1-1)*12))=0," ",OFFSET('Castilla la Mancha_datos'!X35,0,((Resumen!$Q$1-1)*12)))," ") -> 140132.227 | M10: =IF(M$1<=Resumen!$P$1,IF(OFFSET('Castilla la Mancha_datos'!Y35,0,((Resumen!$Q$1-1)*12))=0," ",OFFSET('Castilla la Mancha_datos'!Y35,0,((Resumen!$Q$1-1)*12)))," ") ->  | N10: 1217191.749
A11: Hidroeólica | B11: =IF(B$1<=Resumen!$P$1,IF(OFFSET('Castilla la Mancha_datos'!N36,0,((Resumen!$Q$1-1)*12))=0," ",OFFSET('Castilla la Mancha_datos'!N36,0,((Resumen!$Q$1-1)*12)))," ") ->  | C11: =IF(C$1<=Resumen!$P$1,IF(OFFSET('Castilla la Mancha_datos'!O36,0,((Resumen!$Q$1-1)*12))=0," ",OFFSET('Castilla la Mancha_datos'!O36,0,((Resumen!$Q$1-1)*12)))," ") ->  | D11: =IF(D$1<=Resumen!$P$1,IF(OFFSET('Castilla la Mancha_datos'!P36,0,((Resumen!$Q$1-1)*12))=0," ",OFFSET('Castilla la Mancha_datos'!P36,0,((Resumen!$Q$1-1)*12)))," ") ->  | E11: =IF(E$1<=Resumen!$P$1,IF(OFFSET('Castilla la Mancha_datos'!Q36,0,((Resumen!$Q$1-1)*12))=0," ",OFFSET('Castilla la Mancha_datos'!Q36,0,((Resumen!$Q$1-1)*12)))," ") ->  | F11: =IF(F$1<=Resumen!$P$1,IF(OFFSET('Castilla la Mancha_datos'!R36,0,((Resumen!$Q$1-1)*12))=0," ",OFFSET('Castilla la Mancha_datos'!R36,0,((Resumen!$Q$1-1)*12)))," ") ->  | G11: =IF(G$1<=Resumen!$P$1,IF(OFFSET('Castilla la Mancha_datos'!S36,0,((Resumen!$Q$1-1)*12))=0," ",OFFSET('Castilla la Mancha_datos'!S36,0,((Resumen!$Q$1-1)*12)))," ") ->  | H11: =IF(H$1<=Resumen!$P$1,IF(OFFSET('Castilla la Mancha_datos'!T36,0,((Resumen!$Q$1-1)*12))=0," ",OFFSET('Castilla la Mancha_datos'!T36,0,((Resumen!$Q$1-1)*12)))," ") ->  | I11: =IF(I$1<=Resumen!$P$1,IF(OFFSET('Castilla la Mancha_datos'!U36,0,((Resumen!$Q$1-1)*12))=0," ",OFFSET('Castilla la Mancha_datos'!U36,0,((Resumen!$Q$1-1)*12)))," ") ->  | J11: =IF(J$1<=Resumen!$P$1,IF(OFFSET('Castilla la Mancha_datos'!V36,0,((Resumen!$Q$1-1)*12))=0," ",OFFSET('Castilla la Mancha_datos'!V36,0,((Resumen!$Q$1-1)*12)))," ") ->  | K11: =IF(K$1<=Resumen!$P$1,IF(OFFSET('Castilla la Mancha_datos'!W36,0,((Resumen!$Q$1-1)*12))=0," ",OFFSET('Castilla la Mancha_datos'!W36,0,((Resumen!$Q$1-1)*12)))," ") ->  | L11: =IF(L$1<=Resumen!$P$1,IF(OFFSET('Castilla la Mancha_datos'!X36,0,((Resumen!$Q$1-1)*12))=0," ",OFFSET('Castilla la Mancha_datos'!X36,0,((Resumen!$Q$1-1)*12)))," ") ->  | M11: =IF(M$1<=Resumen!$P$1,IF(OFFSET('Castilla la Mancha_datos'!Y36,0,((Resumen!$Q$1-1)*12))=0," ",OFFSET('Castilla la Mancha_datos'!Y36,0,((Resumen!$Q$1-1)*12)))," ") -> 
A12: Eólica | B12: =IF(B$1<=Resumen!$P$1,IF(OFFSET('Castilla la Mancha_datos'!N37,0,((Resumen!$Q$1-1)*12))=0," ",OFFSET('Castilla la Mancha_datos'!N37,0,((Resumen!$Q$1-1)*12)))," ") -> 952939.293 | C12: =IF(C$1<=Resumen!$P$1,IF(OFFSET('Castilla la Mancha_datos'!O37,0,((Resumen!$Q$1-1)*12))=0," ",OFFSET('Castilla la Mancha_datos'!O37,0,((Resumen!$Q$1-1)*12)))," ") -> 747029.963 | D12: =IF(D$1<=Resumen!$P$1,IF(OFFSET('Castilla la Mancha_datos'!P37,0,((Resumen!$Q$1-1)*12))=0," ",OFFSET('Castilla la Mancha_datos'!P37,0,((Resumen!$Q$1-1)*12)))," ") -> 1529437.107 | E12: =IF(E$1<=Resumen!$P$1,IF(OFFSET('Castilla la Mancha_datos'!Q37,0,((Resumen!$Q$1-1)*12))=0," ",OFFSET('Castilla la Mancha_datos'!Q37,0,((Resumen!$Q$1-1)*12)))," ") -> 918079.109 | F12: =IF(F$1<=Resumen!$P$1,IF(OFFSET('Castilla la Mancha_datos'!R37,0,((Resumen!$Q$1-1)*12))=0," ",OFFSET('Castilla la Mancha_datos'!R37,0,((Resumen!$Q$1-1)*12)))," ") -> 427812.199 | G12: =IF(G$1<=Resumen!$P$1,IF(OFFSET('Castilla la Mancha_datos'!S37,0,((Resumen!$Q$1-1)*12))=0," ",OFFSET('Castilla la Mancha_datos'!S37,0,((Resumen!$Q$1-1)*12)))," ") -> 376338.652 | H12: =IF(H$1<=Resumen!$P$1,IF(OFFSET('Castilla la Mancha_datos'!T37,0,((Resumen!$Q$1-1)*12))=0," ",OFFSET('Castilla la Mancha_datos'!T37,0,((Resumen!$Q$1-1)*12)))," ") -> 422441.068 | I12: =IF(I$1<=Resumen!$P$1,IF(OFFSET('Castilla la Mancha_datos'!U37,0,((Resumen!$Q$1-1)*12))=0," ",OFFSET('Castilla la Mancha_datos'!U37,0,((Resumen!$Q$1-1)*12)))," ") -> 382994.261 | J12: =IF(J$1<=Resumen!$P$1,IF(OFFSET('Castilla la Mancha_datos'!V37,0,((Resumen!$Q$1-1)*12))=0," ",OFFSET('Castilla la Mancha_datos'!V37,0,((Resumen!$Q$1-1)*12)))," ") -> 287043.577 | K12: =IF(K$1<=Resumen!$P$1,IF(OFFSET('Castilla la Mancha_datos'!W37,0,((Resumen!$Q$1-1)*12))=0," ",OFFSET('Castilla la Mancha_datos'!W37,0,((Resumen!$Q$1-1)*12)))," ") -> 556096.19 | L12: =IF(L$1<=Resumen!$P$1,IF(OFFSET('Castilla la Mancha_datos'!X37,0,((Resumen!$Q$1-1)*12))=0," ",OFFSET('Castilla la Mancha_datos'!X37,0,((Resumen!$Q$1-1)*12)))," ") -> 858156.972 | M12: =IF(M$1<=Resumen!$P$1,IF(OFFSET('Castilla la Mancha_datos'!Y37,0,((Resumen!$Q$1-1)*12))=0," ",OFFSET('Castilla la Mancha_datos'!Y37,0,((Resumen!$Q$1-1)*12)))," ") ->  | N12: 7458368.391
A13: Solar fotovoltaico | B13: =IF(B$1<=Resumen!$P$1,IF(OFFSET('Castilla la Mancha_datos'!N38,0,((Resumen!$Q$1-1)*12))=0," ",OFFSET('Castilla la Mancha_datos'!N38,0,((Resumen!$Q$1-1)*12)))," ") -> 93611.325 | C13: =IF(C$1<=Resumen!$P$1,IF(OFFSET('Castilla la Mancha_datos'!O38,0,((Resumen!$Q$1-1)*12))=0," ",OFFSET('Castilla la Mancha_datos'!O38,0,((Resumen!$Q$1-1)*12)))," ") -> 107656.641 | D13: =IF(D$1<=Resumen!$P$1,IF(OFFSET('Castilla la Mancha_datos'!P38,0,((Resumen!$Q$1-1)*12))=0," ",OFFSET('Castilla la Mancha_datos'!P38,0,((Resumen!$Q$1-1)*12)))," ") -> 113705.787 | E13: =IF(E$1<=Resumen!$P$1,IF(OFFSET('Castilla la Mancha_datos'!Q38,0,((Resumen!$Q$1-1)*12))=0," ",OFFSET('Castilla la Mancha_datos'!Q38,0,((Resumen!$Q$1-1)*12)))," ") -> 137282.586 | F13: =IF(F$1<=Resumen!$P$1,IF(OFFSET('Castilla la Mancha_datos'!R38,0,((Resumen!$Q$1-1)*12))=0," ",OFFSET('Castilla la Mancha_datos'!R38,0,((Resumen!$Q$1-1)*12)))," ") -> 165020.289 | G13: =IF(G$1<=Resumen!$P$1,IF(OFFSET('Castilla la Mancha_datos'!S38,0,((Resumen!$Q$1-1)*12))=0," ",OFFSET('Castilla la Mancha_datos'!S38,0,((Resumen!$Q$1-1)*12)))," ") -> 165633.808 | H13: =IF(H$1<=Resumen!$P$1,IF(OFFSET('Castilla la Mancha_datos'!T38,0,((Resumen!$Q$1-1)*12))=0," ",OFFSET('Castilla la Mancha_datos'!T38,0,((Resumen!$Q$1-1)*12)))," ") -> 193790.424 | I13: =IF(I$1<=Resumen!$P$1,IF(OFFSET('Castilla la Mancha_datos'!U38,0,((Resumen!$Q$1-1)*12))=0," ",OFFSET('Castilla la Mancha_datos'!U38,0,((Resumen!$Q$1-1)*12)))," ") -> 170571.746 | J13: =IF(J$1<=Resumen!$P$1,IF(OFFSET('Castilla la Mancha_datos'!V38,0,((Resumen!$Q$1-1)*12))=0," ",OFFSET('Castilla la Mancha_datos'!V38,0,((Resumen!$Q$1-1)*12)))," ") -> 148662.941 | K13: =IF(K$1<=Resumen!$P$1,IF(OFFSET('Castilla la Mancha_datos'!W38,0,((Resumen!$Q$1-1)*12))=0," ",OFFSET('Castilla la Mancha_datos'!W38,0,((Resumen!$Q$1-1)*12)))," ") -> 114606.186 | L13: =IF(L$1<=Resumen!$P$1,IF(OFFSET('Castilla la Mancha_datos'!X38,0,((Resumen!$Q$1-1)*12))=0," ",OFFSET('Castilla la Mancha_datos'!X38,0,((Resumen!$Q$1-1)*12)))," ") -> 73879.999 | M13: =IF(M$1<=Resumen!$P$1,IF(OFFSET('Castilla la Mancha_datos'!Y38,0,((Resumen!$Q$1-1)*12))=0," ",OFFSET('Castilla la Mancha_datos'!Y38,0,((Resumen!$Q$1-1)*12)))," ") ->  | N13: 1484421.732
A14: Solar térmica | B14: =IF(B$1<=Resumen!$P$1,IF(OFFSET('Castilla la Mancha_datos'!N39,0,((Resumen!$Q$1-1)*12))=0," ",OFFSET('Castilla la Mancha_datos'!N39,0,((Resumen!$Q$1-1)*12)))," ") -> 13418.482 | C14: =IF(C$1<=Resumen!$P$1,IF(OFFSET('Castilla la Mancha_datos'!O39,0,((Resumen!$Q$1-1)*12))=0," ",OFFSET('Castilla la Mancha_datos'!O39,0,((Resumen!$Q$1-1)*12)))," ") -> 27973.224 | D14: =IF(D$1<=Resumen!$P$1,IF(OFFSET('Castilla la Mancha_datos'!P39,0,((Resumen!$Q$1-1)*12))=0," ",OFFSET('Castilla la Mancha_datos'!P39,0,((Resumen!$Q$1-1)*12)))," ") -> 30579.508 | E14: =IF(E$1<=Resumen!$P$1,IF(OFFSET('Castilla la Mancha_datos'!Q39,0,((Resumen!$Q$1-1)*12))=0," ",OFFSET('Castilla la Mancha_datos'!Q39,0,((Resumen!$Q$1-1)*12)))," ") -> 39159.968 | F14: =IF(F$1<=Resumen!$P$1,IF(OFFSET('Castilla la Mancha_datos'!R39,0,((Resumen!$Q$1-1)*12))=0," ",OFFSET('Castilla la Mancha_datos'!R39,0,((Resumen!$Q$1-1)*12)))," ") -> 77959.066 | G14: =IF(G$1<=Resumen!$P$1,IF(OFFSET('Castilla la Mancha_datos'!S39,0,((Resumen!$Q$1-1)*12))=0," ",OFFSET('Castilla la Mancha_datos'!S39,0,((Resumen!$Q$1-1)*12)))," ") -> 88516.102 | H14: =IF(H$1<=Resumen!$P$1,IF(OFFSET('Castilla la Mancha_datos'!T39,0,((Resumen!$Q$1-1)*12))=0," ",OFFSET('Castilla la Mancha_datos'!T39,0,((Resumen!$Q$1-1)*12)))," ") -> 137161.352 | I14: =IF(I$1<=Resumen!$P$1,IF(OFFSET('Castilla la Mancha_datos'!U39,0,((Resumen!$Q$1-1)*12))=0," ",OFFSET('Castilla la Mancha_datos'!U39,0,((Resumen!$Q$1-1)*12)))," ") -> 103393.627 | J14: =IF(J$1<=Resumen!$P$1,IF(OFFSET('Castilla la Mancha_datos'!V39,0,((Resumen!$Q$1-1)*12))=0," ",OFFSET('Castilla la Mancha_datos'!V39,0,((Resumen!$Q$1-1)*12)))," ") -> 68206.326 | K14: =IF(K$1<=Resumen!$P$1,IF(OFFSET('Castilla la Mancha_datos'!W39,0,((Resumen!$Q$1-1)*12))=0," ",OFFSET('Castilla la Mancha_datos'!W39,0,((Resumen!$Q$1-1)*12)))," ") -> 41995.508 | L14: =IF(L$1<=Resumen!$P$1,IF(OFFSET('Castilla la Mancha_datos'!X39,0,((Resumen!$Q$1-1)*12))=0," ",OFFSET('Castilla la Mancha_datos'!X39,0,((Resumen!$Q$1-1)*12)))," ") -> 10446.156 | M14: =IF(M$1<=Resumen!$P$1,IF(OFFSET('Castilla la Mancha_datos'!Y39,0,((Resumen!$Q$1-1)*12))=0," ",OFFSET('Castilla la Mancha_datos'!Y39,0,((Resumen!$Q$1-1)*12)))," ") ->  | N14: 638809.319
A15: Otras renovables | B15: =IF(B$1<=Resumen!$P$1,IF(OFFSET('Castilla la Mancha_datos'!N40,0,((Resumen!$Q$1-1)*12))=0," ",OFFSET('Castilla la Mancha_datos'!N40,0,((Resumen!$Q$1-1)*12)))," ") -> 22354.2 | C15: =IF(C$1<=Resumen!$P$1,IF(OFFSET('Castilla la Mancha_datos'!O40,0,((Resumen!$Q$1-1)*12))=0," ",OFFSET('Castilla la Mancha_datos'!O40,0,((Resumen!$Q$1-1)*12)))," ") -> 21971.821 | D15: =IF(D$1<=Resumen!$P$1,IF(OFFSET('Castilla la Mancha_datos'!P40,0,((Resumen!$Q$1-1)*12))=0," ",OFFSET('Castilla la Mancha_datos'!P40,0,((Resumen!$Q$1-1)*12)))," ") -> 22885.859 | E15: =IF(E$1<=Resumen!$P$1,IF(OFFSET('Castilla la Mancha_datos'!Q40,0,((Resumen!$Q$1-1)*12))=0," ",OFFSET('Castilla la Mancha_datos'!Q40,0,((Resumen!$Q$1-1)*12)))," ") -> 18615.858 | F15: =IF(F$1<=Resumen!$P$1,IF(OFFSET('Castilla la Mancha_datos'!R40,0,((Resumen!$Q$1-1)*12))=0," ",OFFSET('Castilla la Mancha_datos'!R40,0,((Resumen!$Q$1-1)*12)))," ") -> 21194.954 | G15: =IF(G$1<=Resumen!$P$1,IF(OFFSET('Castilla la Mancha_datos'!S40,0,((Resumen!$Q$1-1)*12))=0," ",OFFSET('Castilla la Mancha_datos'!S40,0,((Resumen!$Q$1-1)*12)))," ") -> 22879.208 | H15: =IF(H$1<=Resumen!$P$1,IF(OFFSET('Castilla la Mancha_datos'!T40,0,((Resumen!$Q$1-1)*12))=0," ",OFFSET('Castilla la Mancha_datos'!T40,0,((Resumen!$Q$1-1)*12)))," ") -> 24267.901 | I15: =IF(I$1<=Resumen!$P$1,IF(OFFSET('Castilla la Mancha_datos'!U40,0,((Resumen!$Q$1-1)*12))=0," ",OFFSET('Castilla la Mancha_datos'!U40,0,((Resumen!$Q$1-1)*12)))," ") -> 23571.782 | J15: =IF(J$1<=Resumen!$P$1,IF(OFFSET('Castilla la Mancha_datos'!V40,0,((Resumen!$Q$1-1)*12))=0," ",OFFSET('Castilla la Mancha_datos'!V40,0,((Resumen!$Q$1-1)*12)))," ") -> 23594.203 | K15: =IF(K$1<=Resumen!$P$1,IF(OFFSET('Castilla la Mancha_datos'!W40,0,((Resumen!$Q$1-1)*12))=0," ",OFFSET('Castilla la Mancha_datos'!W40,0,((Resumen!$Q$1-1)*12)))," ") -> 24752.869 | L15: =IF(L$1<=Resumen!$P$1,IF(OFFSET('Castilla la Mancha_datos'!X40,0,((Resumen!$Q$1-1)*12))=0," ",OFFSET('Castilla la Mancha_datos'!X40,0,((Resumen!$Q$1-1)*12)))," ") -> 22221.088 | M15: =IF(M$1<=Resumen!$P$1,IF(OFFSET('Castilla la Mancha_datos'!Y40,0,((Resumen!$Q$1-1)*12))=0," ",OFFSET('Castilla la Mancha_datos'!Y40,0,((Resumen!$Q$1-1)*12)))," ") ->  | N15: 248309.743
A16: Cogeneración | B16: =IF(B$1<=Resumen!$P$1,IF(OFFSET('Castilla la Mancha_datos'!N41,0,((Resumen!$Q$1-1)*12))=0," ",OFFSET('Castilla la Mancha_datos'!N41,0,((Resumen!$Q$1-1)*12)))," ") -> 94187.627 | C16: =IF(C$1<=Resumen!$P$1,IF(OFFSET('Castilla la Mancha_datos'!O41,0,((Resumen!$Q$1-1)*12))=0," ",OFFSET('Castilla la Mancha_datos'!O41,0,((Resumen!$Q$1-1)*12)))," ") -> 84304.962 | D16: =IF(D$1<=Resumen!$P$1,IF(OFFSET('Castilla la Mancha_datos'!P41,0,((Resumen!$Q$1-1)*12))=0," ",OFFSET('Castilla la Mancha_datos'!P41,0,((Resumen!$Q$1-1)*12)))," ") -> 82844.347 | E16: =IF(E$1<=Resumen!$P$1,IF(OFFSET('Castilla la Mancha_datos'!Q41,0,((Resumen!$Q$1-1)*12))=0," ",OFFSET('Castilla la Mancha_datos'!Q41,0,((Resumen!$Q$1-1)*12)))," ") -> 70777.686 | F16: =IF(F$1<=Resumen!$P$1,IF(OFFSET('Castilla la Mancha_datos'!R41,0,((Resumen!$Q$1-1)*12))=0," ",OFFSET('Castilla la Mancha_datos'!R41,0,((Resumen!$Q$1-1)*12)))," ") -> 87437.864 | G16: =IF(G$1<=Resumen!$P$1,IF(OFFSET('Castilla la Mancha_datos'!S41,0,((Resumen!$Q$1-1)*12))=0," ",OFFSET('Castilla la Mancha_datos'!S41,0,((Resumen!$Q$1-1)*12)))," ") -> 91886.017 | H16: =IF(H$1<=Resumen!$P$1,IF(OFFSET('Castilla la Mancha_datos'!T41,0,((Resumen!$Q$1-1)*12))=0," ",OFFSET('Castilla la Mancha_datos'!T41,0,((Resumen!$Q$1-1)*12)))," ") -> 98187.738 | I16: =IF(I$1<=Resumen!$P$1,IF(OFFSET('Castilla la Mancha_datos'!U41,0,((Resumen!$Q$1-1)*12))=0," ",OFFSET('Castilla la Mancha_datos'!U41,0,((Resumen!$Q$1-1)*12)))," ") -> 105685.851 | J16: =IF(J$1<=Resumen!$P$1,IF(OFFSET('Castilla la Mancha_datos'!V41,0,((Resumen!$Q$1-1)*12))=0," ",OFFSET('Castilla la Mancha_datos'!V41,0,((Resumen!$Q$1-1)*12)))," ") -> 113912.883 | K16: =IF(K$1<=Resumen!$P$1,IF(OFFSET('Castilla la Mancha_datos'!W41,0,((Resumen!$Q$1-1)*12))=0," ",OFFSET('Castilla la Mancha_datos'!W41,0,((Resumen!$Q$1-1)*12)))," ") -> 121104.008 | L16: =IF(L$1<=Resumen!$P$1,IF(OFFSET('Castilla la Mancha_datos'!X41,0,((Resumen!$Q$1-1)*12))=0," ",OFFSET('Castilla la Mancha_datos'!X41,0,((Resumen!$Q$1-1)*12)))," ") -> 113083.627 | M16: =IF(M$1<=Resumen!$P$1,IF(OFFSET('Castilla la Mancha_datos'!Y41,0,((Resumen!$Q$1-1)*12))=0," ",OFFSET('Castilla la Mancha_datos'!Y41,0,((Resumen!$Q$1-1)*12)))," ") ->  | N16: 1063412.61
A17: Residuos no renovables | B17: =IF(B$1<=Resumen!$P$1,IF(OFFSET('Castilla la Mancha_datos'!N42,0,((Resumen!$Q$1-1)*12))=0," ",OFFSET('Castilla la Mancha_datos'!N42,0,((Resumen!$Q$1-1)*12)))," ") ->  | C17: =IF(C$1<=Resumen!$P$1,IF(OFFSET('Castilla la Mancha_datos'!O42,0,((Resumen!$Q$1-1)*12))=0," ",OFFSET('Castilla la Mancha_datos'!O42,0,((Resumen!$Q$1-1)*12)))," ") ->  | D17: =IF(D$1<=Resumen!$P$1,IF(OFFSET('Castilla la Mancha_datos'!P42,0,((Resumen!$Q$1-1)*12))=0," ",OFFSET('Castilla la Mancha_datos'!P42,0,((Resumen!$Q$1-1)*12)))," ") ->  | E17: =IF(E$1<=Resumen!$P$1,IF(OFFSET('Castilla la Mancha_datos'!Q42,0,((Resumen!$Q$1-1)*12))=0," ",OFFSET('Castilla la Mancha_datos'!Q42,0,((Resumen!$Q$1-1)*12)))," ") ->  | F17: =IF(F$1<=Resumen!$P$1,IF(OFFSET('Castilla la Mancha_datos'!R42,0,((Resumen!$Q$1-1)*12))=0," ",OFFSET('Castilla la Mancha_datos'!R42,0,((Resumen!$Q$1-1)*12)))," ") ->  | G17: =IF(G$1<=Resumen!$P$1,IF(OFFSET('Castilla la Mancha_datos'!S42,0,((Resumen!$Q$1-1)*12))=0," ",OFFSET('Castilla la Mancha_datos'!S42,0,((Resumen!$Q$1-1)*12)))," ") ->  | H17: =IF(H$1<=Resumen!$P$1,IF(OFFSET('Castilla la Mancha_datos'!T42,0,((Resumen!$Q$1-1)*12))=0," ",OFFSET('Castilla la Mancha_datos'!T42,0,((Resumen!$Q$1-1)*12)))," ") ->  | I17: =IF(I$1<=Resumen!$P$1,IF(OFFSET('Castilla la Mancha_datos'!U42,0,((Resumen!$Q$1-1)*12))=0," ",OFFSET('Castilla la Mancha_datos'!U42,0,((Resumen!$Q$1-1)*12)))," ") ->  | J17: =IF(J$1<=Resumen!$P$1,IF(OFFSET('Castilla la Mancha_datos'!V42,0,((Resumen!$Q$1-1)*12))=0," ",OFFSET('Castilla la Mancha_datos'!V42,0,((Resumen!$Q$1-1)*12)))," ") ->  | K17: =IF(K$1<=Resumen!$P$1,IF(OFFSET('Castilla la Mancha_datos'!W42,0,((Resumen!$Q$1-1)*12))=0," ",OFFSET('Castilla la Mancha_datos'!W42,0,((Resumen!$Q$1-1)*12)))," ") ->  | L17: =IF(L$1<=Resumen!$P$1,IF(OFFSET('Castilla la Mancha_datos'!X42,0,((Resumen!$Q$1-1)*12))=0," ",OFFSET('Castilla la Mancha_datos'!X42,0,((Resumen!$Q$1-1)*12)))," ") ->  | M17: =IF(M$1<=Resumen!$P$1,IF(OFFSET('Castilla la Mancha_datos'!Y42,0,((Resumen!$Q$1-1)*12))=0," ",OFFSET('Castilla la Mancha_datos'!Y42,0,((Resumen!$Q$1-1)*12)))," ") -> 
A18: Residuos renovables | B18: =IF(B$1<=Resumen!$P$1,IF(OFFSET('Castilla la Mancha_datos'!N43,0,((Resumen!$Q$1-1)*12))=0," ",OFFSET('Castilla la Mancha_datos'!N43,0,((Resumen!$Q$1-1)*12)))," ") ->  | C18: =IF(C$1<=Resumen!$P$1,IF(OFFSET('Castilla la Mancha_datos'!O43,0,((Resumen!$Q$1-1)*12))=0," ",OFFSET('Castilla la Mancha_datos'!O43,0,((Resumen!$Q$1-1)*12)))," ") ->  | D18: =IF(D$1<=Resumen!$P$1,IF(OFFSET('Castilla la Mancha_datos'!P43,0,((Resumen!$Q$1-1)*12))=0," ",OFFSET('Castilla la Mancha_datos'!P43,0,((Resumen!$Q$1-1)*12)))," ") ->  | E18: =IF(E$1<=Resumen!$P$1,IF(OFFSET('Castilla la Mancha_datos'!Q43,0,((Resumen!$Q$1-1)*12))=0," ",OFFSET('Castilla la Mancha_datos'!Q43,0,((Resumen!$Q$1-1)*12)))," ") ->  | F18: =IF(F$1<=Resumen!$P$1,IF(OFFSET('Castilla la Mancha_datos'!R43,0,((Resumen!$Q$1-1)*12))=0," ",OFFSET('Castilla la Mancha_datos'!R43,0,((Resumen!$Q$1-1)*12)))," ") ->  | G18: =IF(G$1<=Resumen!$P$1,IF(OFFSET('Castilla la Mancha_datos'!S43,0,((Resumen!$Q$1-1)*12))=0," ",OFFSET('Castilla la Mancha_datos'!S43,0,((Resumen!$Q$1-1)*12)))," ") ->  | H18: =IF(H$1<=Resumen!$P$1,IF(OFFSET('Castilla la Mancha_datos'!T43,0,((Resumen!$Q$1-1)*12))=0," ",OFFSET('Castilla la Mancha_datos'!T43,0,((Resumen!$Q$1-1)*12)))," ") ->  | I18: =IF(I$1<=Resumen!$P$1,IF(OFFSET('Castilla la Mancha_datos'!U43,0,((Resumen!$Q$1-1)*12))=0," ",OFFSET('Castilla la Mancha_datos'!U43,0,((Resumen!$Q$1-1)*12)))," ") ->  | J18: =IF(J$1<=Resumen!$P$1,IF(OFFSET('Castilla la Mancha_datos'!V43,0,((Resumen!$Q$1-1)*12))=0," ",OFFSET('Castilla la Mancha_datos'!V43,0,((Resumen!$Q$1-1)*12)))," ") ->  | K18: =IF(K$1<=Resumen!$P$1,IF(OFFSET('Castilla la Mancha_datos'!W43,0,((Resumen!$Q$1-1)*12))=0," ",OFFSET('Castilla la Mancha_datos'!W43,0,((Resumen!$Q$1-1)*12)))," ") ->  | L18: =IF(L$1<=Resumen!$P$1,IF(OFFSET('Castilla la Mancha_datos'!X43,0,((Resumen!$Q$1-1)*12))=0," ",OFFSET('Castilla la Mancha_datos'!X43,0,((Resumen!$Q$1-1)*12)))," ") ->  | M18: =IF(M$1<=Resumen!$P$1,IF(OFFSET('Castilla la Mancha_datos'!Y43,0,((Resumen!$Q$1-1)*12))=0," ",OFFSET('Castilla la Mancha_datos'!Y43,0,((Resumen!$Q$1-1)*12)))," ") ->  | N18: =IF(SUM(B18:M18)=0," ",SUM(B18:M18)) -> 
A19: Generación neta | B19: =IF(B$1<=Resumen!$P$1,IF(OFFSET('Castilla la Mancha_datos'!N44,0,((Resumen!$Q$1-1)*12))=0," ",OFFSET('Castilla la Mancha_datos'!N44,0,((Resumen!$Q$1-1)*12)))," ") -> 2124171.079 | C19: =IF(C$1<=Resumen!$P$1,IF(OFFSET('Castilla la Mancha_datos'!O44,0,((Resumen!$Q$1-1)*12))=0," ",OFFSET('Castilla la Mancha_datos'!O44,0,((Resumen!$Q$1-1)*12)))," ") -> 1787882.702 | D19: =IF(D$1<=Resumen!$P$1,IF(OFFSET('Castilla la Mancha_datos'!P44,0,((Resumen!$Q$1-1)*12))=0," ",OFFSET('Castilla la Mancha_datos'!P44,0,((Resumen!$Q$1-1)*12)))," ") -> 2753619.091 | E19: =IF(E$1<=Resumen!$P$1,IF(OFFSET('Castilla la Mancha_datos'!Q44,0,((Resumen!$Q$1-1)*12))=0," ",OFFSET('Castilla la Mancha_datos'!Q44,0,((Resumen!$Q$1-1)*12)))," ") -> 2092251.6 | F19: =IF(F$1<=Resumen!$P$1,IF(OFFSET('Castilla la Mancha_datos'!R44,0,((Resumen!$Q$1-1)*12))=0," ",OFFSET('Castilla la Mancha_datos'!R44,0,((Resumen!$Q$1-1)*12)))," ") -> 1442248.889 | G19: =IF(G$1<=Resumen!$P$1,IF(OFFSET('Castilla la Mancha_datos'!S44,0,((Resumen!$Q$1-1)*12))=0," ",OFFSET('Castilla la Mancha_datos'!S44,0,((Resumen!$Q$1-1)*12)))," ") -> 1064236.083 | H19: =IF(H$1<=Resumen!$P$1,IF(OFFSET('Castilla la Mancha_datos'!T44,0,((Resumen!$Q$1-1)*12))=0," ",OFFSET('Castilla la Mancha_datos'!T44,0,((Resumen!$Q$1-1)*12)))," ") -> 1737923.446 | I19: =IF(I$1<=Resumen!$P$1,IF(OFFSET('Castilla la Mancha_datos'!U44,0,((Resumen!$Q$1-1)*12))=0," ",OFFSET('Castilla la Mancha_datos'!U44,0,((Resumen!$Q$1-1)*12)))," ") -> 1665869.36 | J19: =IF(J$1<=Resumen!$P$1,IF(OFFSET('Castilla la Mancha_datos'!V44,0,((Resumen!$Q$1-1)*12))=0," ",OFFSET('Castilla la Mancha_datos'!V44,0,((Resumen!$Q$1-1)*12)))," ") -> 1504245.843 | K19: =IF(K$1<=Resumen!$P$1,IF(OFFSET('Castilla la Mancha_datos'!W44,0,((Resumen!$Q$1-1)*12))=0," ",OFFSET('Castilla la Mancha_datos'!W44,0,((Resumen!$Q$1-1)*12)))," ") -> 1679004.077 | L19: =IF(L$1<=Resumen!$P$1,IF(OFFSET('Castilla la Mancha_datos'!X44,0,((Resumen!$Q$1-1)*12))=0," ",OFFSET('Castilla la Mancha_datos'!X44,0,((Resumen!$Q$1-1)*12)))," ") -> 1986656.899 | M19: =IF(M$1<=Resumen!$P$1,IF(OFFSET('Castilla la Mancha_datos'!Y44,0,((Resumen!$Q$1-1)*12))=0," ",OFFSET('Castilla la Mancha_datos'!Y44,0,((Resumen!$Q$1-1)*12)))," ") ->  | N19: 19838109.07
A20: Consumos en bombeo | B20: =IF(B$1<=Resumen!$P$1,IF(OFFSET('Castilla la Mancha_datos'!N45,0,((Resumen!$Q$1-1)*12))=0," ",OFFSET('Castilla la Mancha_datos'!N45,0,((Resumen!$Q$1-1)*12)))," ") -> -14568.488 | C20: =IF(C$1<=Resumen!$P$1,IF(OFFSET('Castilla la Mancha_datos'!O45,0,((Resumen!$Q$1-1)*12))=0," ",OFFSET('Castilla la Mancha_datos'!O45,0,((Resumen!$Q$1-1)*12)))," ") -> -5776.576 | D20: =IF(D$1<=Resumen!$P$1,IF(OFFSET('Castilla la Mancha_datos'!P45,0,((Resumen!$Q$1-1)*12))=0," ",OFFSET('Castilla la Mancha_datos'!P45,0,((Resumen!$Q$1-1)*12)))," ") -> -16620.66 | E20: =IF(E$1<=Resumen!$P$1,IF(OFFSET('Castilla la Mancha_datos'!Q45,0,((Resumen!$Q$1-1)*12))=0," ",OFFSET('Castilla la Mancha_datos'!Q45,0,((Resumen!$Q$1-1)*12)))," ") -> -6543.959184 | F20: =IF(F$1<=Resumen!$P$1,IF(OFFSET('Castilla la Mancha_datos'!R45,0,((Resumen!$Q$1-1)*12))=0," ",OFFSET('Castilla la Mancha_datos'!R45,0,((Resumen!$Q$1-1)*12)))," ") -> 495.409371 | G20: =IF(G$1<=Resumen!$P$1,IF(OFFSET('Castilla la Mancha_datos'!S45,0,((Resumen!$Q$1-1)*12))=0," ",OFFSET('Castilla la Mancha_datos'!S45,0,((Resumen!$Q$1-1)*12)))," ") -> 1063.799128 | H20: =IF(H$1<=Resumen!$P$1,IF(OFFSET('Castilla la Mancha_datos'!T45,0,((Resumen!$Q$1-1)*12))=0," ",OFFSET('Castilla la Mancha_datos'!T45,0,((Resumen!$Q$1-1)*12)))," ") -> -2735.600936 | I20: =IF(I$1<=Resumen!$P$1,IF(OFFSET('Castilla la Mancha_datos'!U45,0,((Resumen!$Q$1-1)*12))=0," ",OFFSET('Castilla la Mancha_datos'!U45,0,((Resumen!$Q$1-1)*12)))," ") -> -303.426154 | J20: =IF(J$1<=Resumen!$P$1,IF(OFFSET('Castilla la Mancha_datos'!V45,0,((Resumen!$Q$1-1)*12))=0," ",OFFSET('Castilla la Mancha_datos'!V45,0,((Resumen!$Q$1-1)*12)))," ") -> -288.152288 | K20: =IF(K$1<=Resumen!$P$1,IF(OFFSET('Castilla la Mancha_datos'!W45,0,((Resumen!$Q$1-1)*12))=0," ",OFFSET('Castilla la Mancha_datos'!W45,0,((Resumen!$Q$1-1)*12)))," ") -> -11569.776 | L20: =IF(L$1<=Resumen!$P$1,IF(OFFSET('Castilla la Mancha_datos'!X45,0,((Resumen!$Q$1-1)*12))=0," ",OFFSET('Castilla la Mancha_datos'!X45,0,((Resumen!$Q$1-1)*12)))," ") -> -3715.486048 | M20: =IF(M$1<=Resumen!$P$1,IF(OFFSET('Castilla la Mancha_datos'!Y45,0,((Resumen!$Q$1-1)*12))=0," ",OFFSET('Castilla la Mancha_datos'!Y45,0,((Resumen!$Q$1-1)*12)))," ") ->  | N20: -60562.91611
A21: Saldo Intercambios | B21: =IF(B$1<=Resumen!$P$1,IF(OFFSET('Castilla la Mancha_datos'!N46,0,((Resumen!$Q$1-1)*12))=0," ",OFFSET('Castilla la Mancha_datos'!N46,0,((Resumen!$Q$1-1)*12)))," ") -> -1066929.482 | C21: =IF(C$1<=Resumen!$P$1,IF(OFFSET('Castilla la Mancha_datos'!O46,0,((Resumen!$Q$1-1)*12))=0," ",OFFSET('Castilla la Mancha_datos'!O46,0,((Resumen!$Q$1-1)*12)))," ") -> -829031.5 | D21: =IF(D$1<=Resumen!$P$1,IF(OFFSET('Castilla la Mancha_datos'!P46,0,((Resumen!$Q$1-1)*12))=0," ",OFFSET('Castilla la Mancha_datos'!P46,0,((Resumen!$Q$1-1)*12)))," ") -> -1729936.875 | E21: =IF(E$1<=Resumen!$P$1,IF(OFFSET('Castilla la Mancha_datos'!Q46,0,((Resumen!$Q$1-1)*12))=0," ",OFFSET('Castilla la Mancha_datos'!Q46,0,((Resumen!$Q$1-1)*12)))," ") -> -1127943.652 | F21: =IF(F$1<=Resumen!$P$1,IF(OFFSET('Castilla la Mancha_datos'!R46,0,((Resumen!$Q$1-1)*12))=0," ",OFFSET('Castilla la Mancha_datos'!R46,0,((Resumen!$Q$1-1)*12)))," ") -> -476293.302 | G21: =IF(G$1<=Resumen!$P$1,IF(OFFSET('Castilla la Mancha_datos'!S46,0,((Resumen!$Q$1-1)*12))=0," ",OFFSET('Castilla la Mancha_datos'!S46,0,((Resumen!$Q$1-1)*12)))," ") -> -124764.293 | H21: =IF(H$1<=Resumen!$P$1,IF(OFFSET('Castilla la Mancha_datos'!T46,0,((Resumen!$Q$1-1)*12))=0," ",OFFSET('Castilla la Mancha_datos'!T46,0,((Resumen!$Q$1-1)*12)))," ") -> -672140.192 | I21: =IF(I$1<=Resumen!$P$1,IF(OFFSET('Castilla la Mancha_datos'!U46,0,((Resumen!$Q$1-1)*12))=0," ",OFFSET('Castilla la Mancha_datos'!U46,0,((Resumen!$Q$1-1)*12)))," ") -> -585897.924 | J21: =IF(J$1<=Resumen!$P$1,IF(OFFSET('Castilla la Mancha_datos'!V46,0,((Resumen!$Q$1-1)*12))=0," ",OFFSET('Castilla la Mancha_datos'!V46,0,((Resumen!$Q$1-1)*12)))," ") -> -550911.256 | K21: =IF(K$1<=Resumen!$P$1,IF(OFFSET('Castilla la Mancha_datos'!W46,0,((Resumen!$Q$1-1)*12))=0," ",OFFSET('Castilla la Mancha_datos'!W46,0,((Resumen!$Q$1-1)*12)))," ") -> -783656.379 | L21: =IF(L$1<=Resumen!$P$1,IF(OFFSET('Castilla la Mancha_datos'!X46,0,((Resumen!$Q$1-1)*12))=0," ",OFFSET('Castilla la Mancha_datos'!X46,0,((Resumen!$Q$1-1)*12)))," ") -> -1044742.999 | M21: =IF(M$1<=Resumen!$P$1,IF(OFFSET('Castilla la Mancha_datos'!Y46,0,((Resumen!$Q$1-1)*12))=0," ",OFFSET('Castilla la Mancha_datos'!Y46,0,((Resumen!$Q$1-1)*12)))," ") ->  | N21: -8992247.854
A22: Demanda B.C | B22: =IF(B$1<=Resumen!$P$1,IF(OFFSET('Castilla la Mancha_datos'!N47,0,((Resumen!$Q$1-1)*12))=0," ",OFFSET('Castilla la Mancha_datos'!N47,0,((Resumen!$Q$1-1)*12)))," ") -> 1042673.109 | C22: =IF(C$1<=Resumen!$P$1,IF(OFFSET('Castilla la Mancha_datos'!O47,0,((Resumen!$Q$1-1)*12))=0," ",OFFSET('Castilla la Mancha_datos'!O47,0,((Resumen!$Q$1-1)*12)))," ") -> 953074.626 | D22: =IF(D$1<=Resumen!$P$1,IF(OFFSET('Castilla la Mancha_datos'!P47,0,((Resumen!$Q$1-1)*12))=0," ",OFFSET('Castilla la Mancha_datos'!P47,0,((Resumen!$Q$1-1)*12)))," ") -> 1007061.556 | E22: =IF(E$1<=Resumen!$P$1,IF(OFFSET('Castilla la Mancha_datos'!Q47,0,((Resumen!$Q$1-1)*12))=0," ",OFFSET('Castilla la Mancha_datos'!Q47,0,((Resumen!$Q$1-1)*12)))," ") -> 957763.9888 | F22: =IF(F$1<=Resumen!$P$1,IF(OFFSET('Castilla la Mancha_datos'!R47,0,((Resumen!$Q$1-1)*12))=0," ",OFFSET('Castilla la Mancha_datos'!R47,0,((Resumen!$Q$1-1)*12)))," ") -> 966450.9964 | G22: =IF(G$1<=Resumen!$P$1,IF(OFFSET('Castilla la Mancha_datos'!S47,0,((Resumen!$Q$1-1)*12))=0," ",OFFSET('Castilla la Mancha_datos'!S47,0,((Resumen!$Q$1-1)*12)))," ") -> 940535.5891 | H22: =IF(H$1<=Resumen!$P$1,IF(OFFSET('Castilla la Mancha_datos'!T47,0,((Resumen!$Q$1-1)*12))=0," ",OFFSET('Castilla la Mancha_datos'!T47,0,((Resumen!$Q$1-1)*12)))," ") -> 1063047.653 | I22: =IF(I$1<=Resumen!$P$1,IF(OFFSET('Castilla la Mancha_datos'!U47,0,((Resumen!$Q$1-1)*12))=0," ",OFFSET('Castilla la Mancha_datos'!U47,0,((Resumen!$Q$1-1)*12)))," ") -> 1079668.01 | J22: =IF(J$1<=Resumen!$P$1,IF(OFFSET('Castilla la Mancha_datos'!V47,0,((Resumen!$Q$1-1)*12))=0," ",OFFSET('Castilla la Mancha_datos'!V47,0,((Resumen!$Q$1-1)*12)))," ") -> 953046.4347 | K22: =IF(K$1<=Resumen!$P$1,IF(OFFSET('Castilla la Mancha_datos'!W47,0,((Resumen!$Q$1-1)*12))=0," ",OFFSET('Castilla la Mancha_datos'!W47,0,((Resumen!$Q$1-1)*12)))," ") -> 883777.922 | L22: =IF(L$1<=Resumen!$P$1,IF(OFFSET('Castilla la Mancha_datos'!X47,0,((Resumen!$Q$1-1)*12))=0," ",OFFSET('Castilla la Mancha_datos'!X47,0,((Resumen!$Q$1-1)*12)))," ") -> 938198.414 | M22: =IF(M$1<=Resumen!$P$1,IF(OFFSET('Castilla la Mancha_datos'!Y47,0,((Resumen!$Q$1-1)*12))=0," ",OFFSET('Castilla la Mancha_datos'!Y47,0,((Resumen!$Q$1-1)*12)))," ") ->  | N22: 10785298.3
A23: =Resumen!A24 -> %Δ 18/17 | B23: =IF(B$1<=Resumen!$P$1,IF(OFFSET('Castilla la Mancha_datos'!N48,0,((Resumen!$Q$1-1)*12))=0," ",OFFSET('Castilla la Mancha_datos'!N48,0,((Resumen!$Q$1-1)*12)))," ") -> -1.799947181 | C23: =IF(C$1<=Resumen!$P$1,IF(OFFSET('Castilla la Mancha_datos'!O48,0,((Resumen!$Q$1-1)*12))=0," ",OFFSET('Castilla la Mancha_datos'!O48,0,((Resumen!$Q$1-1)*12)))," ") -> 4.031387693 | D23: =IF(D$1<=Resumen!$P$1,IF(OFFSET('Castilla la Mancha_datos'!P48,0,((Resumen!$Q$1-1)*12))=0," ",OFFSET('Castilla la Mancha_datos'!P48,0,((Resumen!$Q$1-1)*12)))," ") -> 5.813155287 | E23: =IF(E$1<=Resumen!$P$1,IF(OFFSET('Castilla la Mancha_datos'!Q48,0,((Resumen!$Q$1-1)*12))=0," ",OFFSET('Castilla la Mancha_datos'!Q48,0,((Resumen!$Q$1-1)*12)))," ") -> 5.096631163 | F23: =IF(F$1<=Resumen!$P$1,IF(OFFSET('Castilla la Mancha_datos'!R48,0,((Resumen!$Q$1-1)*12))=0," ",OFFSET('Castilla la Mancha_datos'!R48,0,((Resumen!$Q$1-1)*12)))," ") -> 0.4359671159 | G23: =IF(G$1<=Resumen!$P$1,IF(OFFSET('Castilla la Mancha_datos'!S48,0,((Resumen!$Q$1-1)*12))=0," ",OFFSET('Castilla la Mancha_datos'!S48,0,((Resumen!$Q$1-1)*12)))," ") -> -7.68333619 | H23: =IF(H$1<=Resumen!$P$1,IF(OFFSET('Castilla la Mancha_datos'!T48,0,((Resumen!$Q$1-1)*12))=0," ",OFFSET('Castilla la Mancha_datos'!T48,0,((Resumen!$Q$1-1)*12)))," ") -> 0.4308200298 | I23: =IF(I$1<=Resumen!$P$1,IF(OFFSET('Castilla la Mancha_datos'!U48,0,((Resumen!$Q$1-1)*12))=0," ",OFFSET('Castilla la Mancha_datos'!U48,0,((Resumen!$Q$1-1)*12)))," ") -> -0.4792176105 | J23: =IF(J$1<=Resumen!$P$1,IF(OFFSET('Castilla la Mancha_datos'!V48,0,((Resumen!$Q$1-1)*12))=0," ",OFFSET('Castilla la Mancha_datos'!V48,0,((Resumen!$Q$1-1)*12)))," ") -> 2.587486728 | K23: =IF(K$1<=Resumen!$P$1,IF(OFFSET('Castilla la Mancha_datos'!W48,0,((Resumen!$Q$1-1)*12))=0," ",OFFSET('Castilla la Mancha_datos'!W48,0,((Resumen!$Q$1-1)*12)))," ") -> 1.197424797 | L23: =IF(L$1<=Resumen!$P$1,IF(OFFSET('Castilla la Mancha_datos'!X48,0,((Resumen!$Q$1-1)*12))=0," ",OFFSET('Castilla la Mancha_datos'!X48,0,((Resumen!$Q$1-1)*12)))," ") -> 1.984020285 | M23: =IF(M$1<=Resumen!$P$1,IF(OFFSET('Castilla la Mancha_datos'!Y48,0,((Resumen!$Q$1-1)*12))=0," ",OFFSET('Castilla la Mancha_datos'!Y48,0,((Resumen!$Q$1-1)*12)))," ") ->  | N23: =((N22/SUM(OFFSET('Castilla la Mancha_datos'!N47,0,(Resumen!$Q$1-2)*12):OFFSET('Castilla la Mancha_datos'!N47,0,((Resumen!$Q$1-2)*12)+Resumen!$P$1-1))-1)*100) -> 0.9133763979
A69: =A1 -> Castilla la Mancha | B69: =L22 -> 938198.414
A70: Resto nacional | B70: =Nacional_datos!CF47-B69 -> 21117280.14

Sheet Castilla León
A1: Castilla y León | B1: 1 | C1: 2 | D1: 3 | E1: 4 | F1: 5 | G1: 6 | H1: 7 | I1: 8 | J1: 9 | K1: 10 | L1: 11 | M1: 12
A2: Balance mensual de energía electrica. MWh
B3: 2018
B4: Ene | C4: Feb | D4: Mar | E4: Abr | F4: May | G4: Jun | H4: Jul | I4: Ago | J4: Sep | K4: Oct | L4: Nov | M4: Dic | N4: TOTAL
A5: Hidraulica | B5: =IF(B$1<=Resumen!$P$1,IF(OFFSET('Castilla León_datos'!N30,0,((Resumen!$Q$1-1)*12))=0," ",OFFSET('Castilla León_datos'!N30,0,((Resumen!$Q$1-1)*12)))," ") -> 355847.9356 | C5: =IF(C$1<=Resumen!$P$1,IF(OFFSET('Castilla León_datos'!O30,0,((Resumen!$Q$1-1)*12))=0," ",OFFSET('Castilla León_datos'!O30,0,((Resumen!$Q$1-1)*12)))," ") -> 428231.5121 | D5: =IF(D$1<=Resumen!$P$1,IF(OFFSET('Castilla León_datos'!P30,0,((Resumen!$Q$1-1)*12))=0," ",OFFSET('Castilla León_datos'!P30,0,((Resumen!$Q$1-1)*12)))," ") -> 966962.2653 | E5: =IF(E$1<=Resumen!$P$1,IF(OFFSET('Castilla León_datos'!Q30,0,((Resumen!$Q$1-1)*12))=0," ",OFFSET('Castilla León_datos'!Q30,0,((Resumen!$Q$1-1)*12)))," ") -> 1176031.621 | F5: =IF(F$1<=Resumen!$P$1,IF(OFFSET('Castilla León_datos'!R30,0,((Resumen!$Q$1-1)*12))=0," ",OFFSET('Castilla León_datos'!R30,0,((Resumen!$Q$1-1)*12)))," ") -> 787111.4396 | G5: =IF(G$1<=Resumen!$P$1,IF(OFFSET('Castilla León_datos'!S30,0,((Resumen!$Q$1-1)*12))=0," ",OFFSET('Castilla León_datos'!S30,0,((Resumen!$Q$1-1)*12)))," ") -> 885326.0073 | H5: =IF(H$1<=Resumen!$P$1,IF(OFFSET('Castilla León_datos'!T30,0,((Resumen!$Q$1-1)*12))=0," ",OFFSET('Castilla León_datos'!T30,0,((Resumen!$Q$1-1)*12)))," ") -> 790092.0018 | I5: =IF(I$1<=Resumen!$P$1,IF(OFFSET('Castilla León_datos'!U30,0,((Resumen!$Q$1-1)*12))=0," ",OFFSET('Castilla León_datos'!U30,0,((Resumen!$Q$1-1)*12)))," ") -> 654520.6142 | J5: =IF(J$1<=Resumen!$P$1,IF(OFFSET('Castilla León_datos'!V30,0,((Resumen!$Q$1-1)*12))=0," ",OFFSET('Castilla León_datos'!V30,0,((Resumen!$Q$1-1)*12)))," ") -> 646638.1988 | K5: =IF(K$1<=Resumen!$P$1,IF(OFFSET('Castilla León_datos'!W30,0,((Resumen!$Q$1-1)*12))=0," ",OFFSET('Castilla León_datos'!W30,0,((Resumen!$Q$1-1)*12)))," ") -> 372676.6139 | L5: =IF(L$1<=Resumen!$P$1,IF(OFFSET('Castilla León_datos'!X30,0,((Resumen!$Q$1-1)*12))=0," ",OFFSET('Castilla León_datos'!X30,0,((Resumen!$Q$1-1)*12)))," ") -> 453944.7494 | M5: =IF(M$1<=Resumen!$P$1,IF(OFFSET('Castilla León_datos'!Y30,0,((Resumen!$Q$1-1)*12))=0," ",OFFSET('Castilla León_datos'!Y30,0,((Resumen!$Q$1-1)*12)))," ") ->  | N5: =IF(SUM(B5:M5)=0," ",SUM(B5:M5)) -> 7517382.959
A6: Turbinación bombeo | B6: =IF(B$1<=Resumen!$P$1,IF(OFFSET('Castilla León_datos'!N31,0,((Resumen!$Q$1-1)*12))=0," ",OFFSET('Castilla León_datos'!N31,0,((Resumen!$Q$1-1)*12)))," ") -> 26283.07039 | C6: =IF(C$1<=Resumen!$P$1,IF(OFFSET('Castilla León_datos'!O31,0,((Resumen!$Q$1-1)*12))=0," ",OFFSET('Castilla León_datos'!O31,0,((Resumen!$Q$1-1)*12)))," ") -> 17614.37789 | D6: =IF(D$1<=Resumen!$P$1,IF(OFFSET('Castilla León_datos'!P31,0,((Resumen!$Q$1-1)*12))=0," ",OFFSET('Castilla León_datos'!P31,0,((Resumen!$Q$1-1)*12)))," ") -> 74644.43873 | E6: =IF(E$1<=Resumen!$P$1,IF(OFFSET('Castilla León_datos'!Q31,0,((Resumen!$Q$1-1)*12))=0," ",OFFSET('Castilla León_datos'!Q31,0,((Resumen!$Q$1-1)*12)))," ") -> 85104.50408 | F6: =IF(F$1<=Resumen!$P$1,IF(OFFSET('Castilla León_datos'!R31,0,((Resumen!$Q$1-1)*12))=0," ",OFFSET('Castilla León_datos'!R31,0,((Resumen!$Q$1-1)*12)))," ") -> 25220.05435 | G6: =IF(G$1<=Resumen!$P$1,IF(OFFSET('Castilla León_datos'!S31,0,((Resumen!$Q$1-1)*12))=0," ",OFFSET('Castilla León_datos'!S31,0,((Resumen!$Q$1-1)*12)))," ") -> 6093.641676 | H6: =IF(H$1<=Resumen!$P$1,IF(OFFSET('Castilla León_datos'!T31,0,((Resumen!$Q$1-1)*12))=0," ",OFFSET('Castilla León_datos'!T31,0,((Resumen!$Q$1-1)*12)))," ") -> 3233.219232 | I6: =IF(I$1<=Resumen!$P$1,IF(OFFSET('Castilla León_datos'!U31,0,((Resumen!$Q$1-1)*12))=0," ",OFFSET('Castilla León_datos'!U31,0,((Resumen!$Q$1-1)*12)))," ") -> 12775.24582 | J6: =IF(J$1<=Resumen!$P$1,IF(OFFSET('Castilla León_datos'!V31,0,((Resumen!$Q$1-1)*12))=0," ",OFFSET('Castilla León_datos'!V31,0,((Resumen!$Q$1-1)*12)))," ") -> 4329.374226 | K6: =IF(K$1<=Resumen!$P$1,IF(OFFSET('Castilla León_datos'!W31,0,((Resumen!$Q$1-1)*12))=0," ",OFFSET('Castilla León_datos'!W31,0,((Resumen!$Q$1-1)*12)))," ") -> 48730.09513 | L6: =IF(L$1<=Resumen!$P$1,IF(OFFSET('Castilla León_datos'!X31,0,((Resumen!$Q$1-1)*12))=0," ",OFFSET('Castilla León_datos'!X31,0,((Resumen!$Q$1-1)*12)))," ") -> 22661.06857 | M6: =IF(M$1<=Resumen!$P$1,IF(OFFSET('Castilla León_datos'!Y31,0,((Resumen!$Q$1-1)*12))=0," ",OFFSET('Castilla León_datos'!Y31,0,((Resumen!$Q$1-1)*12)))," ") ->  | N6: =IF(SUM(B6:M6)=0," ",SUM(B6:M6)) -> 326689.0901
A7: Nuclear | B7: =IF(B$1<=Resumen!$P$1,IF(OFFSET('Castilla León_datos'!N32,0,((Resumen!$Q$1-1)*12))=0," ",OFFSET('Castilla León_datos'!N32,0,((Resumen!$Q$1-1)*12)))," ") ->  | C7: =IF(C$1<=Resumen!$P$1,IF(OFFSET('Castilla León_datos'!O32,0,((Resumen!$Q$1-1)*12))=0," ",OFFSET('Castilla León_datos'!O32,0,((Resumen!$Q$1-1)*12)))," ") ->  | D7: =IF(D$1<=Resumen!$P$1,IF(OFFSET('Castilla León_datos'!P32,0,((Resumen!$Q$1-1)*12))=0," ",OFFSET('Castilla León_datos'!P32,0,((Resumen!$Q$1-1)*12)))," ") ->  | E7: =IF(E$1<=Resumen!$P$1,IF(OFFSET('Castilla León_datos'!Q32,0,((Resumen!$Q$1-1)*12))=0," ",OFFSET('Castilla León_datos'!Q32,0,((Resumen!$Q$1-1)*12)))," ") ->  | F7: =IF(F$1<=Resumen!$P$1,IF(OFFSET('Castilla León_datos'!R32,0,((Resumen!$Q$1-1)*12))=0," ",OFFSET('Castilla León_datos'!R32,0,((Resumen!$Q$1-1)*12)))," ") ->  | G7: =IF(G$1<=Resumen!$P$1,IF(OFFSET('Castilla León_datos'!S32,0,((Resumen!$Q$1-1)*12))=0," ",OFFSET('Castilla León_datos'!S32,0,((Resumen!$Q$1-1)*12)))," ") ->  | H7: =IF(H$1<=Resumen!$P$1,IF(OFFSET('Castilla León_datos'!T32,0,((Resumen!$Q$1-1)*12))=0," ",OFFSET('Castilla León_datos'!T32,0,((Resumen!$Q$1-1)*12)))," ") ->  | I7: =IF(I$1<=Resumen!$P$1,IF(OFFSET('Castilla León_datos'!U32,0,((Resumen!$Q$1-1)*12))=0," ",OFFSET('Castilla León_datos'!U32,0,((Resumen!$Q$1-1)*12)))," ") ->  | J7: =IF(J$1<=Resumen!$P$1,IF(OFFSET('Castilla León_datos'!V32,0,((Resumen!$Q$1-1)*12))=0," ",OFFSET('Castilla León_datos'!V32,0,((Resumen!$Q$1-1)*12)))," ") ->  | K7: =IF(K$1<=Resumen!$P$1,IF(OFFSET('Castilla León_datos'!W32,0,((Resumen!$Q$1-1)*12))=0," ",OFFSET('Castilla León_datos'!W32,0,((Resumen!$Q$1-1)*12)))," ") ->  | L7: =IF(L$1<=Resumen!$P$1,IF(OFFSET('Castilla León_datos'!X32,0,((Resumen!$Q$1-1)*12))=0," ",OFFSET('Castilla León_datos'!X32,0,((Resumen!$Q$1-1)*12)))," ") ->  | M7: =IF(M$1<=Resumen!$P$1,IF(OFFSET('Castilla León_datos'!Y32,0,((Resumen!$Q$1-1)*12))=0," ",OFFSET('Castilla León_datos'!Y32,0,((Resumen!$Q$1-1)*12)))," ") ->  | N7: =IF(SUM(B7:M7)=0," ",SUM(B7:M7)) -> 
A8: Carbón | B8: =IF(B$1<=Resumen!$P$1,IF(OFFSET('Castilla León_datos'!N33,0,((Resumen!$Q$1-1)*12))=0," ",OFFSET('Castilla León_datos'!N33,0,((Resumen!$Q$1-1)*12)))," ") -> 376514.96 | C8: =IF(C$1<=Resumen!$P$1,IF(OFFSET('Castilla León_datos'!O33,0,((Resumen!$Q$1-1)*12))=0," ",OFFSET('Castilla León_datos'!O33,0,((Resumen!$Q$1-1)*12)))," ") -> 564543.441 | D8: =IF(D$1<=Resumen!$P$1,IF(OFFSET('Castilla León_datos'!P33,0,((Resumen!$Q$1-1)*12))=0," ",OFFSET('Castilla León_datos'!P33,0,((Resumen!$Q$1-1)*12)))," ") -> 34790.019 | E8: =IF(E$1<=Resumen!$P$1,IF(OFFSET('Castilla León_datos'!Q33,0,((Resumen!$Q$1-1)*12))=0," ",OFFSET('Castilla León_datos'!Q33,0,((Resumen!$Q$1-1)*12)))," ") -> -7863.47 | F8: =IF(F$1<=Resumen!$P$1,IF(OFFSET('Castilla León_datos'!R33,0,((Resumen!$Q$1-1)*12))=0," ",OFFSET('Castilla León_datos'!R33,0,((Resumen!$Q$1-1)*12)))," ") -> 40838.675 | G8: =IF(G$1<=Resumen!$P$1,IF(OFFSET('Castilla León_datos'!S33,0,((Resumen!$Q$1-1)*12))=0," ",OFFSET('Castilla León_datos'!S33,0,((Resumen!$Q$1-1)*12)))," ") -> 19186.491 | H8: =IF(H$1<=Resumen!$P$1,IF(OFFSET('Castilla León_datos'!T33,0,((Resumen!$Q$1-1)*12))=0," ",OFFSET('Castilla León_datos'!T33,0,((Resumen!$Q$1-1)*12)))," ") -> 285930.271 | I8: =IF(I$1<=Resumen!$P$1,IF(OFFSET('Castilla León_datos'!U33,0,((Resumen!$Q$1-1)*12))=0," ",OFFSET('Castilla León_datos'!U33,0,((Resumen!$Q$1-1)*12)))," ") -> 388816.151 | J8: =IF(J$1<=Resumen!$P$1,IF(OFFSET('Castilla León_datos'!V33,0,((Resumen!$Q$1-1)*12))=0," ",OFFSET('Castilla León_datos'!V33,0,((Resumen!$Q$1-1)*12)))," ") -> 466436.039 | K8: =IF(K$1<=Resumen!$P$1,IF(OFFSET('Castilla León_datos'!W33,0,((Resumen!$Q$1-1)*12))=0," ",OFFSET('Castilla León_datos'!W33,0,((Resumen!$Q$1-1)*12)))," ") -> 335818.943 | L8: =IF(L$1<=Resumen!$P$1,IF(OFFSET('Castilla León_datos'!X33,0,((Resumen!$Q$1-1)*12))=0," ",OFFSET('Castilla León_datos'!X33,0,((Resumen!$Q$1-1)*12)))," ") -> 622041.206 | M8: =IF(M$1<=Resumen!$P$1,IF(OFFSET('Castilla León_datos'!Y33,0,((Resumen!$Q$1-1)*12))=0," ",OFFSET('Castilla León_datos'!Y33,0,((Resumen!$Q$1-1)*12)))," ") ->  | N8: 3127052.726
A9: Fuel-Gas | B9: =IF(B$1<=Resumen!$P$1,IF(OFFSET('Castilla León_datos'!N34,0,((Resumen!$Q$1-1)*12))=0," ",OFFSET('Castilla León_datos'!N34,0,((Resumen!$Q$1-1)*12)))," ") ->  | C9: =IF(C$1<=Resumen!$P$1,IF(OFFSET('Castilla León_datos'!O34,0,((Resumen!$Q$1-1)*12))=0," ",OFFSET('Castilla León_datos'!O34,0,((Resumen!$Q$1-1)*12)))," ") ->  | D9: =IF(D$1<=Resumen!$P$1,IF(OFFSET('Castilla León_datos'!P34,0,((Resumen!$Q$1-1)*12))=0," ",OFFSET('Castilla León_datos'!P34,0,((Resumen!$Q$1-1)*12)))," ") ->  | E9: =IF(E$1<=Resumen!$P$1,IF(OFFSET('Castilla León_datos'!Q34,0,((Resumen!$Q$1-1)*12))=0," ",OFFSET('Castilla León_datos'!Q34,0,((Resumen!$Q$1-1)*12)))," ") ->  | F9: =IF(F$1<=Resumen!$P$1,IF(OFFSET('Castilla León_datos'!R34,0,((Resumen!$Q$1-1)*12))=0," ",OFFSET('Castilla León_datos'!R34,0,((Resumen!$Q$1-1)*12)))," ") ->  | G9: =IF(G$1<=Resumen!$P$1,IF(OFFSET('Castilla León_datos'!S34,0,((Resumen!$Q$1-1)*12))=0," ",OFFSET('Castilla León_datos'!S34,0,((Resumen!$Q$1-1)*12)))," ") ->  | H9: =IF(H$1<=Resumen!$P$1,IF(OFFSET('Castilla León_datos'!T34,0,((Resumen!$Q$1-1)*12))=0," ",OFFSET('Castilla León_datos'!T34,0,((Resumen!$Q$1-1)*12)))," ") ->  | I9: =IF(I$1<=Resumen!$P$1,IF(OFFSET('Castilla León_datos'!U34,0,((Resumen!$Q$1-1)*12))=0," ",OFFSET('Castilla León_datos'!U34,0,((Resumen!$Q$1-1)*12)))," ") ->  | J9: =IF(J$1<=Resumen!$P$1,IF(OFFSET('Castilla León_datos'!V34,0,((Resumen!$Q$1-1)*12))=0," ",OFFSET('Castilla León_datos'!V34,0,((Resumen!$Q$1-1)*12)))," ") ->  | K9: =IF(K$1<=Resumen!$P$1,IF(OFFSET('Castilla León_datos'!W34,0,((Resumen!$Q$1-1)*12))=0," ",OFFSET('Castilla León_datos'!W34,0,((Resumen!$Q$1-1)*12)))," ") ->  | L9: =IF(L$1<=Resumen!$P$1,IF(OFFSET('Castilla León_datos'!X34,0,((Resumen!$Q$1-1)*12))=0," ",OFFSET('Castilla León_datos'!X34,0,((Resumen!$Q$1-1)*12)))," ") ->  | M9: =IF(M$1<=Resumen!$P$1,IF(OFFSET('Castilla León_datos'!Y34,0,((Resumen!$Q$1-1)*12))=0," ",OFFSET('Castilla León_datos'!Y34,0,((Resumen!$Q$1-1)*12)))," ") -> 
